Workbook

Sheet Cover
B6: Official Statistics Release
B7: Policy area: | C7: Children’s social care data in England 2018
B8: Theme: | C8: Social care
B9: Published on: | C9: 19 July 2018
B10: Coverage: | C10: England
B11: Period covered: | C11: ="Inspection outcomes for local authority children’s services inspections, as at "& Inspections_To&", published by "&Published_By -> Inspection outcomes for local authority children’s services inspections, as at 31 March 2018, published by 30 April 2018
C12: ="Inspection outcomes for all regulated, and other, children’s social care provision, "&Inspections_From &" to "&Inspections_To &", published by "&Published_By -> Inspection outcomes for all regulated, and other, children’s social care provision, 01 April 2017 to 31 March 2018, published by 30 April 2018
C13: ="Inspection outcome of most recent inspection for all regulated, and other, children’s social care provision, as at "&Inspections_To &", published by " &Published_By -> Inspection outcome of most recent inspection for all regulated, and other, children’s social care provision, as at 31 March 2018, published by 30 April 2018
C14: ="Information about the providers of children’s social care, including the numbers of providers and places, as at " &Inspections_To -> Information about the providers of children’s social care, including the numbers of providers and places, as at 31 March 2018
B15: Status: | C15: ="Final - inspections of local authority children’s services, as at " &Inspections_To -> Final - inspections of local authority children’s services, as at 31 March 2018
C16: ="Provisional - inspections of regulated, and other, children's social care provision, " &Inspections_From &" to " &Inspections_To -> Provisional - inspections of regulated, and other, children's social care provision, 01 April 2017 to 31 March 2018
C17: ="Final - inspections of regulated, and other, children's social care provision, as at " &Inspections_To -> Final - inspections of regulated, and other, children's social care provision, as at 31 March 2018
C18: ="Final - information about the providers of children’s social care, including the numbers of providers, as at " &Inspections_To -> Final - information about the providers of children’s social care, including the numbers of providers, as at 31 March 2018
B19: Issued by: | C19: Office for Standards in Education, Children’s Services and Skills (Ofsted) 125 Kingsway London WC2B 6SE
B23: Chief Statistician: | C23: Jason Bradbury
B24: Statistician: | C24: Adam King
B25: Public enquiries: | C25: If you have any comments or feedback on this publication, please contact the Social Care Data Team on 03000 130 020 or socialcaredata@ofsted.gov.uk
B26: Press enquiries: | C26: pressenquiries@ofsted.gov.uk
B27: Publication frequency: | C27: Annual
B28: Schedule of publication: | C28: https://www.gov.uk/government/statistics/announcements?utf8=%E2%9C%93&organisations%5B%5D=ofsted
B30: © Crown copyright 2018 You may use and re-use this information (not including logos) free of charge in any format or medium, under the terms of the Open Government Licence. To view this licence, visit: http://www.nationalarchives.gov.uk/doc/open-government-licence/
B31: Or write to the Information Policy Team, The National Archives, Kew, London, TW9 4DU
B32: Or email: psi@nationalarchives.gsi.gov.uk

Sheet Contents
B1: Contents
B3: Worksheet title and link | C3: Description of contents of worksheet
B5: Notes | C5: These are notes about the document and data within it to aid the use and interpretation of the data.
B7: Glossary | C7: This is a list of terms found in the document with further explanations about what they mean.
B9: Meta-data | C9: This is a headline guide to what data is contained in each tab, with direct links to the tabs.
B11: LA Inspection | C11: This is an interactive table which shows inspection judgements for local authority inspections. It covers the current and two previous inspection frameworks. It has drop down options for; England/region/local authority and inspection type.
B13: Children's Social Care | C13: This is an interactive table which shows inspection judgements for all non-local authority inspections. It has numerous drop down options including; England/region/local authority, inspection period, social care provision type and inspection type.
B15: Sub-Judgements | C15: This is an interactive table which shows inspection sub-judgements for all non-local authority inspections. It has numerous drop down options including; England/region/local authority, inspection period, social care provision type and sector.
B17: LA level at 31 March 2018 | C17: This is a list of all the local authorities in England. Where they have received an inspection in the current cycle, their inspection judgements are shown.
B19: ILACS visits | C19: This is a list of all monitoring and focused visits which have taken place in 2018 under the Inspections of Local Authorities' Children's Services (ILACS) framework.
B21: Provider level at 31 March 2018 | C21: ="This is a list of all active inspected social care provisions as at " & Inspections_To & " with the inspection judgements from their latest full inspection." -> This is a list of all active inspected social care provisions as at 31 March 2018 with the inspection judgements from their latest full inspection.
B23: Provider level in year 2017-18 | C23: ="This is a list of all social care provisions inspected between " & Inspections_From & " and " & Inspections_To & " with the inspection judgements from all the different types of inspections/visits. If a provision is inspected more than once in the year it has an entry for each inspection." -> This is a list of all social care provisions inspected between 01 April 2017 and 31 March 2018 with the inspection judgements from all the different types of inspections/visits. If a provision is inspected more than once in the year it has an entry for each inspection.
B25: Providers+places at 31 March 2018 | C25: This is a list of all social care provisions active on 31 March 2018, with the number of places they offer where applicable, and details of the organisation which owns the provision. This tab does not include inspection outcomes.
B27: Providers + Places six monthly | C27: This is a table showing the providers and places data at six month intervals, since 30 September 2011.
B29: Latest OE 31 March Time Series | C29: This is an interactive time series table and chart showing overall effectiveness of all the different types of social care provisions, as at 31 March each year.
B31: In year Time Series | C31: This is an interactive time series table and chart showing overall effectiveness of the larger provision types which have a one year inspection cycle, that is, children's homes and residential special schools. The inspection cycle runs from 1 April to 31 March each year. The children's homes data is broken down by children's homes sub-type.
B33: Additional charts and tables | C33: This contains any additional charts or tables which support the data and main findings.

Sheet Notes
B1: Notes
B3: Data
B4: The inspection outcomes data relates to inspections of:
B5: local authority (LA) services for children who need help and protection, children looked after and care leavers. The inspections of LA children’s services are carried out under the Inspection of Local Authorities Children's Services (ILACS).
B6: other children’s social care providers and residential accommodation for children in boarding schools and further education colleges.
B8: The providers and places data includes:
B9: children’s social care providers, for which Ofsted has a regulatory and inspection responsibility,
B10: providers of residential accommodation for children in special schools, boarding schools and further education colleges, for which Ofsted has an inspection responsibility.
B12: Notes to help use/interpret the data
B14: Monitoring visits shown in the data set are only those which took place since the introduction of the ILACS framework.
B16: Where the term 'Residential special school (registered as a children's home)' is used, this refers to residential special schools that are registered as children's homes as they care for pupils for more than 295 days in a year.
B18: Secure training centres are not included in the tables as details regarding them and their inspections are not currently held in the main Ofsted database. They will be added to the database before the next release. Their details have been added manually to the underlying data. They do not appear in the time series charts.
B20: The inspection of Cafcass is not included in the interactive tables. The details of this have been added manually to the underlying data. They do not appear in the time series charts.
B22: Some children's home interim inspections have an overall effectiveness outcome of 'not judged'. This is because the home had no children present at the time of inspection and so could not receive an inspection judgement.
B24: One residential special school also had an overall effectiveness outcome of 'not judged' because no children were present at the time of inspection so the school could not receive an inspection judgement.
B26: Three children's homes received a monitoring visit which resulted in the change of the overall effectiveness judgement from the previous full inspection. These judgements are recorded in the Sub-Judgements table.
B28: The total number of inspections recorded in the Children's Social Care and the Sub-Judgements tables is different as the first table records the number of all full inspections irrespective of whether the inspection resulted in the overall effectiveness judgement or not, whereas the total of the inspections in the Sub-Judgments table records all inspections of any type with an inspection judgement, therefore including the three monitoring visits mentioned above.
B30: The tables show the number of joiners and leavers for each social care provision type. It should be noted however that simply comparing these two will not show the actual change in the number of places each year. This is because a number or providers who are active at both the start and end of the period will change the number of places they are registered for. In addition, it is not always possible to easily distinguish residential special schools registered as children's homes from children's homes and as such changes in the numbers of places for these provision types are sometimes the result of updated information rather than new registrations or de-registrations.
B32: Ofsted has brought in a more standardised set of sub-judgements for all its social care inspections, in conjunction with changes to inspection frameworks, and these are reported in the tables and underlying data. When reporting on the latest inspection judgements, there are some inspections that took place before these standardised sub-judgements came in, and so their sub-judgements are not included as they are not comparable to the new sub-judgements.
B34: In the as at 31 March 2018 data we have used the 2017-18 inspection framework's sub judgement wording rather than the wording at the time of inspection. Where the sub judgements are looking at all provider types as one, we have used a standardised set of sub judgement names to best convey what that sub judgement covers.
B36: Caution should be used when comparing inspection judgements from year to year in the time series charts and tables. Inspection framework changes may have an impact on inspection judgements and so a changing grade profile from one year to the next may not solely indicate a change in the quality of provisions.
B38: Revisions
B39: Any revisions to the inspection data for 2017-18 will be included with the additional six monthly release (local authority and children’s homes inspections and outcomes only, published in December each year). This will include advisory notes about any impact to figures and findings from the first full release of provisional data. Revisions are published in line with Ofsted’s revisions policy for official statistics. For more information about the policy, please visit the Ofsted website or access the policy via the following link:
B40: https://www.gov.uk/government/publications/ofsted-standards-for-official-statistics
B42: Other available data
B43: Previously published data regarding LA inspections, children’s social care inspections and providers and places can be found at the following links on GOV.UK:
B44: https://www.gov.uk/government/collections/childrens-social-care-statistics
B45: and in the National Archives:
B46: http://webarchive.nationalarchives.gov.uk/20141124154759/http:/www.ofsted.gov.uk/resources/statistics
B47: These pages also contain data on adoption, fostering, children looked after placements and serious incident notifications which the reader may find relevant.
B49: Quality Report
B50: An explanation about key uses of this data and further contextual information is provided in the accompanying Quality and Methodology report. The report also provides information about the arrangements for quality assurance, strengths and limitations of the statistics:
B51: www.gov.uk/government/collections/childrens-social-care-statistics

Sheet Glossary
B1: Glossary
B3: Adoption agencies
B4: The focus of all adoption agencies is on placing children successfully into adoptive families who the agency recruits, assesses, prepares and supports, so they will meet the children’s needs and enable them to develop and achieve throughout their lives. The services maintained by local authorities are described in section 3(1) of the Adoption and Children Act 2002. Local authorities place children with adoptive families recruited and approved by themselves, by other local authorities or by voluntary adoption agencies who must register with Ofsted. Adoption agencies may also provide birth records, counselling and intermediary services to adoptees and birth relatives. There are three branches of voluntary adoption agencies in Wales which are inspected by Ofsted because their head offices are in England. These are not included in this publication.
B6: Adoption support agencies
B7: Adoption support agencies are defined by section 8 of the Adoption and Children Act 2002 and provide services to anyone touched by adoption and are registered with Ofsted. This includes counselling and help for children and adults to gain information about their adoption or to trace birth relatives. Adoption support agencies can be either organisations or individuals, and may be contracted by a local authority to provide support services.
B9: Boarding schools
B10: The majority of boarding schools are independent and belong to associations which are members of the Independent Schools Council. As both education and welfare in these schools are inspected by their own inspectorate, Ofsted does not inspect these schools and so they are not included in the data. The remainder are maintained boarding schools where both education and the welfare of boarders are the subject of Ofsted inspection and independent boarding schools which are members of the Bridge Schools Inspectorate or Schools Inspection Service and who receive their education inspections by these organisations and their welfare inspections by Ofsted.
B12: Cafcass (The Children and Family Court Advisory and Support Service)
B13: Cafcass looks after the interests of children involved in family proceedings. It is independent of the courts and social services, but works under the rules of the Family Court and legislation to work with children and their families, and then advise the courts on what is considered to be in the best interests of individual children. When children are subjects of an application for care or supervision orders by local authorities (public law), Cafcass’s professionally qualified social work practitioners, called family court advisers (FCAs) act as ‘children’s guardians’. The local authority can apply to the court for various types of care and protection orders. The role of the children’s guardian is to safeguard and promote the child’s welfare and to scrutinise the local authority’s plan and ensure that it is in the child’s best interests.
B15: Children’s homes
B16: A children’s home is defined in section 1 of the Care Standards Act 2000, and is an establishment that provides care and accommodation wholly or mainly for children. Children’s homes vary in size and nature. They fulfil a range of purposes designed to meet the different needs of those children and young people who are assessed as needing a residential care placement. Some homes, for example, provide short breaks which are needed to help support children and their family. Some residential special schools are registered as children’s homes because boarders are resident for more than 295 days per year.
B18: Fostering agencies
B19: Local authority fostering services are defined by section 4 of the Care Standards Act 2000. Local authority fostering agencies and independent fostering agencies recruit, prepare, assess, train and support foster carers. Independent fostering agencies (IFAs) are private companies or charities, which are registered with Ofsted and provide placements to children and young people with foster carers approved by them. IFAs work closely with local authorities to deliver these placements.
B21: Further education colleges with residential accommodation
B22: The care provision of further education colleges that provide, or arrange, residential accommodation for one or more students under the age of 18 years. Ofsted inspects these colleges under section 87 of the Children Act 1989 as amended by the Care Standards Act 2000. Where a college is registered as a care home, the residential provision is inspected by the Care Quality Commission rather than by Ofsted.
B24: Joiners
B25: This is the number of social care providers that have registered with Ofsted in the period.
B27: JTAI (Joint Targeted Area Inspections)
B28: JTAI are joint inspections by Ofsted, Care Quality Commission, HM Inspectorate of Constabulary, Fire and Rescue Services and HM Inspectorate of Probation. The inspections include a ‘deep dive’ investigation – an evaluation of children and young people’s experiences. This changes periodically to investigate different themes in detail.
B30: Leavers
B31: This is the number of social care providers that have de-registered with Ofsted in the period.
B33: Linked ED URN
B34: This is the education URN of the school. Each school, or school registered as a children's home, also has an education URN which the education inspection report can be found under on the Ofsted website.
B36: Places
B37: The term ‘places’ used in this report refers to the number of places for which the social care provider has capacity. This number usually will not, therefore, be the same as the actual number of children who are receiving services from the provider. Ofsted holds data relating to places for: children's homes; secure children's homes; residential special schools; residential family centres; boarding schools; and further education colleges. For some of these providers Ofsted does not hold data relating to places. Where this is the case, the number of places has been estimated. For all other provision types, and aggregated provision types, places data is not available.
B39: Providers
B40: Children’s social care providers are those institutions or organisations or agencies that provide services to the relevant children and young people. The providers commented on within this report include children’s homes, secure children’s homes, residential special schools, residential family centres, boarding schools, residential further education colleges, secure training centres, residential holiday schemes for disabled children, adoption support agencies, voluntary adoption agencies, and independent fostering services.
B42: Residential family centres
B43: Residential family centres are defined in section 4(2) of the Care Standards Act 2000 as establishments at which: a) accommodation is provided for children and their parents; b) the parents’ capacity to respond to the children’s needs and to safeguard their welfare is monitored and assessed; and c) the parents are given such advice, guidance and counselling is considered necessary.
B45: Residential holiday schemes for disabled children
B46: A residential holiday scheme for disabled children provides care and accommodation wholly or mainly for disabled children for a specified period for the purposes of a holiday, or for recreational, sporting, cultural or educational purposes. Ofsted inspects these schemes under the Care Standards Act 2000, Part 2 (Extension of the Application of Part 2 to Holiday Schemes for Disabled Children) (England) Regulations 2013.
B48: Residential special schools
B49: Residential special schools are defined in section 59 of the Safeguarding Vulnerable Groups Act 2006. They vary in size and nature. The sector includes large non-maintained special schools which make provision for very specific needs and take children as full boarders from all over the country, to smaller more local providers catering for children with a range of different special needs and disabilities who may be resident at the school only during the week. Some residential special schools are registered as children’s homes because boarders are resident for more than 295 days per year. There are also a small number of independent residential special schools who also tend to cater for children with very specialist needs.
B51: Sector
B52: Sector refers to the type of provider that owns the children’s social care provision.
B53: Academy
B54: These are publicly funded independent schools who are run by trusts.
B55: Health Authority
B56: These are NHS Trust-run.
B57: Local Authority
B58: These are public bodies responsible for the children’s social care provision.
B59: Private
B60: These are for-profit organisations mostly with limited company status. These can also though be individually owned children’s social care provision and run for profit.
B61: Voluntary
B62: These are mostly not-for-profit organisations, mainly with charitable status. These can also be individually owned children’s social care provision and run on a not-for-profit basis.
B64: Secure children’s homes
B65: Secure children’s homes are defined by section 25 of the Children Act 1989. They accommodate children and young people who are remanded or have been sentenced for committing a criminal offence. They also accommodate children and young people who are placed there by a court because their behaviour is deemed to present a significant and immediate threat to their safety or the safety of others, unless they are placed in a secure environment. Ofsted inspections are conducted in accordance with the Care Standards Act 2000 and judgements in reports are made in relation to the outcomes for children set out in the Children Act 2004. The criteria are the same as those used to inspect non-secure children’s homes.
B67: Secure training centres
B68: Secure training centres are defined by section 43(1) (d) of the Prison Act 1952, as amended by Section 6(2) of the Criminal Justice and Public Order Act 1994. Ofsted has the power to inspect under section 146 Education and Inspections Act 2006 and inspects both the care and educational provision for children in three secure training centres. They accommodate young people between the ages of 12 and 17 who have been remanded or sentenced by the courts. The centres are under contract to the Youth Justice Board, which monitors their compliance with requirements. Ofsted does not regulate secure training centres but has an agreement with the Youth Justice Board to inspect care twice a year and education once a year.

Sheet Meta-data
C1: Type of data shown in each tab
C2: Local authorities | D2: Children's homes only | E2: All social care providers | F2: In year/period | G2: State of the nation (31 March)
B3: LA inspection | C3: R | F3: R | G3: R
B4: Children's social care | E4: R | F4: R | G4: R
B5: Sub-judgements | E5: R | F5: R | G5: R
B6: LA level at 31 March 2018 | C6: R | F6: R | G6: R
B7: ILACS visits | C7: R | F7: R
B8: Provider level at 31 March 2018 | E8: R | G8: R
B9: Provider level in year 2017-18 | E9: R | F9: R
B10: Providers+places at 31 March 2018 | E10: R | G10: R
B11: Providers + Places six monthly | E11: R | G11: R
B12: Latest OE 31 March Time Series | E12: R | G12: R
B13: In Year Time series | D13: R | F13: R

Sheet LA Inspection
B2: ="Statistical First Release Local Authority Inspections as at "&Inspections_To -> Statistical First Release Local Authority Inspections as at 31 March 2018
B4: Region: | E4: Local Authority:
B5: All | E5: All | G5: =IF(B5="All",TRUE,NOT(ISERROR(MATCH(E5,INDIRECT(SUBSTITUTE(SUBSTITUTE(B5," ","_"),",","")),0)))) -> TRUE
B7: Date: | E7: Inspection Type:
B8: as at 31 March 2018 | E8: Single inspection framework
B9: =VLOOKUP(B8,_PeriodLookup,2,0) -> 2017 | E9: =IF(OR($E$8 = "Single inspection framework",$E$8 = "Single inspection framework",$E$8 = "ILACS Single inspection framework"), "SHOW", IF($E$8 = "ILACS Standard inspection","SHOW","HIDE")) -> SHOW
B10: Judgements | C10: Inspection Outcomes
C11: Outstanding | D11: Good | E11: Requires improvement / adequate | F11: Inadequate | G11: Not judged
B14: =IF($E$8 = "ILACS Standard inspection","Overall Effectiveness","Overall Effectiveness (OE)") -> Overall Effectiveness (OE) | C14: =IF(ISERROR( VLOOKUP($E$8&IF($E$5<>"All","All",$B$5)&$E$5,'LA FINAL RAW DATA'!$A:$I,5,0))=TRUE,0, VLOOKUP($E$8&IF($E$5<>"All","All",$B$5)&$E$5,'LA FINAL RAW DATA'!$A:$I,5,0)) -> 3 | D14: =IF(ISERROR( VLOOKUP($E$8&IF($E$5<>"All","All",$B$5)&$E$5,'LA FINAL RAW DATA'!$A:$I,6,0))=TRUE,0, VLOOKUP($E$8&IF($E$5<>"All","All",$B$5)&$E$5,'LA FINAL RAW DATA'!$A:$I,6,0)) -> 54 | E14: =IF(ISERROR( VLOOKUP($E$8&IF($E$5<>"All","All",$B$5)&$E$5,'LA FINAL RAW DATA'!$A:$I,7,0))=TRUE,0, VLOOKUP($E$8&IF($E$5<>"All","All",$B$5)&$E$5,'LA FINAL RAW DATA'!$A:$I,7,0)) -> 72 | F14: =IF(ISERROR( VLOOKUP($E$8&IF($E$5<>"All","All",$B$5)&$E$5,'LA FINAL RAW DATA'!$A:$I,8,0))=TRUE,0, VLOOKUP($E$8&IF($E$5<>"All","All",$B$5)&$E$5,'LA FINAL RAW DATA'!$A:$I,8,0)) -> 23 | G14: =IF(ISERROR( VLOOKUP($E$8&IF($E$5<>"All","All",$B$5)&$E$5,'LA FINAL RAW DATA'!$A:$I,9,0))=TRUE,0, VLOOKUP($E$8&IF($E$5<>"All","All",$B$5)&$E$5,'LA FINAL RAW DATA'!$A:$I,9,0)) -> 0 | I14: =$E$8&IF($E$5<>"All","All",$B$5)&$E$5 -> Single inspection frameworkAllAll
B16: =IF($E$8 = "ILACS Standard inspection","The impact of leaders on social work practice with children and families","Children who need help and protection") -> Children who need help and protection | C16: =IF(ISERROR( VLOOKUP($E$8&" ["&$B16&"]"&IF($E$5<>"All","All",ddla)&$E$5,'LA FINAL RAW DATA'!$A:$I,5,0)),"", VLOOKUP($E$8&" ["&$B16&"]"&IF($E$5<>"All","All",ddla)&$E$5,'LA FINAL RAW DATA'!$A:$I,5,0)) -> 0 | D16: =IF(ISERROR( VLOOKUP($E$8&" ["&$B16&"]"&IF($E$5<>"All","All",ddla)&$E$5,'LA FINAL RAW DATA'!$A:$I,5,0)),"", VLOOKUP($E$8&" ["&$B16&"]"&IF($E$5<>"All","All",ddla)&$E$5,'LA FINAL RAW DATA'!$A:$I,6,0)) -> 44 | E16: =IF(ISERROR( VLOOKUP($E$8&" ["&$B16&"]"&IF($E$5<>"All","All",ddla)&$E$5,'LA FINAL RAW DATA'!$A:$I,5,0)),"", VLOOKUP($E$8&" ["&$B16&"]"&IF($E$5<>"All","All",ddla)&$E$5,'LA FINAL RAW DATA'!$A:$I,7,0)) -> 86 | F16: =IF(ISERROR( VLOOKUP($E$8&" ["&$B16&"]"&IF($E$5<>"All","All",ddla)&$E$5,'LA FINAL RAW DATA'!$A:$I,5,0)),"", VLOOKUP($E$8&" ["&$B16&"]"&IF($E$5<>"All","All",ddla)&$E$5,'LA FINAL RAW DATA'!$A:$I,8,0)) -> 22 | G16: =IF(ISERROR( VLOOKUP($E$8&" ["&$B16&"]"&IF($E$5<>"All","All",ddla)&$E$5,'LA FINAL RAW DATA'!$A:$I,5,0)),"", VLOOKUP($E$8&" ["&$B16&"]"&IF($E$5<>"All","All",ddla)&$E$5,'LA FINAL RAW DATA'!$A:$I,9,0)) -> 0 | I16: =$E$8&" ["&$B16&"]"&IF($E$5<>"All","All",ddla)&$E$5 -> Single inspection framework [Children who need help and protection]AllAll
B18: =IF($E$8 = "ILACS Standard inspection","The experiences and progress of children who need help and protection","Children looked after and achieving permanence") -> Children looked after and achieving permanence | C18: =IF(ISERROR( VLOOKUP($E$8&" ["&$B18&"]"&IF($E$5<>"All","All",ddla)&$E$5,'LA FINAL RAW DATA'!$A:$I,5,0)),"", VLOOKUP($E$8&" ["&$B18&"]"&IF($E$5<>"All","All",ddla)&$E$5,'LA FINAL RAW DATA'!$A:$I,5,0)) -> 4 | D18: =IF(ISERROR( VLOOKUP($E$8&" ["&$B18&"]"&IF($E$5<>"All","All",ddla)&$E$5,'LA FINAL RAW DATA'!$A:$I,5,0)),"", VLOOKUP($E$8&" ["&$B18&"]"&IF($E$5<>"All","All",ddla)&$E$5,'LA FINAL RAW DATA'!$A:$I,6,0)) -> 56 | E18: =IF(ISERROR( VLOOKUP($E$8&" ["&$B18&"]"&IF($E$5<>"All","All",ddla)&$E$5,'LA FINAL RAW DATA'!$A:$I,5,0)),"", VLOOKUP($E$8&" ["&$B18&"]"&IF($E$5<>"All","All",ddla)&$E$5,'LA FINAL RAW DATA'!$A:$I,7,0)) -> 79 | F18: =IF(ISERROR( VLOOKUP($E$8&" ["&$B18&"]"&IF($E$5<>"All","All",ddla)&$E$5,'LA FINAL RAW DATA'!$A:$I,5,0)),"", VLOOKUP($E$8&" ["&$B18&"]"&IF($E$5<>"All","All",ddla)&$E$5,'LA FINAL RAW DATA'!$A:$I,8,0)) -> 12 | G18: =IF(ISERROR( VLOOKUP($E$8&" ["&$B18&"]"&IF($E$5<>"All","All",ddla)&$E$5,'LA FINAL RAW DATA'!$A:$I,5,0)),"", VLOOKUP($E$8&" ["&$B18&"]"&IF($E$5<>"All","All",ddla)&$E$5,'LA FINAL RAW DATA'!$A:$I,9,0)) -> 0 | I18: =$E$8&" ["&$B18&"]"&IF($E$5<>"All","All",ddla)&$E$5 -> Single inspection framework [Children looked after and achieving permanence]AllAll
B20: =IF($E$8 = "ILACS Standard inspection","The experiences and progress of children in care and care leavers","Adoption Performance") -> Adoption Performance | C20: =IF(ISERROR(VLOOKUP($E$8&" [CLA Sub: "&$B20&"]"&IF($E$5<>"All","All",ddla)&$E$5,'LA FINAL RAW DATA'!$A:$I,5,0)), IFERROR(VLOOKUP($E$8&" ["&$B20&"]"&IF($E$5<>"All","All",ddla)&$E$5,'LA FINAL RAW DATA'!$A:$I,5,0),""), VLOOKUP($E$8&" [CLA Sub: "&$B20&"]"&IF($E$5<>"All","All",ddla)&$E$5,'LA FINAL RAW DATA'!$A:$I,5,0)) -> 17 | D20: =IF(ISERROR(VLOOKUP($E$8&" [CLA Sub: "&$B20&"]"&IF($E$5<>"All","All",ddla)&$E$5,'LA FINAL RAW DATA'!$A:$I,5,0)), IFERROR(VLOOKUP($E$8&" ["&$B20&"]"&IF($E$5<>"All","All",ddla)&$E$5,'LA FINAL RAW DATA'!$A:$I,6,0),""), VLOOKUP($E$8&" [CLA Sub: "&$B20&"]"&IF($E$5<>"All","All",ddla)&$E$5,'LA FINAL RAW DATA'!$A:$I,6,0)) -> 84 | E20: =IF(ISERROR(VLOOKUP($E$8&" [CLA Sub: "&$B20&"]"&IF($E$5<>"All","All",ddla)&$E$5,'LA FINAL RAW DATA'!$A:$I,5,0)), IFERROR(VLOOKUP($E$8&" ["&$B20&"]"&IF($E$5<>"All","All",ddla)&$E$5,'LA FINAL RAW DATA'!$A:$I,7,0),""), VLOOKUP($E$8&" [CLA Sub: "&$B20&"]"&IF($E$5<>"All","All",ddla)&$E$5,'LA FINAL RAW DATA'!$A:$I,7,0)) -> 42 | F20: =IF(ISERROR(VLOOKUP($E$8&" [CLA Sub: "&$B20&"]"&IF($E$5<>"All","All",ddla)&$E$5,'LA FINAL RAW DATA'!$A:$I,5,0)), IFERROR(VLOOKUP($E$8&" ["&$B20&"]"&IF($E$5<>"All","All",ddla)&$E$5,'LA FINAL RAW DATA'!$A:$I,8,0),""), VLOOKUP($E$8&" [CLA Sub: "&$B20&"]"&IF($E$5<>"All","All",ddla)&$E$5,'LA FINAL RAW DATA'!$A:$I,8,0)) -> 6 | G20: =IF(ISERROR(VLOOKUP($E$8&" [CLA Sub: "&$B20&"]"&IF($E$5<>"All","All",ddla)&$E$5,'LA FINAL RAW DATA'!$A:$I,5,0)), IFERROR(VLOOKUP($E$8&" ["&$B20&"]"&IF($E$5<>"All","All",ddla)&$E$5,'LA FINAL RAW DATA'!$A:$I,9,0),""), VLOOKUP($E$8&" [CLA Sub: "&$B20&"]"&IF($E$5<>"All","All",ddla)&$E$5,'LA FINAL RAW DATA'!$A:$I,9,0)) -> 0 | I20: =$E$8&" [CLA Sub: "&$B20&"]"&IF($E$5<>"All","All",ddla)&$E$5 -> Single inspection framework [CLA Sub: Adoption Performance]AllAll
I21: =$E$8&" ["&$B20&"]"&IF($E$5<>"All","All",ddla)&$E$5 -> Single inspection framework [Adoption Performance]AllAll
B22: =IF($E$8 = "ILACS Standard inspection","","Experiences and progress of care leavers") -> Experiences and progress of care leavers | C22: =IF(ISERROR( VLOOKUP($E$8&" [CLA Sub: "&$B22&"]"&IF($E$5<>"All","All",ddla)&$E$5,'LA FINAL RAW DATA'!$A:$I,5,0)),"", VLOOKUP($E$8&" [CLA Sub: "&$B22&"]"&IF($E$5<>"All","All",ddla)&$E$5,'LA FINAL RAW DATA'!$A:$I,5,0)) -> 10 | D22: =IF(ISERROR( VLOOKUP($E$8&" [CLA Sub: "&$B22&"]"&IF($E$5<>"All","All",ddla)&$E$5,'LA FINAL RAW DATA'!$A:$I,5,0)),"", VLOOKUP($E$8&" [CLA Sub: "&$B22&"]"&IF($E$5<>"All","All",ddla)&$E$5,'LA FINAL RAW DATA'!$A:$I,6,0)) -> 62 | E22: =IF(ISERROR( VLOOKUP($E$8&" [CLA Sub: "&$B22&"]"&IF($E$5<>"All","All",ddla)&$E$5,'LA FINAL RAW DATA'!$A:$I,5,0)),"", VLOOKUP($E$8&" [CLA Sub: "&$B22&"]"&IF($E$5<>"All","All",ddla)&$E$5,'LA FINAL RAW DATA'!$A:$I,7,0)) -> 67 | F22: =IF(ISERROR( VLOOKUP($E$8&" [CLA Sub: "&$B22&"]"&IF($E$5<>"All","All",ddla)&$E$5,'LA FINAL RAW DATA'!$A:$I,5,0)),"", VLOOKUP($E$8&" [CLA Sub: "&$B22&"]"&IF($E$5<>"All","All",ddla)&$E$5,'LA FINAL RAW DATA'!$A:$I,8,0)) -> 11 | G22: =IF(ISERROR( VLOOKUP($E$8&" [CLA Sub: "&$B22&"]"&IF($E$5<>"All","All",ddla)&$E$5,'LA FINAL RAW DATA'!$A:$I,5,0)),"", VLOOKUP($E$8&" [CLA Sub: "&$B22&"]"&IF($E$5<>"All","All",ddla)&$E$5,'LA FINAL RAW DATA'!$A:$I,9,0)) -> 0
I23: =$E$8&" [CLA Sub: "&$B22&"]"&IF($E$5<>"All","All",ddla)&$E$5 -> Single inspection framework [CLA Sub: Experiences and progress of care leavers]AllAll
B24: =IF($E$8 = "ILACS Standard inspection","","Leadership, management and governance") -> Leadership, management and governance | C24: =IF(ISERROR( VLOOKUP($E$8&" ["&$B24&"]"&IF($E$5<>"All","All",ddla)&$E$5,'LA FINAL RAW DATA'!$A:$I,5,0)),"", VLOOKUP($E$8&" ["&$B24&"]"&IF($E$5<>"All","All",ddla)&$E$5,'LA FINAL RAW DATA'!$A:$I,5,0)) -> 12 | D24: =IF(ISERROR( VLOOKUP($E$8&" ["&$B24&"]"&IF($E$5<>"All","All",ddla)&$E$5,'LA FINAL RAW DATA'!$A:$I,5,0)),"", VLOOKUP($E$8&" ["&$B24&"]"&IF($E$5<>"All","All",ddla)&$E$5,'LA FINAL RAW DATA'!$A:$I,6,0)) -> 55 | E24: =IF(ISERROR( VLOOKUP($E$8&" ["&$B24&"]"&IF($E$5<>"All","All",ddla)&$E$5,'LA FINAL RAW DATA'!$A:$I,5,0)),"", VLOOKUP($E$8&" ["&$B24&"]"&IF($E$5<>"All","All",ddla)&$E$5,'LA FINAL RAW DATA'!$A:$I,7,0)) -> 61 | F24: =IF(ISERROR( VLOOKUP($E$8&" ["&$B24&"]"&IF($E$5<>"All","All",ddla)&$E$5,'LA FINAL RAW DATA'!$A:$I,5,0)),"", VLOOKUP($E$8&" ["&$B24&"]"&IF($E$5<>"All","All",ddla)&$E$5,'LA FINAL RAW DATA'!$A:$I,8,0)) -> 23 | G24: =IF(ISERROR( VLOOKUP($E$8&" ["&$B24&"]"&IF($E$5<>"All","All",ddla)&$E$5,'LA FINAL RAW DATA'!$A:$I,5,0)),"", VLOOKUP($E$8&" ["&$B24&"]"&IF($E$5<>"All","All",ddla)&$E$5,'LA FINAL RAW DATA'!$A:$I,9,0)) -> 0
I25: =$E$8&" ["&$B24&"]"&IF($E$5<>"All","All",ddla)&$E$5 -> Single inspection framework [Leadership, management and governance]AllAll
B29: =IF(B5<>"All",B5,IF(E5<>"All",VLOOKUP(E5,'Region Lookups'!C:D,2,0),"All")) -> All
D31: Total number inspected | F31: Outstanding | H31: Good | J31: Requires Improvement/ Adequate | M31: Inadequate
F32: 6 | H32: 7 | J32: 8 | M32: 9
B33: England | D33: =IF(SUM(F33:M33) = 0,$G$14,SUM(F33:M33)) -> 152 | F33: =IF(ISERROR(VLOOKUP($E$8&"ALL"&"ALL",'LA FINAL RAW DATA'!$A:$I,5,0))=TRUE,"",VLOOKUP($E$8&"ALL"&"ALL",'LA FINAL RAW DATA'!$A:$I,5,0)) -> 3 | H33: =IF(ISERROR(VLOOKUP($E$8&"ALL"&"ALL",'LA FINAL RAW DATA'!$A:$I,6,0))=TRUE,"",VLOOKUP($E$8&"ALL"&"ALL",'LA FINAL RAW DATA'!$A:$I,6,0)) -> 54 | J33: =IF(ISERROR(VLOOKUP($E$8&"ALL"&"ALL",'LA FINAL RAW DATA'!$A:$I,7,0))=TRUE,"",VLOOKUP($E$8&"ALL"&"ALL",'LA FINAL RAW DATA'!$A:$I,7,0)) -> 72 | M33: =IF(ISERROR(VLOOKUP($E$8&"ALL"&"ALL",'LA FINAL RAW DATA'!$A:$I,8,0))=TRUE,"",VLOOKUP($E$8&"ALL"&"ALL",'LA FINAL RAW DATA'!$A:$I,8,0)) -> 23
B35: =IFERROR(IF(B29="All",NA(),B29),"") ->  | D35: =IF(ISERROR(VLOOKUP($E$8&B35&"All",'LA FINAL RAW DATA'!$A:$I,5,0)),"",SUM(F35:M35)) ->  | F35: =IF(ISERROR(VLOOKUP($E$8&$B$35&"ALL",'LA FINAL RAW DATA'!$A:$I,5,0))=TRUE,"",VLOOKUP($E$8&$B$35&"ALL",'LA FINAL RAW DATA'!$A:$I,5,0)) ->  | H35: =IF(ISERROR(VLOOKUP($E$8&$B$35&"ALL",'LA FINAL RAW DATA'!$A:$I,6,0))=TRUE,"",VLOOKUP($E$8&$B$35&"ALL",'LA FINAL RAW DATA'!$A:$I,6,0)) ->  | J35: =IF(ISERROR(VLOOKUP($E$8&$B$35&"ALL",'LA FINAL RAW DATA'!$A:$I,7,0))=TRUE,"",VLOOKUP($E$8&$B$35&"ALL",'LA FINAL RAW DATA'!$A:$I,7,0)) ->  | M35: =IF(ISERROR(VLOOKUP($E$8&$B$35&"ALL",'LA FINAL RAW DATA'!$A:$I,8,0))=TRUE,"",VLOOKUP($E$8&$B$35&"ALL",'LA FINAL RAW DATA'!$A:$I,8,0)) -> 
A36: 1 | B36: =IFERROR(VLOOKUP($B$29&A36,'Region Lookups'!A:C,3,0),"") ->  | D36: =IF(ISERROR(VLOOKUP($E$8&"All"&$B36,'LA FINAL RAW DATA'!$A:$I,5,0)),"",SUM(F36:N36)) ->  | F36: =IF(ISERROR(VLOOKUP($E$8&IF($B36<>"All","All",$B$5)&$B36,'LA FINAL RAW DATA'!$A:$I,5,0))=TRUE,IF(B36="","",0),VLOOKUP($E$8&IF($B36<>"All","All",$B$5)&$B36,'LA FINAL RAW DATA'!$A:$I,5,0)) ->  | H36: =IF(ISERROR(VLOOKUP($E$8&IF($B36<>"All","All",$B$5)&$B36,'LA FINAL RAW DATA'!$A:$I,6,0))=TRUE,IF(B36="","",0),VLOOKUP($E$8&IF($B36<>"All","All",$B$5)&$B36,'LA FINAL RAW DATA'!$A:$I,6,0)) ->  | J36: =IF(ISERROR(VLOOKUP($E$8&IF($B36<>"All","All",$B$5)&$B36,'LA FINAL RAW DATA'!$A:$I,7,0))=TRUE,IF(B36="","",0),VLOOKUP($E$8&IF($B36<>"All","All",$B$5)&$B36,'LA FINAL RAW DATA'!$A:$I,7,0)) ->  | M36: =IF(ISERROR(VLOOKUP($E$8&IF($B36<>"All","All",$B$5)&$B36,'LA FINAL RAW DATA'!$A:$I,8,0))=TRUE,IF(B36="","",0),VLOOKUP($E$8&IF($B36<>"All","All",$B$5)&$B36,'LA FINAL RAW DATA'!$A:$I,8,0)) -> 
A37: 2 | B37: =IFERROR(VLOOKUP($B$29&A37,'Region Lookups'!A:C,3,0),"") ->  | D37: =IF(ISERROR(VLOOKUP($E$8&"All"&$B37,'LA FINAL RAW DATA'!$A:$I,5,0)),"",SUM(F37:N37)) ->  | F37: =IF(ISERROR(VLOOKUP($E$8&IF($B37<>"All","All",$B$5)&$B37,'LA FINAL RAW DATA'!$A:$I,5,0))=TRUE,IF(B37="","",0),VLOOKUP($E$8&IF($B37<>"All","All",$B$5)&$B37,'LA FINAL RAW DATA'!$A:$I,5,0)) ->  | H37: =IF(ISERROR(VLOOKUP($E$8&IF($B37<>"All","All",$B$5)&$B37,'LA FINAL RAW DATA'!$A:$I,6,0))=TRUE,IF(B37="","",0),VLOOKUP($E$8&IF($B37<>"All","All",$B$5)&$B37,'LA FINAL RAW DATA'!$A:$I,6,0)) ->  | J37: =IF(ISERROR(VLOOKUP($E$8&IF($B37<>"All","All",$B$5)&$B37,'LA FINAL RAW DATA'!$A:$I,7,0))=TRUE,IF(B37="","",0),VLOOKUP($E$8&IF($B37<>"All","All",$B$5)&$B37,'LA FINAL RAW DATA'!$A:$I,7,0)) ->  | M37: =IF(ISERROR(VLOOKUP($E$8&IF($B37<>"All","All",$B$5)&$B37,'LA FINAL RAW DATA'!$A:$I,8,0))=TRUE,IF(B37="","",0),VLOOKUP($E$8&IF($B37<>"All","All",$B$5)&$B37,'LA FINAL RAW DATA'!$A:$I,8,0)) -> 
A38: 3 | B38: =IFERROR(VLOOKUP($B$29&A38,'Region Lookups'!A:C,3,0),"") ->  | D38: =IF(ISERROR(VLOOKUP($E$8&"All"&$B38,'LA FINAL RAW DATA'!$A:$I,5,0)),"",SUM(F38:N38)) ->  | F38: =IF(ISERROR(VLOOKUP($E$8&IF($B38<>"All","All",$B$5)&$B38,'LA FINAL RAW DATA'!$A:$I,5,0))=TRUE,IF(B38="","",0),VLOOKUP($E$8&IF($B38<>"All","All",$B$5)&$B38,'LA FINAL RAW DATA'!$A:$I,5,0)) ->  | H38: =IF(ISERROR(VLOOKUP($E$8&IF($B38<>"All","All",$B$5)&$B38,'LA FINAL RAW DATA'!$A:$I,6,0))=TRUE,IF(B38="","",0),VLOOKUP($E$8&IF($B38<>"All","All",$B$5)&$B38,'LA FINAL RAW DATA'!$A:$I,6,0)) ->  | J38: =IF(ISERROR(VLOOKUP($E$8&IF($B38<>"All","All",$B$5)&$B38,'LA FINAL RAW DATA'!$A:$I,7,0))=TRUE,IF(B38="","",0),VLOOKUP($E$8&IF($B38<>"All","All",$B$5)&$B38,'LA FINAL RAW DATA'!$A:$I,7,0)) ->  | M38: =IF(ISERROR(VLOOKUP($E$8&IF($B38<>"All","All",$B$5)&$B38,'LA FINAL RAW DATA'!$A:$I,8,0))=TRUE,IF(B38="","",0),VLOOKUP($E$8&IF($B38<>"All","All",$B$5)&$B38,'LA FINAL RAW DATA'!$A:$I,8,0)) -> 
A39: 4 | B39: =IFERROR(VLOOKUP($B$29&A39,'Region Lookups'!A:C,3,0),"") ->  | D39: =IF(ISERROR(VLOOKUP($E$8&"All"&$B39,'LA FINAL RAW DATA'!$A:$I,5,0)),"",SUM(F39:N39)) ->  | F39: =IF(ISERROR(VLOOKUP($E$8&IF($B39<>"All","All",$B$5)&$B39,'LA FINAL RAW DATA'!$A:$I,5,0))=TRUE,IF(B39="","",0),VLOOKUP($E$8&IF($B39<>"All","All",$B$5)&$B39,'LA FINAL RAW DATA'!$A:$I,5,0)) ->  | H39: =IF(ISERROR(VLOOKUP($E$8&IF($B39<>"All","All",$B$5)&$B39,'LA FINAL RAW DATA'!$A:$I,6,0))=TRUE,IF(B39="","",0),VLOOKUP($E$8&IF($B39<>"All","All",$B$5)&$B39,'LA FINAL RAW DATA'!$A:$I,6,0)) ->  | J39: =IF(ISERROR(VLOOKUP($E$8&IF($B39<>"All","All",$B$5)&$B39,'LA FINAL RAW DATA'!$A:$I,7,0))=TRUE,IF(B39="","",0),VLOOKUP($E$8&IF($B39<>"All","All",$B$5)&$B39,'LA FINAL RAW DATA'!$A:$I,7,0)) ->  | M39: =IF(ISERROR(VLOOKUP($E$8&IF($B39<>"All","All",$B$5)&$B39,'LA FINAL RAW DATA'!$A:$I,8,0))=TRUE,IF(B39="","",0),VLOOKUP($E$8&IF($B39<>"All","All",$B$5)&$B39,'LA FINAL RAW DATA'!$A:$I,8,0)) -> 
A40: 5 | B40: =IFERROR(VLOOKUP($B$29&A40,'Region Lookups'!A:C,3,0),"") ->  | D40: =IF(ISERROR(VLOOKUP($E$8&"All"&$B40,'LA FINAL RAW DATA'!$A:$I,5,0)),"",SUM(F40:N40)) ->  | F40: =IF(ISERROR(VLOOKUP($E$8&IF($B40<>"All","All",$B$5)&$B40,'LA FINAL RAW DATA'!$A:$I,5,0))=TRUE,IF(B40="","",0),VLOOKUP($E$8&IF($B40<>"All","All",$B$5)&$B40,'LA FINAL RAW DATA'!$A:$I,5,0)) ->  | H40: =IF(ISERROR(VLOOKUP($E$8&IF($B40<>"All","All",$B$5)&$B40,'LA FINAL RAW DATA'!$A:$I,6,0))=TRUE,IF(B40="","",0),VLOOKUP($E$8&IF($B40<>"All","All",$B$5)&$B40,'LA FINAL RAW DATA'!$A:$I,6,0)) ->  | J40: =IF(ISERROR(VLOOKUP($E$8&IF($B40<>"All","All",$B$5)&$B40,'LA FINAL RAW DATA'!$A:$I,7,0))=TRUE,IF(B40="","",0),VLOOKUP($E$8&IF($B40<>"All","All",$B$5)&$B40,'LA FINAL RAW DATA'!$A:$I,7,0)) ->  | M40: =IF(ISERROR(VLOOKUP($E$8&IF($B40<>"All","All",$B$5)&$B40,'LA FINAL RAW DATA'!$A:$I,8,0))=TRUE,IF(B40="","",0),VLOOKUP($E$8&IF($B40<>"All","All",$B$5)&$B40,'LA FINAL RAW DATA'!$A:$I,8,0)) -> 
A41: 6 | B41: =IFERROR(VLOOKUP($B$29&A41,'Region Lookups'!A:C,3,0),"") ->  | D41: =IF(ISERROR(VLOOKUP($E$8&"All"&$B41,'LA FINAL RAW DATA'!$A:$I,5,0)),"",SUM(F41:N41)) ->  | F41: =IF(ISERROR(VLOOKUP($E$8&IF($B41<>"All","All",$B$5)&$B41,'LA FINAL RAW DATA'!$A:$I,5,0))=TRUE,IF(B41="","",0),VLOOKUP($E$8&IF($B41<>"All","All",$B$5)&$B41,'LA FINAL RAW DATA'!$A:$I,5,0)) ->  | H41: =IF(ISERROR(VLOOKUP($E$8&IF($B41<>"All","All",$B$5)&$B41,'LA FINAL RAW DATA'!$A:$I,6,0))=TRUE,IF(B41="","",0),VLOOKUP($E$8&IF($B41<>"All","All",$B$5)&$B41,'LA FINAL RAW DATA'!$A:$I,6,0)) ->  | J41: =IF(ISERROR(VLOOKUP($E$8&IF($B41<>"All","All",$B$5)&$B41,'LA FINAL RAW DATA'!$A:$I,7,0))=TRUE,IF(B41="","",0),VLOOKUP($E$8&IF($B41<>"All","All",$B$5)&$B41,'LA FINAL RAW DATA'!$A:$I,7,0)) ->  | M41: =IF(ISERROR(VLOOKUP($E$8&IF($B41<>"All","All",$B$5)&$B41,'LA FINAL RAW DATA'!$A:$I,8,0))=TRUE,IF(B41="","",0),VLOOKUP($E$8&IF($B41<>"All","All",$B$5)&$B41,'LA FINAL RAW DATA'!$A:$I,8,0)) -> 
A42: 7 | B42: =IFERROR(VLOOKUP($B$29&A42,'Region Lookups'!A:C,3,0),"") ->  | D42: =IF(ISERROR(VLOOKUP($E$8&"All"&$B42,'LA FINAL RAW DATA'!$A:$I,5,0)),"",SUM(F42:N42)) ->  | F42: =IF(ISERROR(VLOOKUP($E$8&IF($B42<>"All","All",$B$5)&$B42,'LA FINAL RAW DATA'!$A:$I,5,0))=TRUE,IF(B42="","",0),VLOOKUP($E$8&IF($B42<>"All","All",$B$5)&$B42,'LA FINAL RAW DATA'!$A:$I,5,0)) ->  | H42: =IF(ISERROR(VLOOKUP($E$8&IF($B42<>"All","All",$B$5)&$B42,'LA FINAL RAW DATA'!$A:$I,6,0))=TRUE,IF(B42="","",0),VLOOKUP($E$8&IF($B42<>"All","All",$B$5)&$B42,'LA FINAL RAW DATA'!$A:$I,6,0)) ->  | J42: =IF(ISERROR(VLOOKUP($E$8&IF($B42<>"All","All",$B$5)&$B42,'LA FINAL RAW DATA'!$A:$I,7,0))=TRUE,IF(B42="","",0),VLOOKUP($E$8&IF($B42<>"All","All",$B$5)&$B42,'LA FINAL RAW DATA'!$A:$I,7,0)) ->  | M42: =IF(ISERROR(VLOOKUP($E$8&IF($B42<>"All","All",$B$5)&$B42,'LA FINAL RAW DATA'!$A:$I,8,0))=TRUE,IF(B42="","",0),VLOOKUP($E$8&IF($B42<>"All","All",$B$5)&$B42,'LA FINAL RAW DATA'!$A:$I,8,0)) -> 
A43: 8 | B43: =IFERROR(VLOOKUP($B$29&A43,'Region Lookups'!A:C,3,0),"") ->  | D43: =IF(ISERROR(VLOOKUP($E$8&"All"&$B43,'LA FINAL RAW DATA'!$A:$I,5,0)),"",SUM(F43:N43)) ->  | F43: =IF(ISERROR(VLOOKUP($E$8&IF($B43<>"All","All",$B$5)&$B43,'LA FINAL RAW DATA'!$A:$I,5,0))=TRUE,IF(B43="","",0),VLOOKUP($E$8&IF($B43<>"All","All",$B$5)&$B43,'LA FINAL RAW DATA'!$A:$I,5,0)) ->  | H43: =IF(ISERROR(VLOOKUP($E$8&IF($B43<>"All","All",$B$5)&$B43,'LA FINAL RAW DATA'!$A:$I,6,0))=TRUE,IF(B43="","",0),VLOOKUP($E$8&IF($B43<>"All","All",$B$5)&$B43,'LA FINAL RAW DATA'!$A:$I,6,0)) ->  | J43: =IF(ISERROR(VLOOKUP($E$8&IF($B43<>"All","All",$B$5)&$B43,'LA FINAL RAW DATA'!$A:$I,7,0))=TRUE,IF(B43="","",0),VLOOKUP($E$8&IF($B43<>"All","All",$B$5)&$B43,'LA FINAL RAW DATA'!$A:$I,7,0)) ->  | M43: =IF(ISERROR(VLOOKUP($E$8&IF($B43<>"All","All",$B$5)&$B43,'LA FINAL RAW DATA'!$A:$I,8,0))=TRUE,IF(B43="","",0),VLOOKUP($E$8&IF($B43<>"All","All",$B$5)&$B43,'LA FINAL RAW DATA'!$A:$I,8,0)) -> 
A44: 9 | B44: =IFERROR(VLOOKUP($B$29&A44,'Region Lookups'!A:C,3,0),"") ->  | D44: =IF(ISERROR(VLOOKUP($E$8&"All"&$B44,'LA FINAL RAW DATA'!$A:$I,5,0)),"",SUM(F44:N44)) ->  | F44: =IF(ISERROR(VLOOKUP($E$8&IF($B44<>"All","All",$B$5)&$B44,'LA FINAL RAW DATA'!$A:$I,5,0))=TRUE,IF(B44="","",0),VLOOKUP($E$8&IF($B44<>"All","All",$B$5)&$B44,'LA FINAL RAW DATA'!$A:$I,5,0)) ->  | H44: =IF(ISERROR(VLOOKUP($E$8&IF($B44<>"All","All",$B$5)&$B44,'LA FINAL RAW DATA'!$A:$I,6,0))=TRUE,IF(B44="","",0),VLOOKUP($E$8&IF($B44<>"All","All",$B$5)&$B44,'LA FINAL RAW DATA'!$A:$I,6,0)) ->  | J44: =IF(ISERROR(VLOOKUP($E$8&IF($B44<>"All","All",$B$5)&$B44,'LA FINAL RAW DATA'!$A:$I,7,0))=TRUE,IF(B44="","",0),VLOOKUP($E$8&IF($B44<>"All","All",$B$5)&$B44,'LA FINAL RAW DATA'!$A:$I,7,0)) ->  | M44: =IF(ISERROR(VLOOKUP($E$8&IF($B44<>"All","All",$B$5)&$B44,'LA FINAL RAW DATA'!$A:$I,8,0))=TRUE,IF(B44="","",0),VLOOKUP($E$8&IF($B44<>"All","All",$B$5)&$B44,'LA FINAL RAW DATA'!$A:$I,8,0)) -> 
A45: 10 | B45: =IFERROR(VLOOKUP($B$29&A45,'Region Lookups'!A:C,3,0),"") ->  | D45: =IF(ISERROR(VLOOKUP($E$8&"All"&$B45,'LA FINAL RAW DATA'!$A:$I,5,0)),"",SUM(F45:N45)) ->  | F45: =IF(ISERROR(VLOOKUP($E$8&IF($B45<>"All","All",$B$5)&$B45,'LA FINAL RAW DATA'!$A:$I,5,0))=TRUE,IF(B45="","",0),VLOOKUP($E$8&IF($B45<>"All","All",$B$5)&$B45,'LA FINAL RAW DATA'!$A:$I,5,0)) ->  | H45: =IF(ISERROR(VLOOKUP($E$8&IF($B45<>"All","All",$B$5)&$B45,'LA FINAL RAW DATA'!$A:$I,6,0))=TRUE,IF(B45="","",0),VLOOKUP($E$8&IF($B45<>"All","All",$B$5)&$B45,'LA FINAL RAW DATA'!$A:$I,6,0)) ->  | J45: =IF(ISERROR(VLOOKUP($E$8&IF($B45<>"All","All",$B$5)&$B45,'LA FINAL RAW DATA'!$A:$I,7,0))=TRUE,IF(B45="","",0),VLOOKUP($E$8&IF($B45<>"All","All",$B$5)&$B45,'LA FINAL RAW DATA'!$A:$I,7,0)) ->  | M45: =IF(ISERROR(VLOOKUP($E$8&IF($B45<>"All","All",$B$5)&$B45,'LA FINAL RAW DATA'!$A:$I,8,0))=TRUE,IF(B45="","",0),VLOOKUP($E$8&IF($B45<>"All","All",$B$5)&$B45,'LA FINAL RAW DATA'!$A:$I,8,0)) -> 
A46: 11 | B46: =IFERROR(VLOOKUP($B$29&A46,'Region Lookups'!A:C,3,0),"") ->  | D46: =IF(ISERROR(VLOOKUP($E$8&"All"&$B46,'LA FINAL RAW DATA'!$A:$I,5,0)),"",SUM(F46:N46)) ->  | F46: =IF(ISERROR(VLOOKUP($E$8&IF($B46<>"All","All",$B$5)&$B46,'LA FINAL RAW DATA'!$A:$I,5,0))=TRUE,IF(B46="","",0),VLOOKUP($E$8&IF($B46<>"All","All",$B$5)&$B46,'LA FINAL RAW DATA'!$A:$I,5,0)) ->  | H46: =IF(ISERROR(VLOOKUP($E$8&IF($B46<>"All","All",$B$5)&$B46,'LA FINAL RAW DATA'!$A:$I,6,0))=TRUE,IF(B46="","",0),VLOOKUP($E$8&IF($B46<>"All","All",$B$5)&$B46,'LA FINAL RAW DATA'!$A:$I,6,0)) ->  | J46: =IF(ISERROR(VLOOKUP($E$8&IF($B46<>"All","All",$B$5)&$B46,'LA FINAL RAW DATA'!$A:$I,7,0))=TRUE,IF(B46="","",0),VLOOKUP($E$8&IF($B46<>"All","All",$B$5)&$B46,'LA FINAL RAW DATA'!$A:$I,7,0)) ->  | M46: =IF(ISERROR(VLOOKUP($E$8&IF($B46<>"All","All",$B$5)&$B46,'LA FINAL RAW DATA'!$A:$I,8,0))=TRUE,IF(B46="","",0),VLOOKUP($E$8&IF($B46<>"All","All",$B$5)&$B46,'LA FINAL RAW DATA'!$A:$I,8,0)) -> 
A47: 12 | B47: =IFERROR(VLOOKUP($B$29&A47,'Region Lookups'!A:C,3,0),"") ->  | D47: =IF(ISERROR(VLOOKUP($E$8&"All"&$B47,'LA FINAL RAW DATA'!$A:$I,5,0)),"",SUM(F47:N47)) ->  | F47: =IF(ISERROR(VLOOKUP($E$8&IF($B47<>"All","All",$B$5)&$B47,'LA FINAL RAW DATA'!$A:$I,5,0))=TRUE,IF(B47="","",0),VLOOKUP($E$8&IF($B47<>"All","All",$B$5)&$B47,'LA FINAL RAW DATA'!$A:$I,5,0)) ->  | H47: =IF(ISERROR(VLOOKUP($E$8&IF($B47<>"All","All",$B$5)&$B47,'LA FINAL RAW DATA'!$A:$I,6,0))=TRUE,IF(B47="","",0),VLOOKUP($E$8&IF($B47<>"All","All",$B$5)&$B47,'LA FINAL RAW DATA'!$A:$I,6,0)) ->  | J47: =IF(ISERROR(VLOOKUP($E$8&IF($B47<>"All","All",$B$5)&$B47,'LA FINAL RAW DATA'!$A:$I,7,0))=TRUE,IF(B47="","",0),VLOOKUP($E$8&IF($B47<>"All","All",$B$5)&$B47,'LA FINAL RAW DATA'!$A:$I,7,0)) ->  | M47: =IF(ISERROR(VLOOKUP($E$8&IF($B47<>"All","All",$B$5)&$B47,'LA FINAL RAW DATA'!$A:$I,8,0))=TRUE,IF(B47="","",0),VLOOKUP($E$8&IF($B47<>"All","All",$B$5)&$B47,'LA FINAL RAW DATA'!$A:$I,8,0)) -> 
A48: 13 | B48: =IFERROR(VLOOKUP($B$29&A48,'Region Lookups'!A:C,3,0),"") ->  | D48: =IF(ISERROR(VLOOKUP($E$8&"All"&$B48,'LA FINAL RAW DATA'!$A:$I,5,0)),"",SUM(F48:N48)) ->  | F48: =IF(ISERROR(VLOOKUP($E$8&IF($B48<>"All","All",$B$5)&$B48,'LA FINAL RAW DATA'!$A:$I,5,0))=TRUE,IF(B48="","",0),VLOOKUP($E$8&IF($B48<>"All","All",$B$5)&$B48,'LA FINAL RAW DATA'!$A:$I,5,0)) ->  | H48: =IF(ISERROR(VLOOKUP($E$8&IF($B48<>"All","All",$B$5)&$B48,'LA FINAL RAW DATA'!$A:$I,6,0))=TRUE,IF(B48="","",0),VLOOKUP($E$8&IF($B48<>"All","All",$B$5)&$B48,'LA FINAL RAW DATA'!$A:$I,6,0)) ->  | J48: =IF(ISERROR(VLOOKUP($E$8&IF($B48<>"All","All",$B$5)&$B48,'LA FINAL RAW DATA'!$A:$I,7,0))=TRUE,IF(B48="","",0),VLOOKUP($E$8&IF($B48<>"All","All",$B$5)&$B48,'LA FINAL RAW DATA'!$A:$I,7,0)) ->  | M48: =IF(ISERROR(VLOOKUP($E$8&IF($B48<>"All","All",$B$5)&$B48,'LA FINAL RAW DATA'!$A:$I,8,0))=TRUE,IF(B48="","",0),VLOOKUP($E$8&IF($B48<>"All","All",$B$5)&$B48,'LA FINAL RAW DATA'!$A:$I,8,0)) -> 
A49: 14 | B49: =IFERROR(VLOOKUP($B$29&A49,'Region Lookups'!A:C,3,0),"") ->  | D49: =IF(ISERROR(VLOOKUP($E$8&"All"&$B49,'LA FINAL RAW DATA'!$A:$I,5,0)),"",SUM(F49:N49)) ->  | F49: =IF(ISERROR(VLOOKUP($E$8&IF($B49<>"All","All",$B$5)&$B49,'LA FINAL RAW DATA'!$A:$I,5,0))=TRUE,IF(B49="","",0),VLOOKUP($E$8&IF($B49<>"All","All",$B$5)&$B49,'LA FINAL RAW DATA'!$A:$I,5,0)) ->  | H49: =IF(ISERROR(VLOOKUP($E$8&IF($B49<>"All","All",$B$5)&$B49,'LA FINAL RAW DATA'!$A:$I,6,0))=TRUE,IF(B49="","",0),VLOOKUP($E$8&IF($B49<>"All","All",$B$5)&$B49,'LA FINAL RAW DATA'!$A:$I,6,0)) ->  | J49: =IF(ISERROR(VLOOKUP($E$8&IF($B49<>"All","All",$B$5)&$B49,'LA FINAL RAW DATA'!$A:$I,7,0))=TRUE,IF(B49="","",0),VLOOKUP($E$8&IF($B49<>"All","All",$B$5)&$B49,'LA FINAL RAW DATA'!$A:$I,7,0)) ->  | M49: =IF(ISERROR(VLOOKUP($E$8&IF($B49<>"All","All",$B$5)&$B49,'LA FINAL RAW DATA'!$A:$I,8,0))=TRUE,IF(B49="","",0),VLOOKUP($E$8&IF($B49<>"All","All",$B$5)&$B49,'LA FINAL RAW DATA'!$A:$I,8,0)) -> 
A50: 15 | B50: =IFERROR(VLOOKUP($B$29&A50,'Region Lookups'!A:C,3,0),"") ->  | D50: =IF(ISERROR(VLOOKUP($E$8&"All"&$B50,'LA FINAL RAW DATA'!$A:$I,5,0)),"",SUM(F50:N50)) ->  | F50: =IF(ISERROR(VLOOKUP($E$8&IF($B50<>"All","All",$B$5)&$B50,'LA FINAL RAW DATA'!$A:$I,5,0))=TRUE,IF(B50="","",0),VLOOKUP($E$8&IF($B50<>"All","All",$B$5)&$B50,'LA FINAL RAW DATA'!$A:$I,5,0)) ->  | H50: =IF(ISERROR(VLOOKUP($E$8&IF($B50<>"All","All",$B$5)&$B50,'LA FINAL RAW DATA'!$A:$I,6,0))=TRUE,IF(B50="","",0),VLOOKUP($E$8&IF($B50<>"All","All",$B$5)&$B50,'LA FINAL RAW DATA'!$A:$I,6,0)) ->  | J50: =IF(ISERROR(VLOOKUP($E$8&IF($B50<>"All","All",$B$5)&$B50,'LA FINAL RAW DATA'!$A:$I,7,0))=TRUE,IF(B50="","",0),VLOOKUP($E$8&IF($B50<>"All","All",$B$5)&$B50,'LA FINAL RAW DATA'!$A:$I,7,0)) ->  | M50: =IF(ISERROR(VLOOKUP($E$8&IF($B50<>"All","All",$B$5)&$B50,'LA FINAL RAW DATA'!$A:$I,8,0))=TRUE,IF(B50="","",0),VLOOKUP($E$8&IF($B50<>"All","All",$B$5)&$B50,'LA FINAL RAW DATA'!$A:$I,8,0)) -> 
A51: 16 | B51: =IFERROR(VLOOKUP($B$29&A51,'Region Lookups'!A:C,3,0),"") ->  | D51: =IF(ISERROR(VLOOKUP($E$8&"All"&$B51,'LA FINAL RAW DATA'!$A:$I,5,0)),"",SUM(F51:N51)) ->  | F51: =IF(ISERROR(VLOOKUP($E$8&IF($B51<>"All","All",$B$5)&$B51,'LA FINAL RAW DATA'!$A:$I,5,0))=TRUE,IF(B51="","",0),VLOOKUP($E$8&IF($B51<>"All","All",$B$5)&$B51,'LA FINAL RAW DATA'!$A:$I,5,0)) ->  | H51: =IF(ISERROR(VLOOKUP($E$8&IF($B51<>"All","All",$B$5)&$B51,'LA FINAL RAW DATA'!$A:$I,6,0))=TRUE,IF(B51="","",0),VLOOKUP($E$8&IF($B51<>"All","All",$B$5)&$B51,'LA FINAL RAW DATA'!$A:$I,6,0)) ->  | J51: =IF(ISERROR(VLOOKUP($E$8&IF($B51<>"All","All",$B$5)&$B51,'LA FINAL RAW DATA'!$A:$I,7,0))=TRUE,IF(B51="","",0),VLOOKUP($E$8&IF($B51<>"All","All",$B$5)&$B51,'LA FINAL RAW DATA'!$A:$I,7,0)) ->  | M51: =IF(ISERROR(VLOOKUP($E$8&IF($B51<>"All","All",$B$5)&$B51,'LA FINAL RAW DATA'!$A:$I,8,0))=TRUE,IF(B51="","",0),VLOOKUP($E$8&IF($B51<>"All","All",$B$5)&$B51,'LA FINAL RAW DATA'!$A:$I,8,0)) -> 
A52: 17 | B52: =IFERROR(VLOOKUP($B$29&A52,'Region Lookups'!A:C,3,0),"") ->  | D52: =IF(ISERROR(VLOOKUP($E$8&"All"&$B52,'LA FINAL RAW DATA'!$A:$I,5,0)),"",SUM(F52:N52)) ->  | F52: =IF(ISERROR(VLOOKUP($E$8&IF($B52<>"All","All",$B$5)&$B52,'LA FINAL RAW DATA'!$A:$I,5,0))=TRUE,IF(B52="","",0),VLOOKUP($E$8&IF($B52<>"All","All",$B$5)&$B52,'LA FINAL RAW DATA'!$A:$I,5,0)) ->  | H52: =IF(ISERROR(VLOOKUP($E$8&IF($B52<>"All","All",$B$5)&$B52,'LA FINAL RAW DATA'!$A:$I,6,0))=TRUE,IF(B52="","",0),VLOOKUP($E$8&IF($B52<>"All","All",$B$5)&$B52,'LA FINAL RAW DATA'!$A:$I,6,0)) ->  | J52: =IF(ISERROR(VLOOKUP($E$8&IF($B52<>"All","All",$B$5)&$B52,'LA FINAL RAW DATA'!$A:$I,7,0))=TRUE,IF(B52="","",0),VLOOKUP($E$8&IF($B52<>"All","All",$B$5)&$B52,'LA FINAL RAW DATA'!$A:$I,7,0)) ->  | M52: =IF(ISERROR(VLOOKUP($E$8&IF($B52<>"All","All",$B$5)&$B52,'LA FINAL RAW DATA'!$A:$I,8,0))=TRUE,IF(B52="","",0),VLOOKUP($E$8&IF($B52<>"All","All",$B$5)&$B52,'LA FINAL RAW DATA'!$A:$I,8,0)) -> 
A53: 18 | B53: =IFERROR(VLOOKUP($B$29&A53,'Region Lookups'!A:C,3,0),"") ->  | D53: =IF(ISERROR(VLOOKUP($E$8&"All"&$B53,'LA FINAL RAW DATA'!$A:$I,5,0)),"",SUM(F53:N53)) ->  | F53: =IF(ISERROR(VLOOKUP($E$8&IF($B53<>"All","All",$B$5)&$B53,'LA FINAL RAW DATA'!$A:$I,5,0))=TRUE,IF(B53="","",0),VLOOKUP($E$8&IF($B53<>"All","All",$B$5)&$B53,'LA FINAL RAW DATA'!$A:$I,5,0)) ->  | H53: =IF(ISERROR(VLOOKUP($E$8&IF($B53<>"All","All",$B$5)&$B53,'LA FINAL RAW DATA'!$A:$I,6,0))=TRUE,IF(B53="","",0),VLOOKUP($E$8&IF($B53<>"All","All",$B$5)&$B53,'LA FINAL RAW DATA'!$A:$I,6,0)) ->  | J53: =IF(ISERROR(VLOOKUP($E$8&IF($B53<>"All","All",$B$5)&$B53,'LA FINAL RAW DATA'!$A:$I,7,0))=TRUE,IF(B53="","",0),VLOOKUP($E$8&IF($B53<>"All","All",$B$5)&$B53,'LA FINAL RAW DATA'!$A:$I,7,0)) ->  | M53: =IF(ISERROR(VLOOKUP($E$8&IF($B53<>"All","All",$B$5)&$B53,'LA FINAL RAW DATA'!$A:$I,8,0))=TRUE,IF(B53="","",0),VLOOKUP($E$8&IF($B53<>"All","All",$B$5)&$B53,'LA FINAL RAW DATA'!$A:$I,8,0)) -> 
A54: 19 | B54: =IFERROR(VLOOKUP($B$29&A54,'Region Lookups'!A:C,3,0),"") ->  | D54: =IF(ISERROR(VLOOKUP($E$8&"All"&$B54,'LA FINAL RAW DATA'!$A:$I,5,0)),"",SUM(F54:N54)) ->  | F54: =IF(ISERROR(VLOOKUP($E$8&IF($B54<>"All","All",$B$5)&$B54,'LA FINAL RAW DATA'!$A:$I,5,0))=TRUE,IF(B54="","",0),VLOOKUP($E$8&IF($B54<>"All","All",$B$5)&$B54,'LA FINAL RAW DATA'!$A:$I,5,0)) ->  | H54: =IF(ISERROR(VLOOKUP($E$8&IF($B54<>"All","All",$B$5)&$B54,'LA FINAL RAW DATA'!$A:$I,6,0))=TRUE,IF(B54="","",0),VLOOKUP($E$8&IF($B54<>"All","All",$B$5)&$B54,'LA FINAL RAW DATA'!$A:$I,6,0)) ->  | J54: =IF(ISERROR(VLOOKUP($E$8&IF($B54<>"All","All",$B$5)&$B54,'LA FINAL RAW DATA'!$A:$I,7,0))=TRUE,IF(B54="","",0),VLOOKUP($E$8&IF($B54<>"All","All",$B$5)&$B54,'LA FINAL RAW DATA'!$A:$I,7,0)) ->  | M54: =IF(ISERROR(VLOOKUP($E$8&IF($B54<>"All","All",$B$5)&$B54,'LA FINAL RAW DATA'!$A:$I,8,0))=TRUE,IF(B54="","",0),VLOOKUP($E$8&IF($B54<>"All","All",$B$5)&$B54,'LA FINAL RAW DATA'!$A:$I,8,0)) -> 
A55: 20 | B55: =IFERROR(VLOOKUP($B$29&A55,'Region Lookups'!A:C,3,0),"") ->  | D55: =IF(ISERROR(VLOOKUP($E$8&"All"&$B55,'LA FINAL RAW DATA'!$A:$I,5,0)),"",SUM(F55:N55)) ->  | F55: =IF(ISERROR(VLOOKUP($E$8&IF($B55<>"All","All",$B$5)&$B55,'LA FINAL RAW DATA'!$A:$I,5,0))=TRUE,IF(B55="","",0),VLOOKUP($E$8&IF($B55<>"All","All",$B$5)&$B55,'LA FINAL RAW DATA'!$A:$I,5,0)) ->  | H55: =IF(ISERROR(VLOOKUP($E$8&IF($B55<>"All","All",$B$5)&$B55,'LA FINAL RAW DATA'!$A:$I,6,0))=TRUE,IF(B55="","",0),VLOOKUP($E$8&IF($B55<>"All","All",$B$5)&$B55,'LA FINAL RAW DATA'!$A:$I,6,0)) ->  | J55: =IF(ISERROR(VLOOKUP($E$8&IF($B55<>"All","All",$B$5)&$B55,'LA FINAL RAW DATA'!$A:$I,7,0))=TRUE,IF(B55="","",0),VLOOKUP($E$8&IF($B55<>"All","All",$B$5)&$B55,'LA FINAL RAW DATA'!$A:$I,7,0)) ->  | M55: =IF(ISERROR(VLOOKUP($E$8&IF($B55<>"All","All",$B$5)&$B55,'LA FINAL RAW DATA'!$A:$I,8,0))=TRUE,IF(B55="","",0),VLOOKUP($E$8&IF($B55<>"All","All",$B$5)&$B55,'LA FINAL RAW DATA'!$A:$I,8,0)) -> 
A56: 21 | B56: =IFERROR(VLOOKUP($B$29&A56,'Region Lookups'!A:C,3,0),"") ->  | D56: =IF(ISERROR(VLOOKUP($E$8&"All"&$B56,'LA FINAL RAW DATA'!$A:$I,5,0)),"",SUM(F56:N56)) ->  | F56: =IF(ISERROR(VLOOKUP($E$8&IF($B56<>"All","All",$B$5)&$B56,'LA FINAL RAW DATA'!$A:$I,5,0))=TRUE,IF(B56="","",0),VLOOKUP($E$8&IF($B56<>"All","All",$B$5)&$B56,'LA FINAL RAW DATA'!$A:$I,5,0)) ->  | H56: =IF(ISERROR(VLOOKUP($E$8&IF($B56<>"All","All",$B$5)&$B56,'LA FINAL RAW DATA'!$A:$I,6,0))=TRUE,IF(B56="","",0),VLOOKUP($E$8&IF($B56<>"All","All",$B$5)&$B56,'LA FINAL RAW DATA'!$A:$I,6,0)) ->  | J56: =IF(ISERROR(VLOOKUP($E$8&IF($B56<>"All","All",$B$5)&$B56,'LA FINAL RAW DATA'!$A:$I,7,0))=TRUE,IF(B56="","",0),VLOOKUP($E$8&IF($B56<>"All","All",$B$5)&$B56,'LA FINAL RAW DATA'!$A:$I,7,0)) ->  | M56: =IF(ISERROR(VLOOKUP($E$8&IF($B56<>"All","All",$B$5)&$B56,'LA FINAL RAW DATA'!$A:$I,8,0))=TRUE,IF(B56="","",0),VLOOKUP($E$8&IF($B56<>"All","All",$B$5)&$B56,'LA FINAL RAW DATA'!$A:$I,8,0)) -> 
A57: 22 | B57: =IFERROR(VLOOKUP($B$29&A57,'Region Lookups'!A:C,3,0),"") ->  | D57: =IF(ISERROR(VLOOKUP($E$8&"All"&$B57,'LA FINAL RAW DATA'!$A:$I,5,0)),"",SUM(F57:N57)) ->  | F57: =IF(ISERROR(VLOOKUP($E$8&IF($B57<>"All","All",$B$5)&$B57,'LA FINAL RAW DATA'!$A:$I,5,0))=TRUE,IF(B57="","",0),VLOOKUP($E$8&IF($B57<>"All","All",$B$5)&$B57,'LA FINAL RAW DATA'!$A:$I,5,0)) ->  | H57: =IF(ISERROR(VLOOKUP($E$8&IF($B57<>"All","All",$B$5)&$B57,'LA FINAL RAW DATA'!$A:$I,6,0))=TRUE,IF(B57="","",0),VLOOKUP($E$8&IF($B57<>"All","All",$B$5)&$B57,'LA FINAL RAW DATA'!$A:$I,6,0)) ->  | J57: =IF(ISERROR(VLOOKUP($E$8&IF($B57<>"All","All",$B$5)&$B57,'LA FINAL RAW DATA'!$A:$I,7,0))=TRUE,IF(B57="","",0),VLOOKUP($E$8&IF($B57<>"All","All",$B$5)&$B57,'LA FINAL RAW DATA'!$A:$I,7,0)) ->  | M57: =IF(ISERROR(VLOOKUP($E$8&IF($B57<>"All","All",$B$5)&$B57,'LA FINAL RAW DATA'!$A:$I,8,0))=TRUE,IF(B57="","",0),VLOOKUP($E$8&IF($B57<>"All","All",$B$5)&$B57,'LA FINAL RAW DATA'!$A:$I,8,0)) -> 
A58: 23 | B58: =IFERROR(VLOOKUP($B$29&A58,'Region Lookups'!A:C,3,0),"") ->  | D58: =IF(ISERROR(VLOOKUP($E$8&"All"&$B58,'LA FINAL RAW DATA'!$A:$I,5,0)),"",SUM(F58:N58)) ->  | F58: =IF(ISERROR(VLOOKUP($E$8&IF($B58<>"All","All",$B$5)&$B58,'LA FINAL RAW DATA'!$A:$I,5,0))=TRUE,IF(B58="","",0),VLOOKUP($E$8&IF($B58<>"All","All",$B$5)&$B58,'LA FINAL RAW DATA'!$A:$I,5,0)) ->  | H58: =IF(ISERROR(VLOOKUP($E$8&IF($B58<>"All","All",$B$5)&$B58,'LA FINAL RAW DATA'!$A:$I,6,0))=TRUE,IF(B58="","",0),VLOOKUP($E$8&IF($B58<>"All","All",$B$5)&$B58,'LA FINAL RAW DATA'!$A:$I,6,0)) ->  | J58: =IF(ISERROR(VLOOKUP($E$8&IF($B58<>"All","All",$B$5)&$B58,'LA FINAL RAW DATA'!$A:$I,7,0))=TRUE,IF(B58="","",0),VLOOKUP($E$8&IF($B58<>"All","All",$B$5)&$B58,'LA FINAL RAW DATA'!$A:$I,7,0)) ->  | M58: =IF(ISERROR(VLOOKUP($E$8&IF($B58<>"All","All",$B$5)&$B58,'LA FINAL RAW DATA'!$A:$I,8,0))=TRUE,IF(B58="","",0),VLOOKUP($E$8&IF($B58<>"All","All",$B$5)&$B58,'LA FINAL RAW DATA'!$A:$I,8,0)) -> 
A59: 24 | B59: =IFERROR(VLOOKUP($B$29&A59,'Region Lookups'!A:C,3,0),"") ->  | D59: =IF(ISERROR(VLOOKUP($E$8&"All"&$B59,'LA FINAL RAW DATA'!$A:$I,5,0)),"",SUM(F59:N59)) ->  | F59: =IF(ISERROR(VLOOKUP($E$8&IF($B59<>"All","All",$B$5)&$B59,'LA FINAL RAW DATA'!$A:$I,5,0))=TRUE,IF(B59="","",0),VLOOKUP($E$8&IF($B59<>"All","All",$B$5)&$B59,'LA FINAL RAW DATA'!$A:$I,5,0)) ->  | H59: =IF(ISERROR(VLOOKUP($E$8&IF($B59<>"All","All",$B$5)&$B59,'LA FINAL RAW DATA'!$A:$I,6,0))=TRUE,IF(B59="","",0),VLOOKUP($E$8&IF($B59<>"All","All",$B$5)&$B59,'LA FINAL RAW DATA'!$A:$I,6,0)) ->  | J59: =IF(ISERROR(VLOOKUP($E$8&IF($B59<>"All","All",$B$5)&$B59,'LA FINAL RAW DATA'!$A:$I,7,0))=TRUE,IF(B59="","",0),VLOOKUP($E$8&IF($B59<>"All","All",$B$5)&$B59,'LA FINAL RAW DATA'!$A:$I,7,0)) ->  | M59: =IF(ISERROR(VLOOKUP($E$8&IF($B59<>"All","All",$B$5)&$B59,'LA FINAL RAW DATA'!$A:$I,8,0))=TRUE,IF(B59="","",0),VLOOKUP($E$8&IF($B59<>"All","All",$B$5)&$B59,'LA FINAL RAW DATA'!$A:$I,8,0)) -> 
A60: 25 | B60: =IFERROR(VLOOKUP($B$29&A60,'Region Lookups'!A:C,3,0),"") ->  | D60: =IF(ISERROR(VLOOKUP($E$8&"All"&$B60,'LA FINAL RAW DATA'!$A:$I,5,0)),"",SUM(F60:N60)) ->  | F60: =IF(ISERROR(VLOOKUP($E$8&IF($B60<>"All","All",$B$5)&$B60,'LA FINAL RAW DATA'!$A:$I,5,0))=TRUE,IF(B60="","",0),VLOOKUP($E$8&IF($B60<>"All","All",$B$5)&$B60,'LA FINAL RAW DATA'!$A:$I,5,0)) ->  | H60: =IF(ISERROR(VLOOKUP($E$8&IF($B60<>"All","All",$B$5)&$B60,'LA FINAL RAW DATA'!$A:$I,6,0))=TRUE,IF(B60="","",0),VLOOKUP($E$8&IF($B60<>"All","All",$B$5)&$B60,'LA FINAL RAW DATA'!$A:$I,6,0)) ->  | J60: =IF(ISERROR(VLOOKUP($E$8&IF($B60<>"All","All",$B$5)&$B60,'LA FINAL RAW DATA'!$A:$I,7,0))=TRUE,IF(B60="","",0),VLOOKUP($E$8&IF($B60<>"All","All",$B$5)&$B60,'LA FINAL RAW DATA'!$A:$I,7,0)) ->  | M60: =IF(ISERROR(VLOOKUP($E$8&IF($B60<>"All","All",$B$5)&$B60,'LA FINAL RAW DATA'!$A:$I,8,0))=TRUE,IF(B60="","",0),VLOOKUP($E$8&IF($B60<>"All","All",$B$5)&$B60,'LA FINAL RAW DATA'!$A:$I,8,0)) -> 
A61: 26 | B61: =IFERROR(VLOOKUP($B$29&A61,'Region Lookups'!A:C,3,0),"") ->  | D61: =IF(ISERROR(VLOOKUP($E$8&"All"&$B61,'LA FINAL RAW DATA'!$A:$I,5,0)),"",SUM(F61:N61)) ->  | F61: =IF(ISERROR(VLOOKUP($E$8&IF($B61<>"All","All",$B$5)&$B61,'LA FINAL RAW DATA'!$A:$I,5,0))=TRUE,IF(B61="","",0),VLOOKUP($E$8&IF($B61<>"All","All",$B$5)&$B61,'LA FINAL RAW DATA'!$A:$I,5,0)) ->  | H61: =IF(ISERROR(VLOOKUP($E$8&IF($B61<>"All","All",$B$5)&$B61,'LA FINAL RAW DATA'!$A:$I,6,0))=TRUE,IF(B61="","",0),VLOOKUP($E$8&IF($B61<>"All","All",$B$5)&$B61,'LA FINAL RAW DATA'!$A:$I,6,0)) ->  | J61: =IF(ISERROR(VLOOKUP($E$8&IF($B61<>"All","All",$B$5)&$B61,'LA FINAL RAW DATA'!$A:$I,7,0))=TRUE,IF(B61="","",0),VLOOKUP($E$8&IF($B61<>"All","All",$B$5)&$B61,'LA FINAL RAW DATA'!$A:$I,7,0)) ->  | M61: =IF(ISERROR(VLOOKUP($E$8&IF($B61<>"All","All",$B$5)&$B61,'LA FINAL RAW DATA'!$A:$I,8,0))=TRUE,IF(B61="","",0),VLOOKUP($E$8&IF($B61<>"All","All",$B$5)&$B61,'LA FINAL RAW DATA'!$A:$I,8,0)) -> 
A62: 27 | B62: =IFERROR(VLOOKUP($B$29&A62,'Region Lookups'!A:C,3,0),"") ->  | D62: =IF(ISERROR(VLOOKUP($E$8&"All"&$B62,'LA FINAL RAW DATA'!$A:$I,5,0)),"",SUM(F62:N62)) ->  | F62: =IF(ISERROR(VLOOKUP($E$8&IF($B62<>"All","All",$B$5)&$B62,'LA FINAL RAW DATA'!$A:$I,5,0))=TRUE,IF(B62="","",0),VLOOKUP($E$8&IF($B62<>"All","All",$B$5)&$B62,'LA FINAL RAW DATA'!$A:$I,5,0)) ->  | H62: =IF(ISERROR(VLOOKUP($E$8&IF($B62<>"All","All",$B$5)&$B62,'LA FINAL RAW DATA'!$A:$I,6,0))=TRUE,IF(B62="","",0),VLOOKUP($E$8&IF($B62<>"All","All",$B$5)&$B62,'LA FINAL RAW DATA'!$A:$I,6,0)) ->  | J62: =IF(ISERROR(VLOOKUP($E$8&IF($B62<>"All","All",$B$5)&$B62,'LA FINAL RAW DATA'!$A:$I,7,0))=TRUE,IF(B62="","",0),VLOOKUP($E$8&IF($B62<>"All","All",$B$5)&$B62,'LA FINAL RAW DATA'!$A:$I,7,0)) ->  | M62: =IF(ISERROR(VLOOKUP($E$8&IF($B62<>"All","All",$B$5)&$B62,'LA FINAL RAW DATA'!$A:$I,8,0))=TRUE,IF(B62="","",0),VLOOKUP($E$8&IF($B62<>"All","All",$B$5)&$B62,'LA FINAL RAW DATA'!$A:$I,8,0)) -> 
A63: 28 | B63: =IFERROR(VLOOKUP($B$29&A63,'Region Lookups'!A:C,3,0),"") ->  | D63: =IF(ISERROR(VLOOKUP($E$8&"All"&$B63,'LA FINAL RAW DATA'!$A:$I,5,0)),"",SUM(F63:N63)) ->  | F63: =IF(ISERROR(VLOOKUP($E$8&IF($B63<>"All","All",$B$5)&$B63,'LA FINAL RAW DATA'!$A:$I,5,0))=TRUE,IF(B63="","",0),VLOOKUP($E$8&IF($B63<>"All","All",$B$5)&$B63,'LA FINAL RAW DATA'!$A:$I,5,0)) ->  | H63: =IF(ISERROR(VLOOKUP($E$8&IF($B63<>"All","All",$B$5)&$B63,'LA FINAL RAW DATA'!$A:$I,6,0))=TRUE,IF(B63="","",0),VLOOKUP($E$8&IF($B63<>"All","All",$B$5)&$B63,'LA FINAL RAW DATA'!$A:$I,6,0)) ->  | J63: =IF(ISERROR(VLOOKUP($E$8&IF($B63<>"All","All",$B$5)&$B63,'LA FINAL RAW DATA'!$A:$I,7,0))=TRUE,IF(B63="","",0),VLOOKUP($E$8&IF($B63<>"All","All",$B$5)&$B63,'LA FINAL RAW DATA'!$A:$I,7,0)) ->  | M63: =IF(ISERROR(VLOOKUP($E$8&IF($B63<>"All","All",$B$5)&$B63,'LA FINAL RAW DATA'!$A:$I,8,0))=TRUE,IF(B63="","",0),VLOOKUP($E$8&IF($B63<>"All","All",$B$5)&$B63,'LA FINAL RAW DATA'!$A:$I,8,0)) -> 
A64: 29 | B64: =IFERROR(VLOOKUP($B$29&A64,'Region Lookups'!A:C,3,0),"") ->  | D64: =IF(ISERROR(VLOOKUP($E$8&"All"&$B64,'LA FINAL RAW DATA'!$A:$I,5,0)),"",SUM(F64:N64)) ->  | F64: =IF(ISERROR(VLOOKUP($E$8&IF($B64<>"All","All",$B$5)&$B64,'LA FINAL RAW DATA'!$A:$I,5,0))=TRUE,IF(B64="","",0),VLOOKUP($E$8&IF($B64<>"All","All",$B$5)&$B64,'LA FINAL RAW DATA'!$A:$I,5,0)) ->  | H64: =IF(ISERROR(VLOOKUP($E$8&IF($B64<>"All","All",$B$5)&$B64,'LA FINAL RAW DATA'!$A:$I,6,0))=TRUE,IF(B64="","",0),VLOOKUP($E$8&IF($B64<>"All","All",$B$5)&$B64,'LA FINAL RAW DATA'!$A:$I,6,0)) ->  | J64: =IF(ISERROR(VLOOKUP($E$8&IF($B64<>"All","All",$B$5)&$B64,'LA FINAL RAW DATA'!$A:$I,7,0))=TRUE,IF(B64="","",0),VLOOKUP($E$8&IF($B64<>"All","All",$B$5)&$B64,'LA FINAL RAW DATA'!$A:$I,7,0)) ->  | M64: =IF(ISERROR(VLOOKUP($E$8&IF($B64<>"All","All",$B$5)&$B64,'LA FINAL RAW DATA'!$A:$I,8,0))=TRUE,IF(B64="","",0),VLOOKUP($E$8&IF($B64<>"All","All",$B$5)&$B64,'LA FINAL RAW DATA'!$A:$I,8,0)) -> 
A65: 30 | B65: =IFERROR(VLOOKUP($B$29&A65,'Region Lookups'!A:C,3,0),"") ->  | D65: =IF(ISERROR(VLOOKUP($E$8&"All"&$B65,'LA FINAL RAW DATA'!$A:$I,5,0)),"",SUM(F65:N65)) ->  | F65: =IF(ISERROR(VLOOKUP($E$8&IF($B65<>"All","All",$B$5)&$B65,'LA FINAL RAW DATA'!$A:$I,5,0))=TRUE,IF(B65="","",0),VLOOKUP($E$8&IF($B65<>"All","All",$B$5)&$B65,'LA FINAL RAW DATA'!$A:$I,5,0)) ->  | H65: =IF(ISERROR(VLOOKUP($E$8&IF($B65<>"All","All",$B$5)&$B65,'LA FINAL RAW DATA'!$A:$I,6,0))=TRUE,IF(B65="","",0),VLOOKUP($E$8&IF($B65<>"All","All",$B$5)&$B65,'LA FINAL RAW DATA'!$A:$I,6,0)) ->  | J65: =IF(ISERROR(VLOOKUP($E$8&IF($B65<>"All","All",$B$5)&$B65,'LA FINAL RAW DATA'!$A:$I,7,0))=TRUE,IF(B65="","",0),VLOOKUP($E$8&IF($B65<>"All","All",$B$5)&$B65,'LA FINAL RAW DATA'!$A:$I,7,0)) ->  | M65: =IF(ISERROR(VLOOKUP($E$8&IF($B65<>"All","All",$B$5)&$B65,'LA FINAL RAW DATA'!$A:$I,8,0))=TRUE,IF(B65="","",0),VLOOKUP($E$8&IF($B65<>"All","All",$B$5)&$B65,'LA FINAL RAW DATA'!$A:$I,8,0)) -> 
A66: 31 | B66: =IFERROR(VLOOKUP($B$29&A66,'Region Lookups'!A:C,3,0),"") ->  | D66: =IF(ISERROR(VLOOKUP($E$8&"All"&$B66,'LA FINAL RAW DATA'!$A:$I,5,0)),"",SUM(F66:N66)) ->  | F66: =IF(ISERROR(VLOOKUP($E$8&IF($B66<>"All","All",$B$5)&$B66,'LA FINAL RAW DATA'!$A:$I,5,0))=TRUE,IF(B66="","",0),VLOOKUP($E$8&IF($B66<>"All","All",$B$5)&$B66,'LA FINAL RAW DATA'!$A:$I,5,0)) ->  | H66: =IF(ISERROR(VLOOKUP($E$8&IF($B66<>"All","All",$B$5)&$B66,'LA FINAL RAW DATA'!$A:$I,6,0))=TRUE,IF(B66="","",0),VLOOKUP($E$8&IF($B66<>"All","All",$B$5)&$B66,'LA FINAL RAW DATA'!$A:$I,6,0)) ->  | J66: =IF(ISERROR(VLOOKUP($E$8&IF($B66<>"All","All",$B$5)&$B66,'LA FINAL RAW DATA'!$A:$I,7,0))=TRUE,IF(B66="","",0),VLOOKUP($E$8&IF($B66<>"All","All",$B$5)&$B66,'LA FINAL RAW DATA'!$A:$I,7,0)) ->  | M66: =IF(ISERROR(VLOOKUP($E$8&IF($B66<>"All","All",$B$5)&$B66,'LA FINAL RAW DATA'!$A:$I,8,0))=TRUE,IF(B66="","",0),VLOOKUP($E$8&IF($B66<>"All","All",$B$5)&$B66,'LA FINAL RAW DATA'!$A:$I,8,0)) -> 
A67: 32 | B67: =IFERROR(VLOOKUP($B$29&A67,'Region Lookups'!A:C,3,0),"") ->  | D67: =IF(ISERROR(VLOOKUP($E$8&"All"&$B67,'LA FINAL RAW DATA'!$A:$I,5,0)),"",SUM(F67:N67)) ->  | F67: =IF(ISERROR(VLOOKUP($E$8&IF($B67<>"All","All",$B$5)&$B67,'LA FINAL RAW DATA'!$A:$I,5,0))=TRUE,IF(B67="","",0),VLOOKUP($E$8&IF($B67<>"All","All",$B$5)&$B67,'LA FINAL RAW DATA'!$A:$I,5,0)) ->  | H67: =IF(ISERROR(VLOOKUP($E$8&IF($B67<>"All","All",$B$5)&$B67,'LA FINAL RAW DATA'!$A:$I,6,0))=TRUE,IF(B67="","",0),VLOOKUP($E$8&IF($B67<>"All","All",$B$5)&$B67,'LA FINAL RAW DATA'!$A:$I,6,0)) ->  | J67: =IF(ISERROR(VLOOKUP($E$8&IF($B67<>"All","All",$B$5)&$B67,'LA FINAL RAW DATA'!$A:$I,7,0))=TRUE,IF(B67="","",0),VLOOKUP($E$8&IF($B67<>"All","All",$B$5)&$B67,'LA FINAL RAW DATA'!$A:$I,7,0)) ->  | M67: =IF(ISERROR(VLOOKUP($E$8&IF($B67<>"All","All",$B$5)&$B67,'LA FINAL RAW DATA'!$A:$I,8,0))=TRUE,IF(B67="","",0),VLOOKUP($E$8&IF($B67<>"All","All",$B$5)&$B67,'LA FINAL RAW DATA'!$A:$I,8,0)) -> 
A68: 33 | B68: =IFERROR(VLOOKUP($B$29&A68,'Region Lookups'!A:C,3,0),"") ->  | D68: =IF(ISERROR(VLOOKUP($E$8&"All"&$B68,'LA FINAL RAW DATA'!$A:$I,5,0)),"",SUM(F68:N68)) ->  | F68: =IF(ISERROR(VLOOKUP($E$8&IF($B68<>"All","All",$B$5)&$B68,'LA FINAL RAW DATA'!$A:$I,5,0))=TRUE,IF(B68="","",0),VLOOKUP($E$8&IF($B68<>"All","All",$B$5)&$B68,'LA FINAL RAW DATA'!$A:$I,5,0)) ->  | H68: =IF(ISERROR(VLOOKUP($E$8&IF($B68<>"All","All",$B$5)&$B68,'LA FINAL RAW DATA'!$A:$I,6,0))=TRUE,IF(B68="","",0),VLOOKUP($E$8&IF($B68<>"All","All",$B$5)&$B68,'LA FINAL RAW DATA'!$A:$I,6,0)) ->  | J68: =IF(ISERROR(VLOOKUP($E$8&IF($B68<>"All","All",$B$5)&$B68,'LA FINAL RAW DATA'!$A:$I,7,0))=TRUE,IF(B68="","",0),VLOOKUP($E$8&IF($B68<>"All","All",$B$5)&$B68,'LA FINAL RAW DATA'!$A:$I,7,0)) ->  | M68: =IF(ISERROR(VLOOKUP($E$8&IF($B68<>"All","All",$B$5)&$B68,'LA FINAL RAW DATA'!$A:$I,8,0))=TRUE,IF(B68="","",0),VLOOKUP($E$8&IF($B68<>"All","All",$B$5)&$B68,'LA FINAL RAW DATA'!$A:$I,8,0)) -> 
B69: =IFERROR(VLOOKUP($B$29&A69,'Region Lookups'!A:C,3,0),"") ->  | J69: =IF(ISERROR(VLOOKUP($E$8&$B$9&IF($B69<>"All","All",$B$5)&$B69,'LA FINAL RAW DATA'!$A:$I,7,0))=TRUE,"",VLOOKUP($E$8&$B$9&IF($B69<>"All","All",$B$5)&$B69,'LA FINAL RAW DATA'!$A:$I,7,0)) -> 
B70: =IFERROR(VLOOKUP($B$29&A70,'Region Lookups'!A:C,3,0),"") ->  | J70: =IF(ISERROR(VLOOKUP($E$8&$B$9&IF($B70<>"All","All",$B$5)&$B70,'LA FINAL RAW DATA'!$A:$I,7,0))=TRUE,"",VLOOKUP($E$8&$B$9&IF($B70<>"All","All",$B$5)&$B70,'LA FINAL RAW DATA'!$A:$I,7,0)) -> 
B71: =IFERROR(VLOOKUP($B$29&A71,'Region Lookups'!A:C,3,0),"") ->  | J71: =IF(ISERROR(VLOOKUP($E$8&$B$9&IF($B71<>"All","All",$B$5)&$B71,'LA FINAL RAW DATA'!$A:$I,7,0))=TRUE,"",VLOOKUP($E$8&$B$9&IF($B71<>"All","All",$B$5)&$B71,'LA FINAL RAW DATA'!$A:$I,7,0)) -> 
B72: =IFERROR(VLOOKUP($B$29&A72,'Region Lookups'!A:C,3,0),"") ->  | J72: =IF(ISERROR(VLOOKUP($E$8&$B$9&IF($B72<>"All","All",$B$5)&$B72,'LA FINAL RAW DATA'!$A:$I,7,0))=TRUE,"",VLOOKUP($E$8&$B$9&IF($B72<>"All","All",$B$5)&$B72,'LA FINAL RAW DATA'!$A:$I,7,0)) -> 
B73: =IFERROR(VLOOKUP($B$29&A73,'Region Lookups'!A:C,3,0),"") ->  | J73: =IF(ISERROR(VLOOKUP($E$8&$B$9&IF($B73<>"All","All",$B$5)&$B73,'LA FINAL RAW DATA'!$A:$I,7,0))=TRUE,"",VLOOKUP($E$8&$B$9&IF($B73<>"All","All",$B$5)&$B73,'LA FINAL RAW DATA'!$A:$I,7,0)) -> 
B74: =IFERROR(VLOOKUP($B$29&A74,'Region Lookups'!A:C,3,0),"") ->  | J74: =IF(ISERROR(VLOOKUP($E$8&$B$9&IF($B74<>"All","All",$B$5)&$B74,'LA FINAL RAW DATA'!$A:$I,7,0))=TRUE,"",VLOOKUP($E$8&$B$9&IF($B74<>"All","All",$B$5)&$B74,'LA FINAL RAW DATA'!$A:$I,7,0)) -> 
B75: =IFERROR(VLOOKUP($B$29&A75,'Region Lookups'!A:C,3,0),"") ->  | J75: =IF(ISERROR(VLOOKUP($E$8&$B$9&IF($B75<>"All","All",$B$5)&$B75,'LA FINAL RAW DATA'!$A:$I,7,0))=TRUE,"",VLOOKUP($E$8&$B$9&IF($B75<>"All","All",$B$5)&$B75,'LA FINAL RAW DATA'!$A:$I,7,0)) -> 
B76: =IFERROR(VLOOKUP($B$29&A76,'Region Lookups'!A:C,3,0),"") ->  | J76: =IF(ISERROR(VLOOKUP($E$8&$B$9&IF($B76<>"All","All",$B$5)&$B76,'LA FINAL RAW DATA'!$A:$I,7,0))=TRUE,"",VLOOKUP($E$8&$B$9&IF($B76<>"All","All",$B$5)&$B76,'LA FINAL RAW DATA'!$A:$I,7,0)) -> 
B77: =IFERROR(VLOOKUP($B$29&A77,'Region Lookups'!A:C,3,0),"") ->  | J77: =IF(ISERROR(VLOOKUP($E$8&$B$9&IF($B77<>"All","All",$B$5)&$B77,'LA FINAL RAW DATA'!$A:$I,7,0))=TRUE,"",VLOOKUP($E$8&$B$9&IF($B77<>"All","All",$B$5)&$B77,'LA FINAL RAW DATA'!$A:$I,7,0)) -> 
B78: =IFERROR(VLOOKUP($B$29&A78,'Region Lookups'!A:C,3,0),"") ->  | J78: =IF(ISERROR(VLOOKUP($E$8&$B$9&IF($B78<>"All","All",$B$5)&$B78,'LA FINAL RAW DATA'!$A:$I,7,0))=TRUE,"",VLOOKUP($E$8&$B$9&IF($B78<>"All","All",$B$5)&$B78,'LA FINAL RAW DATA'!$A:$I,7,0)) -> 
B79: =IFERROR(VLOOKUP($B$29&A79,'Region Lookups'!A:C,3,0),"") ->  | J79: =IF(ISERROR(VLOOKUP($E$8&$B$9&IF($B79<>"All","All",$B$5)&$B79,'LA FINAL RAW DATA'!$A:$I,7,0))=TRUE,"",VLOOKUP($E$8&$B$9&IF($B79<>"All","All",$B$5)&$B79,'LA FINAL RAW DATA'!$A:$I,7,0)) -> 
B80: =IFERROR(VLOOKUP($B$29&A80,'Region Lookups'!A:C,3,0),"") ->  | J80: =IF(ISERROR(VLOOKUP($E$8&$B$9&IF($B80<>"All","All",$B$5)&$B80,'LA FINAL RAW DATA'!$A:$I,7,0))=TRUE,"",VLOOKUP($E$8&$B$9&IF($B80<>"All","All",$B$5)&$B80,'LA FINAL RAW DATA'!$A:$I,7,0)) -> 
B81: =IFERROR(VLOOKUP($B$29&A81,'Region Lookups'!A:C,3,0),"") ->  | J81: =IF(ISERROR(VLOOKUP($E$8&$B$9&IF($B81<>"All","All",$B$5)&$B81,'LA FINAL RAW DATA'!$A:$I,7,0))=TRUE,"",VLOOKUP($E$8&$B$9&IF($B81<>"All","All",$B$5)&$B81,'LA FINAL RAW DATA'!$A:$I,7,0)) -> 
B82: =IFERROR(VLOOKUP($B$29&A82,'Region Lookups'!A:C,3,0),"") ->  | J82: =IF(ISERROR(VLOOKUP($E$8&$B$9&IF($B82<>"All","All",$B$5)&$B82,'LA FINAL RAW DATA'!$A:$I,7,0))=TRUE,"",VLOOKUP($E$8&$B$9&IF($B82<>"All","All",$B$5)&$B82,'LA FINAL RAW DATA'!$A:$I,7,0)) -> 
B83: =IFERROR(VLOOKUP($B$29&A83,'Region Lookups'!A:C,3,0),"") ->  | J83: =IF(ISERROR(VLOOKUP($E$8&$B$9&IF($B83<>"All","All",$B$5)&$B83,'LA FINAL RAW DATA'!$A:$I,7,0))=TRUE,"",VLOOKUP($E$8&$B$9&IF($B83<>"All","All",$B$5)&$B83,'LA FINAL RAW DATA'!$A:$I,7,0)) -> 
B84: =IFERROR(VLOOKUP($B$29&A84,'Region Lookups'!A:C,3,0),"") ->  | J84: =IF(ISERROR(VLOOKUP($E$8&$B$9&IF($B84<>"All","All",$B$5)&$B84,'LA FINAL RAW DATA'!$A:$I,7,0))=TRUE,"",VLOOKUP($E$8&$B$9&IF($B84<>"All","All",$B$5)&$B84,'LA FINAL RAW DATA'!$A:$I,7,0)) -> 
B85: =IFERROR(VLOOKUP($B$29&A85,'Region Lookups'!A:C,3,0),"") ->  | J85: =IF(ISERROR(VLOOKUP($E$8&$B$9&IF($B85<>"All","All",$B$5)&$B85,'LA FINAL RAW DATA'!$A:$I,7,0))=TRUE,"",VLOOKUP($E$8&$B$9&IF($B85<>"All","All",$B$5)&$B85,'LA FINAL RAW DATA'!$A:$I,7,0)) -> 
B86: =IFERROR(VLOOKUP($B$29&A86,'Region Lookups'!A:C,3,0),"") ->  | J86: =IF(ISERROR(VLOOKUP($E$8&$B$9&IF($B86<>"All","All",$B$5)&$B86,'LA FINAL RAW DATA'!$A:$I,7,0))=TRUE,"",VLOOKUP($E$8&$B$9&IF($B86<>"All","All",$B$5)&$B86,'LA FINAL RAW DATA'!$A:$I,7,0)) -> 
B87: =IFERROR(VLOOKUP($B$29&A87,'Region Lookups'!A:C,3,0),"") ->  | J87: =IF(ISERROR(VLOOKUP($E$8&$B$9&IF($B87<>"All","All",$B$5)&$B87,'LA FINAL RAW DATA'!$A:$I,7,0))=TRUE,"",VLOOKUP($E$8&$B$9&IF($B87<>"All","All",$B$5)&$B87,'LA FINAL RAW DATA'!$A:$I,7,0)) -> 
B88: =IFERROR(VLOOKUP($B$29&A88,'Region Lookups'!A:C,3,0),"") ->  | J88: =IF(ISERROR(VLOOKUP($E$8&$B$9&IF($B88<>"All","All",$B$5)&$B88,'LA FINAL RAW DATA'!$A:$I,7,0))=TRUE,"",VLOOKUP($E$8&$B$9&IF($B88<>"All","All",$B$5)&$B88,'LA FINAL RAW DATA'!$A:$I,7,0)) -> 
B89: =IFERROR(VLOOKUP($B$29&A89,'Region Lookups'!A:C,3,0),"") -> 
B90: =IFERROR(VLOOKUP($B$29&A90,'Region Lookups'!A:C,3,0),"") -> 

Sheet Children's Social Care
B2: Statistical First Release - Children's Social Care Provision (excluding inspections of Local Authorities)
D4: Region: | G4: Local Authority:
D5: All | G5: All | I5: =IF(D5="All",TRUE,NOT(ISERROR(MATCH(G5,INDIRECT(SUBSTITUTE(SUBSTITUTE(D5," ","_"),",","")),0)))) -> TRUE
D7: Date: | G7: Provision Type: | J7: Inspection Type:
D8: as at 31 March 2018 | G8: All | J8: Full Inspection
C9: =IF(LEFT(D8,5) = "as at","","year") ->  | D9: =VLOOKUP(D8,_PeriodLookup,2,0) -> 2017 | G9: =IF($J$8="Monitoring Inspection","HIDE","SHOW") -> SHOW | H9: =IF(LEFT(D8,5)="as at",TRUE,FALSE) -> TRUE
B10: Sector | C10: Total number of inspections | D10: Inspection Outcomes | H10: Number not inspected | I10: ="Number of Providers as at "&Inspections_To -> Number of Providers as at 31 March 2018 | J10: ="Number of Places as at "&Inspections_To -> Number of Places as at 31 March 2018 | K10: ="No of Joiners between "&Inspections_From&" and "&Inspections_To -> No of Joiners between 01 April 2017 and 31 March 2018 | M10: ="No of Leavers between "&Inspections_From&" and "&Inspections_To -> No of Leavers between 01 April 2017 and 31 March 2018
D11: =IF($J$8 = "Monitoring Inspection","-",VLOOKUP(J8,_InspectionOutcomes,2,0)) -> Outstanding | E11: =IF($J$8 = "Monitoring Inspection","-",VLOOKUP(J8,_InspectionOutcomes,3,0)) -> Good | F11: =IF($J$8 = "Monitoring Inspection","-",VLOOKUP(J8,_InspectionOutcomes,4,0)) -> Requires improvement to be good | G11: =IF($J$8 = "Monitoring Inspection","-",VLOOKUP(J8,_InspectionOutcomes,5,0)) -> Inadequate | K11: Providers | L11: Places | M11: Providers | N11: Places
A13: =$G$8&$G$5&$D$5&$B$13&$J$8&$D$9 -> AllAllAllAllFull Inspection2017 | B13: All | C13: =IF(ISERROR( VLOOKUP($A$13,'Inspection Outcome data'!$A:$M,8,0))=TRUE,0, VLOOKUP($A$13,'Inspection Outcome data'!$A:$M,8,0)) -> 2793 | D13: =IF(ISERROR( VLOOKUP(A13,'Inspection Outcome data'!$A:$M,9,0))=TRUE,0, VLOOKUP(A13,'Inspection Outcome data'!$A:$M,9,0)) -> 547 | E13: =IF(ISERROR( VLOOKUP(A13,'Inspection Outcome data'!$A:$M,10,0))=TRUE,0, VLOOKUP(A13,'Inspection Outcome data'!$A:$M,10,0)) -> 1758 | F13: =IF(ISERROR( VLOOKUP(A13,'Inspection Outcome data'!$A:$M,11,0))=TRUE,0, VLOOKUP(A13,'Inspection Outcome data'!$A:$M,11,0)) -> 427 | G13: =IF(ISERROR( VLOOKUP(A13,'Inspection Outcome data'!$A:$M,12,0))=TRUE,0, VLOOKUP(A13,'Inspection Outcome data'!$A:$M,12,0)) -> 60 | H13: =IF(AND($H$9,$C13=0),0,IFERROR(I13-C13,"")) -> 148 | I13: =IF($H$9,IF(ISERROR( VLOOKUP($O13,pandp!$A:$I,8,0))=TRUE,0, VLOOKUP($O13,pandp!$A:$I,8,0)),"") -> 2941 | J13: =IF($H$9,IF(ISERROR( VLOOKUP($O13,pandp!$A:$J,9,0))=TRUE,0, VLOOKUP($O13,pandp!$A:$J,9,0)),"") -> 33264 | K13: =IF($H$9,IF(ISERROR( VLOOKUP($P13,pandpjoiners!$A:$I,8,0))=TRUE,0, VLOOKUP($P13,pandpjoiners!$A:$I,8,0)),"") -> 254 | L13: =IF($H$9,IF(ISERROR( VLOOKUP($P13,pandpjoiners!$A:$I,9,0))=TRUE,0, VLOOKUP($P13,pandpjoiners!$A:$I,9,0)),"") -> 1323 | M13: =IF($H$9,IF(ISERROR( VLOOKUP($P13,pandpleavers!$A:$I,8,0))=TRUE,0, VLOOKUP($P13,pandpleavers!$A:$I,8,0)),"") -> 176 | N13: =IF($H$9,IF(ISERROR( VLOOKUP($P13,pandpleavers!$A:$I,9,0))=TRUE,0, VLOOKUP($P13,pandpleavers!$A:$I,9,0)),"") -> 1285 | O13: =$G$8&$G$5&$D$5&$B$13&$D$9 -> AllAllAllAll2017 | P13: =$G$8&$G$5&$D$5&$B$13&$D$9 -> AllAllAllAll2017
A15: =$G$8&$G$5&$D$5&$B$15&$J$8&$D$9 -> AllAllAllLocal AuthorityFull Inspection2017 | B15: Local Authority | C15: =IF(ISERROR( VLOOKUP($A$15,'Inspection Outcome data'!$A:$M,8,0))=TRUE,0, VLOOKUP($A$15,'Inspection Outcome data'!$A:$M,8,0)) -> 490 | D15: =IF(ISERROR( VLOOKUP(A15,'Inspection Outcome data'!$A:$M,9,0))=TRUE,0, VLOOKUP(A15,'Inspection Outcome data'!$A:$M,9,0)) -> 138 | E15: =IF(ISERROR( VLOOKUP(A15,'Inspection Outcome data'!$A:$M,10,0))=TRUE,0, VLOOKUP(A15,'Inspection Outcome data'!$A:$M,10,0)) -> 278 | F15: =IF(ISERROR( VLOOKUP(A15,'Inspection Outcome data'!$A:$M,11,0))=TRUE,0, VLOOKUP(A15,'Inspection Outcome data'!$A:$M,11,0)) -> 67 | G15: =IF(ISERROR( VLOOKUP(A15,'Inspection Outcome data'!$A:$M,12,0))=TRUE,0, VLOOKUP(A15,'Inspection Outcome data'!$A:$M,12,0)) -> 6 | H15: =IF(AND($H$9,$C15=0),0,IFERROR(I15-C15,"")) -> 8 | I15: =IF($H$9,IF(ISERROR( VLOOKUP($O15,pandp!$A:$J,8,0))=TRUE,0, VLOOKUP($O15,pandp!$A:$J,8,0)),"") -> 498 | J15: =IF($H$9,IF(ISERROR( VLOOKUP($O15,pandp!$A:$J,9,0))=TRUE,0, VLOOKUP($O15,pandp!$A:$J,9,0)),"") -> 5872 | K15: =IF($H$9,IF(ISERROR( VLOOKUP($P15,pandpjoiners!$A:$I,8,0))=TRUE,0, VLOOKUP($P15,pandpjoiners!$A:$I,8,0)),"") -> 14 | L15: =IF($H$9,IF(ISERROR( VLOOKUP($P15,pandpjoiners!$A:$I,9,0))=TRUE,0, VLOOKUP($P15,pandpjoiners!$A:$I,9,0)),"") -> 71 | M15: =IF($H$9,IF(ISERROR( VLOOKUP($P15,pandpleavers!$A:$I,8,0))=TRUE,0, VLOOKUP($P15,pandpleavers!$A:$I,8,0)),"") -> 27 | N15: =IF($H$9,IF(ISERROR( VLOOKUP($P15,pandpleavers!$A:$I,9,0))=TRUE,0, VLOOKUP($P15,pandpleavers!$A:$I,9,0)),"") -> 235 | O15: =$G$8&$G$5&$D$5&$B15&$D$9 -> AllAllAllLocal Authority2017 | P15: =$G$8&$G$5&$D$5&$B$15&$D$9 -> AllAllAllLocal Authority2017
A17: =$G$8&$G$5&$D$5&$B$17&$J$8&$D$9 -> AllAllAllPrivateFull Inspection2017 | B17: Private | C17: =IF(ISERROR( VLOOKUP($A$17,'Inspection Outcome data'!$A:$M,8,0))=TRUE,0, VLOOKUP($A$17,'Inspection Outcome data'!$A:$M,8,0)) -> 1875 | D17: =IF(ISERROR( VLOOKUP(A17,'Inspection Outcome data'!$A:$M,9,0))=TRUE,0, VLOOKUP(A17,'Inspection Outcome data'!$A:$M,9,0)) -> 284 | E17: =IF(ISERROR( VLOOKUP(A17,'Inspection Outcome data'!$A:$M,10,0))=TRUE,0, VLOOKUP(A17,'Inspection Outcome data'!$A:$M,10,0)) -> 1233 | F17: =IF(ISERROR( VLOOKUP(A17,'Inspection Outcome data'!$A:$M,11,0))=TRUE,0, VLOOKUP(A17,'Inspection Outcome data'!$A:$M,11,0)) -> 313 | G17: =IF(ISERROR( VLOOKUP(A17,'Inspection Outcome data'!$A:$M,12,0))=TRUE,0, VLOOKUP(A17,'Inspection Outcome data'!$A:$M,12,0)) -> 45 | H17: =IF(AND($H$9,$C17 = 0),0,IFERROR(I17-C17,"")) -> 113 | I17: =IF($H$9,IF(ISERROR( VLOOKUP($O17,pandp!$A:$J,8,0))=TRUE,0, VLOOKUP($O17,pandp!$A:$J,8,0)),"") -> 1988 | J17: =IF($H$9,IF(ISERROR( VLOOKUP($O17,pandp!$A:$J,9,0))=TRUE,0, VLOOKUP($O17,pandp!$A:$J,9,0)),"") -> 13120 | K17: =IF($H$9,IF(ISERROR( VLOOKUP($P17,pandpjoiners!$A:$I,8,0))=TRUE,0, VLOOKUP($P17,pandpjoiners!$A:$I,8,0)),"") -> 206 | L17: =IF($H$9,IF(ISERROR( VLOOKUP($P17,pandpjoiners!$A:$I,9,0))=TRUE,0, VLOOKUP($P17,pandpjoiners!$A:$I,9,0)),"") -> 940 | M17: =IF($H$9,IF(ISERROR( VLOOKUP($P17,pandpleavers!$A:$I,8,0))=TRUE,0, VLOOKUP($P17,pandpleavers!$A:$I,8,0)),"") -> 116 | N17: =IF($H$9,IF(ISERROR( VLOOKUP($P17,pandpleavers!$A:$I,9,0))=TRUE,0, VLOOKUP($P17,pandpleavers!$A:$I,9,0)),"") -> 591 | O17: =$G$8&$G$5&$D$5&$B17&$D$9 -> AllAllAllPrivate2017 | P17: =$G$8&$G$5&$D$5&$B$17&$D$9 -> AllAllAllPrivate2017
A19: =$G$8&$G$5&$D$5&$B$19&$J$8&$D$9 -> AllAllAllVoluntaryFull Inspection2017 | B19: Voluntary | C19: =IF(ISERROR( VLOOKUP($A$19,'Inspection Outcome data'!$A:$M,8,0))=TRUE,0, VLOOKUP($A$19,'Inspection Outcome data'!$A:$M,8,0)) -> 357 | D19: =IF(ISERROR( VLOOKUP(A19,'Inspection Outcome data'!$A:$M,9,0))=TRUE,0, VLOOKUP(A19,'Inspection Outcome data'!$A:$M,9,0)) -> 94 | E19: =IF(ISERROR( VLOOKUP(A19,'Inspection Outcome data'!$A:$M,10,0))=TRUE,0, VLOOKUP(A19,'Inspection Outcome data'!$A:$M,10,0)) -> 217 | F19: =IF(ISERROR( VLOOKUP(A19,'Inspection Outcome data'!$A:$M,11,0))=TRUE,0, VLOOKUP(A19,'Inspection Outcome data'!$A:$M,11,0)) -> 38 | G19: =IF(ISERROR( VLOOKUP(A19,'Inspection Outcome data'!$A:$M,12,0))=TRUE,0, VLOOKUP(A19,'Inspection Outcome data'!$A:$M,12,0)) -> 8 | H19: =IF(AND($H$9,$C19 = 0),0,IFERROR(I19-C19,"")) -> 24 | I19: =IF($H$9,IF(ISERROR( VLOOKUP($O19,pandp!$A:$J,8,0))=TRUE,0, VLOOKUP($O19,pandp!$A:$J,8,0)),"") -> 381 | J19: =IF($H$9,IF(ISERROR( VLOOKUP($O19,pandp!$A:$J,9,0))=TRUE,0, VLOOKUP($O19,pandp!$A:$J,9,0)),"") -> 9259 | K19: =IF($H$9,IF(ISERROR( VLOOKUP($P19,pandpjoiners!$A:$I,8,0))=TRUE,0, VLOOKUP($P19,pandpjoiners!$A:$I,8,0)),"") -> 27 | L19: =IF($H$9,IF(ISERROR( VLOOKUP($P19,pandpjoiners!$A:$I,9,0))=TRUE,0, VLOOKUP($P19,pandpjoiners!$A:$I,9,0)),"") -> 112 | M19: =IF($H$9,IF(ISERROR( VLOOKUP($P19,pandpleavers!$A:$I,8,0))=TRUE,0, VLOOKUP($P19,pandpleavers!$A:$I,8,0)),"") -> 28 | N19: =IF($H$9,IF(ISERROR( VLOOKUP($P19,pandpleavers!$A:$I,9,0))=TRUE,0, VLOOKUP($P19,pandpleavers!$A:$I,9,0)),"") -> 274 | O19: =$G$8&$G$5&$D$5&$B19&$D$9 -> AllAllAllVoluntary2017 | P19: =$G$8&$G$5&$D$5&$B$19&$D$9 -> AllAllAllVoluntary2017
A21: =$G$8&$G$5&$D$5&$B$21&$J$8&$D$9 -> AllAllAllAcademyFull Inspection2017 | B21: Academy | C21: =IF(ISERROR( VLOOKUP($A$21,'Inspection Outcome data'!$A:$M,8,0))=TRUE,0, VLOOKUP($A$21,'Inspection Outcome data'!$A:$M,8,0)) -> 61 | D21: =IF(ISERROR( VLOOKUP(A21,'Inspection Outcome data'!$A:$M,9,0))=TRUE,0, VLOOKUP(A21,'Inspection Outcome data'!$A:$M,9,0)) -> 31 | E21: =IF(ISERROR( VLOOKUP(A21,'Inspection Outcome data'!$A:$M,10,0))=TRUE,0, VLOOKUP(A21,'Inspection Outcome data'!$A:$M,10,0)) -> 22 | F21: =IF(ISERROR( VLOOKUP(A21,'Inspection Outcome data'!$A:$M,11,0))=TRUE,0, VLOOKUP(A21,'Inspection Outcome data'!$A:$M,11,0)) -> 7 | G21: =IF(ISERROR( VLOOKUP(A21,'Inspection Outcome data'!$A:$M,12,0))=TRUE,0, VLOOKUP(A21,'Inspection Outcome data'!$A:$M,12,0)) -> 1 | H21: =IF(AND($H$9,$C21 = 0),0,IFERROR(I21-C21,"")) -> 2 | I21: =IF($H$9,IF(ISERROR( VLOOKUP($O21,pandp!$A:$J,8,0))=TRUE,0, VLOOKUP($O21,pandp!$A:$J,8,0)),"") -> 63 | J21: =IF($H$9,IF(ISERROR( VLOOKUP($O21,pandp!$A:$J,9,0))=TRUE,0, VLOOKUP($O21,pandp!$A:$J,9,0)),"") -> 4948 | K21: =IF($H$9,IF(ISERROR( VLOOKUP($P21,pandpjoiners!$A:$I,8,0))=TRUE,0, VLOOKUP($P21,pandpjoiners!$A:$I,8,0)),"") -> 3 | L21: =IF($H$9,IF(ISERROR( VLOOKUP($P21,pandpjoiners!$A:$I,9,0))=TRUE,0, VLOOKUP($P21,pandpjoiners!$A:$I,9,0)),"") -> 178 | M21: =IF($H$9,IF(ISERROR( VLOOKUP($P21,pandpleavers!$A:$I,8,0))=TRUE,0, VLOOKUP($P21,pandpleavers!$A:$I,8,0)),"") -> 3 | N21: =IF($H$9,IF(ISERROR( VLOOKUP($P21,pandpleavers!$A:$I,9,0))=TRUE,0, VLOOKUP($P21,pandpleavers!$A:$I,9,0)),"") -> 165 | O21: =$G$8&$G$5&$D$5&$B21&$D$9 -> AllAllAllAcademy2017 | P21: =$G$8&$G$5&$D$5&$B$21&$D$9 -> AllAllAllAcademy2017
A23: =$G$8&$G$5&$D$5&$B$23&$J$8&$D$9 -> AllAllAllHealth AuthorityFull Inspection2017 | B23: Health Authority | C23: =IF(ISERROR( VLOOKUP($A$23,'Inspection Outcome data'!$A:$M,8,0))=TRUE,0, VLOOKUP($A$23,'Inspection Outcome data'!$A:$M,8,0)) -> 10 | D23: =IF(ISERROR( VLOOKUP(A23,'Inspection Outcome data'!$A:$M,9,0))=TRUE,0, VLOOKUP(A23,'Inspection Outcome data'!$A:$M,9,0)) -> 0 | E23: =IF(ISERROR( VLOOKUP(A23,'Inspection Outcome data'!$A:$M,10,0))=TRUE,0, VLOOKUP(A23,'Inspection Outcome data'!$A:$M,10,0)) -> 8 | F23: =IF(ISERROR( VLOOKUP(A23,'Inspection Outcome data'!$A:$M,11,0))=TRUE,0, VLOOKUP(A23,'Inspection Outcome data'!$A:$M,11,0)) -> 2 | G23: =IF(ISERROR( VLOOKUP(A23,'Inspection Outcome data'!$A:$M,12,0))=TRUE,0, VLOOKUP(A23,'Inspection Outcome data'!$A:$M,12,0)) -> 0 | H23: =IF($H$9,I23-C23,"") -> 1 | I23: =IF($H$9,IF(ISERROR( VLOOKUP($O23,pandp!$A:$J,8,0))=TRUE,0, VLOOKUP($O23,pandp!$A:$J,8,0)),"") -> 11 | J23: =IF($H$9,IF(ISERROR( VLOOKUP($O23,pandp!$A:$J,9,0))=TRUE,0, VLOOKUP($O23,pandp!$A:$J,9,0)),"") -> 65 | K23: =IF($H$9,IF(ISERROR( VLOOKUP($P23,pandpjoiners!$A:$I,8,0))=TRUE,0, VLOOKUP($P23,pandpjoiners!$A:$I,8,0)),"") -> 4 | L23: =IF($H$9,IF(ISERROR( VLOOKUP($P23,pandpjoiners!$A:$I,9,0))=TRUE,0, VLOOKUP($P23,pandpjoiners!$A:$I,9,0)),"") -> 22 | M23: =IF($H$9,IF(ISERROR( VLOOKUP($P23,pandpleavers!$A:$I,8,0))=TRUE,0, VLOOKUP($P23,pandpleavers!$A:$I,8,0)),"") -> 2 | N23: =IF($H$9,IF(ISERROR( VLOOKUP($P23,pandpleavers!$A:$I,9,0))=TRUE,0, VLOOKUP($P23,pandpleavers!$A:$I,9,0)),"") -> 20 | O23: =$G$8&$G$5&$D$5&$B23&$D$9 -> AllAllAllHealth Authority2017 | P23: =$G$8&$G$5&$D$5&$B$23&$D$9 -> AllAllAllHealth Authority2017
B28: =IF(D5<>"All",D5,IF(_ddla<>"All",VLOOKUP(_ddla,'Region Lookups'!C:D,2,0),"All")) -> All
F29: 8 | H29: 9 | J29: 10
C30: Total number inspected | D30: =IF(D$11 = "-","",D$11) -> Outstanding | E30: =IF(E$11 = "-","",E$11) -> Good | F30: Requires improvement to be good | G30: Inadequate
D31: 6 | E31: 7 | F31: 8 | G31: 9 | J31: =$G$8&"All"&"All"&"All"&$J$8&$D$9 -> AllAllAllAllFull Inspection2017
B32: England | C32: =SUM(D32:G32) -> 2792 | D32: =IF(ISERROR(VLOOKUP($G$8&"All"&"All"&"All"&$J$8&$D$9,'Inspection Outcome data'!$A:$M,9,0))=TRUE,0,VLOOKUP($G$8&"All"&"All"&"All"&$J$8&$D$9,'Inspection Outcome data'!$A:$M,9,0)) -> 547 | E32: =IF(ISERROR(VLOOKUP($G$8&"All"&"All"&"All"&$J$8&$D$9,'Inspection Outcome data'!$A:$M,10,0))=TRUE,0,VLOOKUP($G$8&"All"&"All"&"All"&$J$8&$D$9,'Inspection Outcome data'!$A:$M,10,0)) -> 1758 | F32: =IF(ISERROR(VLOOKUP($G$8&"All"&"All"&"All"&$J$8&$D$9,'Inspection Outcome data'!$A:$M,11,0))=TRUE,0,VLOOKUP($G$8&"All"&"All"&"All"&$J$8&$D$9,'Inspection Outcome data'!$A:$M,11,0)) -> 427 | G32: =IF(ISERROR(VLOOKUP($G$8&"All"&"All"&"All"&$J$8&$D$9,'Inspection Outcome data'!$A:$M,12,0))=TRUE,0,VLOOKUP($G$8&"All"&"All"&"All"&$J$8&$D$9,'Inspection Outcome data'!$A:$M,12,0)) -> 60
B34: =IFERROR(IF(B28="All",NA(),B28),"") ->  | C34: =IF(B34="","",IF(ISERROR(VLOOKUP($G$8&"All"&$B$34&$B$13&$J$8&$D$9,'Inspection Outcome data'!$A:$M,8,0)),"",SUM(D34:G34))) ->  | D34: =IF(B34="","",IFERROR(VLOOKUP($G$8&"All"&$B$34&$B$13&$J$8&$D$9,'Inspection Outcome data'!$A:$M,9,0),"")) ->  | E34: =IF(B34="","",IFERROR(VLOOKUP($G$8&"All"&$B$34&$B$13&$J$8&$D$9,'Inspection Outcome data'!$A:$M,10,0),"")) ->  | F34: =IF(B34="","",IFERROR(VLOOKUP($G$8&"All"&$B$34&$B$13&$J$8&$D$9,'Inspection Outcome data'!$A:$M,11,0),"")) ->  | G34: =IF(B34="","",IFERROR(VLOOKUP($G$8&"All"&$B$34&$B$13&$J$8&$D$9,'Inspection Outcome data'!$A:$M,12,0),"")) ->  | J34: =$G$8&"All"&$B$34&$B$13&$J$8&$D$9 -> AllAllAllFull Inspection2017
A35: 1 | B35: =IFERROR(VLOOKUP($B$28&A35,'Region Lookups'!A:C,3,0),"") ->  | C35: =IF($B35="","",IF(ISERROR(VLOOKUP($G$8&$B35&"All"&$B$13&$J$8&$D$9,'Inspection Outcome data'!$A:$M,8,0)),0,SUM(D35:G35))) ->  | D35: =IF(B34="","",IFERROR(VLOOKUP($G$8&$B35&"All"&$B$13&$J$8&$D$9,'Inspection Outcome data'!$A:$M,9,0),IF(B35="","",0))) ->  | E35: =IF(B34="","",IFERROR(VLOOKUP($G$8&$B35&"All"&$B$13&$J$8&$D$9,'Inspection Outcome data'!$A:$M,10,0),IF(B35="","",0))) ->  | F35: =IF(B34="","",IFERROR(VLOOKUP($G$8&$B35&"All"&$B$13&$J$8&$D$9,'Inspection Outcome data'!$A:$M,11,0),IF(B35="","",0))) ->  | G35: =IF(B34="","",IFERROR(VLOOKUP($G$8&$B35&"All"&$B$13&$J$8&$D$9,'Inspection Outcome data'!$A:$M,12,0),IF(B35="","",0))) -> 
A36: 2 | B36: =IFERROR(VLOOKUP($B$28&A36,'Region Lookups'!A:C,3,0),"") ->  | C36: =IF($B36="","",IF(ISERROR(VLOOKUP($G$8&$B36&"All"&$B$13&$J$8&$D$9,'Inspection Outcome data'!$A:$M,8,0)),0,SUM(D36:G36))) ->  | D36: =IF(B35="","",IFERROR(VLOOKUP($G$8&$B36&"All"&$B$13&$J$8&$D$9,'Inspection Outcome data'!$A:$M,9,0),IF(B36="","",0))) ->  | E36: =IF(B35="","",IFERROR(VLOOKUP($G$8&$B36&"All"&$B$13&$J$8&$D$9,'Inspection Outcome data'!$A:$M,10,0),IF(B36="","",0))) ->  | F36: =IF(B35="","",IFERROR(VLOOKUP($G$8&$B36&"All"&$B$13&$J$8&$D$9,'Inspection Outcome data'!$A:$M,11,0),IF(B36="","",0))) ->  | G36: =IF(B35="","",IFERROR(VLOOKUP($G$8&$B36&"All"&$B$13&$J$8&$D$9,'Inspection Outcome data'!$A:$M,12,0),IF(B36="","",0))) -> 
A37: 3 | B37: =IFERROR(VLOOKUP($B$28&A37,'Region Lookups'!A:C,3,0),"") ->  | C37: =IF($B37="","",IF(ISERROR(VLOOKUP($G$8&$B37&"All"&$B$13&$J$8&$D$9,'Inspection Outcome data'!$A:$M,8,0)),0,SUM(D37:G37))) ->  | D37: =IF(B36="","",IFERROR(VLOOKUP($G$8&$B37&"All"&$B$13&$J$8&$D$9,'Inspection Outcome data'!$A:$M,9,0),IF(B37="","",0))) ->  | E37: =IF(B36="","",IFERROR(VLOOKUP($G$8&$B37&"All"&$B$13&$J$8&$D$9,'Inspection Outcome data'!$A:$M,10,0),IF(B37="","",0))) ->  | F37: =IF(B36="","",IFERROR(VLOOKUP($G$8&$B37&"All"&$B$13&$J$8&$D$9,'Inspection Outcome data'!$A:$M,11,0),IF(B37="","",0))) ->  | G37: =IF(B36="","",IFERROR(VLOOKUP($G$8&$B37&"All"&$B$13&$J$8&$D$9,'Inspection Outcome data'!$A:$M,12,0),IF(B37="","",0))) -> 
A38: 4 | B38: =IFERROR(VLOOKUP($B$28&A38,'Region Lookups'!A:C,3,0),"") ->  | C38: =IF($B38="","",IF(ISERROR(VLOOKUP($G$8&$B38&"All"&$B$13&$J$8&$D$9,'Inspection Outcome data'!$A:$M,8,0)),0,SUM(D38:G38))) ->  | D38: =IF(B37="","",IFERROR(VLOOKUP($G$8&$B38&"All"&$B$13&$J$8&$D$9,'Inspection Outcome data'!$A:$M,9,0),IF(B38="","",0))) ->  | E38: =IF(B37="","",IFERROR(VLOOKUP($G$8&$B38&"All"&$B$13&$J$8&$D$9,'Inspection Outcome data'!$A:$M,10,0),IF(B38="","",0))) ->  | F38: =IF(B37="","",IFERROR(VLOOKUP($G$8&$B38&"All"&$B$13&$J$8&$D$9,'Inspection Outcome data'!$A:$M,11,0),IF(B38="","",0))) ->  | G38: =IF(B37="","",IFERROR(VLOOKUP($G$8&$B38&"All"&$B$13&$J$8&$D$9,'Inspection Outcome data'!$A:$M,12,0),IF(B38="","",0))) -> 
A39: 5 | B39: =IFERROR(VLOOKUP($B$28&A39,'Region Lookups'!A:C,3,0),"") ->  | C39: =IF($B39="","",IF(ISERROR(VLOOKUP($G$8&$B39&"All"&$B$13&$J$8&$D$9,'Inspection Outcome data'!$A:$M,8,0)),0,SUM(D39:G39))) ->  | D39: =IF(B38="","",IFERROR(VLOOKUP($G$8&$B39&"All"&$B$13&$J$8&$D$9,'Inspection Outcome data'!$A:$M,9,0),IF(B39="","",0))) ->  | E39: =IF(B38="","",IFERROR(VLOOKUP($G$8&$B39&"All"&$B$13&$J$8&$D$9,'Inspection Outcome data'!$A:$M,10,0),IF(B39="","",0))) ->  | F39: =IF(B38="","",IFERROR(VLOOKUP($G$8&$B39&"All"&$B$13&$J$8&$D$9,'Inspection Outcome data'!$A:$M,11,0),IF(B39="","",0))) ->  | G39: =IF(B38="","",IFERROR(VLOOKUP($G$8&$B39&"All"&$B$13&$J$8&$D$9,'Inspection Outcome data'!$A:$M,12,0),IF(B39="","",0))) -> 
A40: 6 | B40: =IFERROR(VLOOKUP($B$28&A40,'Region Lookups'!A:C,3,0),"") ->  | C40: =IF($B40="","",IF(ISERROR(VLOOKUP($G$8&$B40&"All"&$B$13&$J$8&$D$9,'Inspection Outcome data'!$A:$M,8,0)),0,SUM(D40:G40))) ->  | D40: =IF(B39="","",IFERROR(VLOOKUP($G$8&$B40&"All"&$B$13&$J$8&$D$9,'Inspection Outcome data'!$A:$M,9,0),IF(B40="","",0))) ->  | E40: =IF(B39="","",IFERROR(VLOOKUP($G$8&$B40&"All"&$B$13&$J$8&$D$9,'Inspection Outcome data'!$A:$M,10,0),IF(B40="","",0))) ->  | F40: =IF(B39="","",IFERROR(VLOOKUP($G$8&$B40&"All"&$B$13&$J$8&$D$9,'Inspection Outcome data'!$A:$M,11,0),IF(B40="","",0))) ->  | G40: =IF(B39="","",IFERROR(VLOOKUP($G$8&$B40&"All"&$B$13&$J$8&$D$9,'Inspection Outcome data'!$A:$M,12,0),IF(B40="","",0))) -> 
A41: 7 | B41: =IFERROR(VLOOKUP($B$28&A41,'Region Lookups'!A:C,3,0),"") ->  | C41: =IF($B41="","",IF(ISERROR(VLOOKUP($G$8&$B41&"All"&$B$13&$J$8&$D$9,'Inspection Outcome data'!$A:$M,8,0)),0,SUM(D41:G41))) ->  | D41: =IF(B40="","",IFERROR(VLOOKUP($G$8&$B41&"All"&$B$13&$J$8&$D$9,'Inspection Outcome data'!$A:$M,9,0),IF(B41="","",0))) ->  | E41: =IF(B40="","",IFERROR(VLOOKUP($G$8&$B41&"All"&$B$13&$J$8&$D$9,'Inspection Outcome data'!$A:$M,10,0),IF(B41="","",0))) ->  | F41: =IF(B40="","",IFERROR(VLOOKUP($G$8&$B41&"All"&$B$13&$J$8&$D$9,'Inspection Outcome data'!$A:$M,11,0),IF(B41="","",0))) ->  | G41: =IF(B40="","",IFERROR(VLOOKUP($G$8&$B41&"All"&$B$13&$J$8&$D$9,'Inspection Outcome data'!$A:$M,12,0),IF(B41="","",0))) -> 
A42: 8 | B42: =IFERROR(VLOOKUP($B$28&A42,'Region Lookups'!A:C,3,0),"") ->  | C42: =IF($B42="","",IF(ISERROR(VLOOKUP($G$8&$B42&"All"&$B$13&$J$8&$D$9,'Inspection Outcome data'!$A:$M,8,0)),0,SUM(D42:G42))) ->  | D42: =IF(B41="","",IFERROR(VLOOKUP($G$8&$B42&"All"&$B$13&$J$8&$D$9,'Inspection Outcome data'!$A:$M,9,0),IF(B42="","",0))) ->  | E42: =IF(B41="","",IFERROR(VLOOKUP($G$8&$B42&"All"&$B$13&$J$8&$D$9,'Inspection Outcome data'!$A:$M,10,0),IF(B42="","",0))) ->  | F42: =IF(B41="","",IFERROR(VLOOKUP($G$8&$B42&"All"&$B$13&$J$8&$D$9,'Inspection Outcome data'!$A:$M,11,0),IF(B42="","",0))) ->  | G42: =IF(B41="","",IFERROR(VLOOKUP($G$8&$B42&"All"&$B$13&$J$8&$D$9,'Inspection Outcome data'!$A:$M,12,0),IF(B42="","",0))) -> 
A43: 9 | B43: =IFERROR(VLOOKUP($B$28&A43,'Region Lookups'!A:C,3,0),"") ->  | C43: =IF($B43="","",IF(ISERROR(VLOOKUP($G$8&$B43&"All"&$B$13&$J$8&$D$9,'Inspection Outcome data'!$A:$M,8,0)),0,SUM(D43:G43))) ->  | D43: =IF(B42="","",IFERROR(VLOOKUP($G$8&$B43&"All"&$B$13&$J$8&$D$9,'Inspection Outcome data'!$A:$M,9,0),IF(B43="","",0))) ->  | E43: =IF(B42="","",IFERROR(VLOOKUP($G$8&$B43&"All"&$B$13&$J$8&$D$9,'Inspection Outcome data'!$A:$M,10,0),IF(B43="","",0))) ->  | F43: =IF(B42="","",IFERROR(VLOOKUP($G$8&$B43&"All"&$B$13&$J$8&$D$9,'Inspection Outcome data'!$A:$M,11,0),IF(B43="","",0))) ->  | G43: =IF(B42="","",IFERROR(VLOOKUP($G$8&$B43&"All"&$B$13&$J$8&$D$9,'Inspection Outcome data'!$A:$M,12,0),IF(B43="","",0))) -> 
A44: 10 | B44: =IFERROR(VLOOKUP($B$28&A44,'Region Lookups'!A:C,3,0),"") ->  | C44: =IF($B44="","",IF(ISERROR(VLOOKUP($G$8&$B44&"All"&$B$13&$J$8&$D$9,'Inspection Outcome data'!$A:$M,8,0)),0,SUM(D44:G44))) ->  | D44: =IF(B43="","",IFERROR(VLOOKUP($G$8&$B44&"All"&$B$13&$J$8&$D$9,'Inspection Outcome data'!$A:$M,9,0),IF(B44="","",0))) ->  | E44: =IF(B43="","",IFERROR(VLOOKUP($G$8&$B44&"All"&$B$13&$J$8&$D$9,'Inspection Outcome data'!$A:$M,10,0),IF(B44="","",0))) ->  | F44: =IF(B43="","",IFERROR(VLOOKUP($G$8&$B44&"All"&$B$13&$J$8&$D$9,'Inspection Outcome data'!$A:$M,11,0),IF(B44="","",0))) ->  | G44: =IF(B43="","",IFERROR(VLOOKUP($G$8&$B44&"All"&$B$13&$J$8&$D$9,'Inspection Outcome data'!$A:$M,12,0),IF(B44="","",0))) -> 
A45: 11 | B45: =IFERROR(VLOOKUP($B$28&A45,'Region Lookups'!A:C,3,0),"") ->  | C45: =IF($B45="","",IF(ISERROR(VLOOKUP($G$8&$B45&"All"&$B$13&$J$8&$D$9,'Inspection Outcome data'!$A:$M,8,0)),0,SUM(D45:G45))) ->  | D45: =IF(B44="","",IFERROR(VLOOKUP($G$8&$B45&"All"&$B$13&$J$8&$D$9,'Inspection Outcome data'!$A:$M,9,0),IF(B45="","",0))) ->  | E45: =IF(B44="","",IFERROR(VLOOKUP($G$8&$B45&"All"&$B$13&$J$8&$D$9,'Inspection Outcome data'!$A:$M,10,0),IF(B45="","",0))) ->  | F45: =IF(B44="","",IFERROR(VLOOKUP($G$8&$B45&"All"&$B$13&$J$8&$D$9,'Inspection Outcome data'!$A:$M,11,0),IF(B45="","",0))) ->  | G45: =IF(B44="","",IFERROR(VLOOKUP($G$8&$B45&"All"&$B$13&$J$8&$D$9,'Inspection Outcome data'!$A:$M,12,0),IF(B45="","",0))) -> 
A46: 12 | B46: =IFERROR(VLOOKUP($B$28&A46,'Region Lookups'!A:C,3,0),"") ->  | C46: =IF($B46="","",IF(ISERROR(VLOOKUP($G$8&$B46&"All"&$B$13&$J$8&$D$9,'Inspection Outcome data'!$A:$M,8,0)),0,SUM(D46:G46))) ->  | D46: =IF(B45="","",IFERROR(VLOOKUP($G$8&$B46&"All"&$B$13&$J$8&$D$9,'Inspection Outcome data'!$A:$M,9,0),IF(B46="","",0))) ->  | E46: =IF(B45="","",IFERROR(VLOOKUP($G$8&$B46&"All"&$B$13&$J$8&$D$9,'Inspection Outcome data'!$A:$M,10,0),IF(B46="","",0))) ->  | F46: =IF(B45="","",IFERROR(VLOOKUP($G$8&$B46&"All"&$B$13&$J$8&$D$9,'Inspection Outcome data'!$A:$M,11,0),IF(B46="","",0))) ->  | G46: =IF(B45="","",IFERROR(VLOOKUP($G$8&$B46&"All"&$B$13&$J$8&$D$9,'Inspection Outcome data'!$A:$M,12,0),IF(B46="","",0))) -> 
A47: 13 | B47: =IFERROR(VLOOKUP($B$28&A47,'Region Lookups'!A:C,3,0),"") ->  | C47: =IF($B47="","",IF(ISERROR(VLOOKUP($G$8&$B47&"All"&$B$13&$J$8&$D$9,'Inspection Outcome data'!$A:$M,8,0)),0,SUM(D47:G47))) ->  | D47: =IF(B46="","",IFERROR(VLOOKUP($G$8&$B47&"All"&$B$13&$J$8&$D$9,'Inspection Outcome data'!$A:$M,9,0),IF(B47="","",0))) ->  | E47: =IF(B46="","",IFERROR(VLOOKUP($G$8&$B47&"All"&$B$13&$J$8&$D$9,'Inspection Outcome data'!$A:$M,10,0),IF(B47="","",0))) ->  | F47: =IF(B46="","",IFERROR(VLOOKUP($G$8&$B47&"All"&$B$13&$J$8&$D$9,'Inspection Outcome data'!$A:$M,11,0),IF(B47="","",0))) ->  | G47: =IF(B46="","",IFERROR(VLOOKUP($G$8&$B47&"All"&$B$13&$J$8&$D$9,'Inspection Outcome data'!$A:$M,12,0),IF(B47="","",0))) -> 
A48: 14 | B48: =IFERROR(VLOOKUP($B$28&A48,'Region Lookups'!A:C,3,0),"") ->  | C48: =IF($B48="","",IF(ISERROR(VLOOKUP($G$8&$B48&"All"&$B$13&$J$8&$D$9,'Inspection Outcome data'!$A:$M,8,0)),0,SUM(D48:G48))) ->  | D48: =IF(B47="","",IFERROR(VLOOKUP($G$8&$B48&"All"&$B$13&$J$8&$D$9,'Inspection Outcome data'!$A:$M,9,0),IF(B48="","",0))) ->  | E48: =IF(B47="","",IFERROR(VLOOKUP($G$8&$B48&"All"&$B$13&$J$8&$D$9,'Inspection Outcome data'!$A:$M,10,0),IF(B48="","",0))) ->  | F48: =IF(B47="","",IFERROR(VLOOKUP($G$8&$B48&"All"&$B$13&$J$8&$D$9,'Inspection Outcome data'!$A:$M,11,0),IF(B48="","",0))) ->  | G48: =IF(B47="","",IFERROR(VLOOKUP($G$8&$B48&"All"&$B$13&$J$8&$D$9,'Inspection Outcome data'!$A:$M,12,0),IF(B48="","",0))) -> 
A49: 15 | B49: =IFERROR(VLOOKUP($B$28&A49,'Region Lookups'!A:C,3,0),"") ->  | C49: =IF($B49="","",IF(ISERROR(VLOOKUP($G$8&$B49&"All"&$B$13&$J$8&$D$9,'Inspection Outcome data'!$A:$M,8,0)),0,SUM(D49:G49))) ->  | D49: =IF(B48="","",IFERROR(VLOOKUP($G$8&$B49&"All"&$B$13&$J$8&$D$9,'Inspection Outcome data'!$A:$M,9,0),IF(B49="","",0))) ->  | E49: =IF(B48="","",IFERROR(VLOOKUP($G$8&$B49&"All"&$B$13&$J$8&$D$9,'Inspection Outcome data'!$A:$M,10,0),IF(B49="","",0))) ->  | F49: =IF(B48="","",IFERROR(VLOOKUP($G$8&$B49&"All"&$B$13&$J$8&$D$9,'Inspection Outcome data'!$A:$M,11,0),IF(B49="","",0))) ->  | G49: =IF(B48="","",IFERROR(VLOOKUP($G$8&$B49&"All"&$B$13&$J$8&$D$9,'Inspection Outcome data'!$A:$M,12,0),IF(B49="","",0))) -> 
A50: 16 | B50: =IFERROR(VLOOKUP($B$28&A50,'Region Lookups'!A:C,3,0),"") ->  | C50: =IF($B50="","",IF(ISERROR(VLOOKUP($G$8&$B50&"All"&$B$13&$J$8&$D$9,'Inspection Outcome data'!$A:$M,8,0)),0,SUM(D50:G50))) ->  | D50: =IF(B49="","",IFERROR(VLOOKUP($G$8&$B50&"All"&$B$13&$J$8&$D$9,'Inspection Outcome data'!$A:$M,9,0),IF(B50="","",0))) ->  | E50: =IF(B49="","",IFERROR(VLOOKUP($G$8&$B50&"All"&$B$13&$J$8&$D$9,'Inspection Outcome data'!$A:$M,10,0),IF(B50="","",0))) ->  | F50: =IF(B49="","",IFERROR(VLOOKUP($G$8&$B50&"All"&$B$13&$J$8&$D$9,'Inspection Outcome data'!$A:$M,11,0),IF(B50="","",0))) ->  | G50: =IF(B49="","",IFERROR(VLOOKUP($G$8&$B50&"All"&$B$13&$J$8&$D$9,'Inspection Outcome data'!$A:$M,12,0),IF(B50="","",0))) -> 
A51: 17 | B51: =IFERROR(VLOOKUP($B$28&A51,'Region Lookups'!A:C,3,0),"") ->  | C51: =IF($B51="","",IF(ISERROR(VLOOKUP($G$8&$B51&"All"&$B$13&$J$8&$D$9,'Inspection Outcome data'!$A:$M,8,0)),0,SUM(D51:G51))) ->  | D51: =IF(B50="","",IFERROR(VLOOKUP($G$8&$B51&"All"&$B$13&$J$8&$D$9,'Inspection Outcome data'!$A:$M,9,0),IF(B51="","",0))) ->  | E51: =IF(B50="","",IFERROR(VLOOKUP($G$8&$B51&"All"&$B$13&$J$8&$D$9,'Inspection Outcome data'!$A:$M,10,0),IF(B51="","",0))) ->  | F51: =IF(B50="","",IFERROR(VLOOKUP($G$8&$B51&"All"&$B$13&$J$8&$D$9,'Inspection Outcome data'!$A:$M,11,0),IF(B51="","",0))) ->  | G51: =IF(B50="","",IFERROR(VLOOKUP($G$8&$B51&"All"&$B$13&$J$8&$D$9,'Inspection Outcome data'!$A:$M,12,0),IF(B51="","",0))) -> 
A52: 18 | B52: =IFERROR(VLOOKUP($B$28&A52,'Region Lookups'!A:C,3,0),"") ->  | C52: =IF($B52="","",IF(ISERROR(VLOOKUP($G$8&$B52&"All"&$B$13&$J$8&$D$9,'Inspection Outcome data'!$A:$M,8,0)),0,SUM(D52:G52))) ->  | D52: =IF(B51="","",IFERROR(VLOOKUP($G$8&$B52&"All"&$B$13&$J$8&$D$9,'Inspection Outcome data'!$A:$M,9,0),IF(B52="","",0))) ->  | E52: =IF(B51="","",IFERROR(VLOOKUP($G$8&$B52&"All"&$B$13&$J$8&$D$9,'Inspection Outcome data'!$A:$M,10,0),IF(B52="","",0))) ->  | F52: =IF(B51="","",IFERROR(VLOOKUP($G$8&$B52&"All"&$B$13&$J$8&$D$9,'Inspection Outcome data'!$A:$M,11,0),IF(B52="","",0))) ->  | G52: =IF(B51="","",IFERROR(VLOOKUP($G$8&$B52&"All"&$B$13&$J$8&$D$9,'Inspection Outcome data'!$A:$M,12,0),IF(B52="","",0))) -> 
A53: 19 | B53: =IFERROR(VLOOKUP($B$28&A53,'Region Lookups'!A:C,3,0),"") ->  | C53: =IF($B53="","",IF(ISERROR(VLOOKUP($G$8&$B53&"All"&$B$13&$J$8&$D$9,'Inspection Outcome data'!$A:$M,8,0)),0,SUM(D53:G53))) ->  | D53: =IF(B52="","",IFERROR(VLOOKUP($G$8&$B53&"All"&$B$13&$J$8&$D$9,'Inspection Outcome data'!$A:$M,9,0),IF(B53="","",0))) ->  | E53: =IF(B52="","",IFERROR(VLOOKUP($G$8&$B53&"All"&$B$13&$J$8&$D$9,'Inspection Outcome data'!$A:$M,10,0),IF(B53="","",0))) ->  | F53: =IF(B52="","",IFERROR(VLOOKUP($G$8&$B53&"All"&$B$13&$J$8&$D$9,'Inspection Outcome data'!$A:$M,11,0),IF(B53="","",0))) ->  | G53: =IF(B52="","",IFERROR(VLOOKUP($G$8&$B53&"All"&$B$13&$J$8&$D$9,'Inspection Outcome data'!$A:$M,12,0),IF(B53="","",0))) -> 
A54: 20 | B54: =IFERROR(VLOOKUP($B$28&A54,'Region Lookups'!A:C,3,0),"") ->  | C54: =IF($B54="","",IF(ISERROR(VLOOKUP($G$8&$B54&"All"&$B$13&$J$8&$D$9,'Inspection Outcome data'!$A:$M,8,0)),0,SUM(D54:G54))) ->  | D54: =IF(B53="","",IFERROR(VLOOKUP($G$8&$B54&"All"&$B$13&$J$8&$D$9,'Inspection Outcome data'!$A:$M,9,0),IF(B54="","",0))) ->  | E54: =IF(B53="","",IFERROR(VLOOKUP($G$8&$B54&"All"&$B$13&$J$8&$D$9,'Inspection Outcome data'!$A:$M,10,0),IF(B54="","",0))) ->  | F54: =IF(B53="","",IFERROR(VLOOKUP($G$8&$B54&"All"&$B$13&$J$8&$D$9,'Inspection Outcome data'!$A:$M,11,0),IF(B54="","",0))) ->  | G54: =IF(B53="","",IFERROR(VLOOKUP($G$8&$B54&"All"&$B$13&$J$8&$D$9,'Inspection Outcome data'!$A:$M,12,0),IF(B54="","",0))) -> 
A55: 21 | B55: =IFERROR(VLOOKUP($B$28&A55,'Region Lookups'!A:C,3,0),"") ->  | C55: =IF($B55="","",IF(ISERROR(VLOOKUP($G$8&$B55&"All"&$B$13&$J$8&$D$9,'Inspection Outcome data'!$A:$M,8,0)),0,SUM(D55:G55))) ->  | D55: =IF(B54="","",IFERROR(VLOOKUP($G$8&$B55&"All"&$B$13&$J$8&$D$9,'Inspection Outcome data'!$A:$M,9,0),IF(B55="","",0))) ->  | E55: =IF(B54="","",IFERROR(VLOOKUP($G$8&$B55&"All"&$B$13&$J$8&$D$9,'Inspection Outcome data'!$A:$M,10,0),IF(B55="","",0))) ->  | F55: =IF(B54="","",IFERROR(VLOOKUP($G$8&$B55&"All"&$B$13&$J$8&$D$9,'Inspection Outcome data'!$A:$M,11,0),IF(B55="","",0))) ->  | G55: =IF(B54="","",IFERROR(VLOOKUP($G$8&$B55&"All"&$B$13&$J$8&$D$9,'Inspection Outcome data'!$A:$M,12,0),IF(B55="","",0))) -> 
A56: 22 | B56: =IFERROR(VLOOKUP($B$28&A56,'Region Lookups'!A:C,3,0),"") ->  | C56: =IF($B56="","",IF(ISERROR(VLOOKUP($G$8&$B56&"All"&$B$13&$J$8&$D$9,'Inspection Outcome data'!$A:$M,8,0)),0,SUM(D56:G56))) ->  | D56: =IF(B55="","",IFERROR(VLOOKUP($G$8&$B56&"All"&$B$13&$J$8&$D$9,'Inspection Outcome data'!$A:$M,9,0),IF(B56="","",0))) ->  | E56: =IF(B55="","",IFERROR(VLOOKUP($G$8&$B56&"All"&$B$13&$J$8&$D$9,'Inspection Outcome data'!$A:$M,10,0),IF(B56="","",0))) ->  | F56: =IF(B55="","",IFERROR(VLOOKUP($G$8&$B56&"All"&$B$13&$J$8&$D$9,'Inspection Outcome data'!$A:$M,11,0),IF(B56="","",0))) ->  | G56: =IF(B55="","",IFERROR(VLOOKUP($G$8&$B56&"All"&$B$13&$J$8&$D$9,'Inspection Outcome data'!$A:$M,12,0),IF(B56="","",0))) -> 
A57: 23 | B57: =IFERROR(VLOOKUP($B$28&A57,'Region Lookups'!A:C,3,0),"") ->  | C57: =IF($B57="","",IF(ISERROR(VLOOKUP($G$8&$B57&"All"&$B$13&$J$8&$D$9,'Inspection Outcome data'!$A:$M,8,0)),0,SUM(D57:G57))) ->  | D57: =IF(B56="","",IFERROR(VLOOKUP($G$8&$B57&"All"&$B$13&$J$8&$D$9,'Inspection Outcome data'!$A:$M,9,0),IF(B57="","",0))) ->  | E57: =IF(B56="","",IFERROR(VLOOKUP($G$8&$B57&"All"&$B$13&$J$8&$D$9,'Inspection Outcome data'!$A:$M,10,0),IF(B57="","",0))) ->  | F57: =IF(B56="","",IFERROR(VLOOKUP($G$8&$B57&"All"&$B$13&$J$8&$D$9,'Inspection Outcome data'!$A:$M,11,0),IF(B57="","",0))) ->  | G57: =IF(B56="","",IFERROR(VLOOKUP($G$8&$B57&"All"&$B$13&$J$8&$D$9,'Inspection Outcome data'!$A:$M,12,0),IF(B57="","",0))) -> 
A58: 24 | B58: =IFERROR(VLOOKUP($B$28&A58,'Region Lookups'!A:C,3,0),"") ->  | C58: =IF($B58="","",IF(ISERROR(VLOOKUP($G$8&$B58&"All"&$B$13&$J$8&$D$9,'Inspection Outcome data'!$A:$M,8,0)),0,SUM(D58:G58))) ->  | D58: =IF(B57="","",IFERROR(VLOOKUP($G$8&$B58&"All"&$B$13&$J$8&$D$9,'Inspection Outcome data'!$A:$M,9,0),IF(B58="","",0))) ->  | E58: =IF(B57="","",IFERROR(VLOOKUP($G$8&$B58&"All"&$B$13&$J$8&$D$9,'Inspection Outcome data'!$A:$M,10,0),IF(B58="","",0))) ->  | F58: =IF(B57="","",IFERROR(VLOOKUP($G$8&$B58&"All"&$B$13&$J$8&$D$9,'Inspection Outcome data'!$A:$M,11,0),IF(B58="","",0))) ->  | G58: =IF(B57="","",IFERROR(VLOOKUP($G$8&$B58&"All"&$B$13&$J$8&$D$9,'Inspection Outcome data'!$A:$M,12,0),IF(B58="","",0))) -> 
A59: 25 | B59: =IFERROR(VLOOKUP($B$28&A59,'Region Lookups'!A:C,3,0),"") ->  | C59: =IF($B59="","",IF(ISERROR(VLOOKUP($G$8&$B59&"All"&$B$13&$J$8&$D$9,'Inspection Outcome data'!$A:$M,8,0)),0,SUM(D59:G59))) ->  | D59: =IF(B58="","",IFERROR(VLOOKUP($G$8&$B59&"All"&$B$13&$J$8&$D$9,'Inspection Outcome data'!$A:$M,9,0),IF(B59="","",0))) ->  | E59: =IF(B58="","",IFERROR(VLOOKUP($G$8&$B59&"All"&$B$13&$J$8&$D$9,'Inspection Outcome data'!$A:$M,10,0),IF(B59="","",0))) ->  | F59: =IF(B58="","",IFERROR(VLOOKUP($G$8&$B59&"All"&$B$13&$J$8&$D$9,'Inspection Outcome data'!$A:$M,11,0),IF(B59="","",0))) ->  | G59: =IF(B58="","",IFERROR(VLOOKUP($G$8&$B59&"All"&$B$13&$J$8&$D$9,'Inspection Outcome data'!$A:$M,12,0),IF(B59="","",0))) -> 
A60: 26 | B60: =IFERROR(VLOOKUP($B$28&A60,'Region Lookups'!A:C,3,0),"") ->  | C60: =IF($B60="","",IF(ISERROR(VLOOKUP($G$8&$B60&"All"&$B$13&$J$8&$D$9,'Inspection Outcome data'!$A:$M,8,0)),0,SUM(D60:G60))) ->  | D60: =IF(B59="","",IFERROR(VLOOKUP($G$8&$B60&"All"&$B$13&$J$8&$D$9,'Inspection Outcome data'!$A:$M,9,0),IF(B60="","",0))) ->  | E60: =IF(B59="","",IFERROR(VLOOKUP($G$8&$B60&"All"&$B$13&$J$8&$D$9,'Inspection Outcome data'!$A:$M,10,0),IF(B60="","",0))) ->  | F60: =IF(B59="","",IFERROR(VLOOKUP($G$8&$B60&"All"&$B$13&$J$8&$D$9,'Inspection Outcome data'!$A:$M,11,0),IF(B60="","",0))) ->  | G60: =IF(B59="","",IFERROR(VLOOKUP($G$8&$B60&"All"&$B$13&$J$8&$D$9,'Inspection Outcome data'!$A:$M,12,0),IF(B60="","",0))) -> 
A61: 27 | B61: =IFERROR(VLOOKUP($B$28&A61,'Region Lookups'!A:C,3,0),"") ->  | C61: =IF($B61="","",IF(ISERROR(VLOOKUP($G$8&$B61&"All"&$B$13&$J$8&$D$9,'Inspection Outcome data'!$A:$M,8,0)),0,SUM(D61:G61))) ->  | D61: =IF(B60="","",IFERROR(VLOOKUP($G$8&$B61&"All"&$B$13&$J$8&$D$9,'Inspection Outcome data'!$A:$M,9,0),IF(B61="","",0))) ->  | E61: =IF(B60="","",IFERROR(VLOOKUP($G$8&$B61&"All"&$B$13&$J$8&$D$9,'Inspection Outcome data'!$A:$M,10,0),IF(B61="","",0))) ->  | F61: =IF(B60="","",IFERROR(VLOOKUP($G$8&$B61&"All"&$B$13&$J$8&$D$9,'Inspection Outcome data'!$A:$M,11,0),IF(B61="","",0))) ->  | G61: =IF(B60="","",IFERROR(VLOOKUP($G$8&$B61&"All"&$B$13&$J$8&$D$9,'Inspection Outcome data'!$A:$M,12,0),IF(B61="","",0))) -> 
A62: 28 | B62: =IFERROR(VLOOKUP($B$28&A62,'Region Lookups'!A:C,3,0),"") ->  | C62: =IF($B62="","",IF(ISERROR(VLOOKUP($G$8&$B62&"All"&$B$13&$J$8&$D$9,'Inspection Outcome data'!$A:$M,8,0)),0,SUM(D62:G62))) ->  | D62: =IF(B61="","",IFERROR(VLOOKUP($G$8&$B62&"All"&$B$13&$J$8&$D$9,'Inspection Outcome data'!$A:$M,9,0),IF(B62="","",0))) ->  | E62: =IF(B61="","",IFERROR(VLOOKUP($G$8&$B62&"All"&$B$13&$J$8&$D$9,'Inspection Outcome data'!$A:$M,10,0),IF(B62="","",0))) ->  | F62: =IF(B61="","",IFERROR(VLOOKUP($G$8&$B62&"All"&$B$13&$J$8&$D$9,'Inspection Outcome data'!$A:$M,11,0),IF(B62="","",0))) ->  | G62: =IF(B61="","",IFERROR(VLOOKUP($G$8&$B62&"All"&$B$13&$J$8&$D$9,'Inspection Outcome data'!$A:$M,12,0),IF(B62="","",0))) -> 
A63: 29 | B63: =IFERROR(VLOOKUP($B$28&A63,'Region Lookups'!A:C,3,0),"") ->  | C63: =IF($B63="","",IF(ISERROR(VLOOKUP($G$8&$B63&"All"&$B$13&$J$8&$D$9,'Inspection Outcome data'!$A:$M,8,0)),0,SUM(D63:G63))) ->  | D63: =IF(B62="","",IFERROR(VLOOKUP($G$8&$B63&"All"&$B$13&$J$8&$D$9,'Inspection Outcome data'!$A:$M,9,0),IF(B63="","",0))) ->  | E63: =IF(B62="","",IFERROR(VLOOKUP($G$8&$B63&"All"&$B$13&$J$8&$D$9,'Inspection Outcome data'!$A:$M,10,0),IF(B63="","",0))) ->  | F63: =IF(B62="","",IFERROR(VLOOKUP($G$8&$B63&"All"&$B$13&$J$8&$D$9,'Inspection Outcome data'!$A:$M,11,0),IF(B63="","",0))) ->  | G63: =IF(B62="","",IFERROR(VLOOKUP($G$8&$B63&"All"&$B$13&$J$8&$D$9,'Inspection Outcome data'!$A:$M,12,0),IF(B63="","",0))) -> 
A64: 30 | B64: =IFERROR(VLOOKUP($B$28&A64,'Region Lookups'!A:C,3,0),"") ->  | C64: =IF($B64="","",IF(ISERROR(VLOOKUP($G$8&$B64&"All"&$B$13&$J$8&$D$9,'Inspection Outcome data'!$A:$M,8,0)),0,SUM(D64:G64))) ->  | D64: =IF(B63="","",IFERROR(VLOOKUP($G$8&$B64&"All"&$B$13&$J$8&$D$9,'Inspection Outcome data'!$A:$M,9,0),IF(B64="","",0))) ->  | E64: =IF(B63="","",IFERROR(VLOOKUP($G$8&$B64&"All"&$B$13&$J$8&$D$9,'Inspection Outcome data'!$A:$M,10,0),IF(B64="","",0))) ->  | F64: =IF(B63="","",IFERROR(VLOOKUP($G$8&$B64&"All"&$B$13&$J$8&$D$9,'Inspection Outcome data'!$A:$M,11,0),IF(B64="","",0))) ->  | G64: =IF(B63="","",IFERROR(VLOOKUP($G$8&$B64&"All"&$B$13&$J$8&$D$9,'Inspection Outcome data'!$A:$M,12,0),IF(B64="","",0))) -> 
A65: 31 | B65: =IFERROR(VLOOKUP($B$28&A65,'Region Lookups'!A:C,3,0),"") ->  | C65: =IF($B65="","",IF(ISERROR(VLOOKUP($G$8&$B65&"All"&$B$13&$J$8&$D$9,'Inspection Outcome data'!$A:$M,8,0)),0,SUM(D65:G65))) ->  | D65: =IF(B64="","",IFERROR(VLOOKUP($G$8&$B65&"All"&$B$13&$J$8&$D$9,'Inspection Outcome data'!$A:$M,9,0),IF(B65="","",0))) ->  | E65: =IF(B64="","",IFERROR(VLOOKUP($G$8&$B65&"All"&$B$13&$J$8&$D$9,'Inspection Outcome data'!$A:$M,10,0),IF(B65="","",0))) ->  | F65: =IF(B64="","",IFERROR(VLOOKUP($G$8&$B65&"All"&$B$13&$J$8&$D$9,'Inspection Outcome data'!$A:$M,11,0),IF(B65="","",0))) ->  | G65: =IF(B64="","",IFERROR(VLOOKUP($G$8&$B65&"All"&$B$13&$J$8&$D$9,'Inspection Outcome data'!$A:$M,12,0),IF(B65="","",0))) -> 
A66: 32 | B66: =IFERROR(VLOOKUP($B$28&A66,'Region Lookups'!A:C,3,0),"") ->  | C66: =IF($B66="","",IF(ISERROR(VLOOKUP($G$8&$B66&"All"&$B$13&$J$8&$D$9,'Inspection Outcome data'!$A:$M,8,0)),0,SUM(D66:G66))) ->  | D66: =IF(B65="","",IFERROR(VLOOKUP($G$8&$B66&"All"&$B$13&$J$8&$D$9,'Inspection Outcome data'!$A:$M,9,0),IF(B66="","",0))) ->  | E66: =IF(B65="","",IFERROR(VLOOKUP($G$8&$B66&"All"&$B$13&$J$8&$D$9,'Inspection Outcome data'!$A:$M,10,0),IF(B66="","",0))) ->  | F66: =IF(B65="","",IFERROR(VLOOKUP($G$8&$B66&"All"&$B$13&$J$8&$D$9,'Inspection Outcome data'!$A:$M,11,0),IF(B66="","",0))) ->  | G66: =IF(B65="","",IFERROR(VLOOKUP($G$8&$B66&"All"&$B$13&$J$8&$D$9,'Inspection Outcome data'!$A:$M,12,0),IF(B66="","",0))) -> 
A67: 33 | B67: =IFERROR(VLOOKUP($B$28&A67,'Region Lookups'!A:C,3,0),"") ->  | C67: =IF($B67="","",IF(ISERROR(VLOOKUP($G$8&$B67&"All"&$B$13&$J$8&$D$9,'Inspection Outcome data'!$A:$M,8,0)),0,SUM(D67:G67))) ->  | D67: =IF(B66="","",IFERROR(VLOOKUP($G$8&$B67&"All"&$B$13&$J$8&$D$9,'Inspection Outcome data'!$A:$M,9,0),IF(B67="","",0))) ->  | E67: =IF(B66="","",IFERROR(VLOOKUP($G$8&$B67&"All"&$B$13&$J$8&$D$9,'Inspection Outcome data'!$A:$M,10,0),IF(B67="","",0))) ->  | F67: =IF(B66="","",IFERROR(VLOOKUP($G$8&$B67&"All"&$B$13&$J$8&$D$9,'Inspection Outcome data'!$A:$M,11,0),IF(B67="","",0))) ->  | G67: =IF(B66="","",IFERROR(VLOOKUP($G$8&$B67&"All"&$B$13&$J$8&$D$9,'Inspection Outcome data'!$A:$M,12,0),IF(B67="","",0))) -> 
B68: =IFERROR(VLOOKUP($B$28&A68,'Region Lookups'!A:C,3,0),"") -> 
B69: =IFERROR(VLOOKUP($B$28&A69,'Region Lookups'!A:C,3,0),"") -> 
B70: =IFERROR(VLOOKUP($B$28&A70,'Region Lookups'!A:C,3,0),"") -> 
B71: =IFERROR(VLOOKUP($B$28&A71,'Region Lookups'!A:C,3,0),"") -> 

Sheet Sub-Judgements
S1: 1
B2: Statistical First Release - Children's Social Care Provision (Sub-Judgements excluding inspections of Local Authorities) | S2: 2
S3: 3
C4: Region: | F4: Local Authority: | I4: Sector: | S4: 4
C5: All | F5: All | H5: =IF(C5="All",TRUE,NOT(ISERROR(MATCH(F5,INDIRECT(SUBSTITUTE(SUBSTITUTE(C5," ","_"),",","")),0)))) -> TRUE | I5: All | S5: 5
S6: 6
C7: Date: | F7: Provision Type:
C8: as at 31 March 2018 | F8: All
D9: =VLOOKUP(C8,_PeriodLookup,2,0) -> 2017 | H9: =IF(LEFT(C8,5)="as at",TRUE,FALSE) -> TRUE | I9: =LEFT(D7,5) -> 
B10: Judgements | C10: Total number of inspections | D10: Inspection Outcomes
D11: Outstanding | E11: Good | F11: Requires Improvement / Adequate | G11: Inadequate
A14: Overall effectiveness | B14: =IF(IF(ISERROR(VLOOKUP($D$9&$F$8&$S1,_Subjudgements,4,0))=TRUE,0,VLOOKUP($D$9&$F$8&$S1,_Subjudgements,4,0))=0,"",IF(ISERROR(VLOOKUP($D$9&$F$8&$S1,_Subjudgements,4,0))=TRUE,0,VLOOKUP($D$9&$F$8&$S1,_Subjudgements,4,0))) -> Overall effectiveness | C14: =IF($B14 = "","",IF(SUM(D14,E14,F14,G14)=0,0,SUM(D14,E14,F14,G14))) -> 2795 | D14: =IF($B$14="","",IF(ISERROR( VLOOKUP(A15,DataSubJudgements!$A:$K,8,0))=TRUE,0, VLOOKUP(A15,DataSubJudgements!$A:$K,8,0))) -> 547 | E14: =IF($B$14="","",IF(ISERROR( VLOOKUP(A15,DataSubJudgements!$A:$K,9,0))=TRUE,0, VLOOKUP(A15,DataSubJudgements!$A:$K,9,0))) -> 1758 | F14: =IF($B$14="","",IF(ISERROR( VLOOKUP(A15,DataSubJudgements!$A:$K,10,0))=TRUE,0, VLOOKUP(A15,DataSubJudgements!$A:$K,10,0))) -> 430 | G14: =IF($B$14="","",IF(ISERROR( VLOOKUP(A15,DataSubJudgements!$A:$K,11,0))=TRUE,0, VLOOKUP(A15,DataSubJudgements!$A:$K,11,0))) -> 60
A15: =$C$5&$F$5&$I$5&$F$8&$A$14&$D$9 -> AllAllAllAllOverall effectiveness2017
A17: Outcomes for children and young people | B17: =IF(IF(ISERROR(VLOOKUP($D$9&$F$8&$S2,_Subjudgements,4,0))=TRUE,0,VLOOKUP($D$9&$F$8&$S2,_Subjudgements,4,0))=0,"",IF(ISERROR(VLOOKUP($D$9&$F$8&$S2,_Subjudgements,4,0))=TRUE,0,VLOOKUP($D$9&$F$8&$S2,_Subjudgements,4,0))) -> Outcomes for children and young people | C17: =IF($B17 = "","",IF(SUM(D17,E17,F17,G17)=0,0,SUM(D17,E17,F17,G17))) -> 238 | D17: =IF($B$17="","",IF(ISERROR( VLOOKUP(A18,DataSubJudgements!$A:$K,8,0))=TRUE,0, VLOOKUP(A18,DataSubJudgements!$A:$K,8,0))) -> 88 | E17: =IF($B$17="","",IF(ISERROR( VLOOKUP(A18,DataSubJudgements!$A:$K,9,0))=TRUE,0, VLOOKUP(A18,DataSubJudgements!$A:$K,9,0))) -> 139 | F17: =IF($B$17="","",IF(ISERROR( VLOOKUP(A18,DataSubJudgements!$A:$K,10,0))=TRUE,0, VLOOKUP(A18,DataSubJudgements!$A:$K,10,0))) -> 10 | G17: =IF($B$17="","",IF(ISERROR( VLOOKUP(A18,DataSubJudgements!$A:$K,11,0))=TRUE,0, VLOOKUP(A18,DataSubJudgements!$A:$K,11,0))) -> 1
A18: =$C$5&$F$5&$I$5&$F$8&$A$17&$D$9 -> AllAllAllAllOutcomes for children and young people2017
A20: Quality of care | B20: =IF(IF(ISERROR(VLOOKUP($D$9&$F$8&$S3,_Subjudgements,4,0))=TRUE,0,VLOOKUP($D$9&$F$8&$S3,_Subjudgements,4,0))=0,"",IF(ISERROR(VLOOKUP($D$9&$F$8&$S3,_Subjudgements,4,0))=TRUE,0,VLOOKUP($D$9&$F$8&$S3,_Subjudgements,4,0))) -> Quality of care | C20: =IF($B20 = "","",IF(SUM(D20,E20,F20,G20)=0,0,SUM(D20,E20,F20,G20))) -> 289 | D20: =IF($B$20="","",IF(ISERROR( VLOOKUP(A21,DataSubJudgements!$A:$K,8,0))=TRUE,0, VLOOKUP(A21,DataSubJudgements!$A:$K,8,0))) -> 96 | E20: =IF($B$20="","",IF(ISERROR( VLOOKUP(A21,DataSubJudgements!$A:$K,9,0))=TRUE,0, VLOOKUP(A21,DataSubJudgements!$A:$K,9,0))) -> 156 | F20: =IF($B$20="","",IF(ISERROR( VLOOKUP(A21,DataSubJudgements!$A:$K,10,0))=TRUE,0, VLOOKUP(A21,DataSubJudgements!$A:$K,10,0))) -> 31 | G20: =IF($B$20="","",IF(ISERROR( VLOOKUP(A21,DataSubJudgements!$A:$K,11,0))=TRUE,0, VLOOKUP(A21,DataSubJudgements!$A:$K,11,0))) -> 6
A21: =$C$5&$F$5&$I$5&$F$8&$A$20&$D$9 -> AllAllAllAllQuality of care2017
A23: Safeguarding children and young people | B23: =IF(IF(ISERROR(VLOOKUP($D$9&$F$8&$S4,_Subjudgements,4,0))=TRUE,0,VLOOKUP($D$9&$F$8&$S4,_Subjudgements,4,0))=0,"",IF(ISERROR(VLOOKUP($D$9&$F$8&$S4,_Subjudgements,4,0))=TRUE,0,VLOOKUP($D$9&$F$8&$S4,_Subjudgements,4,0))) -> Safeguarding children and young people | C23: =IF($B23 = "","",IF(SUM(D23,E23,F23,G23)=0,0,SUM(D23,E23,F23,G23))) -> 2789 | D23: =IF($B$23="","",IF(ISERROR( VLOOKUP(A24,DataSubJudgements!$A:$K,8,0))=TRUE,0, VLOOKUP(A24,DataSubJudgements!$A:$K,8,0))) -> 457 | E23: =IF($B$23="","",IF(ISERROR( VLOOKUP(A24,DataSubJudgements!$A:$K,9,0))=TRUE,0, VLOOKUP(A24,DataSubJudgements!$A:$K,9,0))) -> 1761 | F23: =IF($B$23="","",IF(ISERROR( VLOOKUP(A24,DataSubJudgements!$A:$K,10,0))=TRUE,0, VLOOKUP(A24,DataSubJudgements!$A:$K,10,0))) -> 510 | G23: =IF($B$23="","",IF(ISERROR( VLOOKUP(A24,DataSubJudgements!$A:$K,11,0))=TRUE,0, VLOOKUP(A24,DataSubJudgements!$A:$K,11,0))) -> 61
A24: =$C$5&$F$5&$I$5&$F$8&$A$23&$D$9 -> AllAllAllAllSafeguarding children and young people2017
A26: Leadership and management | B26: =IF(IF(ISERROR(VLOOKUP($D$9&$F$8&$S5,_Subjudgements,4,0))=TRUE,0,VLOOKUP($D$9&$F$8&$S5,_Subjudgements,4,0))=0,"",IF(ISERROR(VLOOKUP($D$9&$F$8&$S5,_Subjudgements,4,0))=TRUE,0,VLOOKUP($D$9&$F$8&$S5,_Subjudgements,4,0))) -> Leadership and management | C26: =IF($B26 = "","",IF(SUM(D26,E26,F26,G26)=0,0,SUM(D26,E26,F26,G26))) -> 2791 | D26: =IF($B$26="","",IF(ISERROR( VLOOKUP(A27,DataSubJudgements!$A:$K,8,0))=TRUE,0, VLOOKUP(A27,DataSubJudgements!$A:$K,8,0))) -> 602 | E26: =IF($B$26="","",IF(ISERROR( VLOOKUP(A27,DataSubJudgements!$A:$K,9,0))=TRUE,0, VLOOKUP(A27,DataSubJudgements!$A:$K,9,0))) -> 1414 | F26: =IF($B$26="","",IF(ISERROR( VLOOKUP(A27,DataSubJudgements!$A:$K,10,0))=TRUE,0, VLOOKUP(A27,DataSubJudgements!$A:$K,10,0))) -> 641 | G26: =IF($B$26="","",IF(ISERROR( VLOOKUP(A27,DataSubJudgements!$A:$K,11,0))=TRUE,0, VLOOKUP(A27,DataSubJudgements!$A:$K,11,0))) -> 134
A27: =$C$5&$F$5&$I$5&$F$8&$A$26&$D$9 -> AllAllAllAllLeadership and management2017
A29: Outcomes in education and related learning activities | B29: =IF(IF(ISERROR(VLOOKUP($F$8&$S6,#REF!,4,0))=TRUE,0,VLOOKUP($F$8&$S6,#REF!,4,0))=0,"",IF(ISERROR(VLOOKUP($F$8&$S6,#REF!,4,0))=TRUE,0,VLOOKUP($F$8&$S6,#REF!,4,0))) ->  | C29: =IF(SUM(D29,E29,F29,G29)=0,"",SUM(D29,E29,F29,G29)) ->  | D29: =IF($B$29="","",IF(ISERROR(VLOOKUP($C$5&$F$5&$I$5&$F$8&$A$29&$D$9,DataSubJudgements!$A:$K,8,0))=TRUE,0,VLOOKUP($C$5&$F$5&$I$5&$F$8&$A$29&$D$9,DataSubJudgements!$A:$K,8,0))) ->  | E29: =IF($B$29="","",IF(ISERROR(VLOOKUP($C$5&$F$5&$I$5&$F$8&$A$29&$D$9,DataSubJudgements!$A:$K,9,0))=TRUE,0,VLOOKUP($C$5&$F$5&$I$5&$F$8&$A$29&$D$9,DataSubJudgements!$A:$K,9,0))) ->  | F29: =IF($B$29="","",IF(ISERROR(VLOOKUP($C$5&$F$5&$I$5&$F$8&$A$29&$D$9,DataSubJudgements!$A:$K,10,0))=TRUE,0,VLOOKUP($C$5&$F$5&$I$5&$F$8&$A$29&$D$9,DataSubJudgements!$A:$K,10,0))) ->  | G29: =IF($B$29="","",IF(ISERROR(VLOOKUP($C$5&$F$5&$I$5&$F$8&$A$29&$D$9,DataSubJudgements!$A:$K,11,0))=TRUE,0,VLOOKUP($C$5&$F$5&$I$5&$F$8&$A$29&$D$9,DataSubJudgements!$A:$K,11,0))) -> 
B35: =IF(C5<>"All",C5,IF(F5<>"All",VLOOKUP(F5,'Region Lookups'!C:D,2,0),"All")) -> All
F36: 8 | H36: 9 | J36: 10 | M36: 11
D37: Total number inspected | F37: Outstanding | H37: Good | J37: Requires Improvement/ Adequate | M37: Inadequate
F38: 6 | H38: 7 | J38: 8 | M38: 9
B39: England | D39: =IF(ISERROR(VLOOKUP("All"&"All"&$I$5&$F$8&$A$14&$D$9,DataSubJudgements!$A:$K,8,0)),"",SUM(F39:M39)) -> 2795 | F39: =IFERROR(VLOOKUP("All"&"All"&$I$5&$F$8&$A$14&$D$9,DataSubJudgements!$A:$K,8,0),"") -> 547 | H39: =IFERROR(VLOOKUP("All"&"All"&$I$5&$F$8&$A$14&$D$9,DataSubJudgements!$A:$K,9,0),"") -> 1758 | J39: =IFERROR(VLOOKUP("All"&"All"&$I$5&$F$8&$A$14&$D$9,DataSubJudgements!$A:$K,10,0),"") -> 430 | M39: =IFERROR(VLOOKUP("All"&"All"&$I$5&$F$8&$A$14&$D$9,DataSubJudgements!$A:$K,11,0),"") -> 60
B41: =IFERROR(IF(B35="All",NA(),B35),"") ->  | D41: =IF(B41="","", IF(ISERROR(VLOOKUP($B41&"All"&$I$5&$F$8&$A$14&$D$9,DataSubJudgements!$A:$K,8,0)),0, SUM(F41:M41))) ->  | F41: =IF($B41="","", IF(ISERROR(VLOOKUP($B41&"All"&$I$5&$F$8&$A$14&$D$9,DataSubJudgements!$A:$K,F$36,0)),"", VLOOKUP($B41&"All"&$I$5&$F$8&$A$14&$D$9,DataSubJudgements!$A:$K,F$36,0))) ->  | H41: =IF($B41="","", IF(ISERROR(VLOOKUP($B41&"All"&$I$5&$F$8&$A$14&$D$9,DataSubJudgements!$A:$K,H$36,0)),"", VLOOKUP($B41&"All"&$I$5&$F$8&$A$14&$D$9,DataSubJudgements!$A:$K,H$36,0))) ->  | J41: =IF($B41="","", IF(ISERROR(VLOOKUP($B41&"All"&$I$5&$F$8&$A$14&$D$9,DataSubJudgements!$A:$K,J$36,0)),"", VLOOKUP($B41&"All"&$I$5&$F$8&$A$14&$D$9,DataSubJudgements!$A:$K,J$36,0))) ->  | M41: =IF($B41="","", IF(ISERROR(VLOOKUP($B41&"All"&$I$5&$F$8&$A$14&$D$9,DataSubJudgements!$A:$K,M$36,0)),"", VLOOKUP($B41&"All"&$I$5&$F$8&$A$14&$D$9,DataSubJudgements!$A:$K,M$36,0))) -> 
A42: 1 | B42: =IFERROR(VLOOKUP($B$35&A42,'Region Lookups'!A:C,3,0),"") ->  | D42: =IF(B42="","", IF(ISERROR(VLOOKUP("All"&$B42&$I$5&$F$8&$A$14&$D$9,DataSubJudgements!$A:$K,8,0)),"", SUM(F42:M42))) ->  | F42: =IF($B42="","", IF(ISERROR(VLOOKUP("All"&$B42&$I$5&$F$8&$A$14&$D$9,DataSubJudgements!$A:$K,F$36,0)),"", VLOOKUP("All"&$B42&$I$5&$F$8&$A$14&$D$9,DataSubJudgements!$A:$K,F$36,0))) ->  | H42: =IF($B42="","", IF(ISERROR(VLOOKUP("All"&$B42&$I$5&$F$8&$A$14&$D$9,DataSubJudgements!$A:$K,H$36,0)),"", VLOOKUP("All"&$B42&$I$5&$F$8&$A$14&$D$9,DataSubJudgements!$A:$K,H$36,0))) ->  | J42: =IF($B42="","", IF(ISERROR(VLOOKUP("All"&$B42&$I$5&$F$8&$A$14&$D$9,DataSubJudgements!$A:$K,J$36,0)),"", VLOOKUP("All"&$B42&$I$5&$F$8&$A$14&$D$9,DataSubJudgements!$A:$K,J$36,0))) ->  | M42: =IF($B42="","", IF(ISERROR(VLOOKUP("All"&$B42&$I$5&$F$8&$A$14&$D$9,DataSubJudgements!$A:$K,M$36,0)),"", VLOOKUP("All"&$B42&$I$5&$F$8&$A$14&$D$9,DataSubJudgements!$A:$K,M$36,0))) -> 
A43: 2 | B43: =IFERROR(VLOOKUP($B$35&A43,'Region Lookups'!A:C,3,0),"") ->  | D43: =IF(B43="","", IF(ISERROR(VLOOKUP("All"&$B43&$I$5&$F$8&$A$14&$D$9,DataSubJudgements!$A:$K,8,0)),"", SUM(F43:M43))) ->  | F43: =IF($B43="","", IF(ISERROR(VLOOKUP("All"&$B43&$I$5&$F$8&$A$14&$D$9,DataSubJudgements!$A:$K,F$36,0)),"", VLOOKUP("All"&$B43&$I$5&$F$8&$A$14&$D$9,DataSubJudgements!$A:$K,F$36,0))) ->  | H43: =IF($B43="","", IF(ISERROR(VLOOKUP("All"&$B43&$I$5&$F$8&$A$14&$D$9,DataSubJudgements!$A:$K,H$36,0)),"", VLOOKUP("All"&$B43&$I$5&$F$8&$A$14&$D$9,DataSubJudgements!$A:$K,H$36,0))) ->  | J43: =IF($B43="","", IF(ISERROR(VLOOKUP("All"&$B43&$I$5&$F$8&$A$14&$D$9,DataSubJudgements!$A:$K,J$36,0)),"", VLOOKUP("All"&$B43&$I$5&$F$8&$A$14&$D$9,DataSubJudgements!$A:$K,J$36,0))) ->  | M43: =IF($B43="","", IF(ISERROR(VLOOKUP("All"&$B43&$I$5&$F$8&$A$14&$D$9,DataSubJudgements!$A:$K,M$36,0)),"", VLOOKUP("All"&$B43&$I$5&$F$8&$A$14&$D$9,DataSubJudgements!$A:$K,M$36,0))) -> 
A44: 3 | B44: =IFERROR(VLOOKUP($B$35&A44,'Region Lookups'!A:C,3,0),"") ->  | D44: =IF(B44="","", IF(ISERROR(VLOOKUP("All"&$B44&$I$5&$F$8&$A$14&$D$9,DataSubJudgements!$A:$K,8,0)),"", SUM(F44:M44))) ->  | F44: =IF($B44="","", IF(ISERROR(VLOOKUP("All"&$B44&$I$5&$F$8&$A$14&$D$9,DataSubJudgements!$A:$K,F$36,0)),"", VLOOKUP("All"&$B44&$I$5&$F$8&$A$14&$D$9,DataSubJudgements!$A:$K,F$36,0))) ->  | H44: =IF($B44="","", IF(ISERROR(VLOOKUP("All"&$B44&$I$5&$F$8&$A$14&$D$9,DataSubJudgements!$A:$K,H$36,0)),"", VLOOKUP("All"&$B44&$I$5&$F$8&$A$14&$D$9,DataSubJudgements!$A:$K,H$36,0))) ->  | J44: =IF($B44="","", IF(ISERROR(VLOOKUP("All"&$B44&$I$5&$F$8&$A$14&$D$9,DataSubJudgements!$A:$K,J$36,0)),"", VLOOKUP("All"&$B44&$I$5&$F$8&$A$14&$D$9,DataSubJudgements!$A:$K,J$36,0))) ->  | M44: =IF($B44="","", IF(ISERROR(VLOOKUP("All"&$B44&$I$5&$F$8&$A$14&$D$9,DataSubJudgements!$A:$K,M$36,0)),"", VLOOKUP("All"&$B44&$I$5&$F$8&$A$14&$D$9,DataSubJudgements!$A:$K,M$36,0))) -> 
A45: 4 | B45: =IFERROR(VLOOKUP($B$35&A45,'Region Lookups'!A:C,3,0),"") ->  | D45: =IF(B45="","", IF(ISERROR(VLOOKUP("All"&$B45&$I$5&$F$8&$A$14&$D$9,DataSubJudgements!$A:$K,8,0)),"", SUM(F45:M45))) ->  | F45: =IF($B45="","", IF(ISERROR(VLOOKUP("All"&$B45&$I$5&$F$8&$A$14&$D$9,DataSubJudgements!$A:$K,F$36,0)),"", VLOOKUP("All"&$B45&$I$5&$F$8&$A$14&$D$9,DataSubJudgements!$A:$K,F$36,0))) ->  | H45: =IF($B45="","", IF(ISERROR(VLOOKUP("All"&$B45&$I$5&$F$8&$A$14&$D$9,DataSubJudgements!$A:$K,H$36,0)),"", VLOOKUP("All"&$B45&$I$5&$F$8&$A$14&$D$9,DataSubJudgements!$A:$K,H$36,0))) ->  | J45: =IF($B45="","", IF(ISERROR(VLOOKUP("All"&$B45&$I$5&$F$8&$A$14&$D$9,DataSubJudgements!$A:$K,J$36,0)),"", VLOOKUP("All"&$B45&$I$5&$F$8&$A$14&$D$9,DataSubJudgements!$A:$K,J$36,0))) ->  | M45: =IF($B45="","", IF(ISERROR(VLOOKUP("All"&$B45&$I$5&$F$8&$A$14&$D$9,DataSubJudgements!$A:$K,M$36,0)),"", VLOOKUP("All"&$B45&$I$5&$F$8&$A$14&$D$9,DataSubJudgements!$A:$K,M$36,0))) -> 
A46: 5 | B46: =IFERROR(VLOOKUP($B$35&A46,'Region Lookups'!A:C,3,0),"") ->  | D46: =IF(B46="","", IF(ISERROR(VLOOKUP("All"&$B46&$I$5&$F$8&$A$14&$D$9,DataSubJudgements!$A:$K,8,0)),"", SUM(F46:M46))) ->  | F46: =IF($B46="","", IF(ISERROR(VLOOKUP("All"&$B46&$I$5&$F$8&$A$14&$D$9,DataSubJudgements!$A:$K,F$36,0)),"", VLOOKUP("All"&$B46&$I$5&$F$8&$A$14&$D$9,DataSubJudgements!$A:$K,F$36,0))) ->  | H46: =IF($B46="","", IF(ISERROR(VLOOKUP("All"&$B46&$I$5&$F$8&$A$14&$D$9,DataSubJudgements!$A:$K,H$36,0)),"", VLOOKUP("All"&$B46&$I$5&$F$8&$A$14&$D$9,DataSubJudgements!$A:$K,H$36,0))) ->  | J46: =IF($B46="","", IF(ISERROR(VLOOKUP("All"&$B46&$I$5&$F$8&$A$14&$D$9,DataSubJudgements!$A:$K,J$36,0)),"", VLOOKUP("All"&$B46&$I$5&$F$8&$A$14&$D$9,DataSubJudgements!$A:$K,J$36,0))) ->  | M46: =IF($B46="","", IF(ISERROR(VLOOKUP("All"&$B46&$I$5&$F$8&$A$14&$D$9,DataSubJudgements!$A:$K,M$36,0)),"", VLOOKUP("All"&$B46&$I$5&$F$8&$A$14&$D$9,DataSubJudgements!$A:$K,M$36,0))) -> 
A47: 6 | B47: =IFERROR(VLOOKUP($B$35&A47,'Region Lookups'!A:C,3,0),"") ->  | D47: =IF(B47="","", IF(ISERROR(VLOOKUP("All"&$B47&$I$5&$F$8&$A$14&$D$9,DataSubJudgements!$A:$K,8,0)),"", SUM(F47:M47))) ->  | F47: =IF($B47="","", IF(ISERROR(VLOOKUP("All"&$B47&$I$5&$F$8&$A$14&$D$9,DataSubJudgements!$A:$K,F$36,0)),"", VLOOKUP("All"&$B47&$I$5&$F$8&$A$14&$D$9,DataSubJudgements!$A:$K,F$36,0))) ->  | H47: =IF($B47="","", IF(ISERROR(VLOOKUP("All"&$B47&$I$5&$F$8&$A$14&$D$9,DataSubJudgements!$A:$K,H$36,0)),"", VLOOKUP("All"&$B47&$I$5&$F$8&$A$14&$D$9,DataSubJudgements!$A:$K,H$36,0))) ->  | J47: =IF($B47="","", IF(ISERROR(VLOOKUP("All"&$B47&$I$5&$F$8&$A$14&$D$9,DataSubJudgements!$A:$K,J$36,0)),"", VLOOKUP("All"&$B47&$I$5&$F$8&$A$14&$D$9,DataSubJudgements!$A:$K,J$36,0))) ->  | M47: =IF($B47="","", IF(ISERROR(VLOOKUP("All"&$B47&$I$5&$F$8&$A$14&$D$9,DataSubJudgements!$A:$K,M$36,0)),"", VLOOKUP("All"&$B47&$I$5&$F$8&$A$14&$D$9,DataSubJudgements!$A:$K,M$36,0))) -> 
A48: 7 | B48: =IFERROR(VLOOKUP($B$35&A48,'Region Lookups'!A:C,3,0),"") ->  | D48: =IF(B48="","", IF(ISERROR(VLOOKUP("All"&$B48&$I$5&$F$8&$A$14&$D$9,DataSubJudgements!$A:$K,8,0)),"", SUM(F48:M48))) ->  | F48: =IF($B48="","", IF(ISERROR(VLOOKUP("All"&$B48&$I$5&$F$8&$A$14&$D$9,DataSubJudgements!$A:$K,F$36,0)),"", VLOOKUP("All"&$B48&$I$5&$F$8&$A$14&$D$9,DataSubJudgements!$A:$K,F$36,0))) ->  | H48: =IF($B48="","", IF(ISERROR(VLOOKUP("All"&$B48&$I$5&$F$8&$A$14&$D$9,DataSubJudgements!$A:$K,H$36,0)),"", VLOOKUP("All"&$B48&$I$5&$F$8&$A$14&$D$9,DataSubJudgements!$A:$K,H$36,0))) ->  | J48: =IF($B48="","", IF(ISERROR(VLOOKUP("All"&$B48&$I$5&$F$8&$A$14&$D$9,DataSubJudgements!$A:$K,J$36,0)),"", VLOOKUP("All"&$B48&$I$5&$F$8&$A$14&$D$9,DataSubJudgements!$A:$K,J$36,0))) ->  | M48: =IF($B48="","", IF(ISERROR(VLOOKUP("All"&$B48&$I$5&$F$8&$A$14&$D$9,DataSubJudgements!$A:$K,M$36,0)),"", VLOOKUP("All"&$B48&$I$5&$F$8&$A$14&$D$9,DataSubJudgements!$A:$K,M$36,0))) -> 
A49: 8 | B49: =IFERROR(VLOOKUP($B$35&A49,'Region Lookups'!A:C,3,0),"") ->  | D49: =IF(B49="","", IF(ISERROR(VLOOKUP("All"&$B49&$I$5&$F$8&$A$14&$D$9,DataSubJudgements!$A:$K,8,0)),"", SUM(F49:M49))) ->  | F49: =IF($B49="","", IF(ISERROR(VLOOKUP("All"&$B49&$I$5&$F$8&$A$14&$D$9,DataSubJudgements!$A:$K,F$36,0)),"", VLOOKUP("All"&$B49&$I$5&$F$8&$A$14&$D$9,DataSubJudgements!$A:$K,F$36,0))) ->  | H49: =IF($B49="","", IF(ISERROR(VLOOKUP("All"&$B49&$I$5&$F$8&$A$14&$D$9,DataSubJudgements!$A:$K,H$36,0)),"", VLOOKUP("All"&$B49&$I$5&$F$8&$A$14&$D$9,DataSubJudgements!$A:$K,H$36,0))) ->  | J49: =IF($B49="","", IF(ISERROR(VLOOKUP("All"&$B49&$I$5&$F$8&$A$14&$D$9,DataSubJudgements!$A:$K,J$36,0)),"", VLOOKUP("All"&$B49&$I$5&$F$8&$A$14&$D$9,DataSubJudgements!$A:$K,J$36,0))) ->  | M49: =IF($B49="","", IF(ISERROR(VLOOKUP("All"&$B49&$I$5&$F$8&$A$14&$D$9,DataSubJudgements!$A:$K,M$36,0)),"", VLOOKUP("All"&$B49&$I$5&$F$8&$A$14&$D$9,DataSubJudgements!$A:$K,M$36,0))) -> 
A50: 9 | B50: =IFERROR(VLOOKUP($B$35&A50,'Region Lookups'!A:C,3,0),"") ->  | D50: =IF(B50="","", IF(ISERROR(VLOOKUP("All"&$B50&$I$5&$F$8&$A$14&$D$9,DataSubJudgements!$A:$K,8,0)),"", SUM(F50:M50))) ->  | F50: =IF($B50="","", IF(ISERROR(VLOOKUP("All"&$B50&$I$5&$F$8&$A$14&$D$9,DataSubJudgements!$A:$K,F$36,0)),"", VLOOKUP("All"&$B50&$I$5&$F$8&$A$14&$D$9,DataSubJudgements!$A:$K,F$36,0))) ->  | H50: =IF($B50="","", IF(ISERROR(VLOOKUP("All"&$B50&$I$5&$F$8&$A$14&$D$9,DataSubJudgements!$A:$K,H$36,0)),"", VLOOKUP("All"&$B50&$I$5&$F$8&$A$14&$D$9,DataSubJudgements!$A:$K,H$36,0))) ->  | J50: =IF($B50="","", IF(ISERROR(VLOOKUP("All"&$B50&$I$5&$F$8&$A$14&$D$9,DataSubJudgements!$A:$K,J$36,0)),"", VLOOKUP("All"&$B50&$I$5&$F$8&$A$14&$D$9,DataSubJudgements!$A:$K,J$36,0))) ->  | M50: =IF($B50="","", IF(ISERROR(VLOOKUP("All"&$B50&$I$5&$F$8&$A$14&$D$9,DataSubJudgements!$A:$K,M$36,0)),"", VLOOKUP("All"&$B50&$I$5&$F$8&$A$14&$D$9,DataSubJudgements!$A:$K,M$36,0))) -> 
A51: 10 | B51: =IFERROR(VLOOKUP($B$35&A51,'Region Lookups'!A:C,3,0),"") ->  | D51: =IF(B51="","", IF(ISERROR(VLOOKUP("All"&$B51&$I$5&$F$8&$A$14&$D$9,DataSubJudgements!$A:$K,8,0)),"", SUM(F51:M51))) ->  | F51: =IF($B51="","", IF(ISERROR(VLOOKUP("All"&$B51&$I$5&$F$8&$A$14&$D$9,DataSubJudgements!$A:$K,F$36,0)),"", VLOOKUP("All"&$B51&$I$5&$F$8&$A$14&$D$9,DataSubJudgements!$A:$K,F$36,0))) ->  | H51: =IF($B51="","", IF(ISERROR(VLOOKUP("All"&$B51&$I$5&$F$8&$A$14&$D$9,DataSubJudgements!$A:$K,H$36,0)),"", VLOOKUP("All"&$B51&$I$5&$F$8&$A$14&$D$9,DataSubJudgements!$A:$K,H$36,0))) ->  | J51: =IF($B51="","", IF(ISERROR(VLOOKUP("All"&$B51&$I$5&$F$8&$A$14&$D$9,DataSubJudgements!$A:$K,J$36,0)),"", VLOOKUP("All"&$B51&$I$5&$F$8&$A$14&$D$9,DataSubJudgements!$A:$K,J$36,0))) ->  | M51: =IF($B51="","", IF(ISERROR(VLOOKUP("All"&$B51&$I$5&$F$8&$A$14&$D$9,DataSubJudgements!$A:$K,M$36,0)),"", VLOOKUP("All"&$B51&$I$5&$F$8&$A$14&$D$9,DataSubJudgements!$A:$K,M$36,0))) -> 
A52: 11 | B52: =IFERROR(VLOOKUP($B$35&A52,'Region Lookups'!A:C,3,0),"") ->  | D52: =IF(B52="","", IF(ISERROR(VLOOKUP("All"&$B52&$I$5&$F$8&$A$14&$D$9,DataSubJudgements!$A:$K,8,0)),"", SUM(F52:M52))) ->  | F52: =IF($B52="","", IF(ISERROR(VLOOKUP("All"&$B52&$I$5&$F$8&$A$14&$D$9,DataSubJudgements!$A:$K,F$36,0)),"", VLOOKUP("All"&$B52&$I$5&$F$8&$A$14&$D$9,DataSubJudgements!$A:$K,F$36,0))) ->  | H52: =IF($B52="","", IF(ISERROR(VLOOKUP("All"&$B52&$I$5&$F$8&$A$14&$D$9,DataSubJudgements!$A:$K,H$36,0)),"", VLOOKUP("All"&$B52&$I$5&$F$8&$A$14&$D$9,DataSubJudgements!$A:$K,H$36,0))) ->  | J52: =IF($B52="","", IF(ISERROR(VLOOKUP("All"&$B52&$I$5&$F$8&$A$14&$D$9,DataSubJudgements!$A:$K,J$36,0)),"", VLOOKUP("All"&$B52&$I$5&$F$8&$A$14&$D$9,DataSubJudgements!$A:$K,J$36,0))) ->  | M52: =IF($B52="","", IF(ISERROR(VLOOKUP("All"&$B52&$I$5&$F$8&$A$14&$D$9,DataSubJudgements!$A:$K,M$36,0)),"", VLOOKUP("All"&$B52&$I$5&$F$8&$A$14&$D$9,DataSubJudgements!$A:$K,M$36,0))) -> 
A53: 12 | B53: =IFERROR(VLOOKUP($B$35&A53,'Region Lookups'!A:C,3,0),"") ->  | D53: =IF(B53="","", IF(ISERROR(VLOOKUP("All"&$B53&$I$5&$F$8&$A$14&$D$9,DataSubJudgements!$A:$K,8,0)),"", SUM(F53:M53))) ->  | F53: =IF($B53="","", IF(ISERROR(VLOOKUP("All"&$B53&$I$5&$F$8&$A$14&$D$9,DataSubJudgements!$A:$K,F$36,0)),"", VLOOKUP("All"&$B53&$I$5&$F$8&$A$14&$D$9,DataSubJudgements!$A:$K,F$36,0))) ->  | H53: =IF($B53="","", IF(ISERROR(VLOOKUP("All"&$B53&$I$5&$F$8&$A$14&$D$9,DataSubJudgements!$A:$K,H$36,0)),"", VLOOKUP("All"&$B53&$I$5&$F$8&$A$14&$D$9,DataSubJudgements!$A:$K,H$36,0))) ->  | J53: =IF($B53="","", IF(ISERROR(VLOOKUP("All"&$B53&$I$5&$F$8&$A$14&$D$9,DataSubJudgements!$A:$K,J$36,0)),"", VLOOKUP("All"&$B53&$I$5&$F$8&$A$14&$D$9,DataSubJudgements!$A:$K,J$36,0))) ->  | M53: =IF($B53="","", IF(ISERROR(VLOOKUP("All"&$B53&$I$5&$F$8&$A$14&$D$9,DataSubJudgements!$A:$K,M$36,0)),"", VLOOKUP("All"&$B53&$I$5&$F$8&$A$14&$D$9,DataSubJudgements!$A:$K,M$36,0))) -> 
A54: 13 | B54: =IFERROR(VLOOKUP($B$35&A54,'Region Lookups'!A:C,3,0),"") ->  | D54: =IF(B54="","", IF(ISERROR(VLOOKUP("All"&$B54&$I$5&$F$8&$A$14&$D$9,DataSubJudgements!$A:$K,8,0)),"", SUM(F54:M54))) ->  | F54: =IF($B54="","", IF(ISERROR(VLOOKUP("All"&$B54&$I$5&$F$8&$A$14&$D$9,DataSubJudgements!$A:$K,F$36,0)),"", VLOOKUP("All"&$B54&$I$5&$F$8&$A$14&$D$9,DataSubJudgements!$A:$K,F$36,0))) ->  | H54: =IF($B54="","", IF(ISERROR(VLOOKUP("All"&$B54&$I$5&$F$8&$A$14&$D$9,DataSubJudgements!$A:$K,H$36,0)),"", VLOOKUP("All"&$B54&$I$5&$F$8&$A$14&$D$9,DataSubJudgements!$A:$K,H$36,0))) ->  | J54: =IF($B54="","", IF(ISERROR(VLOOKUP("All"&$B54&$I$5&$F$8&$A$14&$D$9,DataSubJudgements!$A:$K,J$36,0)),"", VLOOKUP("All"&$B54&$I$5&$F$8&$A$14&$D$9,DataSubJudgements!$A:$K,J$36,0))) ->  | M54: =IF($B54="","", IF(ISERROR(VLOOKUP("All"&$B54&$I$5&$F$8&$A$14&$D$9,DataSubJudgements!$A:$K,M$36,0)),"", VLOOKUP("All"&$B54&$I$5&$F$8&$A$14&$D$9,DataSubJudgements!$A:$K,M$36,0))) -> 
A55: 14 | B55: =IFERROR(VLOOKUP($B$35&A55,'Region Lookups'!A:C,3,0),"") ->  | D55: =IF(B55="","", IF(ISERROR(VLOOKUP("All"&$B55&$I$5&$F$8&$A$14&$D$9,DataSubJudgements!$A:$K,8,0)),"", SUM(F55:M55))) ->  | F55: =IF($B55="","", IF(ISERROR(VLOOKUP("All"&$B55&$I$5&$F$8&$A$14&$D$9,DataSubJudgements!$A:$K,F$36,0)),"", VLOOKUP("All"&$B55&$I$5&$F$8&$A$14&$D$9,DataSubJudgements!$A:$K,F$36,0))) ->  | H55: =IF($B55="","", IF(ISERROR(VLOOKUP("All"&$B55&$I$5&$F$8&$A$14&$D$9,DataSubJudgements!$A:$K,H$36,0)),"", VLOOKUP("All"&$B55&$I$5&$F$8&$A$14&$D$9,DataSubJudgements!$A:$K,H$36,0))) ->  | J55: =IF($B55="","", IF(ISERROR(VLOOKUP("All"&$B55&$I$5&$F$8&$A$14&$D$9,DataSubJudgements!$A:$K,J$36,0)),"", VLOOKUP("All"&$B55&$I$5&$F$8&$A$14&$D$9,DataSubJudgements!$A:$K,J$36,0))) ->  | M55: =IF($B55="","", IF(ISERROR(VLOOKUP("All"&$B55&$I$5&$F$8&$A$14&$D$9,DataSubJudgements!$A:$K,M$36,0)),"", VLOOKUP("All"&$B55&$I$5&$F$8&$A$14&$D$9,DataSubJudgements!$A:$K,M$36,0))) -> 
A56: 15 | B56: =IFERROR(VLOOKUP($B$35&A56,'Region Lookups'!A:C,3,0),"") ->  | D56: =IF(B56="","", IF(ISERROR(VLOOKUP("All"&$B56&$I$5&$F$8&$A$14&$D$9,DataSubJudgements!$A:$K,8,0)),"", SUM(F56:M56))) ->  | F56: =IF($B56="","", IF(ISERROR(VLOOKUP("All"&$B56&$I$5&$F$8&$A$14&$D$9,DataSubJudgements!$A:$K,F$36,0)),"", VLOOKUP("All"&$B56&$I$5&$F$8&$A$14&$D$9,DataSubJudgements!$A:$K,F$36,0))) ->  | H56: =IF($B56="","", IF(ISERROR(VLOOKUP("All"&$B56&$I$5&$F$8&$A$14&$D$9,DataSubJudgements!$A:$K,H$36,0)),"", VLOOKUP("All"&$B56&$I$5&$F$8&$A$14&$D$9,DataSubJudgements!$A:$K,H$36,0))) ->  | J56: =IF($B56="","", IF(ISERROR(VLOOKUP("All"&$B56&$I$5&$F$8&$A$14&$D$9,DataSubJudgements!$A:$K,J$36,0)),"", VLOOKUP("All"&$B56&$I$5&$F$8&$A$14&$D$9,DataSubJudgements!$A:$K,J$36,0))) ->  | M56: =IF($B56="","", IF(ISERROR(VLOOKUP("All"&$B56&$I$5&$F$8&$A$14&$D$9,DataSubJudgements!$A:$K,M$36,0)),"", VLOOKUP("All"&$B56&$I$5&$F$8&$A$14&$D$9,DataSubJudgements!$A:$K,M$36,0))) -> 
A57: 16 | B57: =IFERROR(VLOOKUP($B$35&A57,'Region Lookups'!A:C,3,0),"") ->  | D57: =IF(B57="","", IF(ISERROR(VLOOKUP("All"&$B57&$I$5&$F$8&$A$14&$D$9,DataSubJudgements!$A:$K,8,0)),"", SUM(F57:M57))) ->  | F57: =IF($B57="","", IF(ISERROR(VLOOKUP("All"&$B57&$I$5&$F$8&$A$14&$D$9,DataSubJudgements!$A:$K,F$36,0)),"", VLOOKUP("All"&$B57&$I$5&$F$8&$A$14&$D$9,DataSubJudgements!$A:$K,F$36,0))) ->  | H57: =IF($B57="","", IF(ISERROR(VLOOKUP("All"&$B57&$I$5&$F$8&$A$14&$D$9,DataSubJudgements!$A:$K,H$36,0)),"", VLOOKUP("All"&$B57&$I$5&$F$8&$A$14&$D$9,DataSubJudgements!$A:$K,H$36,0))) ->  | J57: =IF($B57="","", IF(ISERROR(VLOOKUP("All"&$B57&$I$5&$F$8&$A$14&$D$9,DataSubJudgements!$A:$K,J$36,0)),"", VLOOKUP("All"&$B57&$I$5&$F$8&$A$14&$D$9,DataSubJudgements!$A:$K,J$36,0))) ->  | M57: =IF($B57="","", IF(ISERROR(VLOOKUP("All"&$B57&$I$5&$F$8&$A$14&$D$9,DataSubJudgements!$A:$K,M$36,0)),"", VLOOKUP("All"&$B57&$I$5&$F$8&$A$14&$D$9,DataSubJudgements!$A:$K,M$36,0))) -> 
A58: 17 | B58: =IFERROR(VLOOKUP($B$35&A58,'Region Lookups'!A:C,3,0),"") ->  | D58: =IF(B58="","", IF(ISERROR(VLOOKUP("All"&$B58&$I$5&$F$8&$A$14&$D$9,DataSubJudgements!$A:$K,8,0)),"", SUM(F58:M58))) ->  | F58: =IF($B58="","", IF(ISERROR(VLOOKUP("All"&$B58&$I$5&$F$8&$A$14&$D$9,DataSubJudgements!$A:$K,F$36,0)),"", VLOOKUP("All"&$B58&$I$5&$F$8&$A$14&$D$9,DataSubJudgements!$A:$K,F$36,0))) ->  | H58: =IF($B58="","", IF(ISERROR(VLOOKUP("All"&$B58&$I$5&$F$8&$A$14&$D$9,DataSubJudgements!$A:$K,H$36,0)),"", VLOOKUP("All"&$B58&$I$5&$F$8&$A$14&$D$9,DataSubJudgements!$A:$K,H$36,0))) ->  | J58: =IF($B58="","", IF(ISERROR(VLOOKUP("All"&$B58&$I$5&$F$8&$A$14&$D$9,DataSubJudgements!$A:$K,J$36,0)),"", VLOOKUP("All"&$B58&$I$5&$F$8&$A$14&$D$9,DataSubJudgements!$A:$K,J$36,0))) ->  | M58: =IF($B58="","", IF(ISERROR(VLOOKUP("All"&$B58&$I$5&$F$8&$A$14&$D$9,DataSubJudgements!$A:$K,M$36,0)),"", VLOOKUP("All"&$B58&$I$5&$F$8&$A$14&$D$9,DataSubJudgements!$A:$K,M$36,0))) -> 
A59: 18 | B59: =IFERROR(VLOOKUP($B$35&A59,'Region Lookups'!A:C,3,0),"") ->  | D59: =IF(B59="","", IF(ISERROR(VLOOKUP("All"&$B59&$I$5&$F$8&$A$14&$D$9,DataSubJudgements!$A:$K,8,0)),"", SUM(F59:M59))) ->  | F59: =IF($B59="","", IF(ISERROR(VLOOKUP("All"&$B59&$I$5&$F$8&$A$14&$D$9,DataSubJudgements!$A:$K,F$36,0)),"", VLOOKUP("All"&$B59&$I$5&$F$8&$A$14&$D$9,DataSubJudgements!$A:$K,F$36,0))) ->  | H59: =IF($B59="","", IF(ISERROR(VLOOKUP("All"&$B59&$I$5&$F$8&$A$14&$D$9,DataSubJudgements!$A:$K,H$36,0)),"", VLOOKUP("All"&$B59&$I$5&$F$8&$A$14&$D$9,DataSubJudgements!$A:$K,H$36,0))) ->  | J59: =IF($B59="","", IF(ISERROR(VLOOKUP("All"&$B59&$I$5&$F$8&$A$14&$D$9,DataSubJudgements!$A:$K,J$36,0)),"", VLOOKUP("All"&$B59&$I$5&$F$8&$A$14&$D$9,DataSubJudgements!$A:$K,J$36,0))) ->  | M59: =IF($B59="","", IF(ISERROR(VLOOKUP("All"&$B59&$I$5&$F$8&$A$14&$D$9,DataSubJudgements!$A:$K,M$36,0)),"", VLOOKUP("All"&$B59&$I$5&$F$8&$A$14&$D$9,DataSubJudgements!$A:$K,M$36,0))) -> 
A60: 19 | B60: =IFERROR(VLOOKUP($B$35&A60,'Region Lookups'!A:C,3,0),"") ->  | D60: =IF(B60="","", IF(ISERROR(VLOOKUP("All"&$B60&$I$5&$F$8&$A$14&$D$9,DataSubJudgements!$A:$K,8,0)),"", SUM(F60:M60))) ->  | F60: =IF($B60="","", IF(ISERROR(VLOOKUP("All"&$B60&$I$5&$F$8&$A$14&$D$9,DataSubJudgements!$A:$K,F$36,0)),"", VLOOKUP("All"&$B60&$I$5&$F$8&$A$14&$D$9,DataSubJudgements!$A:$K,F$36,0))) ->  | H60: =IF($B60="","", IF(ISERROR(VLOOKUP("All"&$B60&$I$5&$F$8&$A$14&$D$9,DataSubJudgements!$A:$K,H$36,0)),"", VLOOKUP("All"&$B60&$I$5&$F$8&$A$14&$D$9,DataSubJudgements!$A:$K,H$36,0))) ->  | J60: =IF($B60="","", IF(ISERROR(VLOOKUP("All"&$B60&$I$5&$F$8&$A$14&$D$9,DataSubJudgements!$A:$K,J$36,0)),"", VLOOKUP("All"&$B60&$I$5&$F$8&$A$14&$D$9,DataSubJudgements!$A:$K,J$36,0))) ->  | M60: =IF($B60="","", IF(ISERROR(VLOOKUP("All"&$B60&$I$5&$F$8&$A$14&$D$9,DataSubJudgements!$A:$K,M$36,0)),"", VLOOKUP("All"&$B60&$I$5&$F$8&$A$14&$D$9,DataSubJudgements!$A:$K,M$36,0))) -> 
A61: 20 | B61: =IFERROR(VLOOKUP($B$35&A61,'Region Lookups'!A:C,3,0),"") ->  | D61: =IF(B61="","", IF(ISERROR(VLOOKUP("All"&$B61&$I$5&$F$8&$A$14&$D$9,DataSubJudgements!$A:$K,8,0)),"", SUM(F61:M61))) ->  | F61: =IF($B61="","", IF(ISERROR(VLOOKUP("All"&$B61&$I$5&$F$8&$A$14&$D$9,DataSubJudgements!$A:$K,F$36,0)),"", VLOOKUP("All"&$B61&$I$5&$F$8&$A$14&$D$9,DataSubJudgements!$A:$K,F$36,0))) ->  | H61: =IF($B61="","", IF(ISERROR(VLOOKUP("All"&$B61&$I$5&$F$8&$A$14&$D$9,DataSubJudgements!$A:$K,H$36,0)),"", VLOOKUP("All"&$B61&$I$5&$F$8&$A$14&$D$9,DataSubJudgements!$A:$K,H$36,0))) ->  | J61: =IF($B61="","", IF(ISERROR(VLOOKUP("All"&$B61&$I$5&$F$8&$A$14&$D$9,DataSubJudgements!$A:$K,J$36,0)),"", VLOOKUP("All"&$B61&$I$5&$F$8&$A$14&$D$9,DataSubJudgements!$A:$K,J$36,0))) ->  | M61: =IF($B61="","", IF(ISERROR(VLOOKUP("All"&$B61&$I$5&$F$8&$A$14&$D$9,DataSubJudgements!$A:$K,M$36,0)),"", VLOOKUP("All"&$B61&$I$5&$F$8&$A$14&$D$9,DataSubJudgements!$A:$K,M$36,0))) -> 
A62: 21 | B62: =IFERROR(VLOOKUP($B$35&A62,'Region Lookups'!A:C,3,0),"") ->  | D62: =IF(B62="","", IF(ISERROR(VLOOKUP("All"&$B62&$I$5&$F$8&$A$14&$D$9,DataSubJudgements!$A:$K,8,0)),"", SUM(F62:M62))) ->  | F62: =IF($B62="","", IF(ISERROR(VLOOKUP("All"&$B62&$I$5&$F$8&$A$14&$D$9,DataSubJudgements!$A:$K,F$36,0)),"", VLOOKUP("All"&$B62&$I$5&$F$8&$A$14&$D$9,DataSubJudgements!$A:$K,F$36,0))) ->  | H62: =IF($B62="","", IF(ISERROR(VLOOKUP("All"&$B62&$I$5&$F$8&$A$14&$D$9,DataSubJudgements!$A:$K,H$36,0)),"", VLOOKUP("All"&$B62&$I$5&$F$8&$A$14&$D$9,DataSubJudgements!$A:$K,H$36,0))) ->  | J62: =IF($B62="","", IF(ISERROR(VLOOKUP("All"&$B62&$I$5&$F$8&$A$14&$D$9,DataSubJudgements!$A:$K,J$36,0)),"", VLOOKUP("All"&$B62&$I$5&$F$8&$A$14&$D$9,DataSubJudgements!$A:$K,J$36,0))) ->  | M62: =IF($B62="","", IF(ISERROR(VLOOKUP("All"&$B62&$I$5&$F$8&$A$14&$D$9,DataSubJudgements!$A:$K,M$36,0)),"", VLOOKUP("All"&$B62&$I$5&$F$8&$A$14&$D$9,DataSubJudgements!$A:$K,M$36,0))) -> 
A63: 22 | B63: =IFERROR(VLOOKUP($B$35&A63,'Region Lookups'!A:C,3,0),"") ->  | D63: =IF(B63="","", IF(ISERROR(VLOOKUP("All"&$B63&$I$5&$F$8&$A$14&$D$9,DataSubJudgements!$A:$K,8,0)),"", SUM(F63:M63))) ->  | F63: =IF($B63="","", IF(ISERROR(VLOOKUP("All"&$B63&$I$5&$F$8&$A$14&$D$9,DataSubJudgements!$A:$K,F$36,0)),"", VLOOKUP("All"&$B63&$I$5&$F$8&$A$14&$D$9,DataSubJudgements!$A:$K,F$36,0))) ->  | H63: =IF($B63="","", IF(ISERROR(VLOOKUP("All"&$B63&$I$5&$F$8&$A$14&$D$9,DataSubJudgements!$A:$K,H$36,0)),"", VLOOKUP("All"&$B63&$I$5&$F$8&$A$14&$D$9,DataSubJudgements!$A:$K,H$36,0))) ->  | J63: =IF($B63="","", IF(ISERROR(VLOOKUP("All"&$B63&$I$5&$F$8&$A$14&$D$9,DataSubJudgements!$A:$K,J$36,0)),"", VLOOKUP("All"&$B63&$I$5&$F$8&$A$14&$D$9,DataSubJudgements!$A:$K,J$36,0))) ->  | M63: =IF($B63="","", IF(ISERROR(VLOOKUP("All"&$B63&$I$5&$F$8&$A$14&$D$9,DataSubJudgements!$A:$K,M$36,0)),"", VLOOKUP("All"&$B63&$I$5&$F$8&$A$14&$D$9,DataSubJudgements!$A:$K,M$36,0))) -> 
A64: 23 | B64: =IFERROR(VLOOKUP($B$35&A64,'Region Lookups'!A:C,3,0),"") ->  | D64: =IF(B64="","", IF(ISERROR(VLOOKUP("All"&$B64&$I$5&$F$8&$A$14&$D$9,DataSubJudgements!$A:$K,8,0)),"", SUM(F64:M64))) ->  | F64: =IF($B64="","", IF(ISERROR(VLOOKUP("All"&$B64&$I$5&$F$8&$A$14&$D$9,DataSubJudgements!$A:$K,F$36,0)),"", VLOOKUP("All"&$B64&$I$5&$F$8&$A$14&$D$9,DataSubJudgements!$A:$K,F$36,0))) ->  | H64: =IF($B64="","", IF(ISERROR(VLOOKUP("All"&$B64&$I$5&$F$8&$A$14&$D$9,DataSubJudgements!$A:$K,H$36,0)),"", VLOOKUP("All"&$B64&$I$5&$F$8&$A$14&$D$9,DataSubJudgements!$A:$K,H$36,0))) ->  | J64: =IF($B64="","", IF(ISERROR(VLOOKUP("All"&$B64&$I$5&$F$8&$A$14&$D$9,DataSubJudgements!$A:$K,J$36,0)),"", VLOOKUP("All"&$B64&$I$5&$F$8&$A$14&$D$9,DataSubJudgements!$A:$K,J$36,0))) ->  | M64: =IF($B64="","", IF(ISERROR(VLOOKUP("All"&$B64&$I$5&$F$8&$A$14&$D$9,DataSubJudgements!$A:$K,M$36,0)),"", VLOOKUP("All"&$B64&$I$5&$F$8&$A$14&$D$9,DataSubJudgements!$A:$K,M$36,0))) -> 
A65: 24 | B65: =IFERROR(VLOOKUP($B$35&A65,'Region Lookups'!A:C,3,0),"") ->  | D65: =IF(B65="","", IF(ISERROR(VLOOKUP("All"&$B65&$I$5&$F$8&$A$14&$D$9,DataSubJudgements!$A:$K,8,0)),"", SUM(F65:M65))) ->  | F65: =IF($B65="","", IF(ISERROR(VLOOKUP("All"&$B65&$I$5&$F$8&$A$14&$D$9,DataSubJudgements!$A:$K,F$36,0)),"", VLOOKUP("All"&$B65&$I$5&$F$8&$A$14&$D$9,DataSubJudgements!$A:$K,F$36,0))) ->  | H65: =IF($B65="","", IF(ISERROR(VLOOKUP("All"&$B65&$I$5&$F$8&$A$14&$D$9,DataSubJudgements!$A:$K,H$36,0)),"", VLOOKUP("All"&$B65&$I$5&$F$8&$A$14&$D$9,DataSubJudgements!$A:$K,H$36,0))) ->  | J65: =IF($B65="","", IF(ISERROR(VLOOKUP("All"&$B65&$I$5&$F$8&$A$14&$D$9,DataSubJudgements!$A:$K,J$36,0)),"", VLOOKUP("All"&$B65&$I$5&$F$8&$A$14&$D$9,DataSubJudgements!$A:$K,J$36,0))) ->  | M65: =IF($B65="","", IF(ISERROR(VLOOKUP("All"&$B65&$I$5&$F$8&$A$14&$D$9,DataSubJudgements!$A:$K,M$36,0)),"", VLOOKUP("All"&$B65&$I$5&$F$8&$A$14&$D$9,DataSubJudgements!$A:$K,M$36,0))) -> 
A66: 25 | B66: =IFERROR(VLOOKUP($B$35&A66,'Region Lookups'!A:C,3,0),"") ->  | D66: =IF(B66="","", IF(ISERROR(VLOOKUP("All"&$B66&$I$5&$F$8&$A$14&$D$9,DataSubJudgements!$A:$K,8,0)),"", SUM(F66:M66))) ->  | F66: =IF($B66="","", IF(ISERROR(VLOOKUP("All"&$B66&$I$5&$F$8&$A$14&$D$9,DataSubJudgements!$A:$K,F$36,0)),"", VLOOKUP("All"&$B66&$I$5&$F$8&$A$14&$D$9,DataSubJudgements!$A:$K,F$36,0))) ->  | H66: =IF($B66="","", IF(ISERROR(VLOOKUP("All"&$B66&$I$5&$F$8&$A$14&$D$9,DataSubJudgements!$A:$K,H$36,0)),"", VLOOKUP("All"&$B66&$I$5&$F$8&$A$14&$D$9,DataSubJudgements!$A:$K,H$36,0))) ->  | J66: =IF($B66="","", IF(ISERROR(VLOOKUP("All"&$B66&$I$5&$F$8&$A$14&$D$9,DataSubJudgements!$A:$K,J$36,0)),"", VLOOKUP("All"&$B66&$I$5&$F$8&$A$14&$D$9,DataSubJudgements!$A:$K,J$36,0))) ->  | M66: =IF($B66="","", IF(ISERROR(VLOOKUP("All"&$B66&$I$5&$F$8&$A$14&$D$9,DataSubJudgements!$A:$K,M$36,0)),"", VLOOKUP("All"&$B66&$I$5&$F$8&$A$14&$D$9,DataSubJudgements!$A:$K,M$36,0))) -> 
A67: 26 | B67: =IFERROR(VLOOKUP($B$35&A67,'Region Lookups'!A:C,3,0),"") ->  | D67: =IF(B67="","", IF(ISERROR(VLOOKUP("All"&$B67&$I$5&$F$8&$A$14&$D$9,DataSubJudgements!$A:$K,8,0)),"", SUM(F67:M67))) ->  | F67: =IF($B67="","", IF(ISERROR(VLOOKUP("All"&$B67&$I$5&$F$8&$A$14&$D$9,DataSubJudgements!$A:$K,F$36,0)),"", VLOOKUP("All"&$B67&$I$5&$F$8&$A$14&$D$9,DataSubJudgements!$A:$K,F$36,0))) ->  | H67: =IF($B67="","", IF(ISERROR(VLOOKUP("All"&$B67&$I$5&$F$8&$A$14&$D$9,DataSubJudgements!$A:$K,H$36,0)),"", VLOOKUP("All"&$B67&$I$5&$F$8&$A$14&$D$9,DataSubJudgements!$A:$K,H$36,0))) ->  | J67: =IF($B67="","", IF(ISERROR(VLOOKUP("All"&$B67&$I$5&$F$8&$A$14&$D$9,DataSubJudgements!$A:$K,J$36,0)),"", VLOOKUP("All"&$B67&$I$5&$F$8&$A$14&$D$9,DataSubJudgements!$A:$K,J$36,0))) ->  | M67: =IF($B67="","", IF(ISERROR(VLOOKUP("All"&$B67&$I$5&$F$8&$A$14&$D$9,DataSubJudgements!$A:$K,M$36,0)),"", VLOOKUP("All"&$B67&$I$5&$F$8&$A$14&$D$9,DataSubJudgements!$A:$K,M$36,0))) -> 
A68: 27 | B68: =IFERROR(VLOOKUP($B$35&A68,'Region Lookups'!A:C,3,0),"") ->  | D68: =IF(B68="","", IF(ISERROR(VLOOKUP("All"&$B68&$I$5&$F$8&$A$14&$D$9,DataSubJudgements!$A:$K,8,0)),"", SUM(F68:M68))) ->  | F68: =IF($B68="","", IF(ISERROR(VLOOKUP("All"&$B68&$I$5&$F$8&$A$14&$D$9,DataSubJudgements!$A:$K,F$36,0)),"", VLOOKUP("All"&$B68&$I$5&$F$8&$A$14&$D$9,DataSubJudgements!$A:$K,F$36,0))) ->  | H68: =IF($B68="","", IF(ISERROR(VLOOKUP("All"&$B68&$I$5&$F$8&$A$14&$D$9,DataSubJudgements!$A:$K,H$36,0)),"", VLOOKUP("All"&$B68&$I$5&$F$8&$A$14&$D$9,DataSubJudgements!$A:$K,H$36,0))) ->  | J68: =IF($B68="","", IF(ISERROR(VLOOKUP("All"&$B68&$I$5&$F$8&$A$14&$D$9,DataSubJudgements!$A:$K,J$36,0)),"", VLOOKUP("All"&$B68&$I$5&$F$8&$A$14&$D$9,DataSubJudgements!$A:$K,J$36,0))) ->  | M68: =IF($B68="","", IF(ISERROR(VLOOKUP("All"&$B68&$I$5&$F$8&$A$14&$D$9,DataSubJudgements!$A:$K,M$36,0)),"", VLOOKUP("All"&$B68&$I$5&$F$8&$A$14&$D$9,DataSubJudgements!$A:$K,M$36,0))) -> 
A69: 28 | B69: =IFERROR(VLOOKUP($B$35&A69,'Region Lookups'!A:C,3,0),"") ->  | D69: =IF(B69="","", IF(ISERROR(VLOOKUP("All"&$B69&$I$5&$F$8&$A$14&$D$9,DataSubJudgements!$A:$K,8,0)),"", SUM(F69:M69))) ->  | F69: =IF($B69="","", IF(ISERROR(VLOOKUP("All"&$B69&$I$5&$F$8&$A$14&$D$9,DataSubJudgements!$A:$K,F$36,0)),"", VLOOKUP("All"&$B69&$I$5&$F$8&$A$14&$D$9,DataSubJudgements!$A:$K,F$36,0))) ->  | H69: =IF($B69="","", IF(ISERROR(VLOOKUP("All"&$B69&$I$5&$F$8&$A$14&$D$9,DataSubJudgements!$A:$K,H$36,0)),"", VLOOKUP("All"&$B69&$I$5&$F$8&$A$14&$D$9,DataSubJudgements!$A:$K,H$36,0))) ->  | J69: =IF($B69="","", IF(ISERROR(VLOOKUP("All"&$B69&$I$5&$F$8&$A$14&$D$9,DataSubJudgements!$A:$K,J$36,0)),"", VLOOKUP("All"&$B69&$I$5&$F$8&$A$14&$D$9,DataSubJudgements!$A:$K,J$36,0))) ->  | M69: =IF($B69="","", IF(ISERROR(VLOOKUP("All"&$B69&$I$5&$F$8&$A$14&$D$9,DataSubJudgements!$A:$K,M$36,0)),"", VLOOKUP("All"&$B69&$I$5&$F$8&$A$14&$D$9,DataSubJudgements!$A:$K,M$36,0))) -> 
A70: 29 | B70: =IFERROR(VLOOKUP($B$35&A70,'Region Lookups'!A:C,3,0),"") ->  | D70: =IF(B70="","", IF(ISERROR(VLOOKUP("All"&$B70&$I$5&$F$8&$A$14&$D$9,DataSubJudgements!$A:$K,8,0)),"", SUM(F70:M70))) ->  | F70: =IF($B70="","", IF(ISERROR(VLOOKUP("All"&$B70&$I$5&$F$8&$A$14&$D$9,DataSubJudgements!$A:$K,F$36,0)),"", VLOOKUP("All"&$B70&$I$5&$F$8&$A$14&$D$9,DataSubJudgements!$A:$K,F$36,0))) ->  | H70: =IF($B70="","", IF(ISERROR(VLOOKUP("All"&$B70&$I$5&$F$8&$A$14&$D$9,DataSubJudgements!$A:$K,H$36,0)),"", VLOOKUP("All"&$B70&$I$5&$F$8&$A$14&$D$9,DataSubJudgements!$A:$K,H$36,0))) ->  | J70: =IF($B70="","", IF(ISERROR(VLOOKUP("All"&$B70&$I$5&$F$8&$A$14&$D$9,DataSubJudgements!$A:$K,J$36,0)),"", VLOOKUP("All"&$B70&$I$5&$F$8&$A$14&$D$9,DataSubJudgements!$A:$K,J$36,0))) ->  | M70: =IF($B70="","", IF(ISERROR(VLOOKUP("All"&$B70&$I$5&$F$8&$A$14&$D$9,DataSubJudgements!$A:$K,M$36,0)),"", VLOOKUP("All"&$B70&$I$5&$F$8&$A$14&$D$9,DataSubJudgements!$A:$K,M$36,0))) -> 
A71: 30 | B71: =IFERROR(VLOOKUP($B$35&A71,'Region Lookups'!A:C,3,0),"") ->  | D71: =IF(B71="","", IF(ISERROR(VLOOKUP("All"&$B71&$I$5&$F$8&$A$14&$D$9,DataSubJudgements!$A:$K,8,0)),"", SUM(F71:M71))) ->  | F71: =IF($B71="","", IF(ISERROR(VLOOKUP("All"&$B71&$I$5&$F$8&$A$14&$D$9,DataSubJudgements!$A:$K,F$36,0)),"", VLOOKUP("All"&$B71&$I$5&$F$8&$A$14&$D$9,DataSubJudgements!$A:$K,F$36,0))) ->  | H71: =IF($B71="","", IF(ISERROR(VLOOKUP("All"&$B71&$I$5&$F$8&$A$14&$D$9,DataSubJudgements!$A:$K,H$36,0)),"", VLOOKUP("All"&$B71&$I$5&$F$8&$A$14&$D$9,DataSubJudgements!$A:$K,H$36,0))) ->  | J71: =IF($B71="","", IF(ISERROR(VLOOKUP("All"&$B71&$I$5&$F$8&$A$14&$D$9,DataSubJudgements!$A:$K,J$36,0)),"", VLOOKUP("All"&$B71&$I$5&$F$8&$A$14&$D$9,DataSubJudgements!$A:$K,J$36,0))) ->  | M71: =IF($B71="","", IF(ISERROR(VLOOKUP("All"&$B71&$I$5&$F$8&$A$14&$D$9,DataSubJudgements!$A:$K,M$36,0)),"", VLOOKUP("All"&$B71&$I$5&$F$8&$A$14&$D$9,DataSubJudgements!$A:$K,M$36,0))) -> 
A72: 31 | B72: =IFERROR(VLOOKUP($B$35&A72,'Region Lookups'!A:C,3,0),"") ->  | D72: =IF(B72="","", IF(ISERROR(VLOOKUP("All"&$B72&$I$5&$F$8&$A$14&$D$9,DataSubJudgements!$A:$K,8,0)),"", SUM(F72:M72))) ->  | F72: =IF($B72="","", IF(ISERROR(VLOOKUP("All"&$B72&$I$5&$F$8&$A$14&$D$9,DataSubJudgements!$A:$K,F$36,0)),"", VLOOKUP("All"&$B72&$I$5&$F$8&$A$14&$D$9,DataSubJudgements!$A:$K,F$36,0))) ->  | H72: =IF($B72="","", IF(ISERROR(VLOOKUP("All"&$B72&$I$5&$F$8&$A$14&$D$9,DataSubJudgements!$A:$K,H$36,0)),"", VLOOKUP("All"&$B72&$I$5&$F$8&$A$14&$D$9,DataSubJudgements!$A:$K,H$36,0))) ->  | J72: =IF($B72="","", IF(ISERROR(VLOOKUP("All"&$B72&$I$5&$F$8&$A$14&$D$9,DataSubJudgements!$A:$K,J$36,0)),"", VLOOKUP("All"&$B72&$I$5&$F$8&$A$14&$D$9,DataSubJudgements!$A:$K,J$36,0))) ->  | M72: =IF($B72="","", IF(ISERROR(VLOOKUP("All"&$B72&$I$5&$F$8&$A$14&$D$9,DataSubJudgements!$A:$K,M$36,0)),"", VLOOKUP("All"&$B72&$I$5&$F$8&$A$14&$D$9,DataSubJudgements!$A:$K,M$36,0))) -> 
A73: 32 | B73: =IFERROR(VLOOKUP($B$35&A73,'Region Lookups'!A:C,3,0),"") ->  | D73: =IF(B73="","", IF(ISERROR(VLOOKUP("All"&$B73&$I$5&$F$8&$A$14&$D$9,DataSubJudgements!$A:$K,8,0)),"", SUM(F73:M73))) ->  | F73: =IF($B73="","", IF(ISERROR(VLOOKUP("All"&$B73&$I$5&$F$8&$A$14&$D$9,DataSubJudgements!$A:$K,F$36,0)),"", VLOOKUP("All"&$B73&$I$5&$F$8&$A$14&$D$9,DataSubJudgements!$A:$K,F$36,0))) ->  | H73: =IF($B73="","", IF(ISERROR(VLOOKUP("All"&$B73&$I$5&$F$8&$A$14&$D$9,DataSubJudgements!$A:$K,H$36,0)),"", VLOOKUP("All"&$B73&$I$5&$F$8&$A$14&$D$9,DataSubJudgements!$A:$K,H$36,0))) ->  | J73: =IF($B73="","", IF(ISERROR(VLOOKUP("All"&$B73&$I$5&$F$8&$A$14&$D$9,DataSubJudgements!$A:$K,J$36,0)),"", VLOOKUP("All"&$B73&$I$5&$F$8&$A$14&$D$9,DataSubJudgements!$A:$K,J$36,0))) ->  | M73: =IF($B73="","", IF(ISERROR(VLOOKUP("All"&$B73&$I$5&$F$8&$A$14&$D$9,DataSubJudgements!$A:$K,M$36,0)),"", VLOOKUP("All"&$B73&$I$5&$F$8&$A$14&$D$9,DataSubJudgements!$A:$K,M$36,0))) -> 
A74: 33 | B74: =IFERROR(VLOOKUP($B$35&A74,'Region Lookups'!A:C,3,0),"") ->  | D74: =IF(B74="","", IF(ISERROR(VLOOKUP("All"&$B74&$I$5&$F$8&$A$14&$D$9,DataSubJudgements!$A:$K,8,0)),"", SUM(F74:M74))) ->  | F74: =IF($B74="","", IF(ISERROR(VLOOKUP("All"&$B74&$I$5&$F$8&$A$14&$D$9,DataSubJudgements!$A:$K,F$36,0)),"", VLOOKUP("All"&$B74&$I$5&$F$8&$A$14&$D$9,DataSubJudgements!$A:$K,F$36,0))) ->  | H74: =IF($B74="","", IF(ISERROR(VLOOKUP("All"&$B74&$I$5&$F$8&$A$14&$D$9,DataSubJudgements!$A:$K,H$36,0)),"", VLOOKUP("All"&$B74&$I$5&$F$8&$A$14&$D$9,DataSubJudgements!$A:$K,H$36,0))) ->  | J74: =IF($B74="","", IF(ISERROR(VLOOKUP("All"&$B74&$I$5&$F$8&$A$14&$D$9,DataSubJudgements!$A:$K,J$36,0)),"", VLOOKUP("All"&$B74&$I$5&$F$8&$A$14&$D$9,DataSubJudgements!$A:$K,J$36,0))) ->  | M74: =IF($B74="","", IF(ISERROR(VLOOKUP("All"&$B74&$I$5&$F$8&$A$14&$D$9,DataSubJudgements!$A:$K,M$36,0)),"", VLOOKUP("All"&$B74&$I$5&$F$8&$A$14&$D$9,DataSubJudgements!$A:$K,M$36,0))) -> 
B75: =IFERROR(VLOOKUP($B$35&A75,'Region Lookups'!A:C,3,0),"") -> 
B76: =IFERROR(VLOOKUP($B$35&A76,'Region Lookups'!A:C,3,0),"") -> 
B77: =IFERROR(VLOOKUP($B$35&A77,'Region Lookups'!A:C,3,0),"") -> 
B78: =IFERROR(VLOOKUP($B$35&A78,'Region Lookups'!A:C,3,0),"") -> 
B79: =IFERROR(VLOOKUP($B$35&A79,'Region Lookups'!A:C,3,0),"") -> 
B80: =IFERROR(VLOOKUP($B$35&A80,'Region Lookups'!A:C,3,0),"") -> 

Sheet LA level at 31 Mar 2018
A1: Web link | B1: Local authority name | C1: Region | D1: Inspection date | E1: Overall judgement (OE) | F1: Children who need help and protection | G1: Children looked after and achieving permanence | H1: CLA sub: adoption performance | I1: CLA sub: experiences and progress of care leavers | J1: Leadership, management and governance | K1: LSCB overall effectiveness
A2: =IF(B2="","",HYPERLINK("http://reports.ofsted.gov.uk/local-authorities/barking-and-dagenham","Ofsted Local Authority Webpage")) -> Ofsted Local Authority Webpage | B2: Barking and Dagenham | C2: London | D2: 2014-05-22 | E2: Requires improvement | F2: Requires improvement | G2: Requires improvement | H2: Requires improvement | I2: Requires improvement | J2: Requires improvement | K2: Requires improvement
A3: =IF(B3="","",HYPERLINK("http://reports.ofsted.gov.uk/local-authorities/"&B3,"Ofsted Local Authority Webpage")) -> Ofsted Local Authority Webpage | B3: Barnet | C3: London | D3: 2017-05-18 | E3: Inadequate | F3: Inadequate | G3: Inadequate | H3: Requires improvement | I3: Requires improvement | J3: Inadequate | K3: Inadequate
A4: =IF(B4="","",HYPERLINK("http://reports.ofsted.gov.uk/local-authorities/"&B4,"Ofsted Local Authority Webpage")) -> Ofsted Local Authority Webpage | B4: Barnsley | C4: Yorkshire and The Humber | D4: 2014-06-25 | E4: Requires improvement | F4: Requires improvement | G4: Requires improvement | H4: Requires improvement | I4: Good | J4: Requires improvement | K4: Requires improvement
A5: =IF(B5="","",HYPERLINK("http://reports.ofsted.gov.uk/local-authorities/bath-and-ne-somerset","Ofsted Local Authority Webpage")) -> Ofsted Local Authority Webpage | B5: Bath and North East Somerset | C5: South West | D5: 2017-05-18 | E5: Good | F5: Requires improvement | G5: Good | H5: Outstanding | I5: Requires improvement | J5: Good | K5: Good
A6: =IF(B6="","",HYPERLINK("http://reports.ofsted.gov.uk/local-authorities/Bedford","Ofsted Local Authority Webpage")) -> Ofsted Local Authority Webpage | B6: Bedford | C6: East of England | D6: 2017-02-16 | E6: Requires improvement | F6: Requires improvement | G6: Requires improvement | H6: Good | I6: Good | J6: Requires improvement | K6: Good
A7: =IF(B7="","",HYPERLINK("http://reports.ofsted.gov.uk/local-authorities/"&B7,"Ofsted Local Authority Webpage")) -> Ofsted Local Authority Webpage | B7: Bexley | C7: London | D7: 2014-04-02 | E7: Requires improvement | F7: Requires improvement | G7: Requires improvement | H7: Requires improvement | I7: Requires improvement | J7: Requires improvement | K7: Inadequate
A8: =IF(B8="","",HYPERLINK("http://reports.ofsted.gov.uk/local-authorities/"&B8,"Ofsted Local Authority Webpage")) -> Ofsted Local Authority Webpage | B8: Birmingham | C8: West Midlands | D8: 2016-10-06 | E8: Inadequate | F8: Inadequate | G8: Requires improvement | H8: Requires improvement | I8: Requires improvement | J8: Inadequate | K8: Inadequate
A9: =IF(B9="","",HYPERLINK("http://reports.ofsted.gov.uk/local-authorities/blackburn-darwen","Ofsted Local Authority Webpage")) -> Ofsted Local Authority Webpage | B9: Blackburn with Darwen | C9: North West | D9: 2017-10-19 | E9: Good | F9: Requires improvement | G9: Good | H9: Good | I9: Good | J9: Good | K9: Good
A10: =IF(B10="","",HYPERLINK("http://reports.ofsted.gov.uk/local-authorities/"&B10,"Ofsted Local Authority Webpage")) -> Ofsted Local Authority Webpage | B10: Blackpool | C10: North West | D10: 2014-07-23 | E10: Requires improvement | F10: Requires improvement | G10: Requires improvement | H10: Requires improvement | I10: Requires improvement | J10: Requires improvement | K10: Requires improvement
A11: =IF(B11="","",HYPERLINK("http://reports.ofsted.gov.uk/local-authorities/"&B11,"Ofsted Local Authority Webpage")) -> Ofsted Local Authority Webpage | B11: Bolton | C11: North West | D11: 2014-02-05 | E11: Requires improvement | F11: Requires improvement | G11: Good | H11: Good | I11: Good | J11: Requires improvement | K11: Requires improvement
A12: =IF(B12="","",HYPERLINK("http://reports.ofsted.gov.uk/local-authorities/"&B12,"Ofsted Local Authority Webpage")) -> Ofsted Local Authority Webpage | B12: Bournemouth | C12: South West | D12: 2014-05-21 | E12: Requires improvement | F12: Requires improvement | G12: Requires improvement | H12: Good | I12: Requires improvement | J12: Requires improvement | K12: Requires improvement
A13: =IF(B13="","",HYPERLINK("http://reports.ofsted.gov.uk/local-authorities/bracknell-forest","Ofsted Local Authority Webpage")) -> Ofsted Local Authority Webpage | B13: Bracknell Forest | C13: South East | D13: 2017-05-25 | E13: Good | F13: Good | G13: Outstanding | H13: Outstanding | I13: Outstanding | J13: Good | K13: Good
A14: =IF(B14="","",HYPERLINK("http://reports.ofsted.gov.uk/local-authorities/"&B14,"Ofsted Local Authority Webpage")) -> Ofsted Local Authority Webpage | B14: Bradford | C14: Yorkshire and The Humber | D14: 2014-03-12 | E14: Requires improvement | F14: Requires improvement | G14: Good | H14: Good | I14: Good | J14: Good | K14: Good
A15: =IF(B15="","",HYPERLINK("http://reports.ofsted.gov.uk/local-authorities/"&B15,"Ofsted Local Authority Webpage")) -> Ofsted Local Authority Webpage | B15: Brent | C15: London | D15: 2015-10-08 | E15: Requires improvement | F15: Requires improvement | G15: Requires improvement | H15: Good | I15: Requires improvement | J15: Requires improvement | K15: Requires improvement
A16: =IF(B16="","",HYPERLINK("http://reports.ofsted.gov.uk/local-authorities/brighton-and-hove","Ofsted Local Authority Webpage")) -> Ofsted Local Authority Webpage | B16: Brighton and Hove | C16: South East | D16: 2015-05-07 | E16: Requires improvement | F16: Requires improvement | G16: Good | H16: Good | I16: Good | J16: Good | K16: Good
A17: =IF(B17="","",HYPERLINK("http://reports.ofsted.gov.uk/local-authorities/bristol-city","Ofsted Local Authority Webpage")) -> Ofsted Local Authority Webpage | B17: Bristol | C17: South West | D17: 2014-10-22 | E17: Requires improvement | F17: Requires improvement | G17: Requires improvement | H17: Good | I17: Inadequate | J17: Requires improvement | K17: Requires improvement
A18: =IF(B18="","",HYPERLINK("http://reports.ofsted.gov.uk/local-authorities/"&B18,"Ofsted Local Authority Webpage")) -> Ofsted Local Authority Webpage | B18: Bromley | C18: London | D18: 2016-05-05 | E18: Inadequate | F18: Inadequate | G18: Inadequate | H18: Inadequate | I18: Inadequate | J18: Inadequate | K18: Requires improvement
A19: Ofsted Local Authority Webpage | B19: Buckinghamshire | C19: South East | D19: 2017-11-30 | E19: Inadequate | F19: Inadequate | G19: Inadequate | H19: Good | I19: Requires improvement | J19: Inadequate | K19: Inadequate
A20: Ofsted Local Authority Webpage | B20: Bury | C20: North West | D20: 2016-03-17 | E20: Requires improvement | F20: Good | G20: Requires improvement | H20: Good | I20: Requires improvement | J20: Good | K20: Good
A21: Ofsted Local Authority Webpage | B21: Calderdale | C21: Yorkshire and The Humber | D21: 2015-02-04 | E21: Requires improvement | F21: Requires improvement | G21: Requires improvement | H21: Inadequate | I21: Requires improvement | J21: Requires improvement | K21: Requires improvement
A22: Ofsted Local Authority Webpage | B22: Cambridgeshire | C22: East of England | D22: 2014-06-25 | E22: Good | F22: Requires improvement | G22: Good | H22: Good | I22: Good | J22: Good | K22: Good
A23: Ofsted Local Authority Webpage | B23: Camden | C23: London | D23: 2017-10-05 | E23: Good | F23: Good | G23: Good | H23: Outstanding | I23: Good | J23: Outstanding | K23: Outstanding
A24: =IF(B24="","",HYPERLINK("http://reports.ofsted.gov.uk/local-authorities/central-bedfordshire","Ofsted Local Authority Webpage")) -> Ofsted Local Authority Webpage | B24: Central Bedfordshire | C24: East of England | D24: 2017-07-06 | E24: Good | F24: Good | G24: Requires improvement | H24: Good | I24: Good | J24: Good | K24: Good
A25: =IF(B25="","",HYPERLINK("http://reports.ofsted.gov.uk/local-authorities/cheshire-east","Ofsted Local Authority Webpage")) -> Ofsted Local Authority Webpage | B25: Cheshire East | C25: North West | D25: 2015-07-30 | E25: Requires improvement | F25: Requires improvement | G25: Requires improvement | H25: Good | I25: Requires improvement | J25: Requires improvement | K25: Requires improvement
A26: =IF(B26="","",HYPERLINK("http://reports.ofsted.gov.uk/local-authorities/cheshire-west-and-chester","Ofsted Local Authority Webpage")) -> Ofsted Local Authority Webpage | B26: Cheshire West and Chester | C26: North West | D26: 2015-12-17 | E26: Good | F26: Good | G26: Good | H26: Outstanding | I26: Good | J26: Outstanding | K26: Good
A27: =IF(B27="","",HYPERLINK("http://reports.ofsted.gov.uk/local-authorities/city-of-london","Ofsted Local Authority Webpage")) -> Ofsted Local Authority Webpage | B27: City of London | C27: London | D27: 2016-07-28 | E27: Good | F27: Good | G27: Good | H27: - | I27: Good | J27: Outstanding | K27: Outstanding
A28: =IF(B28="","",HYPERLINK("http://reports.ofsted.gov.uk/local-authorities/"&B28,"Ofsted Local Authority Webpage")) -> Ofsted Local Authority Webpage | B28: Cornwall | C28: South West | D28: 2016-05-06 | E28: Good | F28: Requires improvement | G28: Good | H28: Good | I28: Good | J28: Good | K28: Requires improvement
A29: =IF(B29="","",HYPERLINK("http://reports.ofsted.gov.uk/local-authorities/"&B29,"Ofsted Local Authority Webpage")) -> Ofsted Local Authority Webpage | B29: Coventry | C29: West Midlands | D29: 2017-03-30 | E29: Requires improvement | F29: Requires improvement | G29: Requires improvement | H29: Requires improvement | I29: Good | J29: Requires improvement | K29: Inadequate
A30: =IF(B30="","",HYPERLINK("http://reports.ofsted.gov.uk/local-authorities/"&B30,"Ofsted Local Authority Webpage")) -> Ofsted Local Authority Webpage | B30: Croydon | C30: London | D30: 2017-07-13 | E30: Inadequate | F30: Inadequate | G30: Inadequate | H30: Requires improvement | I30: Requires improvement | J30: Inadequate | K30: Inadequate
A31: =IF(B31="","",HYPERLINK("http://reports.ofsted.gov.uk/local-authorities/"&B31,"Ofsted Local Authority Webpage")) -> Ofsted Local Authority Webpage | B31: Cumbria | C31: North West | D31: 2017-11-30 | E31: Requires improvement | F31: Requires improvement | G31: Requires improvement | H31: Good | I31: Requires improvement | J31: Good | K31: Requires improvement
A32: =IF(B32="","",HYPERLINK("http://reports.ofsted.gov.uk/local-authorities/"&B32,"Ofsted Local Authority Webpage")) -> Ofsted Local Authority Webpage | B32: Darlington | C32: North East | D32: 2015-07-16 | E32: Inadequate | F32: Inadequate | G32: Requires improvement | H32: Good | I32: Good | J32: Inadequate | K32: Requires improvement
A33: =IF(B33="","",HYPERLINK("http://reports.ofsted.gov.uk/local-authorities/derby","Ofsted Local Authority Webpage")) -> Ofsted Local Authority Webpage | B33: Derby | C33: East Midlands | D33: 2017-03-30 | E33: Good | F33: Requires improvement | G33: Good | H33: Good | I33: Good | J33: Good | K33: Outstanding
A34: =IF(B34="","",HYPERLINK("http://reports.ofsted.gov.uk/local-authorities/"&B34,"Ofsted Local Authority Webpage")) -> Ofsted Local Authority Webpage | B34: Derbyshire | C34: East Midlands | D34: 2013-12-11 | E34: Good | F34: Good | G34: Good | H34: Good | I34: Good | J34: Good | K34: Requires improvement
A35: Ofsted Local Authority Webpage | B35: Devon | C35: South West | D35: 2015-03-18 | E35: Requires improvement | F35: Requires improvement | G35: Requires improvement | H35: Good | I35: Inadequate | J35: Requires improvement | K35: Inadequate
A36: Ofsted Local Authority Webpage | B36: Doncaster | C36: Yorkshire and The Humber | D36: 2017-11-24 | E36: Good | F36: Good | G36: Good | H36: Good | I36: Good | J36: Good | K36: Requires improvement
A37: Ofsted Local Authority Webpage | B37: Dorset | C37: South West | D37: 2016-03-17 | E37: Requires improvement | F37: Requires improvement | G37: Requires improvement | H37: Good | I37: Requires improvement | J37: Requires improvement | K37: Inadequate
A38: Ofsted Local Authority Webpage | B38: Dudley | C38: West Midlands | D38: 2016-02-08 | E38: Inadequate | F38: Inadequate | G38: Inadequate | H38: Inadequate | I38: Requires improvement | J38: Inadequate | K38: Inadequate
A39: Ofsted Local Authority Webpage | B39: Durham | C39: North East | D39: 2016-03-18 | E39: Requires improvement | F39: Requires improvement | G39: Requires improvement | H39: Good | I39: Good | J39: Requires improvement | K39: Good
A40: Ofsted Local Authority Webpage | B40: Ealing | C40: London | D40: 2016-07-07 | E40: Good | F40: Good | G40: Good | H40: Good | I40: Outstanding | J40: Good | K40: Requires improvement
A41: =IF(B41="","",HYPERLINK("http://reports.ofsted.gov.uk/local-authorities/east-riding-of-yorkshire","Ofsted Local Authority Webpage")) -> Ofsted Local Authority Webpage | B41: East Riding of Yorkshire | C41: Yorkshire and The Humber | D41: 2016-12-15 | E41: Good | F41: Good | G41: Good | H41: Good | I41: Outstanding | J41: Good | K41: Good
A42: =IF(B42="","",HYPERLINK("http://reports.ofsted.gov.uk/local-authorities/East-Sussex","Ofsted Local Authority Webpage")) -> Ofsted Local Authority Webpage | B42: East Sussex | C42: South East | D42: 2014-02-05 | E42: Good | F42: Good | G42: Good | H42: Outstanding | I42: Requires improvement | J42: Good | K42: Good
A43: =IF(B43="","",HYPERLINK("http://reports.ofsted.gov.uk/local-authorities/"&B43,"Ofsted Local Authority Webpage")) -> Ofsted Local Authority Webpage | B43: Enfield | C43: London | D43: 2015-02-11 | E43: Good | F43: Requires improvement | G43: Good | H43: Good | I43: Good | J43: Good | K43: Good
A44: Ofsted Local Authority Webpage | B44: Essex | C44: East of England | D44: 2014-02-05 | E44: Good | F44: Good | G44: Good | H44: Good | I44: Good | J44: Good | K44: Requires improvement
A45: Ofsted Local Authority Webpage | B45: Gateshead | C45: North East | D45: 2015-11-19 | E45: Good | F45: Good | G45: Good | H45: Good | I45: Requires improvement | J45: Good | K45: Requires improvement
A46: Ofsted Local Authority Webpage | B46: Gloucestershire | C46: South West | D46: 2017-03-23 | E46: Inadequate | F46: Inadequate | G46: Requires improvement | H46: Good | I46: Requires improvement | J46: Inadequate | K46: Requires improvement
A47: Ofsted Local Authority Webpage | B47: Greenwich | C47: London | D47: 2016-06-16 | E47: Good | F47: Good | G47: Good | H47: Good | I47: Good | J47: Good | K47: Good
A48: Ofsted Local Authority Webpage | B48: Hackney | C48: London | D48: 2016-07-28 | E48: Good | F48: Good | G48: Good | H48: Good | I48: Outstanding | J48: Good | K48: Outstanding
A49: Ofsted Local Authority Webpage | B49: Halton | C49: North West | D49: 2014-12-10 | E49: Requires improvement | F49: Requires improvement | G49: Good | H49: Good | I49: Good | J49: Requires improvement | K49: Requires improvement
A50: =IF(B50="","",HYPERLINK("http://reports.ofsted.gov.uk/local-authorities/hammersmith-and-fulham","Ofsted Local Authority Webpage")) -> Ofsted Local Authority Webpage | B50: Hammersmith and Fulham | C50: London | D50: 2016-02-04 | E50: Good | F50: Good | G50: Good | H50: Outstanding | I50: Good | J50: Outstanding | K50: Good
A51: =IF(B51="","",HYPERLINK("http://reports.ofsted.gov.uk/local-authorities/"&B51,"Ofsted Local Authority Webpage")) -> Ofsted Local Authority Webpage | B51: Hampshire | C51: South East | D51: 2014-03-12 | E51: Good | F51: Good | G51: Good | H51: Outstanding | I51: Good | J51: Outstanding | K51: Good
A52: Ofsted Local Authority Webpage | B52: Haringey | C52: London | D52: 2014-06-11 | E52: Requires improvement | F52: Requires improvement | G52: Requires improvement | H52: Requires improvement | I52: Requires improvement | J52: Requires improvement | K52: Requires improvement
A53: Ofsted Local Authority Webpage | B53: Harrow | C53: London | D53: 2017-02-09 | E53: Good | F53: Requires improvement | G53: Good | H53: Good | I53: Good | J53: Good | K53: Requires improvement
A54: Ofsted Local Authority Webpage | B54: Hartlepool | C54: North East | D54: 2013-12-11 | E54: Good | F54: Good | G54: Good | H54: Good | I54: Good | J54: Good | K54: Requires improvement
A55: Ofsted Local Authority Webpage | B55: Havering | C55: London | D55: 2016-10-20 | E55: Requires improvement | F55: Requires improvement | G55: Requires improvement | H55: Requires improvement | I55: Inadequate | J55: Requires improvement | K55: Requires improvement
A56: Ofsted Local Authority Webpage | B56: Herefordshire | C56: West Midlands | D56: 2014-05-21 | E56: Requires improvement | F56: Requires improvement | G56: Requires improvement | H56: Good | I56: Requires improvement | J56: Requires improvement | K56: Requires improvement
A57: Ofsted Local Authority Webpage | B57: Hertfordshire | C57: East of England | D57: 2015-10-08 | E57: Good | F57: Requires improvement | G57: Good | H57: Good | I57: Good | J57: Good | K57: Good
A58: Ofsted Local Authority Webpage | B58: Hillingdon | C58: London | D58: 2013-12-05 | E58: Requires improvement | F58: Requires improvement | G58: Requires improvement | H58: Good | I58: Requires improvement | J58: Requires improvement | K58: Requires improvement
A59: Ofsted Local Authority Webpage | B59: Hounslow | C59: London | D59: 2014-02-05 | E59: Requires improvement | F59: Requires improvement | G59: Requires improvement | H59: Requires improvement | I59: Requires improvement | J59: Requires improvement | K59: Requires improvement
A60: =IF(B60="","",HYPERLINK("http://reports.ofsted.gov.uk/local-authorities/isle-of-wight","Ofsted Local Authority Webpage")) -> Ofsted Local Authority Webpage | B60: Isle of Wight | C60: South East | D60: 2014-10-08 | E60: Requires improvement | F60: Requires improvement | G60: Requires improvement | H60: Requires improvement | I60: Requires improvement | J60: Requires improvement | K60: Requires improvement
A61: =IF(B61="","",HYPERLINK("http://reports.ofsted.gov.uk/local-authorities/isles-of-scilly","Ofsted Local Authority Webpage")) -> Ofsted Local Authority Webpage | B61: Isles of Scilly | C61: South West | D61: 2016-04-28 | E61: Good | F61: Good | G61: - | H61: - | I61: - | J61: Good | K61: Requires improvement
A62: =IF(B62="","",HYPERLINK("http://reports.ofsted.gov.uk/local-authorities/"&B62,"Ofsted Local Authority Webpage")) -> Ofsted Local Authority Webpage | B62: Islington | C62: London | D62: 2017-05-25 | E62: Good | F62: Good | G62: Good | H62: Good | I62: Good | J62: Outstanding | K62: Good
A63: =IF(B63="","",HYPERLINK("http://reports.ofsted.gov.uk/local-authorities/kensington-and-chelsea","Ofsted Local Authority Webpage")) -> Ofsted Local Authority Webpage | B63: Kensington and Chelsea | C63: London | D63: 2016-02-04 | E63: Outstanding | F63: Good | G63: Outstanding | H63: Outstanding | I63: Outstanding | J63: Outstanding | K63: Good
A64: =IF(B64="","",HYPERLINK("http://reports.ofsted.gov.uk/local-authorities/"&B64,"Ofsted Local Authority Webpage")) -> Ofsted Local Authority Webpage | B64: Kent | C64: South East | D64: 2017-03-30 | E64: Good | F64: Requires improvement | G64: Good | H64: Good | I64: Good | J64: Good | K64: Requires improvement
A65: =IF(B65="","",HYPERLINK("http://reports.ofsted.gov.uk/local-authorities/kingston-upon-hull","Ofsted Local Authority Webpage")) -> Ofsted Local Authority Webpage | B65: Kingston upon Hull | C65: Yorkshire and The Humber | D65: 2014-12-10 | E65: Requires improvement | F65: Requires improvement | G65: Requires improvement | H65: Requires improvement | I65: Requires improvement | J65: Requires improvement | K65: Requires improvement
A66: =IF(B66="","",HYPERLINK("http://reports.ofsted.gov.uk/local-authorities/kingston-upon-thames","Ofsted Local Authority Webpage")) -> Ofsted Local Authority Webpage | B66: Kingston upon Thames | C66: London | D66: 2015-06-18 | E66: Good | F66: Good | G66: Good | H66: Good | I66: Good | J66: Good | K66: Good
A67: =IF(B67="","",HYPERLINK("http://reports.ofsted.gov.uk/local-authorities/"&B67,"Ofsted Local Authority Webpage")) -> Ofsted Local Authority Webpage | B67: Kirklees | C67: Yorkshire and The Humber | D67: 2016-10-06 | E67: Inadequate | F67: Inadequate | G67: Inadequate | H67: Requires improvement | I67: Requires improvement | J67: Inadequate | K67: Inadequate
A68: =IF(B68="","",HYPERLINK("http://reports.ofsted.gov.uk/local-authorities/"&B68,"Ofsted Local Authority Webpage")) -> Ofsted Local Authority Webpage | B68: Knowsley | C68: North West | D68: 2017-03-24 | E68: Requires improvement | F68: Requires improvement | G68: Requires improvement | H68: Good | I68: Good | J68: Good | K68: Inadequate
A69: =IF(B69="","",HYPERLINK("http://reports.ofsted.gov.uk/local-authorities/"&B69,"Ofsted Local Authority Webpage")) -> Ofsted Local Authority Webpage | B69: Lambeth | C69: London | D69: 2015-03-18 | E69: Inadequate | F69: Requires improvement | G69: Inadequate | H69: Inadequate | I69: Requires improvement | J69: Inadequate | K69: Inadequate
A70: =IF(B70="","",HYPERLINK("http://reports.ofsted.gov.uk/local-authorities/"&B70,"Ofsted Local Authority Webpage")) -> Ofsted Local Authority Webpage | B70: Lancashire | C70: North West | D70: 2015-10-08 | E70: Inadequate | F70: Inadequate | G70: Requires improvement | H70: Requires improvement | I70: Inadequate | J70: Inadequate | K70: Good
A71: =IF(B71="","",HYPERLINK("http://reports.ofsted.gov.uk/local-authorities/"&B71,"Ofsted Local Authority Webpage")) -> Ofsted Local Authority Webpage | B71: Leeds | C71: Yorkshire and The Humber | D71: 2015-02-11 | E71: Good | F71: Good | G71: Good | H71: Good | I71: Good | J71: Outstanding | K71: Good
A72: =IF(B72="","",HYPERLINK("http://reports.ofsted.gov.uk/local-authorities/leicester-city","Ofsted Local Authority Webpage")) -> Ofsted Local Authority Webpage | B72: Leicester | C72: East Midlands | D72: 2017-07-13 | E72: Requires improvement | F72: Requires improvement | G72: Requires improvement | H72: Good | I72: Requires improvement | J72: Good | K72: Inadequate
A73: =IF(B73="","",HYPERLINK("http://reports.ofsted.gov.uk/local-authorities/"&B73,"Ofsted Local Authority Webpage")) -> Ofsted Local Authority Webpage | B73: Leicestershire | C73: East Midlands | D73: 2016-12-08 | E73: Requires improvement | F73: Requires improvement | G73: Requires improvement | H73: Requires improvement | I73: Requires improvement | J73: Requires improvement | K73: Good
A74: Ofsted Local Authority Webpage | B74: Lewisham | C74: London | D74: 2015-11-20 | E74: Requires improvement | F74: Requires improvement | G74: Good | H74: Good | I74: Good | J74: Requires improvement | K74: Requires improvement
A75: Ofsted Local Authority Webpage | B75: Lincolnshire | C75: East Midlands | D75: 2014-11-12 | E75: Good | F75: Good | G75: Good | H75: Outstanding | I75: Good | J75: Good | K75: Good
A76: Ofsted Local Authority Webpage | B76: Liverpool | C76: North West | D76: 2014-06-11 | E76: Requires improvement | F76: Requires improvement | G76: Requires improvement | H76: Requires improvement | I76: Requires improvement | J76: Requires improvement | K76: Requires improvement
A77: Ofsted Local Authority Webpage | B77: Luton | C77: East of England | D77: 2016-02-04 | E77: Requires improvement | F77: Requires improvement | G77: Requires improvement | H77: Requires improvement | I77: Good | J77: Requires improvement | K77: Requires improvement
A78: Ofsted Local Authority Webpage | B78: Manchester | C78: North West | D78: 2017-11-02 | E78: Requires improvement | F78: Requires improvement | G78: Requires improvement | H78: Good | I78: Requires improvement | J78: Good | K78: Inadequate
A79: Ofsted Local Authority Webpage | B79: Medway | C79: South East | D79: 2015-10-08 | E79: Requires improvement | F79: Requires improvement | G79: Requires improvement | H79: Requires improvement | I79: Good | J79: Requires improvement | K79: Requires improvement
A80: Ofsted Local Authority Webpage | B80: Merton | C80: London | D80: 2017-07-06 | E80: Good | F80: Good | G80: Good | H80: Outstanding | I80: Good | J80: Outstanding | K80: Outstanding
A81: Ofsted Local Authority Webpage | B81: Middlesbrough | C81: North East | D81: 2015-12-17 | E81: Requires improvement | F81: Requires improvement | G81: Requires improvement | H81: Good | I81: Good | J81: Requires improvement | K81: Requires improvement
A82: =IF(B82="","",HYPERLINK("http://reports.ofsted.gov.uk/local-authorities/milton-keynes","Ofsted Local Authority Webpage")) -> Ofsted Local Authority Webpage | B82: Milton Keynes | C82: South East | D82: 2016-10-06 | E82: Requires improvement | F82: Requires improvement | G82: Requires improvement | H82: Requires improvement | I82: Requires improvement | J82: Requires improvement | K82: Requires improvement
A83: =IF(B83="","",HYPERLINK("http://reports.ofsted.gov.uk/local-authorities/newcastle-upon-tyne","Ofsted Local Authority Webpage")) -> Ofsted Local Authority Webpage | B83: Newcastle upon Tyne | C83: North East | D83: 2017-05-18 | E83: Requires improvement | F83: Requires improvement | G83: Requires improvement | H83: Good | I83: Good | J83: Good | K83: Good
A84: =IF(B84="","",HYPERLINK("http://reports.ofsted.gov.uk/local-authorities/"&B84,"Ofsted Local Authority Webpage")) -> Ofsted Local Authority Webpage | B84: Newham | C84: London | D84: 2014-06-25 | E84: Requires improvement | F84: Requires improvement | G84: Requires improvement | H84: Good | I84: Good | J84: Requires improvement | K84: Good
A85: =IF(B85="","",HYPERLINK("http://reports.ofsted.gov.uk/local-authorities/"&B85,"Ofsted Local Authority Webpage")) -> Ofsted Local Authority Webpage | B85: Norfolk | C85: East of England | D85: 2017-11-24 | E85: Requires improvement | F85: Requires improvement | G85: Requires improvement | H85: Outstanding | I85: Requires improvement | J85: Requires improvement | K85: Requires improvement
A86: =IF(B86="","",HYPERLINK("http://reports.ofsted.gov.uk/local-authorities/north-east-lincolnshire","Ofsted Local Authority Webpage")) -> Ofsted Local Authority Webpage | B86: North East Lincolnshire | C86: Yorkshire and The Humber | D86: 2017-08-03 | E86: Good | F86: Requires improvement | G86: Good | H86: Good | I86: Good | J86: Good | K86: Requires improvement
A87: =IF(B87="","",HYPERLINK("http://reports.ofsted.gov.uk/local-authorities/north-lincolnshire","Ofsted Local Authority Webpage")) -> Ofsted Local Authority Webpage | B87: North Lincolnshire | C87: Yorkshire and The Humber | D87: 2017-07-13 | E87: Outstanding | F87: Good | G87: Outstanding | H87: Outstanding | I87: Outstanding | J87: Outstanding | K87: Outstanding
A88: =IF(B88="","",HYPERLINK("http://reports.ofsted.gov.uk/local-authorities/north-somerset","Ofsted Local Authority Webpage")) -> Ofsted Local Authority Webpage | B88: North Somerset | C88: South West | D88: 2017-07-07 | E88: Requires improvement | F88: Requires improvement | G88: Requires improvement | H88: Good | I88: Good | J88: Requires improvement | K88: Inadequate
A89: =IF(B89="","",HYPERLINK("http://reports.ofsted.gov.uk/local-authorities/north-tyneside","Ofsted Local Authority Webpage")) -> Ofsted Local Authority Webpage | B89: North Tyneside | C89: North East | D89: 2017-03-23 | E89: Good | F89: Good | G89: Good | H89: Good | I89: Outstanding | J89: Good | K89: Good
A90: =IF(B90="","",HYPERLINK("http://reports.ofsted.gov.uk/local-authorities/north-yorkshire","Ofsted Local Authority Webpage")) -> Ofsted Local Authority Webpage | B90: North Yorkshire | C90: Yorkshire and The Humber | D90: 2014-05-21 | E90: Good | F90: Good | G90: Good | H90: Good | I90: Good | J90: Good | K90: Good
A91: =IF(B91="","",HYPERLINK("http://reports.ofsted.gov.uk/local-authorities/"&B91,"Ofsted Local Authority Webpage")) -> Ofsted Local Authority Webpage | B91: Northamptonshire | C91: East Midlands | D91: 2016-03-10 | E91: Requires improvement | F91: Requires improvement | G91: Requires improvement | H91: Requires improvement | I91: Requires improvement | J91: Requires improvement | K91: Requires improvement
A92: =IF(B92="","",HYPERLINK("http://reports.ofsted.gov.uk/local-authorities/"&B92,"Ofsted Local Authority Webpage")) -> Ofsted Local Authority Webpage | B92: Northumberland | C92: North East | D92: 2016-02-18 | E92: Requires improvement | F92: Requires improvement | G92: Requires improvement | H92: Good | I92: Requires improvement | J92: Requires improvement | K92: Good
A93: =IF(B93="","",HYPERLINK("http://reports.ofsted.gov.uk/local-authorities/nottingham","Ofsted Local Authority Webpage")) -> Ofsted Local Authority Webpage | B93: Nottingham | C93: East Midlands | D93: 2014-04-02 | E93: Requires improvement | F93: Requires improvement | G93: Requires improvement | H93: Requires improvement | I93: Requires improvement | J93: Requires improvement | K93: Requires improvement
A94: =IF(B94="","",HYPERLINK("http://reports.ofsted.gov.uk/local-authorities/"&B94,"Ofsted Local Authority Webpage")) -> Ofsted Local Authority Webpage | B94: Nottinghamshire | C94: East Midlands | D94: 2015-06-04 | E94: Good | F94: Good | G94: Good | H94: Good | I94: Requires improvement | J94: Good | K94: Good
A95: Ofsted Local Authority Webpage | B95: Oldham | C95: North West | D95: 2015-06-18 | E95: Requires improvement | F95: Requires improvement | G95: Requires improvement | H95: Good | I95: Requires improvement | J95: Requires improvement | K95: Requires improvement
A96: Ofsted Local Authority Webpage | B96: Oxfordshire | C96: South East | D96: 2014-05-21 | E96: Good | F96: Good | G96: Good | H96: Good | I96: Good | J96: Good | K96: Good
A97: Ofsted Local Authority Webpage | B97: Peterborough | C97: East of England | D97: 2015-05-08 | E97: Requires improvement | F97: Requires improvement | G97: Requires improvement | H97: Good | I97: Requires improvement | J97: Requires improvement | K97: Good
A98: Ofsted Local Authority Webpage | B98: Plymouth | C98: South West | D98: 2014-11-12 | E98: Requires improvement | F98: Requires improvement | G98: Requires improvement | H98: Requires improvement | I98: Requires improvement | J98: Requires improvement | K98: Requires improvement
A99: Ofsted Local Authority Webpage | B99: Poole | C99: South West | D99: 2017-10-05 | E99: Requires improvement | F99: Requires improvement | G99: Requires improvement | H99: Good | I99: Good | J99: Requires improvement | K99: Good
A100: Ofsted Local Authority Webpage | B100: Portsmouth | C100: South East | D100: 2014-07-06 | E100: Requires improvement | F100: Requires improvement | G100: Good | H100: Good | I100: Requires improvement | J100: Good | K100: Good
A101: Ofsted Local Authority Webpage | B101: Reading | C101: South East | D101: 2016-06-16 | E101: Inadequate | F101: Inadequate | G101: Inadequate | H101: Requires improvement | I101: Requires improvement | J101: Inadequate | K101: Requires improvement
A102: Ofsted Local Authority Webpage | B102: Redbridge | C102: London | D102: 2016-10-06 | E102: Good | F102: Good | G102: Good | H102: Good | I102: Requires improvement | J102: Good | K102: Good
A103: =IF(B103="","",HYPERLINK("http://reports.ofsted.gov.uk/local-authorities/redcar-and-cleveland","Ofsted Local Authority Webpage")) -> Ofsted Local Authority Webpage | B103: Redcar and Cleveland | C103: North East | D103: 2017-02-09 | E103: Requires improvement | F103: Requires improvement | G103: Good | H103: Good | I103: Good | J103: Requires improvement | K103: Requires improvement
A104: =IF(B104="","",HYPERLINK("http://reports.ofsted.gov.uk/local-authorities/richmond-upon-thames","Ofsted Local Authority Webpage")) -> Ofsted Local Authority Webpage | B104: Richmond Upon Thames | C104: London | D104: 2017-10-19 | E104: Good | F104: Good | G104: Good | H104: Good | I104: Good | J104: Good | K104: Good
A105: =IF(B105="","",HYPERLINK("http://reports.ofsted.gov.uk/local-authorities/"&B105,"Ofsted Local Authority Webpage")) -> Ofsted Local Authority Webpage | B105: Rochdale | C105: North West | D105: 2018-01-29 | E105: Requires improvement to be good | F105: Requires improvement to be good | G105: Good | H105: - | I105: - | J105: Requires improvement to be good | K105: -
A106: Ofsted Local Authority Webpage | B106: Rotherham | C106: Yorkshire and The Humber | D106: 2017-11-30 | E106: Good | F106: Good | G106: Requires improvement | H106: Good | I106: Outstanding | J106: Good | K106: Inadequate
A107: Ofsted Local Authority Webpage | B107: Rutland | C107: East Midlands | D107: 2016-12-07 | E107: Requires improvement | F107: Requires improvement | G107: Requires improvement | H107: Requires improvement | I107: Good | J107: Requires improvement | K107: Good
A108: Ofsted Local Authority Webpage | B108: Salford | C108: North West | D108: 2015-05-08 | E108: Good | F108: Good | G108: Good | H108: Requires improvement | I108: Good | J108: Good | K108: Good
A109: Ofsted Local Authority Webpage | B109: Sandwell | C109: West Midlands | D109: 2017-11-30 | E109: Inadequate | F109: Inadequate | G109: Inadequate | H109: Inadequate | I109: Requires improvement | J109: Inadequate | K109: Inadequate
A110: Ofsted Local Authority Webpage | B110: Sefton | C110: North West | D110: 2016-05-05 | E110: Requires improvement | F110: Requires improvement | G110: Requires improvement | H110: Requires improvement | I110: Requires improvement | J110: Requires improvement | K110: Inadequate
A111: Ofsted Local Authority Webpage | B111: Sheffield | C111: Yorkshire and The Humber | D111: 2014-01-20 | E111: Requires improvement | F111: Good | G111: Requires improvement | H111: Requires improvement | I111: Good | J111: Good | K111: Good
A112: Ofsted Local Authority Webpage | B112: Shropshire | C112: West Midlands | D112: 2017-10-05 | E112: Good | F112: Good | G112: Requires improvement | H112: Good | I112: Requires improvement | J112: Good | K112: Good
A113: Ofsted Local Authority Webpage | B113: Slough | C113: South East | D113: 2015-12-17 | E113: Inadequate | F113: Inadequate | G113: Inadequate | H113: Requires improvement | I113: Inadequate | J113: Inadequate | K113: Inadequate
A114: Ofsted Local Authority Webpage | B114: Solihull | C114: West Midlands | D114: 2016-05-19 | E114: Requires improvement | F114: Requires improvement | G114: Requires improvement | H114: Good | I114: Requires improvement | J114: Requires improvement | K114: Good
A115: Ofsted Local Authority Webpage | B115: Somerset | C115: South West | D115: 2017-11-30 | E115: Requires improvement | F115: Requires improvement | G115: Requires improvement | H115: Good | I115: Requires improvement | J115: Requires improvement | K115: Inadequate
A116: =IF(B116="","",HYPERLINK("http://reports.ofsted.gov.uk/local-authorities/south-gloucestershire","Ofsted Local Authority Webpage")) -> Ofsted Local Authority Webpage | B116: South Gloucestershire | C116: South West | D116: 2016-12-15 | E116: Inadequate | F116: Inadequate | G116: Requires improvement | H116: Good | I116: Requires improvement | J116: Inadequate | K116: Inadequate
A117: =IF(B117="","",HYPERLINK("http://reports.ofsted.gov.uk/local-authorities/south-tyneside","Ofsted Local Authority Webpage")) -> Ofsted Local Authority Webpage | B117: South Tyneside | C117: North East | D117: 2017-10-05 | E117: Good | F117: Good | G117: Good | H117: Outstanding | I117: Good | J117: Good | K117: Good
A118: =IF(B118="","",HYPERLINK("http://reports.ofsted.gov.uk/local-authorities/"&B118,"Ofsted Local Authority Webpage")) -> Ofsted Local Authority Webpage | B118: Southampton | C118: South East | D118: 2014-07-30 | E118: Requires improvement | F118: Requires improvement | G118: Requires improvement | H118: Requires improvement | I118: Inadequate | J118: Requires improvement | K118: Requires improvement
A119: =IF(B119="","",HYPERLINK("http://reports.ofsted.gov.uk/local-authorities/southend-sea","Ofsted Local Authority Webpage")) -> Ofsted Local Authority Webpage | B119: Southend on Sea | C119: East of England | D119: 2016-05-19 | E119: Requires improvement | F119: Requires improvement | G119: Requires improvement | H119: Good | I119: Good | J119: Requires improvement | K119: Requires improvement
A120: =IF(B120="","",HYPERLINK("http://reports.ofsted.gov.uk/local-authorities/"&B120,"Ofsted Local Authority Webpage")) -> Ofsted Local Authority Webpage | B120: Southwark | C120: London | D120: 2017-03-30 | E120: Good | F120: Good | G120: Requires improvement | H120: Outstanding | I120: Requires improvement | J120: Good | K120: Good
A121: =IF(B121="","",HYPERLINK("http://reports.ofsted.gov.uk/local-authorities/st-helens","Ofsted Local Authority Webpage")) -> Ofsted Local Authority Webpage | B121: St Helens | C121: North West | D121: 2014-11-25 | E121: Requires improvement | F121: Requires improvement | G121: Requires improvement | H121: Requires improvement | I121: Requires improvement | J121: Requires improvement | K121: Requires improvement
A122: =IF(B122="","",HYPERLINK("http://reports.ofsted.gov.uk/local-authorities/"&B122,"Ofsted Local Authority Webpage")) -> Ofsted Local Authority Webpage | B122: Staffordshire | C122: West Midlands | D122: 2014-02-05 | E122: Good | F122: Good | G122: Good | H122: Good | I122: Good | J122: Good | K122: Good
A123: =IF(B123="","",HYPERLINK("http://reports.ofsted.gov.uk/local-authorities/"&B123,"Ofsted Local Authority Webpage")) -> Ofsted Local Authority Webpage | B123: Stockport | C123: North West | D123: 2017-07-06 | E123: Good | F123: Good | G123: Good | H123: Outstanding | I123: Good | J123: Good | K123: Requires improvement
A124: =IF(B124="","",HYPERLINK("http://reports.ofsted.gov.uk/local-authorities/stockton-tees","Ofsted Local Authority Webpage")) -> Ofsted Local Authority Webpage | B124: Stockton-on-Tees | C124: North East | D124: 2016-06-16 | E124: Good | F124: Good | G124: Requires improvement | H124: Requires improvement | I124: Outstanding | J124: Good | K124: Requires improvement
A125: =IF(B125="","",HYPERLINK("http://reports.ofsted.gov.uk/local-authorities/stoke-trent","Ofsted Local Authority Webpage")) -> Ofsted Local Authority Webpage | B125: Stoke-on-Trent | C125: West Midlands | D125: 2015-06-25 | E125: Requires improvement | F125: Requires improvement | G125: Requires improvement | H125: Good | I125: Requires improvement | J125: Requires improvement | K125: Requires improvement
A126: =IF(B126="","",HYPERLINK("http://reports.ofsted.gov.uk/local-authorities/"&B126,"Ofsted Local Authority Webpage")) -> Ofsted Local Authority Webpage | B126: Suffolk | C126: East of England | D126: 2015-12-17 | E126: Good | F126: Requires improvement | G126: Good | H126: Good | I126: Requires improvement | J126: Good | K126: Good
A127: Ofsted Local Authority Webpage | B127: Sunderland | C127: North East | D127: 2015-06-04 | E127: Inadequate | F127: Inadequate | G127: Inadequate | H127: Inadequate | I127: Inadequate | J127: Inadequate | K127: Inadequate
A128: Ofsted Local Authority Webpage | B128: Surrey | C128: South East | D128: 2014-11-12 | E128: Inadequate | F128: Inadequate | G128: Requires improvement | H128: Good | I128: Requires improvement | J128: Inadequate | K128: Requires improvement
A129: Ofsted Local Authority Webpage | B129: Sutton | C129: London | D129: 2016-12-08 | E129: Good | F129: Good | G129: Good | H129: Good | I129: Requires improvement | J129: Good | K129: Good
A130: Ofsted Local Authority Webpage | B130: Swindon | C130: South West | D130: 2014-04-02 | E130: Requires improvement | F130: Requires improvement | G130: Requires improvement | H130: Good | I130: Requires improvement | J130: Requires improvement | K130: Good
A131: Ofsted Local Authority Webpage | B131: Tameside | C131: North West | D131: 2016-10-20 | E131: Inadequate | F131: Inadequate | G131: Requires improvement | H131: Good | I131: Requires improvement | J131: Inadequate | K131: Requires improvement
A132: =IF(B132="","",HYPERLINK("http://reports.ofsted.gov.uk/local-authorities/telford-and-wrekin","Ofsted Local Authority Webpage")) -> Ofsted Local Authority Webpage | B132: Telford and Wrekin | C132: West Midlands | D132: 2016-07-07 | E132: Requires improvement | F132: Requires improvement | G132: Requires improvement | H132: Good | I132: Good | J132: Requires improvement | K132: Good
A133: =IF(B133="","",HYPERLINK("http://reports.ofsted.gov.uk/local-authorities/"&B133,"Ofsted Local Authority Webpage")) -> Ofsted Local Authority Webpage | B133: Thurrock | C133: East of England | D133: 2016-03-17 | E133: Requires improvement | F133: Requires improvement | G133: Requires improvement | H133: Requires improvement | I133: Requires improvement | J133: Requires improvement | K133: Good
A134: =IF(B134="","",HYPERLINK("http://reports.ofsted.gov.uk/local-authorities/"&B134,"Ofsted Local Authority Webpage")) -> Ofsted Local Authority Webpage | B134: Torbay | C134: South West | D134: 2015-11-05 | E134: Inadequate | F134: Inadequate | G134: Requires improvement | H134: Requires improvement | I134: Requires improvement | J134: Inadequate | K134: Inadequate
A135: =IF(B135="","",HYPERLINK("http://reports.ofsted.gov.uk/local-authorities/tower-hamlets","Ofsted Local Authority Webpage")) -> Ofsted Local Authority Webpage | B135: Tower Hamlets | C135: London | D135: 2017-02-16 | E135: Inadequate | F135: Inadequate | G135: Requires improvement | H135: Requires improvement | I135: Requires improvement | J135: Inadequate | K135: Inadequate
A136: =IF(B136="","",HYPERLINK("http://reports.ofsted.gov.uk/local-authorities/"&B136,"Ofsted Local Authority Webpage")) -> Ofsted Local Authority Webpage | B136: Trafford | C136: North West | D136: 2015-02-18 | E136: Good | F136: Good | G136: Good | H136: Good | I136: Outstanding | J136: Outstanding | K136: Good
A137: =IF(B137="","",HYPERLINK("http://reports.ofsted.gov.uk/local-authorities/"&B137,"Ofsted Local Authority Webpage")) -> Ofsted Local Authority Webpage | B137: Wakefield | C137: Yorkshire and The Humber | D137: 2016-07-28 | E137: Requires improvement | F137: Requires improvement | G137: Requires improvement | H137: Good | I137: Good | J137: Requires improvement | K137: Good
A138: =IF(B138="","",HYPERLINK("http://reports.ofsted.gov.uk/local-authorities/"&B138,"Ofsted Local Authority Webpage")) -> Ofsted Local Authority Webpage | B138: Walsall | C138: West Midlands | D138: 2017-07-13 | E138: Requires improvement | F138: Requires improvement | G138: Requires improvement | H138: Good | I138: Requires improvement | J138: Requires improvement | K138: Requires improvement
A139: =IF(B139="","",HYPERLINK("http://reports.ofsted.gov.uk/local-authorities/waltham-forest","Ofsted Local Authority Webpage")) -> Ofsted Local Authority Webpage | B139: Waltham Forest | C139: London | D139: 2014-11-26 | E139: Requires improvement | F139: Requires improvement | G139: Requires improvement | H139: Requires improvement | I139: Requires improvement | J139: Requires improvement | K139: Requires improvement
A140: =IF(B140="","",HYPERLINK("http://reports.ofsted.gov.uk/local-authorities/"&B140,"Ofsted Local Authority Webpage")) -> Ofsted Local Authority Webpage | B140: Wandsworth | C140: London | D140: 2015-12-17 | E140: Inadequate | F140: Inadequate | G140: Requires improvement | H140: Requires improvement | I140: Inadequate | J140: Inadequate | K140: Requires improvement
A141: =IF(B141="","",HYPERLINK("http://reports.ofsted.gov.uk/local-authorities/"&B141,"Ofsted Local Authority Webpage")) -> Ofsted Local Authority Webpage | B141: Warrington | C141: North West | D141: 2015-03-20 | E141: Requires improvement | F141: Requires improvement | G141: Good | H141: Good | I141: Good | J141: Requires improvement | K141: Requires improvement
A142: =IF(B142="","",HYPERLINK("http://reports.ofsted.gov.uk/local-authorities/"&B142,"Ofsted Local Authority Webpage")) -> Ofsted Local Authority Webpage | B142: Warwickshire | C142: West Midlands | D142: 2017-05-25 | E142: Requires improvement | F142: Requires improvement | G142: Requires improvement | H142: Good | I142: Requires improvement | J142: Requires improvement | K142: Requires improvement
A143: =IF(B143="","",HYPERLINK("http://reports.ofsted.gov.uk/local-authorities/west-berkshire","Ofsted Local Authority Webpage")) -> Ofsted Local Authority Webpage | B143: West Berkshire | C143: South East | D143: 2017-05-19 | E143: Good | F143: Requires improvement | G143: Good | H143: Good | I143: Good | J143: Good | K143: Requires improvement
A144: =IF(B144="","",HYPERLINK("http://reports.ofsted.gov.uk/local-authorities/west-sussex","Ofsted Local Authority Webpage")) -> Ofsted Local Authority Webpage | B144: West Sussex | C144: South East | D144: 2015-11-19 | E144: Requires improvement | F144: Requires improvement | G144: Requires improvement | H144: Requires improvement | I144: Requires improvement | J144: Requires improvement | K144: Requires improvement
A145: =IF(B145="","",HYPERLINK("http://reports.ofsted.gov.uk/local-authorities/"&B145,"Ofsted Local Authority Webpage")) -> Ofsted Local Authority Webpage | B145: Westminster | C145: London | D145: 2016-02-04 | E145: Outstanding | F145: Good | G145: Outstanding | H145: Outstanding | I145: Good | J145: Outstanding | K145: Good
A146: =IF(B146="","",HYPERLINK("http://reports.ofsted.gov.uk/local-authorities/"&B146,"Ofsted Local Authority Webpage")) -> Ofsted Local Authority Webpage | B146: Wigan | C146: North West | D146: 2017-02-09 | E146: Good | F146: Requires improvement | G146: Good | H146: Outstanding | I146: Good | J146: Good | K146: Requires improvement
A147: =IF(B147="","",HYPERLINK("http://reports.ofsted.gov.uk/local-authorities/"&B147,"Ofsted Local Authority Webpage")) -> Ofsted Local Authority Webpage | B147: Wiltshire | C147: South West | D147: 2015-07-16 | E147: Requires improvement | F147: Requires improvement | G147: Requires improvement | H147: Requires improvement | I147: Requires improvement | J147: Requires improvement | K147: Requires improvement
A148: =IF(B148="","",HYPERLINK("http://reports.ofsted.gov.uk/local-authorities/windsor-and-maidenhead","Ofsted Local Authority Webpage")) -> Ofsted Local Authority Webpage | B148: Windsor and Maidenhead | C148: South East | D148: 2015-03-25 | E148: Requires improvement | F148: Requires improvement | G148: Requires improvement | H148: Requires improvement | I148: Requires improvement | J148: Requires improvement | K148: Requires improvement
A149: =IF(B149="","",HYPERLINK("http://reports.ofsted.gov.uk/local-authorities/"&B149,"Ofsted Local Authority Webpage")) -> Ofsted Local Authority Webpage | B149: Wirral | C149: North West | D149: 2016-07-28 | E149: Inadequate | F149: Inadequate | G149: Requires improvement | H149: Requires improvement | I149: Inadequate | J149: Inadequate | K149: Inadequate
A150: =IF(B150="","",HYPERLINK("http://reports.ofsted.gov.uk/local-authorities/"&B150,"Ofsted Local Authority Webpage")) -> Ofsted Local Authority Webpage | B150: Wokingham | C150: South East | D150: 2015-11-05 | E150: Requires improvement | F150: Requires improvement | G150: Requires improvement | H150: Good | I150: Requires improvement | J150: Requires improvement | K150: Requires improvement
A151: =IF(B151="","",HYPERLINK("http://reports.ofsted.gov.uk/local-authorities/"&B151,"Ofsted Local Authority Webpage")) -> Ofsted Local Authority Webpage | B151: Wolverhampton | C151: West Midlands | D151: 2017-02-09 | E151: Good | F151: Requires improvement | G151: Good | H151: Good | I151: Good | J151: Good | K151: Requires improvement
A152: =IF(B152="","",HYPERLINK("http://reports.ofsted.gov.uk/local-authorities/"&B152,"Ofsted Local Authority Webpage")) -> Ofsted Local Authority Webpage | B152: Worcestershire | C152: West Midlands | D152: 2016-11-17 | E152: Inadequate | F152: Inadequate | G152: Inadequate | H152: Requires improvement | I152: Inadequate | J152: Inadequate | K152: Requires improvement
A153: =IF(B153="","",HYPERLINK("http://reports.ofsted.gov.uk/local-authorities/"&B153,"Ofsted Local Authority Webpage")) -> Ofsted Local Authority Webpage | B153: York | C153: Yorkshire and The Humber | D153: 2016-12-08 | E153: Good | F153: Requires improvement | G153: Good | H153: Good | I153: Good | J153: Good | K153: Outstanding

Sheet ILACS visits
A1: Web link | B1: Local authority name | C1: Region | D1: Visit date | E1: Publication date | F1: Visit type
A2: =IF(B2="","",HYPERLINK("http://reports.ofsted.gov.uk/local-authorities/barking-and-dagenham","Ofsted Local Authority Webpage")) -> Ofsted Local Authority Webpage | B2: Barking and Dagenham | C2: London | D2: 2018-03-07 | E2: 2018-04-03 | F2: Focused
A3: =IF(B3="","",HYPERLINK("http://reports.ofsted.gov.uk/local-authorities/"&B3,"Ofsted Local Authority Webpage")) -> Ofsted Local Authority Webpage | B3: Barnet | C3: London | D3: 2018-01-30 | E3: 2018-02-22 | F3: Monitoring
A4: =IF(B4="","",HYPERLINK("http://reports.ofsted.gov.uk/local-authorities/"&B4,"Ofsted Local Authority Webpage")) -> Ofsted Local Authority Webpage | B4: Birmingham | C4: West Midlands | D4: 2018-03-06 | E4: 2018-03-29 | F4: Monitoring
A5: =IF(B5="","",HYPERLINK("http://reports.ofsted.gov.uk/local-authorities/"&B5,"Ofsted Local Authority Webpage")) -> Ofsted Local Authority Webpage | B5: Bromley | C5: London | D5: 2018-03-13 | E5: 2018-04-09 | F5: Monitoring
A6: Ofsted Local Authority Webpage | B6: Cambridgeshire | C6: East of England | D6: 2018-03-13 | E6: 2018-04-09 | F6: Focused
A7: =IF(B7="","",HYPERLINK("http://reports.ofsted.gov.uk/local-authorities/"&B7,"Ofsted Local Authority Webpage")) -> Ofsted Local Authority Webpage | B7: Coventry | C7: West Midlands | D7: 2018-01-30 | E7: 2018-02-22 | F7: Focused
A8: =IF(B8="","",HYPERLINK("http://reports.ofsted.gov.uk/local-authorities/"&B8,"Ofsted Local Authority Webpage")) -> Ofsted Local Authority Webpage | B8: Derbyshire | C8: East Midlands | D8: 2018-02-27 | E8: 2018-03-22 | F8: Focused
A9: Ofsted Local Authority Webpage | B9: Dudley | C9: West Midlands | D9: 2018-02-08 | E9: 2018-03-05 | F9: Monitoring
A10: Ofsted Local Authority Webpage | B10: Gloucestershire | C10: South West | D10: 2018-01-16 | E10: 2018-02-08 | F10: Monitoring
A11: =IF(B11="","",HYPERLINK("http://reports.ofsted.gov.uk/local-authorities/"&B11,"Ofsted Local Authority Webpage")) -> Ofsted Local Authority Webpage | B11: Kirklees | C11: Yorkshire and The Humber | D11: 2018-03-13 | E11: 2018-04-09 | F11: Monitoring
A12: =IF(B12="","",HYPERLINK("http://reports.ofsted.gov.uk/local-authorities/"&B12,"Ofsted Local Authority Webpage")) -> Ofsted Local Authority Webpage | B12: Lancashire | C12: North West | D12: 2018-02-27 | E12: 2018-03-22 | F12: Monitoring
A13: =IF(B13="","",HYPERLINK("http://reports.ofsted.gov.uk/local-authorities/"&B13,"Ofsted Local Authority Webpage")) -> Ofsted Local Authority Webpage | B13: Leeds | C13: Yorkshire and The Humber | D13: 2018-01-30 | E13: 2018-02-22 | F13: Focused
A14: =IF(B14="","",HYPERLINK("http://reports.ofsted.gov.uk/local-authorities/"&B14,"Ofsted Local Authority Webpage")) -> Ofsted Local Authority Webpage | B14: Newham | C14: London | D14: 2018-02-06 | E14: 2018-03-01 | F14: Focused
A15: =IF(B15="","",HYPERLINK("http://reports.ofsted.gov.uk/local-authorities/"&B15,"Ofsted Local Authority Webpage")) -> Ofsted Local Authority Webpage | B15: Northumberland | C15: North East | D15: 2018-02-06 | E15: 2018-03-01 | F15: Focused
A16: =IF(B16="","",HYPERLINK("http://reports.ofsted.gov.uk/local-authorities/"&B16,"Ofsted Local Authority Webpage")) -> Ofsted Local Authority Webpage | B16: Nottinghamshire | C16: East Midlands | D16: 2018-01-30 | E16: 2018-02-22 | F16: Focused
A17: Ofsted Local Authority Webpage | B17: Oldham | C17: North West | D17: 2018-03-13 | E17: 2018-04-11 | F17: Focused
A18: Ofsted Local Authority Webpage | B18: Reading | C18: South East | D18: 2018-02-06 | E18: 2018-03-01 | F18: Monitoring
A19: Ofsted Local Authority Webpage | B19: Slough | C19: South East | D19: 2018-01-10 | E19: 2018-02-02 | F19: Monitoring
A20: Ofsted Local Authority Webpage | B20: Solihull | C20: West Midlands | D20: 2018-02-14 | E20: 2018-03-09 | F20: Focused
A21: =IF(B21="","",HYPERLINK("http://reports.ofsted.gov.uk/local-authorities/south-gloucestershire","Ofsted Local Authority Webpage")) -> Ofsted Local Authority Webpage | B21: South Gloucestershire | C21: South West | D21: 2018-01-31 | E21: 2018-02-23 | F21: Monitoring
A22: =IF(B22="","",HYPERLINK("http://reports.ofsted.gov.uk/local-authorities/"&B22,"Ofsted Local Authority Webpage")) -> Ofsted Local Authority Webpage | B22: Sunderland | C22: North East | D22: 2018-01-23 | E22: 2018-02-15 | F22: Monitoring
A23: Ofsted Local Authority Webpage | B23: Tameside | C23: North West | D23: 2018-01-10 | E23: 2018-02-02 | F23: Monitoring
A24: =IF(B24="","",HYPERLINK("http://reports.ofsted.gov.uk/local-authorities/"&B24,"Ofsted Local Authority Webpage")) -> Ofsted Local Authority Webpage | B24: Torbay | C24: South West | D24: 2018-02-21 | E24: 2018-03-16 | F24: Monitoring
A25: =IF(B25="","",HYPERLINK("http://reports.ofsted.gov.uk/local-authorities/"&B25,"Ofsted Local Authority Webpage")) -> Ofsted Local Authority Webpage | B25: Wakefield | C25: Yorkshire and The Humber | D25: 2018-02-27 | E25: 2018-03-22 | F25: Focused
A26: =IF(B26="","",HYPERLINK("http://reports.ofsted.gov.uk/local-authorities/waltham-forest","Ofsted Local Authority Webpage")) -> Ofsted Local Authority Webpage | B26: Waltham Forest | C26: London | D26: 2018-03-07 | E26: 2018-04-03 | F26: Focused
A27: =IF(B27="","",HYPERLINK("http://reports.ofsted.gov.uk/local-authorities/"&B27,"Ofsted Local Authority Webpage")) -> Ofsted Local Authority Webpage | B27: Warrington | C27: North West | D27: 2018-01-31 | E27: 2018-02-23 | F27: Focused
A28: =IF(B28="","",HYPERLINK("http://reports.ofsted.gov.uk/local-authorities/"&B28,"Ofsted Local Authority Webpage")) -> Ofsted Local Authority Webpage | B28: Wirral | C28: North West | D28: 2018-03-06 | E28: 2018-04-10 | F28: Monitoring
A29: =IF(B29="","",HYPERLINK("http://reports.ofsted.gov.uk/local-authorities/"&B29,"Ofsted Local Authority Webpage")) -> Ofsted Local Authority Webpage | B29: Worcestershire | C29: West Midlands | D29: 2018-01-30 | E29: 2018-02-22 | F29: Monitoring

Sheet Provider level at 31 Mar 2018
A1: Provider information | S1: Latest Full Inspection
A2: Web link | B2: URN | C2: Linked education URN | D2: Provision type | E2: Registration status | F2: Name | G2: Address 1 | H2: Address 2 | I2: Town | J2: County | K2: Postcode | L2: Ofsted Region | M2: Government Office Region | N2: Local authority | O2: Parliamentary constituency | P2: Sector | Q2: Places | R2: Organisation | S2: Event type | T2: Inspection date | U2: Publication date | V2: Event number | W2: Overall effectiveness | X2: Outcomes for children and young people | Y2: Quality of care | Z2: Safeguarding children and young people | AA2: Leadership and management
A3: =HYPERLINK("https://reports.ofsted.gov.uk/secure-training-centres/medway","Ofsted Social Care Provider Webpage") -> Ofsted Social Care Provider Webpage | B3: 1027076 | D3: Secure Training Centre | E3: Active | F3: Medway Secure Training Centre | G3: Sir Evelyn Road | I3: Rochester | J3: Kent | K3: ME1 3YB | L3: South East | M3: South East | N3: Medway | O3: Rochester and Strood | P3: Private | S3: Full inspection | T3: 2016-06-24 | U3: 2016-08-08 | V3: 10000029 | W3: Inadequate | X3: Requires improvement | Y3: Inadequate | Z3: Inadequate | AA3: Inadequate
A4: =HYPERLINK("https://reports.ofsted.gov.uk/secure-training-centres/oakhill","Ofsted Social Care Provider Webpage") -> Ofsted Social Care Provider Webpage | B4: 1027077 | D4: Secure Training Centre | E4: Active | F4: Oakhill Secure Training Centre | G4: Chalgrove Field Oakhill | I4: Milton Keynes | K4: MK5 6AJ | L4: South East | M4: South East | N4: Milton Keynes | O4: Milton Keynes South | P4: Private | S4: Full inspection | T4: 2017-10-06 | U4: 2017-11-21 | V4: 10025840 | W4: Inadequate | X4: Requires improvement to be good | Y4: Inadequate | Z4: Inadequate | AA4: Inadequate
A5: =HYPERLINK("https://reports.ofsted.gov.uk/secure-training-centres/rainsbrook","Ofsted Social Care Provider Webpage") -> Ofsted Social Care Provider Webpage | B5: 1027078 | D5: Secure Training Centre | E5: Active | F5: Rainsbrook Secure Training Centre | G5: Willoughby | I5: Rugby | J5: Warwickshire | K5: CV23 8SY | L5: East Midlands | M5: East Midlands | N5: Northamptonshire | O5: Daventry | P5: Private | S5: Full inspection | T5: 2017-06-23 | U5: 2017-08-08 | V5: 10025841 | W5: Requires improvement to be good | X5: Requires improvement to be good | Y5: Requires improvement to be good | Z5: Requires improvement to be good | AA5: Inadequate
A6: =HYPERLINK("http://reports.ofsted.gov.uk/residential-holiday-schemes-for-disabled-children","Ofsted Social Care Provider Webpage") -> Ofsted Social Care Provider Webpage | B6: 1027081 | D6: Residential Holiday Scheme for Disabled Children | E6: Active | F6: Break-away | G6: REDACTED | H6: REDACTED | I6: REDACTED | J6: REDACTED | K6: REDACTED | L6: East of England | M6: East of England | N6: Norfolk | O6: Norwich North | P6: Voluntary | R6: Break | S6: Full inspection | T6: 2017-08-24 | U6: 2017-09-15 | V6: 10029053 | W6: Good | Z6: Good | AA6: Good
A7: Ofsted Social Care Provider Webpage | B7: 1027082 | D7: Residential Holiday Scheme for Disabled Children | E7: Active | F7: Heswall Disabled Children's Holiday Fund | G7: REDACTED | H7: REDACTED | I7: REDACTED | J7: REDACTED | K7: REDACTED | L7: East Midlands | M7: East Midlands | N7: Leicestershire | O7: South Leicestershire | P7: Voluntary | R7: Heswall Disabled Children's Holiday Fund | S7: Full inspection | T7: 2017-08-16 | U7: 2017-09-11 | V7: 10029054 | W7: Outstanding | Z7: Outstanding | AA7: Outstanding
A8: Ofsted Social Care Provider Webpage | B8: 1027083 | D8: Residential Holiday Scheme for Disabled Children | E8: Active | F8: The Newman Holiday Trust | G8: REDACTED | H8: REDACTED | I8: REDACTED | J8: REDACTED | K8: REDACTED | L8: North West | M8: North West | N8: Lancashire | O8: Morecambe and Lunesdale | P8: Voluntary | R8: The Newman Trust For The Handicapped | S8: Full inspection | T8: 2017-08-17 | U8: 2017-09-21 | V8: 10029055 | W8: Outstanding | Z8: Outstanding | AA8: Good
A9: Ofsted Social Care Provider Webpage | B9: 1027084 | D9: Residential Holiday Scheme for Disabled Children | E9: Active | F9: Action Breaks | G9: REDACTED | H9: REDACTED | I9: REDACTED | J9: REDACTED | K9: REDACTED | L9: South West | M9: South West | N9: North Somerset | O9: North Somerset | P9: Voluntary | R9: Action For Children | S9: Full inspection | T9: 2017-09-01 | U9: 2017-09-25 | V9: 10029056 | W9: Good | Z9: Good | AA9: Requires improvement to be good
A10: Ofsted Social Care Provider Webpage | B10: 1027090 | D10: Residential Holiday Scheme for Disabled Children | E10: Active | F10: National Deaf Children's Society | G10: REDACTED | H10: REDACTED | I10: REDACTED | J10: REDACTED | K10: REDACTED | L10: London | M10: London | N10: Islington | O10: Islington South and Finsbury | P10: Voluntary | S10: Full inspection | T10: 2018-02-23 | U10: 2018-03-21 | V10: 10029058 | W10: Good | Z10: Good | AA10: Good
A11: Ofsted Social Care Provider Webpage | B11: 1027091 | D11: Residential Holiday Scheme for Disabled Children | E11: Active | F11: Challengers Activity Overnighters | G11: REDACTED | H11: REDACTED | I11: REDACTED | J11: REDACTED | K11: REDACTED | L11: South East | M11: South East | N11: Surrey | O11: Guildford | P11: Private | R11: Disability Challengers 04300724, 1095134 | S11: Full inspection | T11: 2016-08-24 | U11: 2016-09-23 | V11: 10017916 | W11: Good | Z11: Good | AA11: Good
A12: Ofsted Social Care Provider Webpage | B12: 1027092 | D12: Residential Holiday Scheme for Disabled Children | E12: Active | F12: The Ear Foundation for Deaf Teenagers | G12: REDACTED | H12: REDACTED | I12: REDACTED | J12: REDACTED | K12: REDACTED | L12: East Midlands | M12: East Midlands | N12: Nottingham | O12: Nottingham South | P12: Voluntary | S12: Full inspection | T12: 2017-08-17 | U12: 2017-09-25 | V12: 10029059 | W12: Outstanding | Z12: Outstanding | AA12: Outstanding
A13: Ofsted Social Care Provider Webpage | B13: 1027093 | D13: Residential Holiday Scheme for Disabled Children | E13: Active | F13: Over the Wall | G13: REDACTED | H13: REDACTED | I13: REDACTED | J13: REDACTED | K13: REDACTED | L13: South East | M13: South East | N13: Hampshire | O13: Havant | P13: Private | R13: Over The Wall 03713232, 1075361 | S13: Full inspection | T13: 2017-08-25 | U13: 2017-09-28 | V13: 10029060 | W13: Outstanding | Z13: Outstanding | AA13: Outstanding
A14: =HYPERLINK("http://reports.ofsted.gov.uk/inspection-reports/find-inspection-report/provider/CARE/1027158","Ofsted Social Care Provider Webpage") -> Ofsted Social Care Provider Webpage | B14: 1027158 | D14: Children's home | E14: Active | F14: REDACTED | G14: REDACTED | H14: REDACTED | I14: REDACTED | J14: REDACTED | K14: REDACTED | L14: East of England | M14: East of England | N14: Norfolk | O14: South West Norfolk | P14: Private | Q14: 6 | R14: Unique Care Homes Support Limited | S14: Full inspection | T14: 2017-05-18 | U14: 2017-06-08 | V14: 10028797 | W14: Requires improvement to be good | Z14: Requires improvement to be good | AA14: Requires improvement to be good
A15: =HYPERLINK("http://reports.ofsted.gov.uk/inspection-reports/find-inspection-report/provider/CARE/1027164","Ofsted Social Care Provider Webpage") -> Ofsted Social Care Provider Webpage | B15: 1027164 | D15: Children's home | E15: Active | F15: REDACTED | G15: REDACTED | H15: REDACTED | I15: REDACTED | J15: REDACTED | K15: REDACTED | L15: North West | M15: North West | N15: Cheshire West and Chester | O15: Eddisbury | P15: Private | Q15: 5 | R15: Care 4 Children Residential Services Ltd | S15: Full inspection | T15: 2017-08-31 | U15: 2017-09-27 | V15: 10028790 | W15: Outstanding | Z15: Outstanding | AA15: Outstanding
A16: =HYPERLINK("http://reports.ofsted.gov.uk/inspection-reports/find-inspection-report/provider/CARE/1155757","Ofsted Social Care Provider Webpage") -> Ofsted Social Care Provider Webpage | B16: 1155757 | D16: Children's home | E16: Active | F16: REDACTED | G16: REDACTED | H16: REDACTED | I16: REDACTED | J16: REDACTED | K16: REDACTED | L16: North East, Yorkshire and the Humber | M16: North East | N16: Northumberland | O16: Wansbeck | P16: Local Authority | Q16: 3 | R16: Northumberland County Council | S16: Full inspection | T16: 2017-05-17 | U16: 2017-06-15 | V16: 10028767 | W16: Good | Z16: Good | AA16: Outstanding
A17: =HYPERLINK("http://reports.ofsted.gov.uk/inspection-reports/find-inspection-report/provider/CARE/1155761","Ofsted Social Care Provider Webpage") -> Ofsted Social Care Provider Webpage | B17: 1155761 | D17: Children's home | E17: Active | F17: REDACTED | G17: REDACTED | H17: REDACTED | I17: REDACTED | J17: REDACTED | K17: REDACTED | L17: South West | M17: South West | N17: Gloucestershire | O17: Gloucester | P17: Private | Q17: 3 | R17: Carbrey Care Ltd | S17: Full inspection | T17: 2017-08-02 | U17: 2017-08-22 | V17: 10028813 | W17: Good | Z17: Good | AA17: Good
A18: =HYPERLINK("http://reports.ofsted.gov.uk/inspection-reports/find-inspection-report/provider/CARE/1155768","Ofsted Social Care Provider Webpage") -> Ofsted Social Care Provider Webpage | B18: 1155768 | D18: Children's home | E18: Active | F18: REDACTED | G18: REDACTED | H18: REDACTED | I18: REDACTED | J18: REDACTED | K18: REDACTED | L18: West Midlands | M18: West Midlands | N18: Worcestershire | O18: Worcester | P18: Local Authority | Q18: 3 | R18: Worcestershire County Council | S18: Full inspection | T18: 2018-01-16 | U18: 2018-02-28 | V18: 10028777 | W18: Outstanding | Z18: Outstanding | AA18: Outstanding
A19: =HYPERLINK("http://reports.ofsted.gov.uk/inspection-reports/find-inspection-report/provider/CARE/1155775","Ofsted Social Care Provider Webpage") -> Ofsted Social Care Provider Webpage | B19: 1155775 | D19: Children's home | E19: Active | F19: REDACTED | G19: REDACTED | H19: REDACTED | I19: REDACTED | J19: REDACTED | K19: REDACTED | L19: North West | M19: North West | N19: Manchester | O19: Manchester, Gorton | P19: Private | Q19: 1 | R19: Cambian Childcare Ltd | S19: Full inspection | T19: 2017-06-22 | U19: 2017-07-12 | V19: 10028804 | W19: Good | Z19: Good | AA19: Good
A20: =HYPERLINK("http://reports.ofsted.gov.uk/inspection-reports/find-inspection-report/provider/CARE/1155780","Ofsted Social Care Provider Webpage") -> Ofsted Social Care Provider Webpage | B20: 1155780 | D20: Children's home | E20: Active | F20: REDACTED | G20: REDACTED | H20: REDACTED | I20: REDACTED | J20: REDACTED | K20: REDACTED | L20: West Midlands | M20: West Midlands | N20: Shropshire | O20: North Shropshire | P20: Private | Q20: 4 | R20: Cambian Childcare Ltd | S20: Full inspection | T20: 2017-12-07 | U20: 2018-01-19 | V20: 10028833 | W20: Outstanding | Z20: Outstanding | AA20: Outstanding
A21: =HYPERLINK("http://reports.ofsted.gov.uk/inspection-reports/find-inspection-report/provider/CARE/1156098","Ofsted Social Care Provider Webpage") -> Ofsted Social Care Provider Webpage | B21: 1156098 | D21: Children's home | E21: Active | F21: REDACTED | G21: REDACTED | H21: REDACTED | I21: REDACTED | J21: REDACTED | K21: REDACTED | L21: North West | M21: North West | N21: Bolton | O21: Bolton South East | P21: Private | Q21: 3 | R21: Cambian Childcare Ltd | S21: Full inspection | T21: 2017-07-25 | U21: 2017-08-21 | V21: 10028854 | W21: Good | Z21: Good | AA21: Good
A22: =HYPERLINK("http://reports.ofsted.gov.uk/inspection-reports/find-inspection-report/provider/CARE/1156103","Ofsted Social Care Provider Webpage") -> Ofsted Social Care Provider Webpage | B22: 1156103 | D22: Children's home | E22: Active | F22: REDACTED | G22: REDACTED | H22: REDACTED | I22: REDACTED | J22: REDACTED | K22: REDACTED | L22: West Midlands | M22: West Midlands | N22: Shropshire | O22: Shrewsbury and Atcham | P22: Private | Q22: 4 | R22: Cambian Childcare Ltd | S22: Full inspection | T22: 2018-01-17 | U22: 2018-02-27 | V22: 10028864 | W22: Good | Z22: Good | AA22: Good
A23: =HYPERLINK("http://reports.ofsted.gov.uk/inspection-reports/find-inspection-report/provider/CARE/1156149","Ofsted Social Care Provider Webpage") -> Ofsted Social Care Provider Webpage | B23: 1156149 | D23: Independent Fostering Agency | E23: Active | F23: Parent And Child Fostering Assessments | G23: Alfa House | H23: Molesey Road | I23: Walton On Thames | K23: KT12 3PD | L23: South East | M23: South East | N23: Surrey | O23: Esher and Walton | P23: Private | R23: Parent And Child Fostering Assessments Ltd | S23: Full inspection | T23: 2016-06-10 | U23: 2016-07-05 | V23: 10011340 | W23: Good | X23: Good | Y23: Good | Z23: Good | AA23: Good
A24: =HYPERLINK("http://reports.ofsted.gov.uk/inspection-reports/find-inspection-report/provider/CARE/1159258","Ofsted Social Care Provider Webpage") -> Ofsted Social Care Provider Webpage | B24: 1159258 | D24: Children's home | E24: Active | F24: REDACTED | G24: REDACTED | H24: REDACTED | I24: REDACTED | J24: REDACTED | K24: REDACTED | L24: North West | M24: North West | N24: Manchester | O24: Blackley and Broughton | P24: Private | Q24: 3 | R24: Cambian Childcare Ltd | S24: Full inspection | T24: 2017-05-05 | U24: 2017-05-25 | V24: 10028821 | W24: Good | Z24: Good | AA24: Good
A25: =HYPERLINK("http://reports.ofsted.gov.uk/inspection-reports/find-inspection-report/provider/CARE/1159262","Ofsted Social Care Provider Webpage") -> Ofsted Social Care Provider Webpage | B25: 1159262 | C25: 138602 | D25: Boarding School | E25: Active | F25: Kings Oxford | G25: St Joseph's Hall | H25: Temple Road | I25: Oxford | J25: Oxfordshire | K25: OX4 2UJ | L25: South East | M25: South East | N25: Oxfordshire | O25: Oxford East | P25: Private | Q25: 29 | R25: Touchload Ltd | S25: Full inspection | T25: 2016-10-07 | U25: 2016-11-17 | V25: 10019071 | W25: Good | Y25: Good | Z25: Requires improvement | AA25: Good
A26: =HYPERLINK("http://reports.ofsted.gov.uk/inspection-reports/find-inspection-report/provider/CARE/1159264","Ofsted Social Care Provider Webpage") -> Ofsted Social Care Provider Webpage | B26: 1159264 | C26: 138384 | D26: Boarding School | E26: Active | F26: Kings London | G26: 25 Beckenham Road | H26: Beckenham | I26: London | K26: BR3 4PR | L26: London | M26: London | N26: Bromley | O26: Lewisham West and Penge | P26: Private | Q26: 97 | R26: United Language Schools Ltd | S26: Full inspection | T26: 2017-11-02 | U26: 2017-11-27 | V26: 10038900 | W26: Good | Z26: Good | AA26: Good
A27: =HYPERLINK("http://reports.ofsted.gov.uk/inspection-reports/find-inspection-report/provider/CARE/1159272","Ofsted Social Care Provider Webpage") -> Ofsted Social Care Provider Webpage | B27: 1159272 | D27: Children's home | E27: Active | F27: REDACTED | G27: REDACTED | H27: REDACTED | I27: REDACTED | J27: REDACTED | K27: REDACTED | L27: North East, Yorkshire and the Humber | M27: Yorkshire and The Humber | N27: North Yorkshire | O27: Selby and Ainsty | P27: Private | Q27: 4 | R27: Cambian Childcare Ltd | S27: Full inspection | T27: 2017-08-01 | U27: 2017-08-22 | V27: 10028811 | W27: Good | Z27: Good | AA27: Good
A28: =HYPERLINK("http://reports.ofsted.gov.uk/inspection-reports/find-inspection-report/provider/CARE/1159380","Ofsted Social Care Provider Webpage") -> Ofsted Social Care Provider Webpage | B28: 1159380 | C28: 141957 | D28: Residential Special School | E28: Active | F28: Parkwood Hall Co-Operative Academy | G28: Parkwood Hall School | H28: Beechenlea Lane | I28: Swanley | J28: Kent | K28: BR8 8DR | L28: South East | M28: South East | N28: Kent | O28: Sevenoaks | P28: Academy | Q28: 25 | R28: Parkwood Hall Co-Operative Academy Trust 09494940 | S28: Full inspection | T28: 2018-02-22 | U28: 2018-03-27 | V28: 10029224 | W28: Good | Z28: Outstanding | AA28: Good
A29: =HYPERLINK("http://reports.ofsted.gov.uk/inspection-reports/find-inspection-report/provider/CARE/1159385","Ofsted Social Care Provider Webpage") -> Ofsted Social Care Provider Webpage | B29: 1159385 | D29: Children's home | E29: Active | F29: REDACTED | G29: REDACTED | H29: REDACTED | I29: REDACTED | J29: REDACTED | K29: REDACTED | L29: West Midlands | M29: West Midlands | N29: Shropshire | O29: North Shropshire | P29: Private | Q29: 4 | R29: Cambian Childcare Ltd | S29: Full inspection | T29: 2017-07-28 | U29: 2017-08-18 | V29: 10028934 | W29: Good | Z29: Good | AA29: Good
A30: =HYPERLINK("http://reports.ofsted.gov.uk/residential-holiday-schemes-for-disabled-children","Ofsted Social Care Provider Webpage") -> Ofsted Social Care Provider Webpage | B30: 1159390 | D30: Residential Holiday Scheme for Disabled Children | E30: Active | F30: Oundle School Mencap Holidays | G30: REDACTED | H30: REDACTED | I30: REDACTED | J30: REDACTED | K30: REDACTED | L30: London | M30: London | N30: Camden | O30: Hampstead and Kilburn | P30: Private | R30: Oundle School Mencap Holiday 05393382 | S30: Full inspection | T30: 2017-08-03 | U30: 2017-09-06 | V30: 10029061 | W30: Outstanding | Z30: Outstanding | AA30: Outstanding
A31: =HYPERLINK("http://reports.ofsted.gov.uk/inspection-reports/find-inspection-report/provider/CARE/1159395","Ofsted Social Care Provider Webpage") -> Ofsted Social Care Provider Webpage | B31: 1159395 | C31: 114640 | D31: Boarding School | E31: Active | F31: Claremont School | G31: Claremont School | H31: Baldslow | I31: St. Leonards-On-Sea | J31: East Sussex | K31: TN37 7PW | L31: South East | M31: South East | N31: East Sussex | O31: Hastings and Rye | P31: Private | Q31: 75 | R31: Claremont School (St Leonards) Limited 02827000 | S31: Full inspection | T31: 2017-11-24 | U31: 2018-01-08 | V31: 10039208 | W31: Outstanding | Z31: Outstanding | AA31: Outstanding
A32: =HYPERLINK("http://reports.ofsted.gov.uk/inspection-reports/find-inspection-report/provider/CARE/1159397","Ofsted Social Care Provider Webpage") -> Ofsted Social Care Provider Webpage | B32: 1159397 | D32: Children's home | E32: Active | F32: REDACTED | G32: REDACTED | H32: REDACTED | I32: REDACTED | J32: REDACTED | K32: REDACTED | L32: North East, Yorkshire and the Humber | M32: Yorkshire and The Humber | N32: North Yorkshire | O32: Selby and Ainsty | P32: Private | Q32: 4 | R32: Cambian Childcare Ltd | S32: Full inspection | T32: 2018-03-14 | U32: 2018-03-29 | V32: 10044968 | W32: Requires improvement to be good | Z32: Requires improvement to be good | AA32: Requires improvement to be good
A33: =HYPERLINK("http://reports.ofsted.gov.uk/inspection-reports/find-inspection-report/provider/CARE/1159682","Ofsted Social Care Provider Webpage") -> Ofsted Social Care Provider Webpage | B33: 1159682 | D33: Children's home | E33: Active | F33: REDACTED | G33: REDACTED | H33: REDACTED | I33: REDACTED | J33: REDACTED | K33: REDACTED | L33: London | M33: London | N33: Islington | O33: Islington South and Finsbury | P33: Voluntary | Q33: 6 | R33: St Christopher's Fellowship | S33: Full inspection | T33: 2017-05-10 | U33: 2017-05-30 | V33: 10028802 | W33: Good | Z33: Good | AA33: Good
A34: =HYPERLINK("http://reports.ofsted.gov.uk/inspection-reports/find-inspection-report/provider/CARE/1159755","Ofsted Social Care Provider Webpage") -> Ofsted Social Care Provider Webpage | B34: 1159755 | D34: Children's home | E34: Active | F34: REDACTED | G34: REDACTED | H34: REDACTED | I34: REDACTED | J34: REDACTED | K34: REDACTED | L34: London | M34: London | N34: Ealing | O34: Ealing Central and Acton | P34: Voluntary | Q34: 4 | R34: St Christopher's Fellowship | S34: Full inspection | T34: 2017-07-12 | U34: 2017-08-08 | V34: 10028810 | W34: Good | Z34: Good | AA34: Good
A35: =HYPERLINK("http://reports.ofsted.gov.uk/inspection-reports/find-inspection-report/provider/CARE/1159763","Ofsted Social Care Provider Webpage") -> Ofsted Social Care Provider Webpage | B35: 1159763 | D35: Children's home | E35: Active | F35: REDACTED | G35: REDACTED | H35: REDACTED | I35: REDACTED | J35: REDACTED | K35: REDACTED | L35: North East, Yorkshire and the Humber | M35: North East | N35: Darlington | O35: Sedgefield | P35: Private | Q35: 7 | R35: Witherslack Group Ltd | S35: Full inspection | T35: 2018-01-10 | U35: 2018-02-14 | V35: 10028798 | W35: Outstanding | Z35: Outstanding | AA35: Outstanding
A36: =HYPERLINK("http://reports.ofsted.gov.uk/inspection-reports/find-inspection-report/provider/CARE/1159868","Ofsted Social Care Provider Webpage") -> Ofsted Social Care Provider Webpage | B36: 1159868 | D36: Children's home | E36: Active | F36: REDACTED | G36: REDACTED | H36: REDACTED | I36: REDACTED | J36: REDACTED | K36: REDACTED | L36: South West | M36: South West | N36: Dorset | O36: West Dorset | P36: Private | Q36: 3 | R36: Cambian Childcare Ltd | S36: Full inspection | T36: 2017-11-28 | U36: 2017-12-27 | V36: 10028824 | W36: Good | Z36: Good | AA36: Good
A37: =HYPERLINK("http://reports.ofsted.gov.uk/inspection-reports/find-inspection-report/provider/CARE/1159884","Ofsted Social Care Provider Webpage") -> Ofsted Social Care Provider Webpage | B37: 1159884 | D37: Children's home | E37: Active | F37: REDACTED | G37: REDACTED | H37: REDACTED | I37: REDACTED | J37: REDACTED | K37: REDACTED | L37: North East, Yorkshire and the Humber | M37: North East | N37: Stockton-on-Tees | O37: Stockton North | P37: Private | Q37: 5 | R37: Spark Of Genius North East Llp | S37: Full inspection | T37: 2017-06-07 | U37: 2017-07-03 | V37: 10028883 | W37: Good | Z37: Good | AA37: Good
A38: =HYPERLINK("http://reports.ofsted.gov.uk/inspection-reports/find-inspection-report/provider/CARE/1159903","Ofsted Social Care Provider Webpage") -> Ofsted Social Care Provider Webpage | B38: 1159903 | D38: Children's home | E38: Active | F38: REDACTED | G38: REDACTED | H38: REDACTED | I38: REDACTED | J38: REDACTED | K38: REDACTED | L38: North West | M38: North West | N38: Salford | O38: Salford and Eccles | P38: Private | Q38: 5 | R38: Holistic Approach Ltd | S38: Full inspection | T38: 2017-12-14 | U38: 2018-01-19 | V38: 10028814 | W38: Outstanding | Z38: Outstanding | AA38: Outstanding
A39: =HYPERLINK("http://reports.ofsted.gov.uk/inspection-reports/find-inspection-report/provider/CARE/1164089","Ofsted Social Care Provider Webpage") -> Ofsted Social Care Provider Webpage | B39: 1164089 | D39: Children's home | E39: Active | F39: REDACTED | G39: REDACTED | H39: REDACTED | I39: REDACTED | J39: REDACTED | K39: REDACTED | L39: East of England | M39: East of England | N39: Hertfordshire | O39: St Albans | P39: Private | Q39: 4 | R39: Broadwood Residential Limited | S39: Full inspection | T39: 2017-10-03 | U39: 2017-11-01 | V39: 10028792 | W39: Good | Z39: Good | AA39: Good
A40: =HYPERLINK("http://reports.ofsted.gov.uk/inspection-reports/find-inspection-report/provider/CARE/1164379","Ofsted Social Care Provider Webpage") -> Ofsted Social Care Provider Webpage | B40: 1164379 | D40: Children's home | E40: Active | F40: REDACTED | G40: REDACTED | H40: REDACTED | I40: REDACTED | J40: REDACTED | K40: REDACTED | L40: West Midlands | M40: West Midlands | N40: Sandwell | O40: West Bromwich East | P40: Private | Q40: 4 | R40: Icare Children's Services Ltd | S40: Full inspection | T40: 2017-05-24 | U40: 2017-06-13 | V40: 10028823 | W40: Good | Z40: Good | AA40: Good
A41: =HYPERLINK("http://reports.ofsted.gov.uk/inspection-reports/find-inspection-report/provider/CARE/1166735","Ofsted Social Care Provider Webpage") -> Ofsted Social Care Provider Webpage | B41: 1166735 | D41: Adoption Support Agency | E41: Active | F41: Tavistock Relationships | G41: 70 Warren Street | I41: London | K41: W1T 5PB | L41: London | M41: London | N41: Camden | O41: Holborn and St Pancras | P41: Voluntary | R41: The Tavistock Institute Of Medical Psychology | S41: Full inspection | T41: 2016-09-15 | U41: 2016-10-12 | V41: 10012697 | W41: Good | X41: Good | Y41: Good | Z41: Good | AA41: Good
A42: =HYPERLINK("http://reports.ofsted.gov.uk/inspection-reports/find-inspection-report/provider/CARE/1183032","Ofsted Social Care Provider Webpage") -> Ofsted Social Care Provider Webpage | B42: 1183032 | D42: Independent Fostering Agency | E42: Active | F42: Regional Foster Placements | G42: Unit C3A | H42: knoll Business Centre Old Shoreham Road | I42: Hove | K42: BN3 7GS | L42: South East | M42: South East | N42: Brighton and Hove | O42: Hove | P42: Private | R42: Regional Foster Placements Limited | S42: Full inspection | T42: 2016-12-09 | U42: 2017-01-30 | V42: 10020462 | W42: Good | X42: Good | Y42: Good | Z42: Good | AA42: Good
A43: =HYPERLINK("http://reports.ofsted.gov.uk/inspection-reports/find-inspection-report/provider/CARE/1183069","Ofsted Social Care Provider Webpage") -> Ofsted Social Care Provider Webpage | B43: 1183069 | D43: Children's home | E43: Active | F43: REDACTED | G43: REDACTED | H43: REDACTED | I43: REDACTED | J43: REDACTED | K43: REDACTED | L43: East of England | M43: East of England | N43: Suffolk | O43: Ipswich | P43: Private | Q43: 6 | R43: Priory Education Services Limited 06244880 | S43: Full inspection | T43: 2017-11-21 | U43: 2017-12-22 | V43: 10028809 | W43: Good | Z43: Good | AA43: Good
A44: =HYPERLINK("http://reports.ofsted.gov.uk/inspection-reports/find-inspection-report/provider/CARE/1183134","Ofsted Social Care Provider Webpage") -> Ofsted Social Care Provider Webpage | B44: 1183134 | D44: Residential Family Centre | E44: Active | F44: Fairways Residential Family Centre | G44: 20 Salerno Road | I44: Southampton | J44: Hampshire | K44: SO16 5PJ | L44: South East | M44: South East | N44: Southampton | O44: Southampton, Test | P44: Private | Q44: 5 | R44: Fairways Care (uk) Limited | S44: Full inspection | T44: 2016-06-22 | U44: 2016-07-26 | V44: 10011387 | W44: Good | Z44: Good | AA44: Good
A45: =HYPERLINK("http://reports.ofsted.gov.uk/inspection-reports/find-inspection-report/provider/CARE/1183136","Ofsted Social Care Provider Webpage") -> Ofsted Social Care Provider Webpage | B45: 1183136 | D45: Children's home | E45: Active | F45: REDACTED | G45: REDACTED | H45: REDACTED | I45: REDACTED | J45: REDACTED | K45: REDACTED | L45: East Midlands | M45: East Midlands | N45: Nottingham | O45: Nottingham North | P45: Voluntary | Q45: 2 | R45: Nottinghamshire Ymca | S45: Full inspection | T45: 2017-10-23 | U45: 2017-11-08 | V45: 10028799 | W45: Good | Z45: Good | AA45: Good
A46: =HYPERLINK("http://reports.ofsted.gov.uk/inspection-reports/find-inspection-report/provider/CARE/1183173","Ofsted Social Care Provider Webpage") -> Ofsted Social Care Provider Webpage | B46: 1183173 | D46: Children's home | E46: Active | F46: REDACTED | G46: REDACTED | H46: REDACTED | I46: REDACTED | J46: REDACTED | K46: REDACTED | L46: East Midlands | M46: East Midlands | N46: Northamptonshire | O46: Wellingborough | P46: Private | Q46: 4 | R46: Tlc Youth Care Limited | S46: Full inspection | T46: 2017-05-03 | U46: 2017-05-22 | V46: 10028829 | W46: Good | Z46: Good | AA46: Good
A47: =HYPERLINK("http://reports.ofsted.gov.uk/inspection-reports/find-inspection-report/provider/CARE/1183197","Ofsted Social Care Provider Webpage") -> Ofsted Social Care Provider Webpage | B47: 1183197 | D47: Children's home | E47: Active | F47: REDACTED | G47: REDACTED | H47: REDACTED | I47: REDACTED | J47: REDACTED | K47: REDACTED | L47: North East, Yorkshire and the Humber | M47: Yorkshire and The Humber | N47: Wakefield | O47: Hemsworth | P47: Private | Q47: 4 | R47: Keswick Care Limited | S47: Full inspection | T47: 2017-06-07 | U47: 2017-07-19 | V47: 10028822 | W47: Outstanding | Z47: Outstanding | AA47: Outstanding
A48: =HYPERLINK("http://reports.ofsted.gov.uk/inspection-reports/find-inspection-report/provider/CARE/1183479","Ofsted Social Care Provider Webpage") -> Ofsted Social Care Provider Webpage | B48: 1183479 | D48: Children's home | E48: Active | F48: REDACTED | G48: REDACTED | H48: REDACTED | I48: REDACTED | J48: REDACTED | K48: REDACTED | L48: South East | M48: South East | N48: Slough | O48: Slough | P48: Voluntary | Q48: 6 | R48: Slough Children's Services Trust Limited (09487106) | S48: Full inspection | T48: 2017-08-23 | U48: 2017-09-19 | V48: 10028807 | W48: Good | Z48: Outstanding | AA48: Good
A49: =HYPERLINK("http://reports.ofsted.gov.uk/inspection-reports/find-inspection-report/provider/CARE/1183494","Ofsted Social Care Provider Webpage") -> Ofsted Social Care Provider Webpage | B49: 1183494 | D49: Children's home | E49: Active | F49: REDACTED | G49: REDACTED | H49: REDACTED | I49: REDACTED | J49: REDACTED | K49: REDACTED | L49: South East | M49: South East | N49: Slough | O49: Slough | P49: Voluntary | Q49: 7 | R49: Slough Children's Services Trust Limited (09487106) | S49: Full inspection | T49: 2017-05-17 | U49: 2017-06-01 | V49: 10028808 | W49: Requires improvement to be good | Z49: Good | AA49: Good
A50: =HYPERLINK("http://reports.ofsted.gov.uk/inspection-reports/find-inspection-report/provider/CARE/1183495","Ofsted Social Care Provider Webpage") -> Ofsted Social Care Provider Webpage | B50: 1183495 | D50: Independent Fostering Agency | E50: Active | F50: Slough Children's Services Trust | G50: Ground Floor West | H50: St Martin's Place 51 Bath Road | I50: Slough | J50: Buckinghamshire | K50: SL1 3UF | L50: South East | M50: South East | N50: Slough | O50: Slough | P50: Voluntary | R50: Slough Children's Services Trust Limited (09487106) | S50: Full inspection | T50: 2016-12-09 | U50: 2017-02-13 | V50: 10010623 | W50: Requires improvement | X50: Good | Y50: Requires improvement | Z50: Requires improvement | AA50: Requires improvement
A51: =HYPERLINK("http://reports.ofsted.gov.uk/inspection-reports/find-inspection-report/provider/CARE/1183499","Ofsted Social Care Provider Webpage") -> Ofsted Social Care Provider Webpage | B51: 1183499 | D51: Voluntary Adoption Agency | E51: Active | F51: Slough Adoption Service | G51: 09487106 - Incorporated on 12 March 2015 | H51: Ground Floor West St Martin's Place,51 Bath Rd | I51: Slough | K51: SL1 3UF | L51: South East | M51: South East | N51: Slough | O51: Slough | P51: Voluntary | R51: Slough Children's Services Trust Limited (09487106) | S51: Full inspection | T51: 2017-01-27 | U51: 2017-04-05 | V51: 10010741 | W51: Requires improvement | X51: Good | Y51: Requires improvement | Z51: Requires improvement | AA51: Good
A52: =HYPERLINK("http://reports.ofsted.gov.uk/inspection-reports/find-inspection-report/provider/CARE/1183574","Ofsted Social Care Provider Webpage") -> Ofsted Social Care Provider Webpage | B52: 1183574 | D52: Children's home | E52: Active | F52: REDACTED | G52: REDACTED | H52: REDACTED | I52: REDACTED | J52: REDACTED | K52: REDACTED | L52: North West | M52: North West | N52: Cheshire West and Chester | O52: City of Chester | P52: Local Authority | Q52: 5 | R52: Cheshire West And Chester Council | S52: Full inspection | T52: 2017-06-21 | U52: 2017-07-19 | V52: 10028858 | W52: Outstanding | Z52: Outstanding | AA52: Outstanding
A53: =HYPERLINK("http://reports.ofsted.gov.uk/inspection-reports/find-inspection-report/provider/CARE/1183605","Ofsted Social Care Provider Webpage") -> Ofsted Social Care Provider Webpage | B53: 1183605 | D53: Children's home | E53: Active | F53: REDACTED | G53: REDACTED | H53: REDACTED | I53: REDACTED | J53: REDACTED | K53: REDACTED | L53: North West | M53: North West | N53: Lancashire | O53: Lancaster and Fleetwood | P53: Private | Q53: 3 | R53: Lonsdale Care Ltd | S53: Full inspection | T53: 2017-06-02 | U53: 2017-06-27 | V53: 10028881 | W53: Good | Z53: Good | AA53: Good
A54: =HYPERLINK("http://reports.ofsted.gov.uk/inspection-reports/find-inspection-report/provider/CARE/1183618","Ofsted Social Care Provider Webpage") -> Ofsted Social Care Provider Webpage | B54: 1183618 | D54: Children's home | E54: Active | F54: REDACTED | G54: REDACTED | H54: REDACTED | I54: REDACTED | J54: REDACTED | K54: REDACTED | L54: South West | M54: South West | N54: Cornwall | O54: Camborne and Redruth | P54: Voluntary | Q54: 1 | R54: Devon & Cornwall Autistic Community Trust (t/a Spectrum) | S54: Full inspection | T54: 2017-11-22 | U54: 2017-12-14 | V54: 10028818 | W54: Good | Z54: Good | AA54: Good
A55: =HYPERLINK("http://reports.ofsted.gov.uk/inspection-reports/find-inspection-report/provider/CARE/1183621","Ofsted Social Care Provider Webpage") -> Ofsted Social Care Provider Webpage | B55: 1183621 | D55: Children's home | E55: Active | F55: REDACTED | G55: REDACTED | H55: REDACTED | I55: REDACTED | J55: REDACTED | K55: REDACTED | L55: East of England | M55: East of England | N55: Essex | O55: Harlow | P55: Private | Q55: 4 | R55: A&t Home Ltd | S55: Full inspection | T55: 2017-04-27 | U55: 2017-05-22 | V55: 10028863 | W55: Good | Z55: Good | AA55: Requires improvement to be good
A56: =HYPERLINK("http://reports.ofsted.gov.uk/inspection-reports/find-inspection-report/provider/CARE/1183799","Ofsted Social Care Provider Webpage") -> Ofsted Social Care Provider Webpage | B56: 1183799 | D56: Children's home | E56: Active | F56: REDACTED | G56: REDACTED | H56: REDACTED | I56: REDACTED | J56: REDACTED | K56: REDACTED | L56: South East | M56: South East | N56: Slough | O56: Slough | P56: Private | Q56: 4 | R56: Quality Care Homes (uk) Limited | S56: Full inspection | T56: 2017-09-01 | U56: 2017-12-07 | V56: 10028835 | W56: Good | Z56: Good | AA56: Requires improvement to be good
A57: =HYPERLINK("http://reports.ofsted.gov.uk/inspection-reports/find-inspection-report/provider/CARE/1183826","Ofsted Social Care Provider Webpage") -> Ofsted Social Care Provider Webpage | B57: 1183826 | D57: Children's home | E57: Active | F57: REDACTED | G57: REDACTED | H57: REDACTED | I57: REDACTED | J57: REDACTED | K57: REDACTED | L57: North East, Yorkshire and the Humber | M57: North East | N57: Sunderland | O57: Sunderland Central | P57: Private | Q57: 8 | R57: Sunderland Care And Support Limited | S57: Full inspection | T57: 2017-10-11 | U57: 2017-11-13 | V57: 10028893 | W57: Good | Z57: Good | AA57: Good
A58: =HYPERLINK("http://reports.ofsted.gov.uk/inspection-reports/find-inspection-report/provider/CARE/1183911","Ofsted Social Care Provider Webpage") -> Ofsted Social Care Provider Webpage | B58: 1183911 | D58: Residential special school (registered as a children's home) | E58: Active | F58: REDACTED | G58: REDACTED | H58: REDACTED | I58: REDACTED | J58: REDACTED | K58: REDACTED | L58: North East, Yorkshire and the Humber | M58: Yorkshire and The Humber | N58: Calderdale | O58: Halifax | P58: Private | Q58: 12 | R58: Young Foundations Limited | S58: Full inspection | T58: 2017-08-23 | U58: 2017-09-12 | V58: 10028828 | W58: Good | Z58: Good | AA58: Good
A59: =HYPERLINK("http://reports.ofsted.gov.uk/inspection-reports/find-inspection-report/provider/CARE/1183936","Ofsted Social Care Provider Webpage") -> Ofsted Social Care Provider Webpage | B59: 1183936 | D59: Children's home | E59: Active | F59: REDACTED | G59: REDACTED | H59: REDACTED | I59: REDACTED | J59: REDACTED | K59: REDACTED | L59: London | M59: London | N59: Bromley | O59: Bromley and Chislehurst | P59: Private | Q59: 6 | R59: Acorn Homes (uk) Ltd | S59: Full inspection | T59: 2017-05-25 | U59: 2017-06-21 | V59: 10028795 | W59: Good | Z59: Good | AA59: Good
A60: =HYPERLINK("http://reports.ofsted.gov.uk/inspection-reports/find-inspection-report/provider/CARE/1183937","Ofsted Social Care Provider Webpage") -> Ofsted Social Care Provider Webpage | B60: 1183937 | D60: Children's home | E60: Active | F60: REDACTED | G60: REDACTED | H60: REDACTED | I60: REDACTED | J60: REDACTED | K60: REDACTED | L60: East Midlands | M60: East Midlands | N60: Northamptonshire | O60: Kettering | P60: Private | Q60: 4 | S60: Full inspection | T60: 2017-08-02 | U60: 2017-08-25 | V60: 10028826 | W60: Good | Z60: Good | AA60: Requires improvement to be good
A61: =HYPERLINK("http://reports.ofsted.gov.uk/inspection-reports/find-inspection-report/provider/CARE/1184093","Ofsted Social Care Provider Webpage") -> Ofsted Social Care Provider Webpage | B61: 1184093 | D61: Children's home | E61: Active | F61: REDACTED | G61: REDACTED | H61: REDACTED | I61: REDACTED | J61: REDACTED | K61: REDACTED | L61: North West | M61: North West | N61: Blackpool | O61: Blackpool North and Cleveleys | P61: Private | Q61: 3 | R61: Sandcastle Care Ltd | S61: Full inspection | T61: 2017-11-08 | U61: 2017-11-28 | V61: 10028850 | W61: Good | Z61: Outstanding | AA61: Good
A62: =HYPERLINK("http://reports.ofsted.gov.uk/inspection-reports/find-inspection-report/provider/CARE/1185488","Ofsted Social Care Provider Webpage") -> Ofsted Social Care Provider Webpage | B62: 1185488 | D62: Children's home | E62: Active | F62: REDACTED | G62: REDACTED | H62: REDACTED | I62: REDACTED | J62: REDACTED | K62: REDACTED | L62: South East | M62: South East | N62: Reading | O62: Reading East | P62: Private | Q62: 4 | R62: Kennet Care Limited | S62: Full inspection | T62: 2017-08-09 | U62: 2017-08-30 | V62: 10028839 | W62: Good | Z62: Good | AA62: Good
A63: =HYPERLINK("http://reports.ofsted.gov.uk/inspection-reports/find-inspection-report/provider/CARE/1185765","Ofsted Social Care Provider Webpage") -> Ofsted Social Care Provider Webpage | B63: 1185765 | D63: Children's home | E63: Active | F63: REDACTED | G63: REDACTED | H63: REDACTED | I63: REDACTED | J63: REDACTED | K63: REDACTED | L63: West Midlands | M63: West Midlands | N63: Staffordshire | O63: Cannock Chase | P63: Private | Q63: 4 | R63: Horizon Care And Education Group Limited | S63: Full inspection | T63: 2017-11-08 | U63: 2018-01-02 | V63: 10028843 | W63: Good | Z63: Requires improvement to be good | AA63: Good
A64: =HYPERLINK("http://reports.ofsted.gov.uk/inspection-reports/find-inspection-report/provider/CARE/1185768","Ofsted Social Care Provider Webpage") -> Ofsted Social Care Provider Webpage | B64: 1185768 | D64: Children's home | E64: Active | F64: REDACTED | G64: REDACTED | H64: REDACTED | I64: REDACTED | J64: REDACTED | K64: REDACTED | L64: South West | M64: South West | N64: Somerset | O64: Bridgwater and West Somerset | P64: Private | Q64: 3 | R64: South West Mental Health Ltd | S64: Full inspection | T64: 2017-07-20 | U64: 2017-08-14 | V64: 10028825 | W64: Good | Z64: Good | AA64: Requires improvement to be good
A65: =HYPERLINK("http://reports.ofsted.gov.uk/inspection-reports/find-inspection-report/provider/CARE/1185828","Ofsted Social Care Provider Webpage") -> Ofsted Social Care Provider Webpage | B65: 1185828 | D65: Children's home | E65: Active | F65: REDACTED | G65: REDACTED | H65: REDACTED | I65: REDACTED | J65: REDACTED | K65: REDACTED | L65: North West | M65: North West | N65: Wigan | O65: Wigan | P65: Private | Q65: 4 | R65: Next Stage 4 Life | S65: Full inspection | T65: 2017-07-11 | U65: 2017-08-03 | V65: 10028873 | W65: Good | Z65: Good | AA65: Outstanding
A66: =HYPERLINK("http://reports.ofsted.gov.uk/inspection-reports/find-inspection-report/provider/CARE/1205501","Ofsted Social Care Provider Webpage") -> Ofsted Social Care Provider Webpage | B66: 1205501 | D66: Children's home | E66: Active | F66: REDACTED | G66: REDACTED | H66: REDACTED | I66: REDACTED | J66: REDACTED | K66: REDACTED | L66: East Midlands | M66: East Midlands | N66: Nottinghamshire | O66: Newark | P66: Private | Q66: 6 | R66: Castle Homes Care Ltd | S66: Full inspection | T66: 2017-04-26 | U66: 2017-05-15 | V66: 10028848 | W66: Requires improvement to be good | Z66: Good | AA66: Inadequate
A67: =HYPERLINK("http://reports.ofsted.gov.uk/inspection-reports/find-inspection-report/provider/CARE/1211772","Ofsted Social Care Provider Webpage") -> Ofsted Social Care Provider Webpage | B67: 1211772 | D67: Children's home | E67: Active | F67: REDACTED | G67: REDACTED | H67: REDACTED | I67: REDACTED | J67: REDACTED | K67: REDACTED | L67: North East, Yorkshire and the Humber | M67: Yorkshire and The Humber | N67: North Yorkshire | O67: Richmond (Yorks) | P67: Private | Q67: 6 | R67: Priory Education Services Limited 06244880 | S67: Full inspection | T67: 2017-08-09 | U67: 2017-09-18 | V67: 10028847 | W67: Good | Z67: Good | AA67: Good
A68: =HYPERLINK("http://reports.ofsted.gov.uk/inspection-reports/find-inspection-report/provider/CARE/1212094","Ofsted Social Care Provider Webpage") -> Ofsted Social Care Provider Webpage | B68: 1212094 | D68: Children's home | E68: Active | F68: REDACTED | G68: REDACTED | H68: REDACTED | I68: REDACTED | J68: REDACTED | K68: REDACTED | L68: North West | M68: North West | N68: Salford | O68: Worsley and Eccles South | P68: Private | Q68: 4 | R68: Hexagon Care Services Limited | S68: Full inspection | T68: 2017-05-03 | U68: 2017-06-01 | V68: 10028874 | W68: Good | Z68: Good | AA68: Good
A69: =HYPERLINK("http://reports.ofsted.gov.uk/inspection-reports/find-inspection-report/provider/CARE/1212117","Ofsted Social Care Provider Webpage") -> Ofsted Social Care Provider Webpage | B69: 1212117 | D69: Children's home | E69: Active | F69: REDACTED | G69: REDACTED | H69: REDACTED | I69: REDACTED | J69: REDACTED | K69: REDACTED | L69: East Midlands | M69: East Midlands | N69: Nottinghamshire | O69: Gedling | P69: Private | Q69: 3 | R69: Pathway Care Solutions Ltd 04004053 | S69: Full inspection | T69: 2017-08-04 | U69: 2017-08-29 | V69: 10028840 | W69: Good | Z69: Good | AA69: Good
A70: =HYPERLINK("http://reports.ofsted.gov.uk/inspection-reports/find-inspection-report/provider/CARE/1212704","Ofsted Social Care Provider Webpage") -> Ofsted Social Care Provider Webpage | B70: 1212704 | D70: Children's home | E70: Active | F70: REDACTED | G70: REDACTED | H70: REDACTED | I70: REDACTED | J70: REDACTED | K70: REDACTED | L70: North East, Yorkshire and the Humber | M70: Yorkshire and The Humber | N70: North Yorkshire | O70: Skipton and Ripon | P70: Private | Q70: 4 | R70: Hexagon Care Services Limited | S70: Full inspection | T70: 2017-10-18 | U70: 2017-11-22 | V70: 10028986 | W70: Good | Z70: Good | AA70: Good
A71: =HYPERLINK("http://reports.ofsted.gov.uk/inspection-reports/find-inspection-report/provider/CARE/1212708","Ofsted Social Care Provider Webpage") -> Ofsted Social Care Provider Webpage | B71: 1212708 | D71: Children's home | E71: Active | F71: REDACTED | G71: REDACTED | H71: REDACTED | I71: REDACTED | J71: REDACTED | K71: REDACTED | L71: East Midlands | M71: East Midlands | N71: Nottingham | O71: Nottingham North | P71: Private | Q71: 3 | R71: Pathway Care Solutions Ltd 04004053 | S71: Full inspection | T71: 2017-05-17 | U71: 2017-06-06 | V71: 10028844 | W71: Requires improvement to be good | Z71: Requires improvement to be good | AA71: Requires improvement to be good
A72: =HYPERLINK("http://reports.ofsted.gov.uk/inspection-reports/find-inspection-report/provider/CARE/1212899","Ofsted Social Care Provider Webpage") -> Ofsted Social Care Provider Webpage | B72: 1212899 | D72: Independent Fostering Agency | E72: Active | F72: Fusion Fostering South East | G72: Fusion Fostering Ltd | H72: FF4 Cams Hall | I72: Fareham | J72: Hampshire | K72: PO16 8AB | L72: South East | M72: South East | N72: Hampshire | O72: Fareham | P72: Private | R72: Fusion Fostering Limited | S72: Full inspection | T72: 2017-06-19 | U72: 2017-07-13 | V72: 10030588 | W72: Good | Z72: Good | AA72: Requires improvement to be good
A73: =HYPERLINK("http://reports.ofsted.gov.uk/inspection-reports/find-inspection-report/provider/CARE/1213416","Ofsted Social Care Provider Webpage") -> Ofsted Social Care Provider Webpage | B73: 1213416 | D73: Children's home | E73: Active | F73: REDACTED | G73: REDACTED | H73: REDACTED | I73: REDACTED | J73: REDACTED | K73: REDACTED | L73: West Midlands | M73: West Midlands | N73: Shropshire | O73: Ludlow | P73: Private | Q73: 2 | R73: Reflexion Care Group Limited | S73: Full inspection | T73: 2018-02-01 | U73: 2018-03-01 | V73: 10028834 | W73: Good | Z73: Good | AA73: Good
A74: =HYPERLINK("http://reports.ofsted.gov.uk/inspection-reports/find-inspection-report/provider/CARE/1213822","Ofsted Social Care Provider Webpage") -> Ofsted Social Care Provider Webpage | B74: 1213822 | C74: 141512 | D74: Residential Special School | E74: Active | F74: Langham Oaks | G74: School Road | H74: Langham | I74: Colchester | J74: Essex | K74: CO4 5PA | L74: East of England | M74: East of England | N74: Essex | O74: Harwich and North Essex | P74: Academy | Q74: 28 | R74: Seax Trust (07747149) | S74: Full inspection | T74: 2017-12-07 | U74: 2018-01-04 | V74: 10029222 | W74: Outstanding | Z74: Outstanding | AA74: Outstanding
A75: =HYPERLINK("http://reports.ofsted.gov.uk/inspection-reports/find-inspection-report/provider/CARE/1213828","Ofsted Social Care Provider Webpage") -> Ofsted Social Care Provider Webpage | B75: 1213828 | D75: Children's home | E75: Active | F75: REDACTED | G75: REDACTED | H75: REDACTED | I75: REDACTED | J75: REDACTED | K75: REDACTED | L75: North West | M75: North West | N75: St Helens | O75: St Helens North | P75: Private | Q75: 2 | R75: Inspire Childrens Services Limited | S75: Full inspection | T75: 2017-11-02 | U75: 2017-12-29 | V75: 10028806 | W75: Good | Z75: Good | AA75: Good
A76: =HYPERLINK("http://reports.ofsted.gov.uk/inspection-reports/find-inspection-report/provider/CARE/1214266","Ofsted Social Care Provider Webpage") -> Ofsted Social Care Provider Webpage | B76: 1214266 | D76: Children's home | E76: Active | F76: REDACTED | G76: REDACTED | H76: REDACTED | I76: REDACTED | J76: REDACTED | K76: REDACTED | L76: East Midlands | M76: East Midlands | N76: Leicestershire | O76: Harborough | P76: Private | Q76: 4 | R76: Platform Childcare Ltd | S76: Full inspection | T76: 2018-01-18 | U76: 2018-02-07 | V76: 10028830 | W76: Outstanding | Z76: Outstanding | AA76: Outstanding
A77: =HYPERLINK("http://reports.ofsted.gov.uk/inspection-reports/find-inspection-report/provider/CARE/1214270","Ofsted Social Care Provider Webpage") -> Ofsted Social Care Provider Webpage | B77: 1214270 | D77: Children's home | E77: Active | F77: REDACTED | G77: REDACTED | H77: REDACTED | I77: REDACTED | J77: REDACTED | K77: REDACTED | L77: North West | M77: North West | N77: Cheshire East | O77: Macclesfield | P77: Private | Q77: 1 | R77: Esland North Limited | S77: Full inspection | T77: 2017-11-16 | U77: 2017-11-29 | V77: 10028849 | W77: Good | Z77: Good | AA77: Good
A78: =HYPERLINK("http://reports.ofsted.gov.uk/inspection-reports/find-inspection-report/provider/CARE/1214396","Ofsted Social Care Provider Webpage") -> Ofsted Social Care Provider Webpage | B78: 1214396 | D78: Children's home | E78: Active | F78: REDACTED | G78: REDACTED | H78: REDACTED | I78: REDACTED | J78: REDACTED | K78: REDACTED | L78: West Midlands | M78: West Midlands | N78: Herefordshire | O78: North Herefordshire | P78: Private | Q78: 2 | R78: River Valley Care Ltd | S78: Full inspection | T78: 2017-11-23 | U78: 2017-12-14 | V78: 10028860 | W78: Good | Z78: Good | AA78: Good
A79: =HYPERLINK("http://reports.ofsted.gov.uk/inspection-reports/find-inspection-report/provider/CARE/1214688","Ofsted Social Care Provider Webpage") -> Ofsted Social Care Provider Webpage | B79: 1214688 | D79: Children's home | E79: Active | F79: REDACTED | G79: REDACTED | H79: REDACTED | I79: REDACTED | J79: REDACTED | K79: REDACTED | L79: South East | M79: South East | N79: Southampton | O79: Southampton, Test | P79: Private | Q79: 5 | R79: Headway House Limited | S79: Full inspection | T79: 2017-05-04 | U79: 2017-05-30 | V79: 10028837 | W79: Requires improvement to be good | Z79: Requires improvement to be good | AA79: Requires improvement to be good
A80: =HYPERLINK("http://reports.ofsted.gov.uk/residential-holiday-schemes-for-disabled-children","Ofsted Social Care Provider Webpage") -> Ofsted Social Care Provider Webpage | B80: 1215445 | D80: Residential Holiday Scheme for Disabled Children | E80: Active | F80: Achieving Aspirations Community Interest Company | G80: REDACTED | H80: REDACTED | I80: REDACTED | J80: REDACTED | K80: REDACTED | L80: East of England | M80: East of England | N80: Suffolk | O80: South Suffolk | P80: Private | R80: Achieving Aspirations Community Interest Company | S80: Full inspection | T80: 2017-09-20 | U80: 2017-10-05 | V80: 10029062 | W80: Requires improvement to be good | Z80: Requires improvement to be good | AA80: Requires improvement to be good
A81: =HYPERLINK("http://reports.ofsted.gov.uk/inspection-reports/find-inspection-report/provider/CARE/1215521","Ofsted Social Care Provider Webpage") -> Ofsted Social Care Provider Webpage | B81: 1215521 | D81: Children's home | E81: Active | F81: REDACTED | G81: REDACTED | H81: REDACTED | I81: REDACTED | J81: REDACTED | K81: REDACTED | L81: East Midlands | M81: East Midlands | N81: Nottingham | O81: Nottingham South | P81: Private | Q81: 3 | R81: Resolute Care Ltd | S81: Full inspection | T81: 2017-07-05 | U81: 2017-07-25 | V81: 10028841 | W81: Outstanding | Z81: Outstanding | AA81: Good
A82: =HYPERLINK("http://reports.ofsted.gov.uk/inspection-reports/find-inspection-report/provider/CARE/1216505","Ofsted Social Care Provider Webpage") -> Ofsted Social Care Provider Webpage | B82: 1216505 | D82: Children's home | E82: Active | F82: REDACTED | G82: REDACTED | H82: REDACTED | I82: REDACTED | J82: REDACTED | K82: REDACTED | L82: North East, Yorkshire and the Humber | M82: North East | N82: Newcastle upon Tyne | O82: Newcastle upon Tyne East | P82: Private | Q82: 5 | R82: Hennessy Living Group Ltd | S82: Full inspection | T82: 2017-09-06 | U82: 2017-10-24 | V82: 10028870 | W82: Good | Z82: Good | AA82: Good
A83: =HYPERLINK("http://reports.ofsted.gov.uk/inspection-reports/find-inspection-report/provider/CARE/1216657","Ofsted Social Care Provider Webpage") -> Ofsted Social Care Provider Webpage | B83: 1216657 | D83: Children's home | E83: Active | F83: REDACTED | G83: REDACTED | H83: REDACTED | I83: REDACTED | J83: REDACTED | K83: REDACTED | L83: East Midlands | M83: East Midlands | N83: Nottingham | O83: Nottingham East | P83: Voluntary | Q83: 2 | R83: Nottinghamshire Ymca | S83: Full inspection | T83: 2017-08-08 | U83: 2017-08-25 | V83: 10028851 | W83: Good | Z83: Good | AA83: Good
A84: =HYPERLINK("http://reports.ofsted.gov.uk/inspection-reports/find-inspection-report/provider/CARE/1220887","Ofsted Social Care Provider Webpage") -> Ofsted Social Care Provider Webpage | B84: 1220887 | D84: Children's home | E84: Active | F84: REDACTED | G84: REDACTED | H84: REDACTED | I84: REDACTED | J84: REDACTED | K84: REDACTED | L84: West Midlands | M84: West Midlands | N84: Staffordshire | O84: Stafford | P84: Private | Q84: 3 | R84: Hygge Care Limited | S84: Full inspection | T84: 2018-01-10 | U84: 2018-01-30 | V84: 10028838 | W84: Good | Z84: Good | AA84: Good
A85: =HYPERLINK("http://reports.ofsted.gov.uk/inspection-reports/find-inspection-report/provider/CARE/1221357","Ofsted Social Care Provider Webpage") -> Ofsted Social Care Provider Webpage | B85: 1221357 | D85: Children's home | E85: Active | F85: REDACTED | G85: REDACTED | H85: REDACTED | I85: REDACTED | J85: REDACTED | K85: REDACTED | L85: North West | M85: North West | N85: Blackpool | O85: Blackpool South | P85: Private | Q85: 4 | R85: Hexagon Care Services Limited | S85: Full inspection | T85: 2017-12-14 | U85: 2018-01-24 | V85: 10028930 | W85: Good | Z85: Good | AA85: Good
A86: =HYPERLINK("http://reports.ofsted.gov.uk/inspection-reports/find-inspection-report/provider/CARE/1221437","Ofsted Social Care Provider Webpage") -> Ofsted Social Care Provider Webpage | B86: 1221437 | D86: Children's home | E86: Active | F86: REDACTED | G86: REDACTED | H86: REDACTED | I86: REDACTED | J86: REDACTED | K86: REDACTED | L86: South West | M86: South West | N86: Dorset | O86: South Dorset | P86: Private | Q86: 5 | R86: Potensial Ltd | S86: Full inspection | T86: 2017-05-12 | U86: 2017-06-07 | V86: 10028886 | W86: Good | Z86: Good | AA86: Good
A87: =HYPERLINK("http://reports.ofsted.gov.uk/inspection-reports/find-inspection-report/provider/CARE/1221700","Ofsted Social Care Provider Webpage") -> Ofsted Social Care Provider Webpage | B87: 1221700 | D87: Children's home | E87: Active | F87: REDACTED | G87: REDACTED | H87: REDACTED | I87: REDACTED | J87: REDACTED | K87: REDACTED | L87: North West | M87: North West | N87: Lancashire | O87: Ribble Valley | P87: Private | Q87: 5 | R87: Hexagon Care Services Limited | S87: Full inspection | T87: 2017-12-20 | U87: 2018-02-09 | V87: 10028869 | W87: Good | Z87: Good | AA87: Good
A88: =HYPERLINK("http://reports.ofsted.gov.uk/inspection-reports/find-inspection-report/provider/CARE/1222089","Ofsted Social Care Provider Webpage") -> Ofsted Social Care Provider Webpage | B88: 1222089 | D88: Children's home | E88: Active | F88: REDACTED | G88: REDACTED | H88: REDACTED | I88: REDACTED | J88: REDACTED | K88: REDACTED | L88: West Midlands | M88: West Midlands | N88: Stoke-on-Trent | O88: Stoke-on-Trent South | P88: Private | Q88: 4 | R88: Platinum Services For Children (residential Care) Ltd | S88: Full inspection | T88: 2017-08-31 | U88: 2017-10-10 | V88: 10028877 | W88: Requires improvement to be good | Z88: Requires improvement to be good | AA88: Requires improvement to be good
A89: =HYPERLINK("http://reports.ofsted.gov.uk/inspection-reports/find-inspection-report/provider/CARE/1223201","Ofsted Social Care Provider Webpage") -> Ofsted Social Care Provider Webpage | B89: 1223201 | D89: Children's home | E89: Active | F89: REDACTED | G89: REDACTED | H89: REDACTED | I89: REDACTED | J89: REDACTED | K89: REDACTED | L89: North East, Yorkshire and the Humber | M89: Yorkshire and The Humber | N89: Leeds | O89: Leeds Central | P89: Local Authority | Q89: 4 | R89: Leeds City Council | S89: Full inspection | T89: 2017-11-02 | U89: 2017-11-28 | V89: 10028846 | W89: Good | Z89: Good | AA89: Requires improvement to be good
A90: =HYPERLINK("http://reports.ofsted.gov.uk/inspection-reports/find-inspection-report/provider/CARE/1223491","Ofsted Social Care Provider Webpage") -> Ofsted Social Care Provider Webpage | B90: 1223491 | D90: Children's home | E90: Active | F90: REDACTED | G90: REDACTED | H90: REDACTED | I90: REDACTED | J90: REDACTED | K90: REDACTED | L90: West Midlands | M90: West Midlands | N90: Shropshire | O90: North Shropshire | P90: Private | Q90: 3 | R90: Bryn Melyn Care | S90: Full inspection | T90: 2017-05-24 | U90: 2017-06-21 | V90: 10028901 | W90: Good | Z90: Good | AA90: Good
A91: =HYPERLINK("http://reports.ofsted.gov.uk/inspection-reports/find-inspection-report/provider/CARE/1223501","Ofsted Social Care Provider Webpage") -> Ofsted Social Care Provider Webpage | B91: 1223501 | D91: Children's home | E91: Active | F91: REDACTED | G91: REDACTED | H91: REDACTED | I91: REDACTED | J91: REDACTED | K91: REDACTED | L91: North West | M91: North West | N91: Lancashire | O91: Fylde | P91: Private | Q91: 4 | R91: Hexagon Care Services Limited | S91: Full inspection | T91: 2017-10-19 | U91: 2017-11-29 | V91: 10028871 | W91: Outstanding | Z91: Outstanding | AA91: Outstanding
A92: =HYPERLINK("http://reports.ofsted.gov.uk/inspection-reports/find-inspection-report/provider/CARE/1223681","Ofsted Social Care Provider Webpage") -> Ofsted Social Care Provider Webpage | B92: 1223681 | D92: Children's home | E92: Active | F92: REDACTED | G92: REDACTED | H92: REDACTED | I92: REDACTED | J92: REDACTED | K92: REDACTED | L92: North West | M92: North West | N92: Lancashire | O92: Burnley | P92: Private | Q92: 4 | R92: Sandcastle Care Ltd | S92: Full inspection | T92: 2017-05-09 | U92: 2017-05-31 | V92: 10028898 | W92: Good | Z92: Good | AA92: Good
A93: =HYPERLINK("http://reports.ofsted.gov.uk/inspection-reports/find-inspection-report/provider/CARE/1224093","Ofsted Social Care Provider Webpage") -> Ofsted Social Care Provider Webpage | B93: 1224093 | D93: Children's home | E93: Active | F93: REDACTED | G93: REDACTED | H93: REDACTED | I93: REDACTED | J93: REDACTED | K93: REDACTED | L93: East of England | M93: East of England | N93: Hertfordshire | O93: Hemel Hempstead | P93: Private | Q93: 4 | R93: Broadwood Residential Ltd | S93: Full inspection | T93: 2017-05-18 | U93: 2017-06-07 | V93: 10028827 | W93: Requires improvement to be good | Z93: Requires improvement to be good | AA93: Requires improvement to be good
A94: =HYPERLINK("http://reports.ofsted.gov.uk/inspection-reports/find-inspection-report/provider/CARE/1224251","Ofsted Social Care Provider Webpage") -> Ofsted Social Care Provider Webpage | B94: 1224251 | D94: Children's home | E94: Active | F94: REDACTED | G94: REDACTED | H94: REDACTED | I94: REDACTED | J94: REDACTED | K94: REDACTED | L94: North West | M94: North West | N94: Wigan | O94: Makerfield | P94: Private | Q94: 2 | R94: Inspire Childrens Services Limited | S94: Full inspection | T94: 2017-12-20 | U94: 2018-01-15 | V94: 10028855 | W94: Good | Z94: Good | AA94: Good
A95: =HYPERLINK("http://reports.ofsted.gov.uk/inspection-reports/find-inspection-report/provider/CARE/1224663","Ofsted Social Care Provider Webpage") -> Ofsted Social Care Provider Webpage | B95: 1224663 | D95: Children's home | E95: Active | F95: REDACTED | G95: REDACTED | H95: REDACTED | I95: REDACTED | J95: REDACTED | K95: REDACTED | L95: East Midlands | M95: East Midlands | N95: Leicestershire | O95: Charnwood | P95: Private | Q95: 3 | R95: Horizon Care And Education Group Limited | S95: Full inspection | T95: 2017-07-18 | U95: 2017-08-11 | V95: 10028853 | W95: Good | Z95: Good | AA95: Outstanding
A96: =HYPERLINK("http://reports.ofsted.gov.uk/inspection-reports/find-inspection-report/provider/CARE/1224674","Ofsted Social Care Provider Webpage") -> Ofsted Social Care Provider Webpage | B96: 1224674 | D96: Children's home | E96: Active | F96: REDACTED | G96: REDACTED | H96: REDACTED | I96: REDACTED | J96: REDACTED | K96: REDACTED | L96: East Midlands | M96: East Midlands | N96: Rutland | O96: Rutland and Melton | P96: Private | Q96: 7 | R96: Hopscotch Solutions Limited | S96: Full inspection | T96: 2018-02-20 | U96: 2018-03-13 | V96: 10045297 | W96: Requires improvement to be good | Z96: Requires improvement to be good | AA96: Requires improvement to be good
A97: =HYPERLINK("http://reports.ofsted.gov.uk/inspection-reports/find-inspection-report/provider/CARE/1224685","Ofsted Social Care Provider Webpage") -> Ofsted Social Care Provider Webpage | B97: 1224685 | D97: Independent Fostering Agency | E97: Active | F97: Shining Stars Fostering Agency Ltd | G97: The Lansdowne Building | H97: 2 Lansdowne Road | I97: CROYDON | K97: CR9 2ER | L97: London | M97: London | N97: Croydon | O97: Croydon Central | P97: Private | R97: Shining Stars Fostering Agency Limited | S97: Full inspection | T97: 2016-11-25 | U97: 2017-01-20 | V97: 10020305 | W97: Good | X97: Good | Y97: Good | Z97: Good | AA97: Good
A98: =HYPERLINK("http://reports.ofsted.gov.uk/inspection-reports/find-inspection-report/provider/CARE/1225136","Ofsted Social Care Provider Webpage") -> Ofsted Social Care Provider Webpage | B98: 1225136 | D98: Children's home | E98: Active | F98: REDACTED | G98: REDACTED | H98: REDACTED | I98: REDACTED | J98: REDACTED | K98: REDACTED | L98: North West | M98: North West | N98: Lancashire | O98: Preston | P98: Private | Q98: 4 | R98: Cambian Childcare Ltd | S98: Full inspection | T98: 2017-05-12 | U98: 2017-05-30 | V98: 10028917 | W98: Good | Z98: Good | AA98: Good
A99: =HYPERLINK("http://reports.ofsted.gov.uk/inspection-reports/find-inspection-report/provider/CARE/1225371","Ofsted Social Care Provider Webpage") -> Ofsted Social Care Provider Webpage | B99: 1225371 | D99: Children's home | E99: Active | F99: REDACTED | G99: REDACTED | H99: REDACTED | I99: REDACTED | J99: REDACTED | K99: REDACTED | L99: North West | M99: North West | N99: Warrington | O99: Warrington South | P99: Private | Q99: 2 | R99: Cambian Childcare Ltd | S99: Full inspection | T99: 2017-04-20 | U99: 2017-05-26 | V99: 10028904 | W99: Good | Z99: Good | AA99: Good
A100: =HYPERLINK("http://reports.ofsted.gov.uk/inspection-reports/find-inspection-report/provider/CARE/1225624","Ofsted Social Care Provider Webpage") -> Ofsted Social Care Provider Webpage | B100: 1225624 | D100: Independent Fostering Agency | E100: Active | F100: Fusion Fostering North West | G100: Kingfisher House | H100: Burnley Road | I100: Rawtenstall | K100: BB4 8EQ | L100: North West | M100: North West | N100: Lancashire | O100: Rossendale and Darwen | P100: Private | R100: Fusion Fostering Limited | S100: Full inspection | T100: 2017-08-11 | U100: 2017-09-06 | V100: 10030595 | W100: Good | Z100: Requires improvement to be good | AA100: Requires improvement to be good
A101: =HYPERLINK("http://reports.ofsted.gov.uk/inspection-reports/find-inspection-report/provider/CARE/1225887","Ofsted Social Care Provider Webpage") -> Ofsted Social Care Provider Webpage | B101: 1225887 | D101: Children's home | E101: Active | F101: REDACTED | G101: REDACTED | H101: REDACTED | I101: REDACTED | J101: REDACTED | K101: REDACTED | L101: South East | M101: South East | N101: Kent | O101: Sittingbourne and Sheppey | P101: Private | Q101: 2 | R101: Benecare Limited | S101: Full inspection | T101: 2017-07-12 | U101: 2017-09-04 | V101: 10028862 | W101: Good | Z101: Good | AA101: Good
A102: =HYPERLINK("http://reports.ofsted.gov.uk/inspection-reports/find-inspection-report/provider/CARE/1226266","Ofsted Social Care Provider Webpage") -> Ofsted Social Care Provider Webpage | B102: 1226266 | D102: Children's home | E102: Active | F102: REDACTED | G102: REDACTED | H102: REDACTED | I102: REDACTED | J102: REDACTED | K102: REDACTED | L102: South East | M102: South East | N102: West Sussex | O102: Arundel and South Downs | P102: Private | Q102: 6 | R102: Kingdom Care Childrens Homes Ltd | S102: Full inspection | T102: 2017-10-05 | U102: 2017-10-31 | V102: 10028859 | W102: Good | Z102: Good | AA102: Good
A103: =HYPERLINK("http://reports.ofsted.gov.uk/inspection-reports/find-inspection-report/provider/CARE/1226271","Ofsted Social Care Provider Webpage") -> Ofsted Social Care Provider Webpage | B103: 1226271 | D103: Adoption Support Agency | E103: Active | F103: The Adoption Consultancy 360 Ltd | G103: West Grange | H103: Clyst Heath | I103: Exeter | K103: EX2 7EY | L103: South West | M103: South West | N103: Devon | O103: East Devon | P103: Private | R103: The Adoption Consultancy 360 Ltd | S103: Full inspection | T103: 2017-03-09 | U103: 2017-04-04 | V103: 10021559 | W103: Outstanding | X103: Outstanding | Y103: Outstanding | Z103: Outstanding | AA103: Outstanding
A104: =HYPERLINK("http://reports.ofsted.gov.uk/inspection-reports/find-inspection-report/provider/CARE/1226397","Ofsted Social Care Provider Webpage") -> Ofsted Social Care Provider Webpage | B104: 1226397 | D104: Children's home | E104: Active | F104: REDACTED | G104: REDACTED | H104: REDACTED | I104: REDACTED | J104: REDACTED | K104: REDACTED | L104: West Midlands | M104: West Midlands | N104: Birmingham | O104: Birmingham, Erdington | P104: Private | Q104: 4 | R104: Compass Children's Homes Ltd | S104: Full inspection | T104: 2017-05-11 | U104: 2017-06-16 | V104: 10029019 | W104: Good | Z104: Good | AA104: Outstanding
A105: =HYPERLINK("http://reports.ofsted.gov.uk/inspection-reports/find-inspection-report/provider/CARE/1226495","Ofsted Social Care Provider Webpage") -> Ofsted Social Care Provider Webpage | B105: 1226495 | D105: Children's home | E105: Active | F105: REDACTED | G105: REDACTED | H105: REDACTED | I105: REDACTED | J105: REDACTED | K105: REDACTED | L105: South East | M105: South East | N105: West Sussex | O105: East Worthing and Shoreham | P105: Private | Q105: 6 | R105: Kingdom Care Childrens Homes Ltd | S105: Full inspection | T105: 2017-07-19 | U105: 2017-08-07 | V105: 10028856 | W105: Good | Z105: Good | AA105: Good
A106: =HYPERLINK("http://reports.ofsted.gov.uk/inspection-reports/find-inspection-report/provider/CARE/1226612","Ofsted Social Care Provider Webpage") -> Ofsted Social Care Provider Webpage | B106: 1226612 | D106: Children's home | E106: Active | F106: REDACTED | G106: REDACTED | H106: REDACTED | I106: REDACTED | J106: REDACTED | K106: REDACTED | L106: East of England | M106: East of England | N106: Essex | O106: Harlow | P106: Private | Q106: 3 | R106: Harmony Residential Homes Ltd | S106: Full inspection | T106: 2017-09-13 | U106: 2017-10-05 | V106: 10028951 | W106: Requires improvement to be good | Z106: Requires improvement to be good | AA106: Inadequate
A107: =HYPERLINK("http://reports.ofsted.gov.uk/inspection-reports/find-inspection-report/provider/CARE/1226630","Ofsted Social Care Provider Webpage") -> Ofsted Social Care Provider Webpage | B107: 1226630 | D107: Independent Fostering Agency | E107: Active | F107: Fusion Fostering South West | G107: Fusion Fostering | H107: Richmond House | I107: Taunton | K107: TA3 6BY | L107: South West | M107: South West | N107: Somerset | O107: Taunton Deane | P107: Private | R107: Fusion Fostering Limited | S107: Full inspection | T107: 2017-02-10 | U107: 2017-02-24 | V107: 10017909 | W107: Good | X107: Good | Y107: Good | Z107: Good | AA107: Good
A108: =HYPERLINK("http://reports.ofsted.gov.uk/inspection-reports/find-inspection-report/provider/CARE/1226757","Ofsted Social Care Provider Webpage") -> Ofsted Social Care Provider Webpage | B108: 1226757 | D108: Children's home | E108: Active | F108: REDACTED | G108: REDACTED | H108: REDACTED | I108: REDACTED | J108: REDACTED | K108: REDACTED | L108: East of England | M108: East of England | N108: Thurrock | O108: South Basildon and East Thurrock | P108: Private | Q108: 3 | R108: Potton Homes Ltd | S108: Full inspection | T108: 2017-05-16 | U108: 2017-06-08 | V108: 10028887 | W108: Requires improvement to be good | Z108: Requires improvement to be good | AA108: Inadequate
A109: =HYPERLINK("http://reports.ofsted.gov.uk/inspection-reports/find-inspection-report/provider/CARE/1226858","Ofsted Social Care Provider Webpage") -> Ofsted Social Care Provider Webpage | B109: 1226858 | D109: Independent Fostering Agency | E109: Active | F109: Action For Children Fostering Manchester Tfco | G109: Peel Green House | H109: 696 Liverpool Road | I109: Manchester | K109: M30 7LP | L109: North West | M109: North West | N109: Salford | O109: Worsley and Eccles South | P109: Voluntary | R109: Action For Children | S109: Full inspection | T109: 2017-07-21 | U109: 2017-08-17 | V109: 10030594 | W109: Requires improvement to be good | Z109: Requires improvement to be good | AA109: Requires improvement to be good
A110: =HYPERLINK("http://reports.ofsted.gov.uk/inspection-reports/find-inspection-report/provider/CARE/1226969","Ofsted Social Care Provider Webpage") -> Ofsted Social Care Provider Webpage | B110: 1226969 | D110: Children's home | E110: Active | F110: REDACTED | G110: REDACTED | H110: REDACTED | I110: REDACTED | J110: REDACTED | K110: REDACTED | L110: East of England | M110: East of England | N110: Cambridgeshire | O110: South Cambridgeshire | P110: Voluntary | Q110: 4 | R110: Action For Children | S110: Full inspection | T110: 2017-05-12 | U110: 2017-05-30 | V110: 10028865 | W110: Good | Z110: Good | AA110: Good
A111: =HYPERLINK("http://reports.ofsted.gov.uk/inspection-reports/find-inspection-report/provider/CARE/1226971","Ofsted Social Care Provider Webpage") -> Ofsted Social Care Provider Webpage | B111: 1226971 | D111: Residential special school (registered as a children's home) | E111: Active | F111: REDACTED | G111: REDACTED | H111: REDACTED | I111: REDACTED | J111: REDACTED | K111: REDACTED | L111: South West | M111: South West | N111: South Gloucestershire | O111: Thornbury and Yate | P111: Voluntary | Q111: 12 | R111: Thornleigh Camphill Communities Ltd | S111: Full inspection | T111: 2017-06-22 | U111: 2017-07-17 | V111: 10028895 | W111: Requires improvement to be good | Z111: Requires improvement to be good | AA111: Requires improvement to be good
A112: =HYPERLINK("http://reports.ofsted.gov.uk/inspection-reports/find-inspection-report/provider/CARE/1226975","Ofsted Social Care Provider Webpage") -> Ofsted Social Care Provider Webpage | B112: 1226975 | D112: Children's home | E112: Active | F112: REDACTED | G112: REDACTED | H112: REDACTED | I112: REDACTED | J112: REDACTED | K112: REDACTED | L112: East Midlands | M112: East Midlands | N112: Leicestershire | O112: Bosworth | P112: Private | Q112: 3 | R112: Horizon Care And Education Group Limited | S112: Full inspection | T112: 2017-09-06 | U112: 2017-09-29 | V112: 10028866 | W112: Good | Z112: Good | AA112: Good
A113: =HYPERLINK("http://reports.ofsted.gov.uk/inspection-reports/find-inspection-report/provider/CARE/1226977","Ofsted Social Care Provider Webpage") -> Ofsted Social Care Provider Webpage | B113: 1226977 | D113: Children's home | E113: Active | F113: REDACTED | G113: REDACTED | H113: REDACTED | I113: REDACTED | J113: REDACTED | K113: REDACTED | L113: South East | M113: South East | N113: Kent | O113: Dover | P113: Private | Q113: 2 | R113: Moonreach Ltd | S113: Full inspection | T113: 2017-08-17 | U113: 2017-10-02 | V113: 10028896 | W113: Good | Z113: Good | AA113: Good
A114: =HYPERLINK("http://reports.ofsted.gov.uk/inspection-reports/find-inspection-report/provider/CARE/1226978","Ofsted Social Care Provider Webpage") -> Ofsted Social Care Provider Webpage | B114: 1226978 | D114: Children's home | E114: Active | F114: REDACTED | G114: REDACTED | H114: REDACTED | I114: REDACTED | J114: REDACTED | K114: REDACTED | L114: North East, Yorkshire and the Humber | M114: Yorkshire and The Humber | N114: North Yorkshire | O114: Scarborough and Whitby | P114: Private | Q114: 2 | R114: Cambian Childcare Ltd | S114: Full inspection | T114: 2018-02-21 | U114: 2018-03-16 | V114: 10028921 | W114: Good | Z114: Good | AA114: Good
A115: =HYPERLINK("http://reports.ofsted.gov.uk/inspection-reports/find-inspection-report/provider/CARE/1227060","Ofsted Social Care Provider Webpage") -> Ofsted Social Care Provider Webpage | B115: 1227060 | D115: Residential special school (registered as a children's home) | E115: Active | F115: REDACTED | G115: REDACTED | H115: REDACTED | I115: REDACTED | J115: REDACTED | K115: REDACTED | L115: North East, Yorkshire and the Humber | M115: Yorkshire and The Humber | N115: North Yorkshire | O115: Skipton and Ripon | P115: Private | Q115: 23 | R115: Cambian Autism Services Limited | S115: Full inspection | T115: 2018-02-14 | U115: 2018-04-09 | V115: 10028845 | W115: Good | Z115: Good | AA115: Good
A116: =HYPERLINK("http://reports.ofsted.gov.uk/inspection-reports/find-inspection-report/provider/CARE/1227330","Ofsted Social Care Provider Webpage") -> Ofsted Social Care Provider Webpage | B116: 1227330 | D116: Children's home | E116: Active | F116: REDACTED | G116: REDACTED | H116: REDACTED | I116: REDACTED | J116: REDACTED | K116: REDACTED | L116: West Midlands | M116: West Midlands | N116: Telford and Wrekin | O116: The Wrekin | P116: Private | Q116: 3 | R116: Positive Outcomes Childcare Ltd | S116: Full inspection | T116: 2017-05-24 | U116: 2017-06-13 | V116: 10028908 | W116: Good | Z116: Good | AA116: Requires improvement to be good
A117: =HYPERLINK("http://reports.ofsted.gov.uk/inspection-reports/find-inspection-report/provider/CARE/1227335","Ofsted Social Care Provider Webpage") -> Ofsted Social Care Provider Webpage | B117: 1227335 | D117: Children's home | E117: Active | F117: REDACTED | G117: REDACTED | H117: REDACTED | I117: REDACTED | J117: REDACTED | K117: REDACTED | L117: North West | M117: North West | N117: Lancashire | O117: West Lancashire | P117: Private | Q117: 2 | R117: Exceptional Care Ltd | S117: Full inspection | T117: 2017-04-27 | U117: 2017-05-31 | V117: 10028931 | W117: Good | Z117: Good | AA117: Good
A118: =HYPERLINK("http://reports.ofsted.gov.uk/inspection-reports/find-inspection-report/provider/CARE/1227596","Ofsted Social Care Provider Webpage") -> Ofsted Social Care Provider Webpage | B118: 1227596 | D118: Children's home | E118: Active | F118: REDACTED | G118: REDACTED | H118: REDACTED | I118: REDACTED | J118: REDACTED | K118: REDACTED | L118: West Midlands | M118: West Midlands | N118: Staffordshire | O118: Stafford | P118: Private | Q118: 3 | R118: Reflexion Care Group Limited | S118: Full inspection | T118: 2017-11-15 | U118: 2017-12-28 | V118: 10028879 | W118: Good | Z118: Good | AA118: Good
A119: =HYPERLINK("http://reports.ofsted.gov.uk/inspection-reports/find-inspection-report/provider/CARE/1227599","Ofsted Social Care Provider Webpage") -> Ofsted Social Care Provider Webpage | B119: 1227599 | D119: Residential Family Centre | E119: Active | F119: Pafa (parenting Assessments For All) Ltd | G119: Oakfield | H119: Old Lane | I119: Wirral | K119: CH60 1XX | L119: North West | M119: North West | N119: Wirral | O119: Wirral South | P119: Private | Q119: 4 | R119: Pafa (parenting Assessments For All) Ltd | S119: Full inspection | T119: 2017-09-06 | U119: 2017-09-26 | V119: 10029049 | W119: Requires improvement to be good | Z119: Requires improvement to be good | AA119: Requires improvement to be good
A120: =HYPERLINK("http://reports.ofsted.gov.uk/inspection-reports/find-inspection-report/provider/CARE/1227778","Ofsted Social Care Provider Webpage") -> Ofsted Social Care Provider Webpage | B120: 1227778 | D120: Independent Fostering Agency | E120: Active | F120: Aspirations Fostering Limited | G120: 114 High Street | I120: Rayleigh | J120: Essex | K120: SS6 7BY | L120: East of England | M120: East of England | N120: Essex | O120: Rayleigh and Wickford | P120: Private | R120: Aspirations Fostering Limited | S120: Full inspection | T120: 2017-03-17 | U120: 2017-04-11 | V120: 10021323 | W120: Good | X120: Good | Y120: Good | Z120: Good | AA120: Good
A121: =HYPERLINK("http://reports.ofsted.gov.uk/inspection-reports/find-inspection-report/provider/CARE/1227788","Ofsted Social Care Provider Webpage") -> Ofsted Social Care Provider Webpage | B121: 1227788 | D121: Children's home | E121: Active | F121: REDACTED | G121: REDACTED | H121: REDACTED | I121: REDACTED | J121: REDACTED | K121: REDACTED | L121: South West | M121: South West | N121: Somerset | O121: Somerton and Frome | P121: Private | Q121: 2 | R121: Solent Child Care Ltd | S121: Full inspection | T121: 2017-11-10 | U121: 2017-12-04 | V121: 10028880 | W121: Good | Z121: Good | AA121: Good
A122: =HYPERLINK("http://reports.ofsted.gov.uk/inspection-reports/find-inspection-report/provider/CARE/1227869","Ofsted Social Care Provider Webpage") -> Ofsted Social Care Provider Webpage | B122: 1227869 | D122: Children's home | E122: Active | F122: REDACTED | G122: REDACTED | H122: REDACTED | I122: REDACTED | J122: REDACTED | K122: REDACTED | L122: West Midlands | M122: West Midlands | N122: Walsall | O122: Aldridge-Brownhills | P122: Private | Q122: 5 | R122: Compass Children's Homes Ltd | S122: Full inspection | T122: 2017-05-05 | U122: 2017-06-06 | V122: 10029007 | W122: Good | Z122: Good | AA122: Requires improvement to be good
A123: =HYPERLINK("http://reports.ofsted.gov.uk/inspection-reports/find-inspection-report/provider/CARE/1228090","Ofsted Social Care Provider Webpage") -> Ofsted Social Care Provider Webpage | B123: 1228090 | D123: Children's home | E123: Active | F123: REDACTED | G123: REDACTED | H123: REDACTED | I123: REDACTED | J123: REDACTED | K123: REDACTED | L123: West Midlands | M123: West Midlands | N123: Birmingham | O123: Sutton Coldfield | P123: Private | Q123: 4 | R123: Meadows Care Ltd | S123: Full inspection | T123: 2017-07-12 | U123: 2017-08-18 | V123: 10028905 | W123: Requires improvement to be good | Z123: Requires improvement to be good | AA123: Requires improvement to be good
A124: =HYPERLINK("http://reports.ofsted.gov.uk/inspection-reports/find-inspection-report/provider/CARE/1228091","Ofsted Social Care Provider Webpage") -> Ofsted Social Care Provider Webpage | B124: 1228091 | D124: Children's home | E124: Active | F124: REDACTED | G124: REDACTED | H124: REDACTED | I124: REDACTED | J124: REDACTED | K124: REDACTED | L124: North West | M124: North West | N124: Cheshire West and Chester | O124: Ellesmere Port and Neston | P124: Private | Q124: 3 | R124: Phoenix Care And Education Ltd | S124: Full inspection | T124: 2017-08-03 | U124: 2017-08-23 | V124: 10038693 | W124: Requires improvement to be good | Z124: Good | AA124: Requires improvement to be good
A125: =HYPERLINK("http://reports.ofsted.gov.uk/inspection-reports/find-inspection-report/provider/CARE/1228092","Ofsted Social Care Provider Webpage") -> Ofsted Social Care Provider Webpage | B125: 1228092 | D125: Children's home | E125: Active | F125: REDACTED | G125: REDACTED | H125: REDACTED | I125: REDACTED | J125: REDACTED | K125: REDACTED | L125: East of England | M125: East of England | N125: Essex | O125: Witham | P125: Private | Q125: 4 | R125: Personal Security Service Ltd | S125: Full inspection | T125: 2017-08-09 | U125: 2017-08-25 | V125: 10028902 | W125: Good | Z125: Good | AA125: Good
A126: =HYPERLINK("http://reports.ofsted.gov.uk/inspection-reports/find-inspection-report/provider/CARE/1228191","Ofsted Social Care Provider Webpage") -> Ofsted Social Care Provider Webpage | B126: 1228191 | D126: Children's home | E126: Active | F126: REDACTED | G126: REDACTED | H126: REDACTED | I126: REDACTED | J126: REDACTED | K126: REDACTED | L126: West Midlands | M126: West Midlands | N126: Staffordshire | O126: Staffordshire Moorlands | P126: Private | Q126: 2 | R126: Aspireone Care Ltd | S126: Full inspection | T126: 2017-09-20 | U126: 2017-10-11 | V126: 10028907 | W126: Good | Z126: Good | AA126: Outstanding
A127: =HYPERLINK("http://reports.ofsted.gov.uk/inspection-reports/find-inspection-report/provider/CARE/1228522","Ofsted Social Care Provider Webpage") -> Ofsted Social Care Provider Webpage | B127: 1228522 | D127: Children's home | E127: Active | F127: REDACTED | G127: REDACTED | H127: REDACTED | I127: REDACTED | J127: REDACTED | K127: REDACTED | L127: North West | M127: North West | N127: Lancashire | O127: Morecambe and Lunesdale | P127: Private | Q127: 5 | R127: Kedleston (Wood Grove Childcare) Ltd | S127: Full inspection | T127: 2017-11-16 | U127: 2018-01-04 | V127: 10043536 | W127: Requires improvement to be good | Z127: Requires improvement to be good | AA127: Requires improvement to be good
A128: =HYPERLINK("http://reports.ofsted.gov.uk/inspection-reports/find-inspection-report/provider/CARE/1228523","Ofsted Social Care Provider Webpage") -> Ofsted Social Care Provider Webpage | B128: 1228523 | D128: Independent Fostering Agency | E128: Active | F128: Unity Foster Care | G128: Unit 54 Titan Business Centre | H128: Euroway House Roysdale Avenue | I128: Bradford | J128: Yorkshire | K128: BD4 6SE | L128: North East, Yorkshire and the Humber | M128: Yorkshire and The Humber | N128: Bradford | O128: Bradford South | P128: Private | R128: Unity Foster Care Ltd | S128: Full inspection | T128: 2017-08-11 | U128: 2017-09-21 | V128: 10030589 | W128: Good | Z128: Good | AA128: Good
A129: =HYPERLINK("http://reports.ofsted.gov.uk/inspection-reports/find-inspection-report/provider/CARE/1228919","Ofsted Social Care Provider Webpage") -> Ofsted Social Care Provider Webpage | B129: 1228919 | D129: Children's home | E129: Active | F129: REDACTED | G129: REDACTED | H129: REDACTED | I129: REDACTED | J129: REDACTED | K129: REDACTED | L129: South East | M129: South East | N129: East Sussex | O129: Bexhill and Battle | P129: Private | Q129: 2 | R129: Anderida Adolescent Care | S129: Full inspection | T129: 2017-08-04 | U129: 2017-08-31 | V129: 10028890 | W129: Good | Z129: Good | AA129: Good
A130: =HYPERLINK("http://reports.ofsted.gov.uk/inspection-reports/find-inspection-report/provider/CARE/1229229","Ofsted Social Care Provider Webpage") -> Ofsted Social Care Provider Webpage | B130: 1229229 | D130: Children's home | E130: Active | F130: REDACTED | G130: REDACTED | H130: REDACTED | I130: REDACTED | J130: REDACTED | K130: REDACTED | L130: East Midlands | M130: East Midlands | N130: Nottinghamshire | O130: Newark | P130: Private | Q130: 2 | R130: Esland North Limited | S130: Full inspection | T130: 2017-12-14 | U130: 2018-01-15 | V130: 10028891 | W130: Outstanding | Z130: Outstanding | AA130: Outstanding
A131: =HYPERLINK("http://reports.ofsted.gov.uk/inspection-reports/find-inspection-report/provider/CARE/1229417","Ofsted Social Care Provider Webpage") -> Ofsted Social Care Provider Webpage | B131: 1229417 | D131: Children's home | E131: Active | F131: REDACTED | G131: REDACTED | H131: REDACTED | I131: REDACTED | J131: REDACTED | K131: REDACTED | L131: North East, Yorkshire and the Humber | M131: North East | N131: Middlesbrough | O131: Middlesbrough | P131: Private | Q131: 1 | R131: Cambian Childcare Ltd | S131: Full inspection | T131: 2017-05-16 | U131: 2017-06-08 | V131: 10028894 | W131: Outstanding | Z131: Outstanding | AA131: Outstanding
A132: =HYPERLINK("http://reports.ofsted.gov.uk/inspection-reports/find-inspection-report/provider/CARE/1229534","Ofsted Social Care Provider Webpage") -> Ofsted Social Care Provider Webpage | B132: 1229534 | D132: Children's home | E132: Active | F132: REDACTED | G132: REDACTED | H132: REDACTED | I132: REDACTED | J132: REDACTED | K132: REDACTED | L132: North West | M132: North West | N132: Lancashire | O132: Hyndburn | P132: Private | Q132: 7 | R132: Halliwell Homes Limited | S132: Full inspection | T132: 2017-10-26 | U132: 2018-02-28 | V132: 10028906 | W132: Requires improvement to be good | Z132: Requires improvement to be good | AA132: Requires improvement to be good
A133: =HYPERLINK("http://reports.ofsted.gov.uk/inspection-reports/find-inspection-report/provider/CARE/1229762","Ofsted Social Care Provider Webpage") -> Ofsted Social Care Provider Webpage | B133: 1229762 | D133: Children's home | E133: Active | F133: REDACTED | G133: REDACTED | H133: REDACTED | I133: REDACTED | J133: REDACTED | K133: REDACTED | L133: East Midlands | M133: East Midlands | N133: Leicestershire | O133: Charnwood | P133: Private | Q133: 3 | R133: Horizon Care And Education Group Limited | S133: Full inspection | T133: 2017-12-13 | U133: 2018-01-05 | V133: 10028882 | W133: Good | Z133: Good | AA133: Good
A134: =HYPERLINK("http://reports.ofsted.gov.uk/residential-holiday-schemes-for-disabled-children","Ofsted Social Care Provider Webpage") -> Ofsted Social Care Provider Webpage | B134: 1229765 | D134: Residential Holiday Scheme for Disabled Children | E134: Active | F134: Imago Community | G134: REDACTED | H134: REDACTED | I134: REDACTED | J134: REDACTED | K134: REDACTED | L134: South East | M134: South East | N134: Kent | O134: Tunbridge Wells | P134: Private | R134: Imago Community | S134: Full inspection | T134: 2018-02-16 | U134: 2018-04-18 | V134: 10029063 | W134: Good | Z134: Good | AA134: Good
A135: =HYPERLINK("http://reports.ofsted.gov.uk/inspection-reports/find-inspection-report/provider/CARE/1229766","Ofsted Social Care Provider Webpage") -> Ofsted Social Care Provider Webpage | B135: 1229766 | D135: Residential special school (registered as a children's home) | E135: Active | F135: REDACTED | G135: REDACTED | H135: REDACTED | I135: REDACTED | J135: REDACTED | K135: REDACTED | L135: East of England | M135: East of England | N135: Cambridgeshire | O135: South Cambridgeshire | P135: Private | Q135: 23 | R135: Aurora Care and Education Opco Limited | S135: Full inspection | T135: 2017-05-24 | U135: 2017-06-13 | V135: 10028861 | W135: Good | Z135: Good | AA135: Good
A136: =HYPERLINK("http://reports.ofsted.gov.uk/inspection-reports/find-inspection-report/provider/CARE/1229977","Ofsted Social Care Provider Webpage") -> Ofsted Social Care Provider Webpage | B136: 1229977 | D136: Children's home | E136: Active | F136: REDACTED | G136: REDACTED | H136: REDACTED | I136: REDACTED | J136: REDACTED | K136: REDACTED | L136: South East | M136: South East | N136: Oxfordshire | O136: Henley | P136: Local Authority | Q136: 6 | R136: Oxfordshire County Council | S136: Full inspection | T136: 2017-10-05 | U136: 2017-11-14 | V136: 10039221 | W136: Requires improvement to be good | Z136: Requires improvement to be good | AA136: Requires improvement to be good
A137: =HYPERLINK("http://reports.ofsted.gov.uk/inspection-reports/find-inspection-report/provider/CARE/1230268","Ofsted Social Care Provider Webpage") -> Ofsted Social Care Provider Webpage | B137: 1230268 | D137: Children's home | E137: Active | F137: REDACTED | G137: REDACTED | H137: REDACTED | I137: REDACTED | J137: REDACTED | K137: REDACTED | L137: East of England | M137: East of England | N137: Southend on Sea | O137: Southend West | P137: Private | Q137: 5 | R137: Kites Children Service's Ltd | S137: Full inspection | T137: 2017-06-15 | U137: 2017-07-04 | V137: 10028909 | W137: Good | Z137: Good | AA137: Good
A138: =HYPERLINK("http://reports.ofsted.gov.uk/inspection-reports/find-inspection-report/provider/CARE/1230411","Ofsted Social Care Provider Webpage") -> Ofsted Social Care Provider Webpage | B138: 1230411 | D138: Children's home | E138: Active | F138: REDACTED | G138: REDACTED | H138: REDACTED | I138: REDACTED | J138: REDACTED | K138: REDACTED | L138: South East | M138: South East | N138: Surrey | O138: Guildford | P138: Local Authority | Q138: 2 | R138: Surrey County Council | S138: Full inspection | T138: 2017-07-21 | U138: 2017-08-14 | V138: 10028903 | W138: Good | Z138: Good | AA138: Requires improvement to be good
A139: =HYPERLINK("http://reports.ofsted.gov.uk/inspection-reports/find-inspection-report/provider/CARE/1230415","Ofsted Social Care Provider Webpage") -> Ofsted Social Care Provider Webpage | B139: 1230415 | D139: Children's home | E139: Active | F139: REDACTED | G139: REDACTED | H139: REDACTED | I139: REDACTED | J139: REDACTED | K139: REDACTED | L139: West Midlands | M139: West Midlands | N139: Birmingham | O139: Birmingham, Perry Barr | P139: Private | Q139: 4 | R139: Beacon Child Care Ltd | S139: Full inspection | T139: 2017-06-06 | U139: 2017-07-03 | V139: 10028944 | W139: Requires improvement to be good | Z139: Requires improvement to be good | AA139: Requires improvement to be good
A140: =HYPERLINK("http://reports.ofsted.gov.uk/inspection-reports/find-inspection-report/provider/CARE/1230416","Ofsted Social Care Provider Webpage") -> Ofsted Social Care Provider Webpage | B140: 1230416 | D140: Children's home | E140: Active | F140: REDACTED | G140: REDACTED | H140: REDACTED | I140: REDACTED | J140: REDACTED | K140: REDACTED | L140: East of England | M140: East of England | N140: Bedford | O140: North East Bedfordshire | P140: Private | Q140: 4 | R140: Cambian Childcare Ltd | S140: Full inspection | T140: 2017-05-19 | U140: 2017-06-13 | V140: 10028911 | W140: Good | Z140: Good | AA140: Requires improvement to be good
A141: =HYPERLINK("http://reports.ofsted.gov.uk/inspection-reports/find-inspection-report/provider/CARE/1230725","Ofsted Social Care Provider Webpage") -> Ofsted Social Care Provider Webpage | B141: 1230725 | D141: Children's home | E141: Active | F141: REDACTED | G141: REDACTED | H141: REDACTED | I141: REDACTED | J141: REDACTED | K141: REDACTED | L141: East of England | M141: East of England | N141: Essex | O141: Harwich and North Essex | P141: Private | Q141: 6 | R141: Pathways Care Group Limited | S141: Full inspection | T141: 2017-08-23 | U141: 2017-09-11 | V141: 10028927 | W141: Good | Z141: Good | AA141: Requires improvement to be good
A142: =HYPERLINK("http://reports.ofsted.gov.uk/inspection-reports/find-inspection-report/provider/CARE/1230838","Ofsted Social Care Provider Webpage") -> Ofsted Social Care Provider Webpage | B142: 1230838 | D142: Independent Fostering Agency | E142: Active | F142: Olive Branch Fostering Ltd | G142: Hardmans Business Centre | H142: New Hall Hey Road | I142: ROSSENDALE | J142: Lancashire | K142: BB4 6HH | L142: North West | M142: North West | N142: Lancashire | O142: Rossendale and Darwen | P142: Private | R142: Olive Branch Fostering Ltd | S142: Full inspection | T142: 2017-07-17 | U142: 2017-08-03 | V142: 10030596 | W142: Good | Z142: Good | AA142: Good
A143: =HYPERLINK("http://reports.ofsted.gov.uk/inspection-reports/find-inspection-report/provider/CARE/1231066","Ofsted Social Care Provider Webpage") -> Ofsted Social Care Provider Webpage | B143: 1231066 | D143: Children's home | E143: Active | F143: REDACTED | G143: REDACTED | H143: REDACTED | I143: REDACTED | J143: REDACTED | K143: REDACTED | L143: South West | M143: South West | N143: Devon | O143: Newton Abbot | P143: Private | Q143: 1 | R143: One To One Crisis Intervention Ltd | S143: Full inspection | T143: 2017-07-04 | U143: 2017-07-24 | V143: 10028878 | W143: Good | Z143: Good | AA143: Good
A144: =HYPERLINK("http://reports.ofsted.gov.uk/inspection-reports/find-inspection-report/provider/CARE/1231067","Ofsted Social Care Provider Webpage") -> Ofsted Social Care Provider Webpage | B144: 1231067 | D144: Children's home | E144: Active | F144: REDACTED | G144: REDACTED | H144: REDACTED | I144: REDACTED | J144: REDACTED | K144: REDACTED | L144: South West | M144: South West | N144: Devon | O144: Newton Abbot | P144: Private | Q144: 1 | R144: One To One Crisis Intervention Ltd | S144: Full inspection | T144: 2017-05-24 | U144: 2017-06-12 | V144: 10028885 | W144: Good | Z144: Requires improvement to be good | AA144: Good
A145: =HYPERLINK("http://reports.ofsted.gov.uk/inspection-reports/find-inspection-report/provider/CARE/1231311","Ofsted Social Care Provider Webpage") -> Ofsted Social Care Provider Webpage | B145: 1231311 | D145: Children's home | E145: Active | F145: REDACTED | G145: REDACTED | H145: REDACTED | I145: REDACTED | J145: REDACTED | K145: REDACTED | L145: West Midlands | M145: West Midlands | N145: Telford and Wrekin | O145: The Wrekin | P145: Private | Q145: 3 | R145: Cove Care Residential Ltd | S145: Full inspection | T145: 2017-09-20 | U145: 2017-10-16 | V145: 10028960 | W145: Requires improvement to be good | Z145: Requires improvement to be good | AA145: Requires improvement to be good
A146: =HYPERLINK("http://reports.ofsted.gov.uk/inspection-reports/find-inspection-report/provider/CARE/1231399","Ofsted Social Care Provider Webpage") -> Ofsted Social Care Provider Webpage | B146: 1231399 | D146: Children's home | E146: Active | F146: REDACTED | G146: REDACTED | H146: REDACTED | I146: REDACTED | J146: REDACTED | K146: REDACTED | L146: North West | M146: North West | N146: Blackpool | O146: Blackpool North and Cleveleys | P146: Private | Q146: 4 | R146: Sandcastle Care Ltd | S146: Full inspection | T146: 2017-08-16 | U146: 2017-09-12 | V146: 10028943 | W146: Outstanding | Z146: Outstanding | AA146: Outstanding
A147: =HYPERLINK("http://reports.ofsted.gov.uk/inspection-reports/find-inspection-report/provider/CARE/1231404","Ofsted Social Care Provider Webpage") -> Ofsted Social Care Provider Webpage | B147: 1231404 | D147: Children's home | E147: Active | F147: REDACTED | G147: REDACTED | H147: REDACTED | I147: REDACTED | J147: REDACTED | K147: REDACTED | L147: North West | M147: North West | N147: Liverpool | O147: Liverpool, Walton | P147: Private | Q147: 5 | R147: Courtyard Care Limited | S147: Full inspection | T147: 2017-08-09 | U147: 2017-09-19 | V147: 10037499 | W147: Good | Z147: Good | AA147: Good
A148: =HYPERLINK("http://reports.ofsted.gov.uk/inspection-reports/find-inspection-report/provider/CARE/1231405","Ofsted Social Care Provider Webpage") -> Ofsted Social Care Provider Webpage | B148: 1231405 | D148: Children's home | E148: Active | F148: REDACTED | G148: REDACTED | H148: REDACTED | I148: REDACTED | J148: REDACTED | K148: REDACTED | L148: North West | M148: North West | N148: Lancashire | O148: Ribble Valley | P148: Local Authority | Q148: 6 | R148: Lancashire County Council | S148: Full inspection | T148: 2017-09-13 | U148: 2017-10-04 | V148: 10028872 | W148: Good | Z148: Good | AA148: Good
A149: =HYPERLINK("http://reports.ofsted.gov.uk/residential-holiday-schemes-for-disabled-children","Ofsted Social Care Provider Webpage") -> Ofsted Social Care Provider Webpage | B149: 1231454 | D149: Residential Holiday Scheme for Disabled Children | E149: Active | F149: KIDS Delta House | G149: REDACTED | H149: REDACTED | I149: REDACTED | J149: REDACTED | K149: REDACTED | L149: South East | M149: South East | N149: Hampshire | O149: Fareham | P149: Voluntary | R149: Kids | S149: Full inspection | T149: 2017-10-10 | U149: 2017-11-01 | V149: 10029066 | W149: Good | Z149: Good | AA149: Good
A150: =HYPERLINK("http://reports.ofsted.gov.uk/inspection-reports/find-inspection-report/provider/CARE/1231458","Ofsted Social Care Provider Webpage") -> Ofsted Social Care Provider Webpage | B150: 1231458 | D150: Children's home | E150: Active | F150: REDACTED | G150: REDACTED | H150: REDACTED | I150: REDACTED | J150: REDACTED | K150: REDACTED | L150: West Midlands | M150: West Midlands | N150: Birmingham | O150: Birmingham, Selly Oak | P150: Private | Q150: 3 | R150: Sherlock Healthcare Services Ltd | S150: Full inspection | T150: 2017-04-26 | U150: 2017-05-11 | V150: 10028914 | W150: Good | Z150: Good | AA150: Outstanding
A151: =HYPERLINK("http://reports.ofsted.gov.uk/inspection-reports/find-inspection-report/provider/CARE/1231525","Ofsted Social Care Provider Webpage") -> Ofsted Social Care Provider Webpage | B151: 1231525 | D151: Children's home | E151: Active | F151: REDACTED | G151: REDACTED | H151: REDACTED | I151: REDACTED | J151: REDACTED | K151: REDACTED | L151: North East, Yorkshire and the Humber | M151: Yorkshire and The Humber | N151: East Riding of Yorkshire | O151: Brigg and Goole | P151: Private | Q151: 1 | R151: Cambian Childcare Ltd | S151: Full inspection | T151: 2017-07-19 | U151: 2017-08-23 | V151: 10028899 | W151: Good | Z151: Good | AA151: Requires improvement to be good
A152: =HYPERLINK("http://reports.ofsted.gov.uk/inspection-reports/find-inspection-report/provider/CARE/1231812","Ofsted Social Care Provider Webpage") -> Ofsted Social Care Provider Webpage | B152: 1231812 | D152: Children's home | E152: Active | F152: REDACTED | G152: REDACTED | H152: REDACTED | I152: REDACTED | J152: REDACTED | K152: REDACTED | L152: West Midlands | M152: West Midlands | N152: Birmingham | O152: Birmingham, Perry Barr | P152: Private | Q152: 4 | R152: Meadows Care Ltd | S152: Full inspection | T152: 2017-10-24 | U152: 2017-11-24 | V152: 10028982 | W152: Good | Z152: Good | AA152: Good
A153: =HYPERLINK("http://reports.ofsted.gov.uk/inspection-reports/find-inspection-report/provider/CARE/1232171","Ofsted Social Care Provider Webpage") -> Ofsted Social Care Provider Webpage | B153: 1232171 | D153: Children's home | E153: Active | F153: REDACTED | G153: REDACTED | H153: REDACTED | I153: REDACTED | J153: REDACTED | K153: REDACTED | L153: North East, Yorkshire and the Humber | M153: Yorkshire and The Humber | N153: Doncaster | O153: Doncaster Central | P153: Private | Q153: 3 | R153: In Safe Hands Care Ltd | S153: Full inspection | T153: 2016-12-07 | U153: 2017-01-30 | V153: 10021406 | W153: Outstanding | Z153: Good | AA153: Good
